{"text_format":"1","workbook":"xlsx","n_sheets":169,"sheets":["Spis treści","Polskie Towarzystwo Wspie(2023)","Cavatina Holding (2024)","Pekao Bank Hipoteczny S.A. (2)","Millennium BH (2023)","Marvipol Development 2023(2023)","WOODPECKER.CO SA","JR Holding ASI","Bloober Team(2023)","Neptis SA(2023)","Render Cube(2023)","Pure Biologics 2023(2023)","Murapol S.A.(2023)","Beta ETF Nasdaq-100 PLN Hedged ","Beta ETF S&P 500 PLN-Hedged","Eques Aktywnego Inwestowania FI","Eques Akcji Sektora Prywatnego ","Eques Akumulcji Majątku FIZ","Beta ETF WIG20TR(2023)","Ipopema Benefit 3 FIZ(2023)","Beta ETF TBSP PFIZ 2023","Beta ETF sWIG80TR (2023)","Ghelamco Invest sp. z o.o.","PragmaGO - obligacje niez(2023)","PragmaGO SA 2023 obligacj(2023)","Starward Industries(2023)","Polenergia SA (2)","XPlus SA","Ronson Development oblig (2023)","PCC Exol S.A.(2023)","PCC Rokita S.A. (2023)","Kruk (2023)","Beta ETF WIG20lev Portf(2023)","Beta ETF WIG20short Portf(2023)","Echo Investment SA (oblig(2023)","FDK Rentier FIZ (2023)","Beta ETF mWIG40TR FIZ (2023)","Dekpol 2023","Drago Entertainment(2023)","Cavatina Holding (2023-2)","Urteste S.A.","Columbus Energy SA 2022","Beta ETF WIGtech (2023)","Kredyt Inkaso SA 2022","LESS S.A.","PASSUS","Ryvu Therapeutics","EQUES Akumulacji Majątku FIZ","Cloud Technologies SA","Beta ETF S&P 500 PLN-Hedg (2)","Beta ETF Nasdaq-100 PLN-H (2)","BEST SA (2)","DEVELIA SA","Rafako SA","Tenderhut S.A.","Beta ETF WIG20TR","Beta ETF TBSP PFIZ","Beta ETF uWIG80TR","GI Group Poland S.A.","Alior Bank S.A. obligacje (2022","Marvipol Development","Kruk S.A.","EQUES Aktywnego Inwestowa","EQUES Akcji Sektora Prywa","Caspar Asset Management S.A.","Beta ETF WIG20short","Beta ETF WIG20lev","Beta ETF mWIG40TR (2022)","Movie Games","Alior Bank S.A. (BPW)","PCC Exol S.A.","Komex SA","Dr Irena Eris S.A.","Bioceltix","DB Energy S.A.","Ipopema Benefit 3 FIZ","PragmaGO 2022 PONZ","PragmaGO obligacje 2022 POZ","Beta ETF WIGtech (2022)","ExpertSender SA","FDK Rentier FIZ","T-Bull SA","Event Horizon SA","Hub.Tech SA","Creotech Instruments S.A.","SimFabric S.A. ","Millennium Bank Hipoteczny","3LP","Scope Fluidics SA","Genomtec SA","EXCELLENCE","PGF Polska Grupa Fotowolt","Novavis Group","Pointpack SA","Skotan","BETA ETF S&P 500 PLN-Hedg","Beta ETF Nasdaq-100 PLN-H","Polenergia SA","Oferteo 2021","Grupa Pracuj S.A.","Cavatina Holding (obligacje)","Beta ETF WIG20TR ","STS Holding S.A.","Echo Investment S.A. ( ob","BioMaxima S.A.","Transition Technologies MS SA","Bio Planet SA","DESA S.A.","Vortex Energy S.A.","3R Games SA","Murapol S.A.","SpyroSoft S.A.","ALL IN! GAMES SA","Metalkas S.A.","Poltreg S.A.","Marvipol Development SA O","KG Efekt SA (2021)","Santander Bank Polska S.A.","Beta ETF WIG20lev (2021)","Beta ETF WIG20short (2021)","Kruk S.A. (obligacje 2021)","Beta ETF mWIG40TR Portfel","ONDE SA 2021","Ipopema Medycyny i Innowa","Cavatina Holding SA","Canal+ Polska SA 2021","Shoper S.A.","Big Cheese Studio S.A. ","Celon Pharma S.A.","Emitel S.A.","BEST SA","KREDYT INKASO SA (obligac","Vercom S.A.","Dekpol SA obligacje 2020","Pekao Bank Hipoteczny S.A.","MCI Capital Alternatywna ","PragmaGO (obligacje) 2020","Captor Therapeutics SA","Answear.com","Dadelo S.A.","PCF Group SA","Huuuge, Inc.","Mo-BRUK SA","PKO Leasing SA","PCC MCAA","Pure Biologics SA","Canal+ Polska S.A.","Victoria Dom SA","Creepy Jar S.A.","MedApp SA","Medinice SA","PKO Bank Hipoteczny SA","Polwax SA","Inventionmed ","Polski Bank Komórek Macierzysty","Kruk S.A. (obligacje) 2020","Trakcja","Gaming Factory","Elektrim SA","Alior Bank S.A. (BPW) 2020","Ghelamco","Alior Bank (obligacje) 2020","Games Operators S.A.","Ipopema Ekologii i Innowacji","Brand 24 SA","WZÓR","Wolne","test","Zdarzenia"],"not_rendered":{"charts":0,"images":1,"macros":1,"external_links":6,"defined_names":162,"comments":1,"pivot_tables":0},"unopened":[],"bounds":{"document_bytes":16777216,"sheet_cells":100000,"rows_first":2000,"rows_last":500,"rows_between":2000,"halvings":0,"cell_chars":16384,"cell_head_chars":4096},"cells_cut":2,"cells_raw":0,"read":"whole","date_system":"1900"}

{"sheet":"Spis treści","index":0,"n_rows":194,"n_cols":23,"rows_kept":194,"cut":false,"hidden":false,"merged":[]}
[null,null,32302,null,null,null,null,null,null,null,null,null,null,null,null,null,null,null,null,null,null,null,"Olszewski Robert"]
[null,null,null,null,null,null,null," ",null,null,null,null,null,null,null,null,null,null,null,null,null,null,"Andrzejewska Aneta"]
[null,null,null,null,null,null,null," ",null,null,null,null,null,null,null,null,null,null,null,null,null,null,"Sobolak Marzena"]
[null,null,null,null,null,null,null,null,null,null,null,null,null,null,null,null,null,null,null,null,null,null,"Olszowski Adam"]
[null,"Alfabetycznie ",null,"Chronologicznie (wg arkuszy)",null,null,null,null,"liczba dni",null,"w KNF",null,null,null,null,null,null,null,null,null,null,null,"Poślad Mariusz"]
[null,null,null,null,null,null,null,null,null,null,null,null,null,null,null,null,null,null,null,null,null,null,"Thiel Stanisław"]
[null,"3LP",null,"Polskie Towarzystwo Wspie(2023)",null,null,null,null,59,null,0.55932203389830504,null,null,null,null,null,null,null,"410.1.2024",33,26,null,"Fidos Piotr"]
[null,"3R Games SA",null,"Cavatina Holding (2024)",null,null,null,null,32,null,0.71875,null,null,null,null,null,null,null,"410.5.2023",23,9,null,"Bogatko Monika"]
[null,"Alior Bank (obligacje) 2020",null,"Pekao Bank Hipoteczny S.A. (2)",null,null,null,null,175,null,0.29714285714285715,null,null,null,null,null,null,null,"410.26.2023",52,123,null,"Zwoliński Tomasz"]
[null,"Alior Bank S.A. (BPW)",null,"Millennium BH (2023)",null,null,null,null,86,null,0.34883720930232559,null,null,null,null,null,null,null,"410.41.2023",30,56]
[null,"Alior Bank S.A. (BPW) 2020",null,"Marvipol Development 2023(2023)",null,null,null,null,73,null,0.65753424657534243,null,null,null,null,null,null,null,"410.42.2023",48,25]
[null,"Alior Bank S.A. obligacje (2022",null,"WOODPECKER.CO SA",null,null,null,null,73,null,0.67123287671232879,null,null,null,null,null,null,null,null,49,24]
[null,"ALL IN! GAMES SA",null,"JR Holding ASI",null,null,null,null,447,null,0.43176733780760629,null,null,null,null,null,null,null,"410.20.2022",193,254]
[null,"Answear.com",null,"Bloober Team(2023)",null,null,null,null,58,null,0.58620689655172409,null,null,null,null,null,null,null,"410.35.2023",34,24]
[null,"BEST SA",null,"Neptis SA(2023)",null,null,null,null,148,null,0.38513513513513514,null,null,null,null,null,null,null,"410.15.2023",57,91]
[null,"BEST SA (2)",null,"Render Cube(2023)",null,null,null,null,105,null,0.45714285714285713,null,null,null,null,null,null,null,"410.22.2023",48,57]
[null,"Beta ETF mWIG40TR (2022)",null,"Pure Biologics 2023(2023)",null,null,null,null,62,null,0.5161290322580645,null,null,null,null,null,null,null,"410.32.2023",32,30]
[null,"Beta ETF mWIG40TR FIZ (2023)",null,"Murapol S.A.(2023)",null,null,null,null,48,null,0.5,null,null,null,null,null,null,null,"410.33.2023",24,24]
[null,"Beta ETF mWIG40TR Portfel",null,"Beta ETF Nasdaq-100 PLN Hedged ",null,null,null,null,10,null,0.6,null,null,null,null,null,null,null,"410.36.2023",6,4]
[null,"Beta ETF Nasdaq-100 PLN Hedged ",null,"Beta ETF S&P 500 PLN-Hedged",null,null,null,null,10,null,0.7,null,null,null,null,null,null,null,"410.37.2023",7,3]
[null,"Beta ETF Nasdaq-100 PLN-H",null,"Eques Aktywnego Inwestowania FI",null,null,null,null,50,null,0.5,null,null,null,null,null,null,null,"410.27.2023",25,25]
[null,"Beta ETF Nasdaq-100 PLN-H (2)",null,"Eques Akcji Sektora Prywatnego ",null,null,null,null,50,null,0.5,null,null,null,null,null,null,null,"410.28.2023",25,25]
[null,"BETA ETF S&P 500 PLN-Hedg",null,"Eques Akumulcji Majątku FIZ",null,null,null,null,28,null,0.4642857142857143,null,null,null,null,null,null,null,"410.34.2023",13,15]
[null,"Beta ETF S&P 500 PLN-Hedg (2)",null,"Beta ETF WIG20TR(2023)",null,null,null,null,22,null,0.5,null,null,null,null,null,null,null,"410.30.2023",11,11]
[null,"Beta ETF S&P 500 PLN-Hedged",null,"Ipopema Benefit 3 FIZ(2023)",null,null,null,null,33,null,0.60606060606060608,null,null,null,null,null,null,null,"410.25.2023",20,13]
[null,"Beta ETF sWIG80TR (2023)",null,"Beta ETF TBSP PFIZ 2023",null,null,null,null,30,null,0.46666666666666667,null,null,null,null,null,null,null,"410.31.2022",14,16]
[null,"Beta ETF TBSP PFIZ",null,"Beta ETF sWIG80TR (2023)",null,null,null,null,20,null,0.45,null,null,null,null,null,null,null,"410.29.2023",9,11]
[null,"Beta ETF TBSP PFIZ 2023",null,"Ghelamco Invest sp. z o.o.",null,null,null,null,70,null,0.47142857142857142,null,null,null,null,null,null,null,"410.20.2023",33,37]
[null,"Beta ETF uWIG80TR",null,"PragmaGO - obligacje niez(2023)",null,null,null,null,31,null,0.61290322580645162,null,null,null,null,null,null,null,"410.24.2023",19,12]
[null,"Beta ETF WIG20lev",null,"PragmaGO SA 2023 obligacj(2023)",null,null,null,null,112,null,0.45535714285714285,null,null,null,null,null,null,null,"410.8.2023",51,61]
[null,"Beta ETF WIG20lev (2021)",null,"Starward Industries(2023)",null,null,null,null,98,null,0.73469387755102045,null,null,null,null,null,null,null,"410.10.2023",72,26]
[null,"Beta ETF WIG20lev Portf(2023)",null,"Polenergia SA (2)",null,null,null,null,92,null,0.45652173913043476,null,null,null,null,null,null,null,"410.13.2023",42,50]
[null,"Beta ETF WIG20short",null,"XPlus SA",null,null,null,null,229,null,0.42794759825327511,null,null,null,null,null,null,null,"410.38.2022",98,131]
[null,"Beta ETF WIG20short (2021)",null,"Ronson Development oblig (2023)",null,null,null,null,58,null,0.55172413793103448,null,null,null,null,null,null,null,"410.14.2022",32,26]
[null,"Beta ETF WIG20short Portf(2023)",null,"PCC Exol S.A.(2023)",null,null,null,null,26,null,0.61538461538461542,null,null,null,null,null,null,null,"410.21.2023",16,10]
[null,"Beta ETF WIG20TR",null,"PCC Rokita S.A. (2023)",null,null,null,null,58,null,0.48275862068965519,null,null,null,null,null,null,null,"410.11.2023",28,30]
[null,"Beta ETF WIG20TR ",null,"Kruk (2023)",null,null,null,null,34,null,0.67647058823529416,null,null,null,null,null,null,null,"410.18.2023",23,11]
[null,"Beta ETF WIG20TR(2023)",null,"Beta ETF WIG20lev Portf(2023)",null,null,null,null,30,null,0.43333333333333335,null,null,null,null,null,null,null,"410.17.2023",13,17]
[null,"Beta ETF WIGtech (2022)",null,"Beta ETF WIG20short Portf(2023)",null,null,null,null,30,null,0.43333333333333335,null,null,null,null,null,null,null,"410.16.2023",13,17]
[null,"Beta ETF WIGtech (2023)",null,"Echo Investment SA (oblig(2023)",null,null,null,null,43,null,0.62790697674418605,null,null,null,null,null,null,null,null,27,16]
[null,"Big Cheese Studio S.A. ",null,"FDK Rentier FIZ (2023)",null,null,null,null,73,null,0.13698630136986301,null,null,null,null,null,null,null,"410.6.2023",10,63]
[null,"Bio Planet SA",null,"Beta ETF mWIG40TR FIZ (2023)",null,null,null,null,28,null,0.32142857142857145,null,null,null,null,null,null,null,"410.12.2023",9,19]
[null,"Bioceltix",null,"Dekpol 2023",null,null,null,null,63,null,0.58730158730158732,null,null,null,null,null,null,null,"410.1.2023",37,26]
[null,"BioMaxima S.A.",null,"Drago Entertainment(2023)",null,null,null,null,96,null,0.52083333333333337,null,null,null,null,null,null,null,"410.3.2023",50,46]
[null,"Bloober Team(2023)",null,"Cavatina Holding (2023-2)",null,null,null,null,39,null,0.66666666666666663,null,null,null,null,null,null,null,"410.5.2023",26,13]
[null,"Brand 24 SA",null,"Urteste S.A.",null,null,null,null,157,null,0.4713375796178344,null,null,null,null,null,null,null,"410.36.2022",74,83]
[null,"Canal+ Polska S.A.",null,"Columbus Energy SA 2022",null,null,null,null,137,null,0.51824817518248179,null,null,null,null,null,null,null,"410.39.2022",71,66]
[null,"Canal+ Polska SA 2021",null,"Beta ETF WIGtech (2023)",null,null,null,null,18,null,0.5,null,null,null,null,null,null,null,"410.4.2023",9,9]
[null,"Captor Therapeutics SA",null,"Kredyt Inkaso SA 2022",null,null,null,null,100,null,0.59,null,null,null,null,null,null,null,"410.47.2022",59,41]
[null,"Caspar Asset Management S.A.",null,"LESS S.A.",null,null,null,null,92,null,0.58695652173913049,null,null,null,null,null,null,null,"410.44.2022",54,38]
[null,"Cavatina Holding (2023-2)",null,"PASSUS",null,null,null,null,125,null,0.376,null,null,null,null,null,null,null,"410.29.2022",47,78]
[null,"Cavatina Holding (2024)",null,"Ryvu Therapeutics",null,null,null,null,38,null,0.57894736842105265,null,null,null,null,null,null,null,"410.49.2022",22,16]
[null,"Cavatina Holding (obligacje)",null,"EQUES Akumulacji Majątku FIZ",null,null,null,null,56,null,0.5535714285714286,null,null,null,null,null,null,null,"410.45.2022",31,25]
[null,"Cavatina Holding SA",null,"Cloud Technologies SA",null,null,null,null,67,null,0.64179104477611937,null,null,null,null,null,null,null,"410.37.2022",43,24]
[null,"Celon Pharma S.A.",null,"Beta ETF S&P 500 PLN-Hedg (2)",null,null,null,null,20,null,0.7,null,null,null,null,null,null,null,"410.51.2022",14,6]
[null,"Cloud Technologies SA",null,"Beta ETF Nasdaq-100 PLN-H (2)",null,null,null,null,20,null,0.7,null,null,null,null,null,null,null,"410.50.2022",14,6]
[null,"Columbus Energy SA 2022",null,"BEST SA (2)",null,null,null,null,100,null,0.59,null,null,null,null,null,null,null,"410.28.2022",59,41]
[null,"Creepy Jar S.A.",null,"DEVELIA SA",null,null,null,null,72,null,0.63888888888888884,null,null,null,null,null,null,null,"410.34.2022",46,26]
[null,"Creotech Instruments S.A.",null,"Rafako SA",null,null,null,null,82,null,0.43902439024390244,null,null,null,null,null,null,null,"410.32.2022",36,46]
[null,"Dadelo S.A.",null,"Tenderhut S.A.",null,null,null,null,123,null,0.53658536585365857,null,null,null,null,null,null,null,"410.17.2022",66,57]
[null,"DB Energy S.A.",null,"Beta ETF WIG20TR",null,null,null,null,37,null,0.6216216216216216,null,null,null,null,null,null,null,"410.40.2022",23,14]
[null,"Dekpol 2023",null,"Beta ETF TBSP PFIZ",null,null,null,null,38,null,0.68421052631578949,null,null,null,null,null,null,null,"410.42.2022",26,12]
[null,"Dekpol SA obligacje 2020",null,"Beta ETF uWIG80TR",null,null,null,null,38,null,0.65789473684210531,null,null,null,null,null,null,null,"410.41.2022",25,13]
[null,"DESA S.A.",null,"GI Group Poland S.A.",0,null,null,null,185,null,0.50270270270270268,null,null,null,null,null,null,null,"410.35.2022",93,92]
[null,"DEVELIA SA",null,"Alior Bank S.A. obligacje (2022",null,null,null,null,37,null,0.6216216216216216,null,null,null,null,null,null,null,"410.33.2022",23,14]
[null,"Dr Irena Eris S.A.",null,"Marvipol Development",null,null,null,null,51,null,0.41176470588235292,null,null,null,null,null,null,null,"410.27.2022",21,30]
[null,"Drago Entertainment(2023)",null,"Kruk S.A.",null,null,null,null,70,null,0.54285714285714282,null,null,null,null,null,null,null,"410.21.2022",38,32]
[null,"Echo Investment S.A. ( ob",null,"EQUES Aktywnego Inwestowa",null,null,null,null,82,null,0.52439024390243905,null,null,null,null,null,null,null,"410.15.2022",43,39]
[null,"Echo Investment SA (oblig(2023)",null,"EQUES Akcji Sektora Prywa",null,null,null,null,55,null,0.52727272727272723,null,null,null,null,null,null,null,"410.24.2022",29,26]
[null,"Elektrim SA",null,"Caspar Asset Management S.A.",null,null,null,null,74,null,0.52702702702702697,null,null,null,null,null,null,null,"410.14.2022",39,35]
[null,"Emitel S.A.",null,"Beta ETF WIG20short",null,null,null,null,26,null,0.57692307692307687,null,null,null,null,null,null,null,"410.25.2022",15,11]
[null,"EQUES Akcji Sektora Prywa",null,"Beta ETF WIG20lev",null,null,null,null,24,null,0.54166666666666663,null,null,null,null,null,null,null,"410.23.2022",13,11]
[null,"Eques Akcji Sektora Prywatnego ",null,"Beta ETF mWIG40TR (2022)",null,null,null,null,27,null,0.51851851851851849,null,null,null,null,null,null,null,"410.18.2022",14,13]
[null,"EQUES Aktywnego Inwestowa",null,"Movie Games",null,null,null,null,154,null,0.5714285714285714,null,null,null,null,null,null,null,"410.19.2022",88,66]
[null,"Eques Aktywnego Inwestowania FI",null,"Alior Bank S.A. (BPW)",null,null,null,null,95,null,0.5368421052631579,null,null,null,null,null,null,null,"410.8.2022",51,44]
[null,"EQUES Akumulacji Majątku FIZ",null,"PCC Exol S.A.",null,null,null,null,63,null,0.58730158730158732,null,null,null,null,null,null,null,"410.11.2022",37,26]
[null,"Eques Akumulcji Majątku FIZ",null,"Komex SA",null,null,null,null,67,null,0.55223880597014929,null,null,null,null,null,null,null,"410.13.2022",37,30]
[null,"Event Horizon SA",null,"Dr Irena Eris S.A.",null,null,null,null,307,null,0.18892508143322476,null,null,null,null,null,null,null,"410.12.2022",58,249]
[null,"EXCELLENCE",null,"Bioceltix",null,null,null,null,86,null,0.66279069767441856,null,null,null,null,null,null,null,"410.10.2022",57,29]
[null,"ExpertSender SA",null,"DB Energy S.A.",null,null,null,null,237,null,0.48523206751054854,null,null,null,null,null,null,null,"410.9.2022",115,122]
[null,"FDK Rentier FIZ",null,"Ipopema Benefit 3 FIZ",null,null,null,null,96,null,0.38541666666666669,null,null,null,null,null,null,null,"410.7.2022",37,59]
[null,"FDK Rentier FIZ (2023)",null,"PragmaGO 2022 PONZ",null,null,null,null,18,null,0.61111111111111116,null,null,null,null,null,null,null,"410.30.2022",11,7]
[null,"Games Operators S.A.",null,"PragmaGO obligacje 2022 POZ",null,null,null,null,102,null,0.50980392156862742,null,null,null,null,null,null,null,"410.4.2022-2",52,50]
[null,"Gaming Factory",null,"Beta ETF WIGtech (2022)",null,null,null,null,16,null,0.6875,null,null,null,null,null,null,null,"410.6.2022",11,5]
[null,"Genomtec SA",null,"ExpertSender SA",null,null,"zawieszone",null,83,null,0.5662650602409639,null,null,null,null,null,null,null,"410.5.2022",47,36]
[null,"Ghelamco",null,"FDK Rentier FIZ",null,null,null,null,90,null,0.44444444444444442,null,null,null,null,null,null,null,"410.2.2022",40,50]
[null,"Ghelamco Invest sp. z o.o.",null,"T-Bull SA",null,null,null,null,231,null,0.29870129870129869,null,null,null,null,null,null,null,"410.1.2022",69,162]
[null,"GI Group Poland S.A.",null,"Event Horizon SA",null,null,"zawieszone",null,118,null,0.63559322033898302,null,null,null,null,null,null,null,"410.53.2021",75,43]
[null,"Grupa Pracuj S.A.",null,"Hub.Tech SA",null,null,null,null,250,null,0.51200000000000001,null,null,null,null,null,null,null,"410.56.2021",128,122]
[null,"Hub.Tech SA",null,"Creotech Instruments S.A.",null,null,null,null,83,null,0.60240963855421692,null,null,null,null,null,null,null,"410.55.2021",50,33]
[null,"Huuuge, Inc.",null,"SimFabric S.A. ",null,null,null,null,156,null,0.50641025641025639,null,null,null,null,null,null,null,"410.54.2021",79,77]
[null,"Inventionmed ",null,"Millennium Bank Hipoteczny",null,null,null,null,111,null,0.5495495495495496,null,null,null,null,null,null,null,"410.49.2021",61,50]
[null,"Ipopema Benefit 3 FIZ",null,"3LP",null,null,null,null,118,null,0.49152542372881358,null,null,null,null,null,null,null,"410.47.2021",58,60]
[null,"Ipopema Benefit 3 FIZ(2023)",null,"Scope Fluidics SA",null,null,null,null,295,null,0.34237288135593219,null,null,null,null,null,null,null,"410.51.2021",101,194]
[null,"Ipopema Ekologii i Innowacji",null,"Genomtec SA",null,null,null,null,305,null,0.39672131147540984,null,null,null,null,null,null,null,"410.48.2021",121,184]
[null,"Ipopema Medycyny i Innowa",null,"EXCELLENCE",null,null,"zawieszone",null,76,null,0.52631578947368418,null,null,null,null,null,null,null,"410.50.2021",40,36]
[null,"JR Holding ASI",null,"PGF Polska Grupa Fotowolt",null,null,"zawieszone",null,10,null,1,null,null,null,null,null,null,null,"410.49.2021",10,0]
[null,"KG Efekt SA (2021)",null,"Novavis Group",null,null,null,null,193,null,0.59067357512953367,null,null,null,null,null,null,null,"410.45.2021",114,79]
[null,"Komex SA",null,"Pointpack SA",null,null,null,null,314,null,0.39490445859872614,null,null,null,null,null,null,null,"410.46.2021",124,190]
[null,"KREDYT INKASO SA (obligac",null,"Skotan",null,null,null,null,115,null,0.38260869565217392,null,null,null,null,null,null,null,"410.37.2021",44,71]
[null,"Kredyt Inkaso SA 2022",null,"BETA ETF S&P 500 PLN-Hedg",null,null,null,null,28,null,0.5714285714285714,null,null,null,null,null,null,null,"410.43.2021",16,12]
[null,"Kruk (2023)",null,"Beta ETF Nasdaq-100 PLN-H",null,null,null,null,28,null,0.5357142857142857,null,null,null,null,null,null,null,"410.42.2021",15,13]
[null,"Kruk S.A.",null,"Polenergia SA",null,null,null,null,81,null,0.5679012345679012,null,null,null,null,null,null,null,"410.24.2021",46,35]
[null,"Kruk S.A. (obligacje 2021)",null,"Oferteo 2021",null,null,"zawieszone",null,20,null,1,null,null,null,null,null,null,null,"410.36.2021",20,0]
[null,"Kruk S.A. (obligacje) 2020",null,"Grupa Pracuj S.A.",null,null,null,null,48,null,0.72916666666666663,null,null,null,null,null,null,null,"410.31.2021",35,13]
[null,"LESS S.A.",null,"Cavatina Holding (obligacje)",null,null,null,null,76,null,0.5,null,null,null,null,null,null,null,"410.38.2021",38,38]
[null,"Marvipol Development",null,"Beta ETF WIG20TR ",null,null,null,null,28,null,0.6071428571428571,null,null,null,null,null,null,null,"410.34.2021",17,11]
[null,"Marvipol Development 2023(2023)",null,"STS Holding S.A.",null,null,null,null,54,null,0.70370370370370372,null,null,null,null,null,null,null,"410.35.2021",38,16]
[null,"Marvipol Development SA O",null,"Echo Investment S.A. ( ob",null,null,null,null,60,null,0.51666666666666672,null,null,null,null,null,null,null,null,31,29]
[null,"MCI Capital Alternatywna ",null,"BioMaxima S.A.",null,null,null,null,85,null,0.56470588235294117,null,null,null,null,null,null,null,"410.32.2021",48,37]
[null,"MedApp SA",null,"Transition Technologies MS SA",null,null,"zawieszone",null,135,null,0.562962962962963,null,null,null,null,null,null,null,"410.28.2021",76,59]
[null,"Medinice SA",null,"Bio Planet SA",null,null,null,null,69,null,0.71014492753623193,null,null,null,null,null,null,null,"410.20.2021",49,20]
[null,"Metalkas S.A.",null,"DESA S.A.",null,null,"zawieszone",null,222,null,0.43693693693693691,null,null,null,null,null,null,null,"410.29.2021",97,125]
[null,"Millennium Bank Hipoteczny",null,"Vortex Energy S.A.",null,null,null,null,132,null,0.65151515151515149,null,null,null,null,null,null,null,"410.22.2021",86,46]
[null,"Millennium BH (2023)",null,"3R Games SA",null,null,null,null,88,null,0.625,null,null,null,null,null,null,null,"410.26.2021",55,33]
[null,"Mo-BRUK SA",null,"Murapol S.A.",null,null,null,null,78,null,0.55128205128205132,null,null,null,null,null,null,null,"410.23.2021",43,35]
[null,"Movie Games",null,"SpyroSoft S.A.",null,null,null,null,110,null,0.58181818181818179,null,null,null,null,null,null,null,"410.18.2021",64,46]
[null,"Murapol S.A.",null,"ALL IN! GAMES SA",null,null,"w toku",null,407,null,0.30221130221130221,null,null,null,null,null,null,null,"410.21.2021",123,284]
[null,"Murapol S.A.(2023)",null,"Metalkas S.A.",null,null,"zawieszone",null,131,null,0.45038167938931295,null,null,null,null,null,null,null,"410.19.2021",59,72]
[null,"Neptis SA(2023)",null,"Poltreg S.A.",null,null,null,null,72,null,0.61111111111111116,null,null,null,null,null,null,null,"410.17.2021",44,28]
[null,"Novavis Group",null,"Marvipol Development SA O",null,null,null,null,102,null,0.41176470588235292,null,null,null,null,null,null,null,"410.16.2021",42,60]
[null,"Oferteo 2021",null,"KG Efekt SA (2021)",null,null,null,null,387,null,0.39276485788113696,null,null,null,null,null,null,null,"410.15.2021",152,235]
[null,"ONDE SA 2021",null,"Santander Bank Polska S.A.",null,null,"zawieszone",null,165,null,0.3515151515151515,null,null,null,null,null,null,null,"410.14.2021",58,107]
[null,"PASSUS",null,"Beta ETF WIG20lev (2021)",null,null,null,null,40,null,0.375,null,null,null,null,null,null,null,"410.12.2021",15,25]
[null,"PCC Exol S.A.",null,"Beta ETF WIG20short (2021)",null,null,null,null,40,null,0.375,null,null,null,null,null,null,null,"410.13.2021",15,25]
[null,"PCC Exol S.A.(2023)",null,"Kruk S.A. (obligacje 2021)",null,null,null,null,84,null,0.48809523809523808,null,null,null,null,null,null,null,"410.11.2021",41,43]
[null,"PCC MCAA",null,"Beta ETF mWIG40TR Portfel",null,null,null,null,38,null,0.5,null,null,null,null,null,null,null,"410.10.2021",19,19]
[null,"PCC Rokita S.A. (2023)",null,"ONDE SA 2021",null,null,null,null,46,null,0.69565217391304346,null,null,null,null,null,null,null,"410.8.2021",32,14]
[null,"PCF Group SA",null,"Ipopema Medycyny i Innowa",null,null,null,null,0,null,0,null,null,null,null,null,null,null,"410.9.2021",0,0]
[null,"Pekao Bank Hipoteczny S.A.",null,"Cavatina Holding SA",null,null,null,null,69,null,0.73913043478260865,null,null,null,null,null,null,null,"410.7.2021",51,18]
[null,"Pekao Bank Hipoteczny S.A. (2)",null,"Canal+ Polska SA 2021",null,null,null,null,283,null,0.1166077738515901,null,null,null,null,null,null,null,"410.6.2021",33,250]
[null,"PGF Polska Grupa Fotowolt",null,"Shoper S.A.",null,null,null,null,68,null,0.67647058823529416,null,null,null,null,null,null,null,"410.4.2021",46,22]
[null,"PKO Bank Hipoteczny SA",null,"Big Cheese Studio S.A. ",null,null,null,null,147,null,0.36734693877551022,null,null,null,null,null,null,null,"410.3.2021",54,93]
[null,"PKO Leasing SA",null,"Celon Pharma S.A.",null,null,null,null,81,null,0.55555555555555558,null,null,null,null,null,null,null,"410.5.2021",45,36]
[null,"Pointpack SA",null,"Emitel S.A.",null,null,"zawieszone",null,126,null,0.51587301587301593,null,null,null,null,null,null,null,"410.2.2021",65,61]
[null,"Polenergia SA",null,"BEST SA",null,null,null,null,107,null,0.42990654205607476,null,null,null,null,null,null,null,"410.1.2021",46,61]
[null,"Polenergia SA (2)",null,"KREDYT INKASO SA (obligac",null,null,null,null,168,null,0.39880952380952384,null,null,null,null,null,null,null,null,67,101]
[null,"Polski Bank Komórek Macierzysty",null,"Vercom S.A.",null,null,null,null,78,null,0.57692307692307687,null,null,null,null,null,null,null,null,45,33]
[null,"Polskie Towarzystwo Wspie(2023)",null,"Dekpol SA obligacje 2020",null,null,null,null,86,null,0.41860465116279072,null,null,null,null,null,null,null,null,36,50]
[null,"Poltreg S.A.",null,"Pekao Bank Hipoteczny S.A.",null,null,null,null,62,null,0.58064516129032262,null,null,null,null,null,null,null,null,36,26]
[null,"Polwax SA",null,"MCI Capital Alternatywna ",null,null,null,null,105,null,0.50476190476190474,null,null,null,null,null,null,null,null,53,52]
[null,"PragmaGO - obligacje niez(2023)",null,"PragmaGO (obligacje) 2020",null,null,null,null,80,null,0.57499999999999996,null,null,null,null,null,null,null,null,46,34]
[null,"PragmaGO (obligacje) 2020",null,"Captor Therapeutics SA",null,null,null,null,128,null,0.4765625,null,null,null,null,null,null,null,null,61,67]
[null,"PragmaGO 2022 PONZ",null,"Answear.com",null,null,null,null,57,null,0.70175438596491224,null,null,null,null,null,null,null,null,40,17]
[null,"PragmaGO obligacje 2022 POZ",null,"Dadelo S.A.",null,null,null,null,59,null,0.67796610169491522,null,null,null,null,null,null,null,null,40,19]
[null,"PragmaGO SA 2023 obligacj(2023)",null,"PCF Group SA",null,null,null,null,56,null,0.625,null,null,null,null,null,null,null,null,35,21]
[null,"Pure Biologics 2023(2023)",null,"Huuuge, Inc.",null,null,null,null,103,null,0.50485436893203883,null,null,null,null,null,null,null,null,52,51]
[null,"Pure Biologics SA",null,"Mo-BRUK SA",null,null,null,null,64,null,0.53125,null,null,null,null,null,null,null,null,34,30]
[null,"Rafako SA",null,"PKO Leasing SA",null,null,null,null,302,null,0.24834437086092714,null,null,null,null,null,null,null,null,75,227]
[null,"Render Cube(2023)",null,"PCC MCAA",null,null,null,null,65,null,0.29230769230769232,null,null,null,null,null,null,null,null,19,46]
[null,"Ronson Development oblig (2023)",null,"Pure Biologics SA",null,null,null,null,69,null,0.73913043478260865,null,null,null,null,null,null,null,null,51,18]
[null,"Ryvu Therapeutics",null,"Canal+ Polska S.A.",null,null,null,null,39,null,0.69230769230769229,null,null,null,null,null,null,null,null,27,12]
[null,"Santander Bank Polska S.A.",null,"Victoria Dom SA",null,null,null,null,693,null,0.1471861471861472,null,null,null,null,null,null,null,null,102,591]
[null,"Scope Fluidics SA",null,"Creepy Jar S.A.",null,null,null,null,165,null,0.37575757575757573,null,null,null,null,null,null,null,null,62,103]
[null,"Shoper S.A.",null,"MedApp SA",null,null,"zawieszone",null,412,null,0.5,null,null,null,null,null,null,null,null,206,206]
[null,"SimFabric S.A. ",null,"Medinice SA",null,null,null,null,106,null,0.42452830188679247,null,null,null,null,null,null,null,null,45,61]
[null,"Skotan",null,"PKO Bank Hipoteczny SA",null,null,null,null,69,null,0.46376811594202899,null,null,null,null,null,null,null,null,32,37]
[null,"SpyroSoft S.A.",null,"Polwax SA",null,null,null,null,320,null,0.22812499999999999,null,null,null,null,null,null,null,null,73,247]
[null,"Starward Industries(2023)",null,"Inventionmed ",null,null,null,null,208,null,0.31730769230769229,null,null,null,null,null,null,null,null,66,142]
[null,"STS Holding S.A.",null,"Polski Bank Komórek Macierzysty",null,null,null,null,126,null,0.30952380952380953,null,null,null,null,null,null,null,null,39,87]
[null,"T-Bull SA",null,"Kruk S.A. (obligacje) 2020",null,null,null,null,84,null,0.61904761904761907,null,null,null,null,null,null,null,null,52,32]
[null,"Tenderhut S.A.",null,"Trakcja",null,null,null,null,219,null,0.39726027397260272,null,null,null,null,null,null,null,null,87,132]
[null,"Trakcja",null,"Gaming Factory",null,null,null,null,115,null,0.42608695652173911,null,null,null,null,null,null,null,null,49,66]
[null,"Transition Technologies MS SA",null,"Elektrim SA",null,null,null,null,105,null,0.37142857142857144,null,null,null,null,null,null,null,null,39,66]
[null,"Urteste S.A.",null,"Alior Bank S.A. (BPW) 2020",null,null,null,null,271,null,0.39852398523985239,null,null,null,null,null,null,null,null,108,163]
[null,"Vercom S.A.",null,"Ghelamco",null,null,null,null,88,null,0.5,null,null,null,null,null,null,null,null,44,44]
[null,"Victoria Dom SA",null,"Alior Bank (obligacje) 2020",null,null,null,null,143,null,0.59440559440559437,null,null,null,null,null,null,null,null,85,58]
[null,"Vortex Energy S.A.",null,"Games Operators S.A.",null,null,null,null,143,null,0.53846153846153844,null,null,null,null,null,null,null,null,77,66]
[null,"WOODPECKER.CO SA",null,"Ipopema Ekologii i Innowacji",null,null,null,null,59,null,0.52542372881355937,null,null,null,null,null,null,null,"410.26.2022",31,28]
[null,"XPlus SA",null,"Brand 24 SA",null,null,null,null,486,null,0.30041152263374488,null,null,null,null,null,null,null,null,146,340]
[]
[]
[]
[]
[]
[]
[]
[]
[]
[]
[]
[]
[]
[]
[]
[]
[]
[]
[]
[]
[]
[]
["WZÓR!A1"]
["Zdarzenia!A1"]

{"sheet":"Polskie Towarzystwo Wspie(2023)","index":1,"n_rows":39,"n_cols":6,"rows_kept":39,"cut":false,"hidden":false,"merged":[[5,2,6,2],[6,4,6,5],[32,2,33,2],[33,4,33,5]]}
["Spis treści"]
[null,null,"Polskie Towarzystwo Wspierania Przedsiębiorczości SA"]
["PROSPEKT","zakończone","Prospekt"]
[]
["410.1.2024"]
[null,null,"Data",null,"Czynności po stronie urzędu","Czynności po stronie emitenta"]
[null,null,null,null,"(w dniach roboczych)"]
[null,null,"2024-02-02","wniosek"]
[null,null,"2024-02-29",null,19]
[null,null,"2024-03-14",null,null,10]
[null,null,"2024-03-22",null,6]
[null,null,"2024-04-09",null,null,11]
[null,null,"2024-04-17",null,6]
[null,null,"2024-04-19",null,null,2]
[null,null,"2024-04-24",null,null,3]
[null,null,"2024-04-26","decyzja",2]
[]
[]
[]
[]
[]
[]
[]
[]
[]
[]
[null,null,"Razem",null,{"$f":"SUM(E8:E26)","v":33},{"$f":"SUM(F8:F26)","v":26}]
[]
[]
["SUPLEMENTY",null,{"$f":"$C$2","v":"Polskie Towarzystwo Wspierania Przedsiębiorczości SA"}]
[null,"zakończone","Suplement nr 1"]
[]
[null,null,"Data",null,"Czynności po stronie urzędu","Czynności po stronie emitenta"]
[null,null,null,null,"(w dniach roboczych)"]
[null,null,"2024-05-13","wniosek"]
[null,null,"2024-05-15",null,2]
[null,null,"2024-05-15",null,null,0]
[null,null,"2024-05-16","decyzja",1]
[null,null,"Razem",null,{"$f":"SUM(E35:E38)","v":3},{"$f":"SUM(F35:F38)","v":0}]

{"sheet":"Cavatina Holding (2024)","index":2,"n_rows":39,"n_cols":6,"rows_kept":39,"cut":false,"hidden":false,"merged":[[5,2,6,2],[6,4,6,5],[32,2,33,2],[33,4,33,5]]}
[]
[null,null,"Cavatina Holding S.A."]
["PROSPEKT","zakończone","Prospekt podstawowy"]
[]
["410.5.2023"]
[null,null,"Data",null,"Czynności po stronie urzędu","Czynności po stronie emitenta"]
[null,null,null,null,"(w dniach roboczych)"]
[null,null,"2024-03-11","wniosek"]
[null,null,"2024-03-22",null,9]
[null,null,"2024-03-27",null,null,3]
[null,null,"2024-04-08",null,7]
[null,null,"2024-04-16",null,null,6]
[null,null,"2024-04-23",null,5]
[null,null,"2024-04-23",null,null,0]
[null,null,"2024-04-25","decyzja",2]
[]
[]
[]
[]
[]
[]
[]
[]
[]
[]
[]
[null,null,"Razem",null,{"$f":"SUM(E8:E26)","v":23},{"$f":"SUM(F8:F26)","v":9}]
[]
[]
["SUPLEMENTY",null,{"$f":"$C$2","v":"Cavatina Holding S.A."}]
[null,"zakończone","Suplement nr 1"]
[]
[null,null,"Data",null,"Czynności po stronie urzędu","Czynności po stronie emitenta"]
[null,null,null,null,"(w dniach roboczych)"]
[null,null,"2024-04-30","wniosek"]
[null,null,"2024-05-06",null,2]
[null,null,"2024-05-08",null,null,2]
[null,null,"2024-05-09","decyzja",1]
[null,null,"Razem",null,{"$f":"SUM(E35:E38)","v":3},{"$f":"SUM(F35:F38)","v":2}]

{"sheet":"Pekao Bank Hipoteczny S.A. (2)","index":3,"n_rows":42,"n_cols":8,"rows_kept":42,"cut":false,"hidden":false,"merged":[[5,2,6,2],[6,4,6,5],[37,2,38,2],[38,4,38,5]]}
["Spis treści"]
[null,null,"Pekao Bank Hipoteczny S.A."]
["PROSPEKT","zakończone","Prospekt podstawowy listów zastawnych"]
[]
["410.26.2023"]
[null,null,"Data",null,"Czynności po stronie urzędu","Czynności po stronie emitenta"]
[null,null,null,null,"(w dniach roboczych)"]
[null,null,"2023-08-17","wniosek"]
[null,null,"2023-08-31",null,10]
[null,null,"2023-09-14",null,null,10]
[null,null,"2023-09-28",null,10]
[null,null,"2023-10-06",null,null,6]
[null,null,"2023-10-16",null,6]
[null,null,"2023-10-31",null,null,11]
[null,null,"2023-11-08",null,5]
[null,null,"2023-12-28",null,null,34]
[null,null,"2024-01-03",null,3]
[null,null,"2024-01-24",null,null,15]
[null,null,"2024-01-31",null,5]
[null,null,"2024-02-16",null,null,12]
[null,null,"2024-02-22",null,4]
[null,null,"2024-03-19",null,null,18]
[null,null,"2024-03-25",null,4]
[null,null,"2024-04-18",null,null,17]
[null,null,"2024-04-25",null,5]
[]
[null,null,"Razem",null,{"$f":"SUM(E8:E26)","v":52},{"$f":"SUM(F8:F26)","v":123},null,{"$f":"F27+E27","v":175}]
[]
[]
[null,null,null,null,{"$f":"E27/H27","v":0.29714285714285715},{"$f":"F27/H27","v":0.70285714285714285}]
[]
[]
[]
[]
[null,null,{"$f":"$C$2","v":"Pekao Bank Hipoteczny S.A."}]
[null,"zakończone","Suplement nr 1"]
[]
[null,null,"Data",null,"Czynności po stronie urzędu","Czynności po stronie emitenta"]
[null,null,null,null,"(w dniach roboczych)"]
[null,null,"2024-04-30","wniosek"]
[null,null,"2024-05-02","decyzja",1]
[null,null,"Razem",null,{"$f":"SUM(E40:E41)","v":1},{"$f":"SUM(F40:F41)","v":0}]

{"sheet":"Millennium BH (2023)","index":4,"n_rows":30,"n_cols":6,"rows_kept":30,"cut":false,"hidden":false,"merged":[[5,2,6,2],[6,4,6,5]]}
["Spis treści"]
[null,null,"Millennium Bank Hipoteczny S.A."]
["PROSPEKT","zakończone","Prospekt"]
[]
["410.41.2023"]
[null,null,"Data",null,"Czynności po stronie urzędu","Czynności po stronie emitenta"]
[null,null,null,null,"(w dniach roboczych)"]
[null,null,"2023-12-11","wniosek"]
[null,null,"2023-12-20",null,7]
[null,null,"2024-01-24",null,null,22]
[null,null,"2024-01-31",null,5]
[null,null,"2024-02-14",null,null,10]
[null,null,"2024-02-28",null,10]
[null,null,"2024-03-14",null,null,11]
[null,null,"2024-03-26",null,8]
[null,null,"2024-04-15",null,null,13]
[null,null,"2024-04-15","decyzja",0]
[]
[]
[]
[]
[]
[]
[]
[]
[]
[null,null,"Razem",null,{"$f":"SUM(E8:E26)","v":30},{"$f":"SUM(F8:F26)","v":56}]
[]
[]
[null,null,null,null,{"$f":"E27/(F27+E27)","v":0.34883720930232559},{"$f":"1-E30","v":0.65116279069767447}]

{"sheet":"Marvipol Development 2023(2023)","index":5,"n_rows":27,"n_cols":6,"rows_kept":27,"cut":false,"hidden":false,"merged":[[5,2,6,2],[6,4,6,5]]}
["Spis treści"]
[null,null,"Marvipol Development SA"]
["PROSPEKT","zakończone","Prospekt podstawowy"]
[]
["410.42.2023"]
[null,null,"Data",null,"Czynności po stronie urzędu","Czynności po stronie emitenta"]
[null,null,null,null,"(w dniach roboczych)"]
[null,null,"2023-12-20","wniosek"]
[null,null,"2024-01-08",null,10]
[null,null,"2024-01-17",null,null,7]
[null,null,"2024-01-29",null,8]
[null,null,"2024-02-05",null,null,5]
[null,null,"2024-02-19",null,10]
[null,null,"2024-02-21",null,null,2]
[null,null,"2024-03-06",null,10]
[null,null,"2024-03-15",null,null,7]
[null,null,"2024-03-27",null,8]
[null,null,"2024-03-28",null,null,1]
[null,null,"2024-04-02",null,null,2]
[null,null,"2024-04-03",null,null,1]
[null,null,"2024-04-04",null,1]
[null,null,"2024-04-05","decyzja",1]
[]
[]
[]
[]
[null,null,"Razem",null,{"$f":"SUM(E8:E26)","v":48},{"$f":"SUM(F8:F26)","v":25}]

{"sheet":"WOODPECKER.CO SA","index":6,"n_rows":27,"n_cols":6,"rows_kept":27,"cut":false,"hidden":false,"merged":[[5,2,6,2],[6,4,6,5]]}
["Spis treści"]
[null,null,"WOODPECKER.CO SA "]
["PROSPEKT","zakończone","Prospekt"]
[]
[]
[null,null,"Data",null,"Czynności po stronie urzędu","Czynności po stronie emitenta"]
[null,null,null,null,"(w dniach roboczych)"]
[null,null,"2023-12-12","wniosek"]
[null,null,"2024-01-12",null,20]
[null,null,"2024-01-25",null,null,9]
[null,null,"2024-02-05",null,7]
[null,null,"2024-02-09",null,null,4]
[null,null,"2024-02-22",null,9]
[null,null,"2024-03-01",null,null,6]
[null,null,"2024-03-14",null,9]
[null,null,"2024-03-19",null,null,3]
[null,null,"2024-03-22",null,3]
[null,null,"2024-03-26",null,null,2]
[null,null,"2024-03-27","decyzja",1]
[]
[]
[]
[]
[]
[]
[]
[null,null,"Razem",null,{"$f":"SUM(E8:E26)","v":49},{"$f":"SUM(F8:F26)","v":24}]

{"sheet":"JR Holding ASI","index":7,"n_rows":56,"n_cols":6,"rows_kept":56,"cut":false,"hidden":false,"merged":[[5,2,6,2],[6,4,6,5]]}
["Spis treści"]
[null,null,"JR Holding ASI SA"]
["PROSPEKT","zakończone","Prospekt"]
[]
["410.20.2022"]
[null,null,"Data",null,"Czynności po stronie urzędu","Czynności po stronie emitenta"]
[null,null,null,null,"(w dniach roboczych)"]
[null,null,"2022-05-23","wniosek"]
[null,null,"2022-06-21",null,20]
[null,null,"2022-07-05",null,null,10]
[null,null,"2022-07-15",null,8]
[null,null,"2022-07-29",null,null,10]
[null,null,"2022-08-11",null,9]
[null,null,"2022-08-31",null,null,13]
[null,null,"2022-09-14",null,10]
[null,null,"2022-10-12",null,null,20]
[null,null,"2022-10-25",null,9]
[null,null,"2022-11-03",null,null,6]
[null,null,"2022-11-17",null,9]
[null,null,"2022-12-15",null,null,20]
[null,null,"2022-12-30",null,10]
[null,null,"2023-01-13",null,null,9]
[null,null,"2023-01-24",null,7]
[null,null,"2023-01-27",null,null,3]
[null,null,"2023-02-02",null,4]
[null,null,"2023-02-03",null,null,1]
[null,null,"2023-02-07",null,2]
[null,null,"2023-02-07",null,null,0]
[null,null,"2023-02-09",null,2]
[null,null,"2023-02-22",null,null,9]
[null,null,"2023-03-08",null,10]
[null,null,"2023-03-22",null,null,10]
[null,null,"2023-04-05",null,10]
[null,null,"2023-04-24",null,null,12]
[null,null,"2023-05-08",null,8]
[null,null,"2023-06-26",null,null,34]
[null,null,"2023-07-10",null,10]
[null,null,"2023-07-20",null,null,8]
[null,null,"2023-08-03",null,10]
[null,null,"2023-08-24",null,null,14]
[null,null,"2023-09-06",null,9]
[null,null,"2023-09-15",null,null,7]
[null,null,"2023-09-29",null,10]
[null,null,"2023-11-24",null,null,39]
[null,null,"2023-12-08",null,10]
[null,null,"2023-12-20",null,null,8]
[null,null,"2024-01-08",null,10]
[null,null,"2024-01-17",null,null,7]
[null,null,"2024-01-26",null,7]
[null,null,"2024-02-01",null,null,4]
[null,null,"2024-02-13",null,8]
[null,null,"2024-02-16",null,null,3]
[null,null,"2024-02-27",null,null,7]
[null,null,"2024-02-28","decyzja",1]
[]
[null,null,"Razem",null,{"$f":"SUM(E8:E55)","v":193},{"$f":"SUM(F8:F55)","v":254}]

{"sheet":"Bloober Team(2023)","index":8,"n_rows":35,"n_cols":6,"rows_kept":35,"cut":false,"hidden":false,"merged":[[5,2,6,2],[6,4,6,5],[26,2,27,2],[27,4,27,5]]}
["Spis treści"]
[null,null,"Bloober Team"]
["PROSPEKT","zakończone","Prospekt"]
[]
["410.35.2023"]
[null,null,"Data",null,"Czynności po stronie urzędu","Czynności po stronie emitenta"]
[null,null,null,null,"(w dniach roboczych)"]
[null,null,"2023-10-05","wniosek"]
[null,null,"2023-10-19",null,10]
[null,null,"2023-11-03",null,null,10]
[null,null,"2023-11-17",null,10]
[null,null,"2023-11-28",null,null,7]
[null,null,"2023-12-11",null,9]
[null,null,"2023-12-18",null,null,5]
[null,null,"2023-12-22",null,4]
[null,null,"2023-12-27",null,null,1]
[null,null,"2023-12-28",null,1]
[null,null,"2023-12-29","decyzja",null,1]
[]
[]
[null,null,"Razem",null,{"$f":"SUM(E8:E20)","v":34},{"$f":"SUM(F8:F20)","v":24}]
[]
[]
["SUPLEMENTY",null,{"$f":"$C$2","v":"Bloober Team"}]
[null,"zakończone","Suplement nr 1"]
["411.1.2024"]
[null,null,"Data",null,"Czynności po stronie urzędu","Czynności po stronie emitenta"]
[null,null,null,null,"(w dniach roboczych)"]
[null,null,"2023-12-29","wniosek"]
[null,null,"2024-01-03",null,2]
[null,null,"2024-01-03",null,null,1]
[null,null,"2024-01-04","decyzja"]
[null,null,null,null,1]
[]
[null,null,"Razem",null,{"$f":"SUM(E29:E34)","v":3},{"$f":"SUM(F29:F34)","v":1}]

{"sheet":"Neptis SA(2023)","index":9,"n_rows":39,"n_cols":6,"rows_kept":39,"cut":false,"hidden":false,"merged":[[5,2,6,2],[6,4,6,5],[32,2,33,2],[33,4,33,5]]}
["Spis treści"]
[null,null,"Neptis SA"]
["PROSPEKT","zakończone","Prospekt"]
[]
["410.15.2023"]
[null,null,"Data",null,"Czynności po stronie urzędu","Czynności po stronie emitenta"]
[null,null,null,null,"(w dniach roboczych)"]
[null,null,"2023-05-25","wniosek"]
[null,null,"2023-06-14",null,13]
[null,null,"2023-07-04",null,null,14]
[null,null,"2023-07-18",null,10]
[null,null,"2023-08-21",null,null,23]
[null,null,"2023-09-04",null,10]
[null,null,"2023-10-04",null,null,22]
[null,null,"2023-10-16",null,8]
[null,null,"2023-10-30",null,null,10]
[null,null,"2023-11-10",null,8]
[null,null,"2023-11-21",null,null,7]
[null,null,"2023-11-27",null,4]
[null,null,"2023-12-18",null,null,15]
[null,null,"2023-12-22",null,4]
[]
[]
[]
[]
[]
[null,null,"Razem",null,{"$f":"SUM(E8:E26)","v":57},{"$f":"SUM(F8:F26)","v":91}]
[]
[]
["SUPLEMENTY",null,{"$f":"$C$2","v":"Neptis SA"}]
[null,"zakończone","Suplement nr 1"]
[]
[null,null,"Data",null,"Czynności po stronie urzędu","Czynności po stronie emitenta"]
[null,null,null,null,"(w dniach roboczych)"]
[null,null,"2024-03-25","wniosek"]
[null,null,"2024-03-28",null,3]
[null,null,"2024-04-04",null,null,4]
[null,null,"2024-04-09","decyzja",3]
[null,null,"Razem",null,{"$f":"SUM(E35:E38)","v":6},{"$f":"SUM(F35:F38)","v":4}]

{"sheet":"Render Cube(2023)","index":10,"n_rows":34,"n_cols":6,"rows_kept":34,"cut":false,"hidden":false,"merged":[[5,2,6,2],[6,4,6,5],[27,2,28,2],[28,4,28,5]]}
["Spis treści"]
[null,null,"Render Cube"]
["PROSPEKT","zakończone","Prospekt"]
[]
["410.22.2023"]
[null,null,"Data",null,"Czynności po stronie urzędu","Czynności po stronie emitenta"]
[null,null,null,null,"(w dniach roboczych)"]
[null,null,"2023-07-24","wniosek"]
[null,null,"2023-08-21",null,19]
[null,null,"2023-09-22",null,null,24]
[null,null,"2023-10-05",null,9]
[null,null,"2023-10-19",null,null,10]
[null,null,"2023-10-30",null,7]
[null,null,"2023-11-14",null,null,10]
[null,null,"2023-11-22",null,6]
[null,null,"2023-12-06",null,null,10]
[null,null,"2023-12-11",null,3]
[null,null,"2023-12-14",null,null,3]
[null,null,"2023-12-20","decyzja",4]
[]
[]
[null,null,"Razem",null,{"$f":"SUM(E8:E21)","v":48},{"$f":"SUM(F8:F21)","v":57}]
[]
[]
["SUPLEMENTY",null,{"$f":"$C$2","v":"Render Cube"}]
[null,"zakończone","Suplement nr 1"]
["411.8.2024"]
[null,null,"Data",null,"Czynności po stronie urzędu","Czynności po stronie emitenta"]
[null,null,null,null,"(w dniach roboczych)"]
[null,null,"2024-02-14","wniosek"]
[null,null,"2024-02-15","aktualizacja",null,1]
[null,null,"2024-02-19","decyzja",2]
[]
[null,null,"Razem",null,{"$f":"SUM(E30:E33)","v":2},{"$f":"SUM(F30:F33)","v":1}]

{"sheet":"Pure Biologics 2023(2023)","index":11,"n_rows":27,"n_cols":6,"rows_kept":27,"cut":false,"hidden":false,"merged":[[5,2,6,2],[6,4,6,5]]}
["Spis treści"]
[null,null,"Pure Biologics"]
["PROSPEKT","zakończone","Prospekt"]
[]
["410.32.2023"]
[null,null,"Data",null,"Czynności po stronie urzędu","Czynności po stronie emitenta"]
[null,null,null,null,"(w dniach roboczych)"]
[null,null,"2023-09-14","wniosek"]
[null,null,"2023-09-28",null,10]
[null,null,"2023-10-06",null,null,6]
[null,null,"2023-10-20",null,10]
[null,null,"2023-11-03",null,null,9]
[null,null,"2023-11-14",null,7]
[null,null,"2023-11-24",null,null,8]
[null,null,"2023-11-30",null,4]
[null,null,"2023-12-06",null,null,4]
[null,null,"2023-12-07",null,1]
[null,null,"2023-12-08",null,null,1]
[null,null,"2023-12-11",null,null,1]
[null,null,"2023-12-11",null,0]
[null,null,"2023-12-12",null,null,1]
[null,null,"2023-12-12","decyzja",0]
[]
[]
[]
[]
[null,null,"Razem",null,{"$f":"SUM(E8:E26)","v":32},{"$f":"SUM(F8:F26)","v":30}]

{"sheet":"Murapol S.A.(2023)","index":12,"n_rows":27,"n_cols":6,"rows_kept":27,"cut":false,"hidden":false,"merged":[[5,2,6,2],[6,4,6,5]]}
["Spis treści"]
[null,null,"Murapol S.A."]
["PROSPEKT","zakończone","Prospekt"]
[]
["410.33.2023"]
[null,null,"Data",null,"Czynności po stronie urzędu","Czynności po stronie emitenta"]
[null,null,null,null,"(w dniach roboczych)"]
[null,null,"2023-09-18","wniosek"]
[null,null,"2023-09-29",null,9]
[null,null,"2023-10-10",null,null,7]
[null,null,"2023-10-23",null,9]
[null,null,"2023-11-06",null,null,9]
[null,null,"2023-11-13",null,5]
[null,null,"2023-11-21",null,null,5]
[null,null,"2023-11-22",null,1]
[null,null,"2023-11-27",null,null,3]
[null,null,"2023-11-27","decyzja",0]
[]
[]
[]
[]
[]
[]
[]
[]
[]
[null,null,"Razem",null,{"$f":"SUM(E8:E26)","v":24},{"$f":"SUM(F8:F26)","v":24}]

{"sheet":"Beta ETF Nasdaq-100 PLN Hedged ","index":13,"n_rows":29,"n_cols":6,"rows_kept":29,"cut":false,"hidden":false,"merged":[[5,2,6,2],[6,4,6,5]]}
["Spis treści"]
[null,null,"Beta ETF Nasdaq-100 PLN-Hedged FIZ (2023)"]
["PROSPEKT","zakończone","Prospekt"]
[]
["410.36.2023"]
[null,null,"Data",null,"Czynności po stronie urzędu","Czynności po stronie emitenta"]
[null,null,null,null,"(w dniach roboczych)"]
[null,null,"2023-10-24","wniosek"]
[null,null,"2023-10-27",null,3]
[null,null,"2023-11-02",null,null,3]
[null,null,"2023-11-06",null,2]
[null,null,"2023-11-07",null,null,1]
[null,null,"2022-11-08","decyzja",1]
[]
[]
[]
[]
[]
[]
[]
[]
[]
[]
[]
[]
[]
[]
[]
[null,null,"Razem",null,{"$f":"SUM(E8:E28)","v":6},{"$f":"SUM(F8:F28)","v":4}]

{"sheet":"Beta ETF S&P 500 PLN-Hedged","index":14,"n_rows":27,"n_cols":6,"rows_kept":27,"cut":false,"hidden":false,"merged":[[5,2,6,2],[6,4,6,5]]}
["Spis treści"]
[null,null,"Beta ETF S&P 500 PLN-Hedged"]
["PROSPEKT","zakończone","Prospekt"]
[]
["410.37.2023"]
[null,null,"Data",null,"Czynności po stronie urzędu","Czynności po stronie emitenta"]
[null,null,null,null,"(w dniach roboczych)"]
[null,null,"2023-10-24","wniosek"]
[null,null,"2023-10-27",null,3]
[null,null,"2023-11-02",null,null,3]
[null,null,"2022-11-08","decyzja",4]
[]
[]
[]
[]
[]
[]
[]
[]
[]
[]
[]
[]
[]
[]
[]
[null,null,"Razem",null,{"$f":"SUM(E8:E26)","v":7},{"$f":"SUM(F8:F26)","v":3}]

{"sheet":"Eques Aktywnego Inwestowania FI","index":15,"n_rows":63,"n_cols":6,"rows_kept":63,"cut":false,"hidden":false,"merged":[[55,2,56,2],[56,4,56,5],[5,2,6,2],[6,4,6,5],[28,2,29,2],[29,4,29,5],[40,2,41,2],[41,4,41,5]]}
["Spis treści"]
[null,null,"Eques Aktywnego Inwestowania FIZ 2023"]
["PROSPEKT","zakończone","Prospekt"]
[]
["410.27.2023"]
[null,null,"Data",null,"Czynności po stronie urzędu","Czynności po stronie emitenta"]
[null,null,null,null,"(w dniach roboczych)"]
[null,null,"2023-08-22","wniosek"]
[null,null,"2023-08-24",null,2]
[null,null,"2023-08-28",null,null,2]
[null,null,"2023-09-08",null,9]
[null,null,"2023-09-20",null,null,8]
[null,null,"2023-09-28",null,6]
[null,null,"2023-10-11",null,null,9]
[null,null,"2023-10-19",null,6]
[null,null,"2023-10-23",null,null,2]
[null,null,"2023-10-24",null,1]
[null,null,"2023-10-30",null,null,4]
[null,null,"2023-10-31","decyzja",1]
[]
[]
[null,null,"Razem",null,{"$f":"SUM(E8:E21)","v":25},{"$f":"SUM(F8:F21)","v":25}]
[]
[]
[]
["SUPLEMENTY",null,{"$f":"$C$2","v":"Eques Aktywnego Inwestowania FIZ 2023"}]
[null,"zakończone","Suplement nr 1"]
[]
[null,null,"Data",null,"Czynności po stronie urzędu","Czynności po stronie emitenta"]
[null,null,null,null,"(w dniach roboczych)"]
[null,null,"2023-11-20","wniosek"]
[null,null,"2023-11-21"]
[null,null,"2023-11-24","decyzja",3]
[]
[null,null,"Razem",null,{"$f":"SUM(E31:E34)","v":3},{"$f":"SUM(F31:F34)","v":0}]
[]
[]
["SUPLEMENTY",null,{"$f":"$C$2","v":"Eques Aktywnego Inwestowania FIZ 2023"}]
[null,"zakończone","Suplement nr 2"]
[]
[null,null,"Data",null,"Czynności po stronie urzędu","Czynności po stronie emitenta"]
[null,null,null,null,"(w dniach roboczych)"]
[null,null,"2024-04-19","wniosek"]
[null,null,"2024-04-22",null,1]
[null,null,"2024-04-23",null,null,1]
[null,null,"2024-04-25","decyzja",2]
[]
[null,null,"Razem",null,{"$f":"SUM(E43:E47)","v":3},{"$f":"SUM(F43:F47)","v":1}]
[]
[]
[]
[]
["SUPLEMENTY",null,{"$f":"$C$2","v":"Eques Aktywnego Inwestowania FIZ 2023"}]
[null,"zakończone","Suplement nr 3"]
[]
[null,null,"Data",null,"Czynności po stronie urzędu","Czynności po stronie emitenta"]
[null,null,null,null,"(w dniach roboczych)"]
[null,null,"2024-05-08","wniosek"]
[null,null,"2024-05-13","decyzja",3]
[]
[]
[]
[null,null,"Razem",null,{"$f":"SUM(E58:E62)","v":3},{"$f":"SUM(F58:F62)","v":0}]

{"sheet":"Eques Akcji Sektora Prywatnego ","index":16,"n_rows":62,"n_cols":6,"rows_kept":62,"cut":false,"hidden":false,"merged":[[53,2,54,2],[54,4,54,5],[27,2,28,2],[28,4,28,5],[5,2,6,2],[6,4,6,5],[39,2,40,2],[40,4,40,5]]}
["Spis treści"]
[null,null,"Eques Akcji Sektora Prywatnego FIZ 2023"]
["PROSPEKT","zakończone","Prospekt"]
[]
["410.28.2023"]
[null,null,"Data",null,"Czynności po stronie urzędu","Czynności po stronie emitenta"]
[null,null,null,null,"(w dniach roboczych)"]
[null,null,"2023-08-22","wniosek"]
[null,null,"2023-08-24",null,2]
[null,null,"2023-08-28",null,null,2]
[null,null,"2023-09-08",null,9]
[null,null,"2023-09-20",null,null,8]
[null,null,"2023-09-28",null,6]
[null,null,"2023-10-11",null,null,9]
[null,null,"2023-10-19",null,6]
[null,null,"2023-10-23",null,null,2]
[null,null,"2023-10-24",null,1]
[null,null,"2023-10-30",null,null,4]
[null,null,"2023-10-31","decyzja",1]
[]
[null,null,"Razem",null,{"$f":"SUM(E8:E20)","v":25},{"$f":"SUM(F8:F20)","v":25}]
[]
[]
[]
["SUPLEMENTY",null,{"$f":"$C$2","v":"Eques Akcji Sektora Prywatnego FIZ 2023"}]
[null,"zakończone","Suplement nr 1"]
[]
[null,null,"Data",null,"Czynności po stronie urzędu","Czynności po stronie emitenta"]
[null,null,null,null,"(w dniach roboczych)"]
[null,null,"2023-11-20","wniosek"]
[null,null,"2023-11-21","aktualizacja",null,1]
[null,null,"2023-11-24",null,3]
[]
[null,null,"Razem",null,{"$f":"SUM(E30:E33)","v":3},{"$f":"SUM(F30:F33)","v":1}]
[]
[]
["SUPLEMENTY",null,{"$f":"$C$2","v":"Eques Akcji Sektora Prywatnego FIZ 2023"}]
[null,"zakończone","Suplement nr 2"]
[]
[null,null,"Data",null,"Czynności po stronie urzędu","Czynności po stronie emitenta"]
[null,null,null,null,"(w dniach roboczych)"]
[null,null,"2024-04-19","wniosek"]
[null,null,"2024-04-22",null,1]
[null,null,"2024-04-23",null,null,1]
[null,null,"2024-04-25","decyzja",2]
[]
[]
[null,null,"Razem",null,{"$f":"SUM(E42:E47)","v":3},{"$f":"SUM(F42:F47)","v":1}]
[]
[]
["SUPLEMENTY",null,{"$f":"$C$2","v":"Eques Akcji Sektora Prywatnego FIZ 2023"}]
[null,"zakończone","Suplement nr 3"]
[]
[null,null,"Data",null,"Czynności po stronie urzędu","Czynności po stronie emitenta"]
[null,null,null,null,"(w dniach roboczych)"]
[null,null,"2024-05-08","wniosek"]
[null,null,"2024-05-13","decyzja",3]
[]
[]
[]
[]
[null,null,"Razem",null,{"$f":"SUM(E56:E61)","v":3},{"$f":"SUM(F56:F61)","v":0}]

{"sheet":"Eques Akumulcji Majątku FIZ","index":17,"n_rows":73,"n_cols":6,"rows_kept":73,"cut":false,"hidden":false,"merged":[[65,2,66,2],[66,4,66,5],[52,2,53,2],[53,4,53,5],[5,2,6,2],[6,4,6,5],[27,2,28,2],[28,4,28,5],[42,2,43,2],[43,4,43,5]]}
["Spis treści"]
[null,null,"Eques Akumulacji Majątku FIZ 2023"]
["PROSPEKT","zakończone","Prospekt"]
[]
["410.34.2023"]
[null,null,"Data",null,"Czynności po stronie urzędu","Czynności po stronie emitenta"]
[null,null,null,null,"(w dniach roboczych)"]
[null,null,"2023-09-21","wniosek"]
[null,null,"2023-09-28",null,5]
[null,null,"2023-10-11",null,null,9]
[null,null,"2023-10-19",null,6]
[null,null,"2023-10-23",null,null,2]
[null,null,"2023-10-24",null,1]
[null,null,"2023-10-30",null,null,4]
[null,null,"2023-10-31","decyzja",1]
[]
[]
[]
[]
[]
[null,null,"Razem",null,{"$f":"SUM(E8:E20)","v":13},{"$f":"SUM(F8:F20)","v":15}]
[]
[]
[]
["SUPLEMENTY",null,{"$f":"$C$2","v":"Eques Akumulacji Majątku FIZ 2023"}]
[null,"zakończone","Suplement nr 1"]
[]
[null,null,"Data",null,"Czynności po stronie urzędu","Czynności po stronie emitenta"]
[null,null,null,null,"(w dniach roboczych)"]
[null,null,"2023-11-20","wniosek"]
[null,null,"2023-11-21","aktualizacja"]
[null,null,"2023-11-23","aktualizacja"]
[null,null,"2023-11-24","decyzja",1]
[]
[null,null,"Razem",null,{"$f":"SUM(E30:E34)","v":1},{"$f":"SUM(F30:F34)","v":0}]
[]
[]
[]
[]
["SUPLEMENTY",null,{"$f":"$C$2","v":"Eques Akumulacji Majątku FIZ 2023"}]
[null,"zakończone","Suplement nr 2"]
[]
[null,null,"Data",null,"Czynności po stronie urzędu","Czynności po stronie emitenta"]
[null,null,null,null,"(w dniach roboczych)"]
[null,null,"2023-12-05","wniosek"]
[null,null,"2023-12-07","decyzja",2]
[]
[null,null,"Razem",null,{"$f":"SUM(E45:E47)","v":2},{"$f":"SUM(F45:F47)","v":0}]
[]
["SUPLEMENTY",null,{"$f":"$C$2","v":"Eques Akumulacji Majątku FIZ 2023"}]
[null,"zakończone","Suplement nr 3"]
[]
[null,null,"Data",null,"Czynności po stronie urzędu","Czynności po stronie emitenta"]
[null,null,null,null,"(w dniach roboczych)"]
[null,null,"2024-04-19","wniosek"]
[null,null,"2024-04-22",null,1]
[null,null,"2024-04-23",null,null,1]
[null,null,"2024-04-25","decyzja",2]
[]
[null,null,"Razem",null,{"$f":"SUM(E55:E59)","v":3},{"$f":"SUM(F55:F59)","v":1}]
[]
[]
["SUPLEMENTY",null,{"$f":"$C$2","v":"Eques Akumulacji Majątku FIZ 2023"}]
[null,"zakończone","Suplement nr 4"]
[]
[null,null,"Data",null,"Czynności po stronie urzędu","Czynności po stronie emitenta"]
[null,null,null,null,"(w dniach roboczych)"]
[null,null,"2024-05-08","wniosek"]
[null,null,"2024-05-13","decyzja",3]
[]
[]
[]
[null,null,"Razem",null,{"$f":"SUM(E68:E72)","v":3},{"$f":"SUM(F68:F72)","v":0}]

{"sheet":"Beta ETF WIG20TR(2023)","index":18,"n_rows":27,"n_cols":6,"rows_kept":27,"cut":false,"hidden":false,"merged":[[5,2,6,2],[6,4,6,5]]}
["Spis treści"]
[null,null,"Beta ETF WIG20TR"]
["PROSPEKT","zakończone","Prospekt"]
[]
["410.30.2023"]
[null,null,"Data",null,"Czynności po stronie urzędu","Czynności po stronie emitenta"]
[null,null,null,null,"(w dniach roboczych)"]
[null,null,"2023-08-25","wniosek"]
[null,null,"2023-09-08","aktualizacja"]
[null,null,"2023-09-19",null,7]
[null,null,"2023-10-04",null,null,11]
[null,null,"2023-10-10",null,4]
[]
[]
[]
[]
[]
[]
[]
[]
[]
[]
[]
[]
[]
[]
[null,null,"Razem",null,{"$f":"SUM(E8:E26)","v":11},{"$f":"SUM(F8:F26)","v":11}]

{"sheet":"Ipopema Benefit 3 FIZ(2023)","index":19,"n_rows":58,"n_cols":6,"rows_kept":58,"cut":false,"hidden":false,"merged":[[5,2,6,2],[6,4,6,5],[33,2,34,2],[34,4,34,5],[50,2,51,2],[51,4,51,5]]}
["Spis treści"]
[null,null,"Ipopema Benefit 3 FIZ"]
["PROSPEKT","zakończone","Prospekt"]
[]
["410.25.2023"]
[null,null,"Data",null,"Czynności po stronie urzędu","Czynności po stronie emitenta"]
[null,null,null,null,"(w dniach roboczych)"]
[null,null,"2023-08-23","wniosek"]
[null,null,"2023-09-04",null,8]
[null,null,"2023-09-07",null,null,3]
[null,null,"2023-09-13",null,4]
[null,null,"2023-09-26",null,null,9]
[null,null,"2023-10-04",null,6]
[null,null,"2023-10-05",null,null,1]
[null,null,"2023-10-09","decyzja",2]
[]
[]
[]
[]
[]
[]
[]
[]
[]
[]
[]
[null,null,"Razem",null,{"$f":"SUM(E8:E26)","v":20},{"$f":"SUM(F8:F26)","v":13}]
[]
[]
[null,null,"Ipopema Benefit 3 FIZ"]
[]
[null,"zakończone","Suplement nr 1"]
[]
[null,null,"Data",null,"Czynności po stronie urzędu","Czynności po stronie emitenta"]
[null,null,null,null,"(w dniach roboczych)"]
[null,null,"2024-04-04","wniosek"]
[null,null,"2024-04-05",null,1]
[null,null,"2024-04-08",null,null,1]
[null,null,"2024-04-10",null,2]
[]
[null,null,"Razem",null,{"$f":"SUM(E36:E40)","v":3},{"$f":"SUM(F36:F40)","v":1}]
[]
[]
[]
[]
[]
[null,null,"Ipopema Benefit 3 FIZ"]
[]
[null,"zakończone","Suplement nr 2"]
[]
[null,null,"Data",null,"Czynności po stronie urzędu","Czynności po stronie emitenta"]
[null,null,null,null,"(w dniach roboczych)"]
[null,null,"2024-04-29","wniosek"]
[null,null,"2024-04-02",null,2]
[null,null,"2024-04-06",null,null,1]
[null,null,"2024-04-08",null,2]
[]
[null,null,"Razem",null,{"$f":"SUM(E53:E57)","v":4},{"$f":"SUM(F53:F57)","v":1}]

{"sheet":"Beta ETF TBSP PFIZ 2023","index":20,"n_rows":34,"n_cols":6,"rows_kept":34,"cut":false,"hidden":false,"merged":[[5,2,6,2],[6,4,6,5],[27,2,28,2],[28,4,28,5]]}
["Spis treści"]
[null,null,"Beta ETF TBSP PFIZ 2023"]
["PROSPEKT","zakończone","Prospekt"]
[]
["410.31.2022"]
[null,null,"Data",null,"Czynności po stronie urzędu","Czynności po stronie emitenta"]
[null,null,null,null,"(w dniach roboczych)"]
[null,null,"2023-08-25","wniosek"]
[null,null,"2023-08-30",null,3]
[null,null,"2023-09-07",null,null,6]
[null,null,"2023-09-18",null,7]
[null,null,"2023-10-02",null,null,10]
[null,null,"2023-10-05",null,3]
[null,null,"2023-10-05",null,null,0]
[null,null,"2023-10-06",null,1]
[]
[]
[]
[]
[]
[null,null,"Razem",null,{"$f":"SUM(E8:E20)","v":14},{"$f":"SUM(F8:F20)","v":16}]
[]
[]
[]
["SUPLEMENTY",null,{"$f":"$C$2","v":"Beta ETF TBSP PFIZ 2023"}]
[null,"zakończone","Suplement nr 1"]
[]
[null,null,"Data",null,"Czynności po stronie urzędu","Czynności po stronie emitenta"]
[null,null,null,null,"(w dniach roboczych)"]
[null,null,null,"wniosek"]
[]
[]
[]
[null,null,"Razem",null,{"$f":"SUM(E30:E33)","v":0},{"$f":"SUM(F30:F33)","v":0}]

{"sheet":"Beta ETF sWIG80TR (2023)","index":21,"n_rows":27,"n_cols":6,"rows_kept":27,"cut":false,"hidden":false,"merged":[[5,2,6,2],[6,4,6,5]]}
["Spis treści"]
[null,null,"Beta ETF sWIG80TR"]
["PROSPEKT","zakończone","Prospekt"]
[]
["410.29.2023"]
[null,null,"Data",null,"Czynności po stronie urzędu","Czynności po stronie emitenta"]
[null,null,null,null,"(w dniach roboczych)"]
[null,null,"2023-08-25","wniosek"]
[null,null,"2023-09-08","aktualizacja"]
[null,null,"2023-09-19",null,7]
[null,null,"2023-10-04",null,null,11]
[null,null,"2023-10-06",null,2]
[]
[]
[]
[]
[]
[]
[]
[]
[]
[]
[]
[]
[]
[]
[null,null,"Razem",null,{"$f":"SUM(E8:E26)","v":9},{"$f":"SUM(F8:F26)","v":11}]

{"sheet":"Ghelamco Invest sp. z o.o.","index":22,"n_rows":42,"n_cols":6,"rows_kept":42,"cut":false,"hidden":false,"merged":[[5,2,6,2],[6,4,6,5],[33,2,34,2],[34,4,34,5]]}
["Spis treści"]
[null,null,"Ghelamco Invest sp. z o.o."]
["PROSPEKT","zakończone","Prospekt"]
[]
["410.20.2023"]
[null,null,"Data",null,"Czynności po stronie urzędu","Czynności po stronie emitenta"]
[null,null,null,null,"(w dniach roboczych)"]
[null,null,"2023-06-02","wniosek"]
[null,null,"2023-06-13","aktualizacja"]
[null,null,"2023-06-22",null,7]
[null,null,"2023-07-06",null,null,10]
[null,null,"2023-07-20",null,10]
[null,null,"2023-08-03",null,null,10]
[null,null,"2023-08-11",null,6]
[null,null,"2023-08-23",null,null,7]
[null,null,"2023-08-31",null,6]
[null,null,"2023-09-13",null,null,9]
[null,null,"2023-09-18",null,3]
[null,null,"2023-09-22",null,null,1]
[null,null,"2023-09-25","decyzja",1]
[]
[]
[]
[]
[]
[]
[null,null,"Razem",null,{"$f":"SUM(E8:E26)","v":33},{"$f":"SUM(F8:F26)","v":37}]
[]
[]
[]
["SUPLEMENTY",null,{"$f":"$C$2","v":"Ghelamco Invest sp. z o.o."}]
[null,"zakończone","Suplement nr 1"]
[]
[null,null,"Data",null,"Czynności po stronie urzędu","Czynności po stronie emitenta"]
[null,null,null,null,"(w dniach roboczych)"]
[null,null,"2023-10-06","wniosek"]
[null,null,"2023-10-12",null,4]
[null,null,"2023-10-13",null,null,1]
[null,null,"2023-10-17",null,2]
[null,null,"2023-10-17",null,null,0]
[null,null,"2023-10-18","decyzja",1]
[null,null,"Razem",null,{"$f":"SUM(E36:E41)","v":7},{"$f":"SUM(F36:F41)","v":1}]

{"sheet":"PragmaGO - obligacje niez(2023)","index":23,"n_rows":74,"n_cols":6,"rows_kept":74,"cut":false,"hidden":false,"merged":[[5,2,6,2],[6,4,6,5],[32,2,33,2],[33,4,33,5],[41,2,42,2],[42,4,42,5],[68,2,69,2],[69,4,69,5],[59,2,60,2],[60,4,60,5],[51,2,52,2],[52,4,52,5]]}
["Spis treści"]
[null,null,"PragmaGO - obligacje niezabezpieczone (2023)"]
["PROSPEKT","zakończone","Prospekt podstawowy"]
[]
["410.24.2023"]
[null,null,"Data",null,"Czynności po stronie urzędu","Czynności po stronie emitenta"]
[null,null,null,null,"(w dniach roboczych)"]
[null,null,"2023-08-01","wniosek"]
[null,null,"2023-08-11",null,8]
[null,null,"2023-08-17",null,null,3]
[null,null,"2023-08-31",null,10]
[null,null,"2023-09-12",null,null,8]
[null,null,"2023-09-13",null,null,1]
[null,null,"2023-09-14","decyzja",1]
[]
[]
[]
[]
[]
[]
[]
[]
[]
[]
[]
[]
[null,null,"Razem",null,{"$f":"SUM(E8:E26)","v":19},{"$f":"SUM(F8:F26)","v":12}]
[]
[]
["SUPLEMENTY",null,{"$f":"$C$2","v":"PragmaGO - obligacje niezabezpieczone (2023)"}]
[null,"zakończone","Suplement nr 1 do dok. rejestracyjnego"]
[]
[null,null,"Data",null,"Czynności po stronie urzędu","Czynności po stronie emitenta"]
[null,null,null,null,"(w dniach roboczych)"]
[null,null,"2023-09-21","wniosek"]
[null,null,"2023-09-26","decyzja",3]
[null,null,"Razem",null,{"$f":"SUM(E35:E36)","v":3},{"$f":"SUM(F35:F36)","v":0}]
[]
[null,null,{"$f":"$C$2","v":"PragmaGO - obligacje niezabezpieczone (2023)"}]
[null,"zakończone","Suplement nr 2 do dok. Rejestracyjnego"]
[]
[null,null,"Data",null,"Czynności po stronie urzędu","Czynności po stronie emitenta"]
[null,null,null,null,"(w dniach roboczych)"]
[null,null,"2023-11-15","wniosek"]
[null,null,"2023-11-16",null,null,1]
[null,null,"2023-11-17","decyzja",1]
[null,null,"Razem",null,{"$f":"SUM(E44:E46)","v":1},{"$f":"SUM(F44:F46)","v":1}]
[]
[null,null,{"$f":"$C$2","v":"PragmaGO - obligacje niezabezpieczone (2023)"}]
[null,"zakończone","Suplement nr 3 do dok. Rejestracyjnego"]
[]
[null,null,"Data",null,"Czynności po stronie urzędu","Czynności po stronie emitenta"]
[null,null,null,null,"(w dniach roboczych)"]
[null,null,"2024-02-06","wniosek"]
[null,null,"2024-02-13","decyzja",5]
[null,null,"Razem",null,{"$f":"SUM(E54:E55)","v":5},{"$f":"SUM(F54:F55)","v":0}]
[null,null,{"$f":"$C$2","v":"PragmaGO - obligacje niezabezpieczone (2023)"}]
[null,"zakończone","Suplement nr 4 do dok. Rejestracyjnego"]
[]
[null,null,"Data",null,"Czynności po stronie urzędu","Czynności po stronie emitenta"]
[null,null,null,null,"(w dniach roboczych)"]
[null,null,"2024-04-17","wniosek"]
[null,null,"2024-04-18","decyzja",1]
[null,null,"Razem",null,{"$f":"SUM(E62:E63)","v":1},{"$f":"SUM(F62:F63)","v":0}]
[]
[null,null,{"$f":"$C$2","v":"PragmaGO - obligacje niezabezpieczone (2023)"}]
[null,"zakończone","Suplement nr 5 do dok. Rejestracyjnego"]
[]
[null,null,"Data",null,"Czynności po stronie urzędu","Czynności po stronie emitenta"]
[null,null,null,null,"(w dniach roboczych)"]
[null,null,"2024-04-26","wniosek"]
[null,null,"2024-04-29",null,null,1]
[null,null,"2024-05-06","decyzja",3]
[null,null,"Razem",null,{"$f":"SUM(E71:E73)","v":3},{"$f":"SUM(F71:F73)","v":1}]

{"sheet":"PragmaGO SA 2023 obligacj(2023)","index":24,"n_rows":76,"n_cols":6,"rows_kept":76,"cut":false,"hidden":false,"merged":[[5,2,6,2],[6,4,6,5],[33,2,34,2],[34,4,34,5],[42,2,43,2],[43,4,43,5],[70,2,71,2],[71,4,71,5],[61,2,62,2],[62,4,62,5],[52,2,53,2],[53,4,53,5]]}
["Spis treści"]
[null,null,"PragmaGO SA - obligacje zabezpieczone (2023)"]
["PROSPEKT","zakończone","Prospekt podstawowy"]
[]
["410.8.2023"]
[null,null,"Data",null,"Czynności po stronie urzędu","Czynności po stronie emitenta"]
[null,null,null,null,"(w dniach roboczych)"]
[null,null,"2023-04-04","wniosek"]
[null,null,"2023-04-18",null,9]
[null,null,"2023-05-09",null,null,13]
[null,null,"2023-05-23",null,10]
[null,null,"2023-06-06",null,null,10]
[null,null,"2023-06-21",null,10]
[null,null,"2023-06-29",null,null,6]
[null,null,"2023-07-13",null,10]
[null,null,"2023-07-27",null,null,10]
[null,null,"2023-08-03",null,5]
[null,null,"2023-08-18",null,null,10]
[null,null,"2023-08-28",null,6]
[null,null,"2023-08-30",null,null,2]
[null,null,"2023-09-05",null,null,4]
[null,null,"2023-09-12",null,null,5]
[null,null,"2023-09-13",null,null,1]
[null,null,"2023-09-14",null,1]
[]
[]
[null,null,"Razem",null,{"$f":"SUM(E8:E26)","v":51},{"$f":"SUM(F8:F26)","v":61}]
[]
[]
[]
["SUPLEMENTY",null,{"$f":"$C$2","v":"PragmaGO SA - obligacje zabezpieczone (2023)"}]
[null,"zakończone","Suplement nr 1 do dok. rejestracyjnego"]
[]
[null,null,"Data",null,"Czynności po stronie urzędu","Czynności po stronie emitenta"]
[null,null,null,null,"(w dniach roboczych)"]
[null,null,"2023-09-21","wniosek"]
[null,null,"2023-09-26","decyzja",3]
[null,null,"Razem",null,{"$f":"SUM(E36:E37)","v":3},{"$f":"SUM(F36:F37)","v":0}]
[]
[null,null,{"$f":"$C$2","v":"PragmaGO SA - obligacje zabezpieczone (2023)"}]
[null,"zakończone","Suplement nr 2 do dok. Rejestracyjnego"]
[]
[null,null,"Data",null,"Czynności po stronie urzędu","Czynności po stronie emitenta"]
[null,null,null,null,"(w dniach roboczych)"]
[null,null,"2023-11-15","wniosek"]
[null,null,"2023-11-16",null,null,1]
[null,null,"2023-11-17","decyzja",1]
[null,null,"Razem",null,{"$f":"SUM(E45:E47)","v":1},{"$f":"SUM(F45:F47)","v":1}]
[]
[null,null,{"$f":"$C$2","v":"PragmaGO SA - obligacje zabezpieczone (2023)"}]
[null,"zakończone","Suplement nr 3 do dok. Rejestracyjnego"]
[]
[null,null,"Data",null,"Czynności po stronie urzędu","Czynności po stronie emitenta"]
[null,null,null,null,"(w dniach roboczych)"]
[null,null,"2024-02-06","wniosek"]
[null,null,"2024-02-13","decyzja",5]
[null,null,"Razem",null,{"$f":"SUM(E55:E56)","v":5},{"$f":"SUM(F55:F56)","v":0}]
[]
[null,null,{"$f":"$C$2","v":"PragmaGO SA - obligacje zabezpieczone (2023)"}]
[null,"zakończone","Suplement nr 4 do dok. Rejestracyjnego"]
[]
[null,null,"Data",null,"Czynności po stronie urzędu","Czynności po stronie emitenta"]
[null,null,null,null,"(w dniach roboczych)"]
[null,null,"2024-04-17","wniosek"]
[null,null,"2024-04-18","decyzja",1]
[null,null,"Razem",null,{"$f":"SUM(E64:E65)","v":1},{"$f":"SUM(F64:F65)","v":0}]
[]
[null,null,{"$f":"$C$2","v":"PragmaGO SA - obligacje zabezpieczone (2023)"}]
[null,"zakończone","Suplement nr 5 do dok. Rejestracyjnego"]
[]
[null,null,"Data",null,"Czynności po stronie urzędu","Czynności po stronie emitenta"]
[null,null,null,null,"(w dniach roboczych)"]
[null,null,"2024-04-26","wniosek"]
[null,null,"2024-04-29",null,null,1]
[null,null,"2024-05-06","decyzja",3]
[null,null,"Razem",null,{"$f":"SUM(E73:E75)","v":3},{"$f":"SUM(F73:F75)","v":1}]

{"sheet":"Starward Industries(2023)","index":25,"n_rows":47,"n_cols":6,"rows_kept":47,"cut":false,"hidden":false,"merged":[[5,2,6,2],[6,4,6,5],[35,2,36,2],[36,4,36,5]]}
["Spis treści"]
[null,null,"Starward Industries"]
["PROSPEKT","zakończone","Prospekt"]
[]
["410.10.2023"]
[null,null,"Data",null,"Czynności po stronie urzędu","Czynności po stronie emitenta"]
[null,null,null,null,"(w dniach roboczych)"]
[null,null,"2023-04-20","wniosek"]
[null,null,"2023-05-22",null,20]
[null,null,"2023-06-05",null,null,10]
[null,null,"2023-06-20",null,10]
[null,null,"2023-06-26",null,null,4]
[null,null,"2023-07-10",null,10]
[null,null,"2023-07-17",null,null,5]
[null,null,"2023-07-26",null,7]
[null,null,"2023-07-31",null,null,3]
[null,null,"2023-08-10",null,8]
[null,null,"2023-08-14",null,null,2]
[null,null,"2023-08-28",null,9]
[null,null,"2023-08-29",null,null,1]
[null,null,"2023-09-04",null,4]
[null,null,"2023-09-05",null,null,1]
[null,null,"2023-09-07",null,2]
[null,null,"2023-09-07",null,null,0]
[null,null,"2023-09-11",null,2]
[null,null,"2023-09-11",null,null,0]
[null,null,"2023-09-11","decyzja",0]
[]
[null,null,"Razem",null,{"$f":"SUM(E8:E28)","v":72},{"$f":"SUM(F8:F28)","v":26}]
[]
[]
[]
["SUPLEMENTY",null,{"$f":"$C$2","v":"Starward Industries"}]
[null,"zakończone","Suplement nr 1"]
[]
[null,null,"Data",null,"Czynności po stronie urzędu","Czynności po stronie emitenta"]
[null,null,null,null,"(w dniach roboczych)"]
[null,null,"2023-09-20","wniosek"]
[null,null,"2023-09-22",null,2]
[null,null,"2023-09-25",null,null,1]
[null,null,"2023-09-28",null,2]
[null,null,"2023-09-28",null,null,0]
[null,null,"2023-10-02",null,2]
[null,null,"2023-10-02",null,null,0]
[null,null,"2023-10-04","decyzja"]
[null,null,null,null,{"$f":"SUM(E38:E45)","v":6},{"$f":"SUM(F38:F45)","v":1}]
[null,null,"Razem"]

{"sheet":"Polenergia SA (2)","index":26,"n_rows":61,"n_cols":6,"rows_kept":61,"cut":false,"hidden":false,"merged":[[5,2,6,2],[6,4,6,5],[37,2,38,2],[38,4,38,5],[53,2,54,2],[54,4,54,5]]}
["Spis treści"]
[null,null,"Polenergia SA (2023)"]
["PROSPEKT","zakończone","Prospekt"]
[]
["410.13.2023"]
[null,null,"Data",null,"Czynności po stronie urzędu","Czynności po stronie emitenta"]
[null,null,null,null,"(w dniach roboczych)"]
[null,null,"2023-04-28","wniosek"]
[null,null,"2023-05-16",null,10]
[null,null,"2023-05-31",null,null,11]
[null,null,"2023-06-14",null,9]
[null,null,"2023-06-28",null,null,10]
[null,null,"2023-07-12",null,10]
[null,null,"2023-07-27",null,null,11]
[null,null,"2023-08-01","aktualizacja",null,3]
[null,null,"2023-08-04",null,3]
[null,null,"2023-08-11",null,null,5]
[null,null,"2023-08-18","aktualizacja",null,4]
[null,null,"2023-08-23",null,3]
[null,null,"2023-08-25",null,null,2]
[null,null,"2023-08-30",null,3]
[null,null,"2023-09-01",null,null,2]
[null,null,"2023-09-05",null,2]
[null,null,"2023-09-07",null,null,2]
[null,null,"2023-09-08",null,1]
[null,null,"2023-09-08",null,null,0]
[null,null,"2023-09-11","decyzja",1]
[]
[]
[null,null,"Razem",null,{"$f":"SUM(E8:E29)","v":42},{"$f":"SUM(F8:F29)","v":50}]
[]
[]
[]
[]
["SUPLEMENTY",null,{"$f":"$C$2","v":"Polenergia SA (2023)"}]
[null,"zakończone","Suplement nr 1"]
[]
[null,null,"Data",null,"Czynności po stronie urzędu","Czynności po stronie emitenta"]
[null,null,null,null,"(w dniach roboczych)"]
[null,null,"2023-10-06","wniosek"]
[null,null,"2023-10-09",null,1]
[null,null,"2023-10-09",null,null,0]
[null,null,"2023-10-10","decyzja",1]
[]
[]
[]
[null,null,"Razem",null,{"$f":"SUM(E40:E46)","v":2},{"$f":"SUM(F40:F46)","v":0}]
[]
[]
[]
["SUPLEMENTY",null,{"$f":"$C$2","v":"Polenergia SA (2023)"}]
[null,"zakończone","Suplement nr 2"]
[]
[null,null,"Data",null,"Czynności po stronie urzędu","Czynności po stronie emitenta"]
[null,null,null,null,"(w dniach roboczych)"]
[null,null,"2023-10-26","wniosek"]
[null,null,"2023-10-27","decyzja",1]
[]
[]
[]
[null,null,"Razem",null,{"$f":"SUM(E56:E60)","v":1},{"$f":"SUM(F56:F60)","v":0}]

{"sheet":"XPlus SA","index":27,"n_rows":76,"n_cols":6,"rows_kept":76,"cut":false,"hidden":false,"merged":[[67,2,68,2],[68,4,68,5],[5,2,6,2],[6,4,6,5],[39,2,40,2],[40,4,40,5],[53,2,54,2],[54,4,54,5]]}
["Spis treści"]
[null,null,"XPlus SA"]
["PROSPEKT","zakończone","Prospekt"]
[]
["410.38.2022"]
[null,null,"Data",null,"Czynności po stronie urzędu","Czynności po stronie emitenta"]
[null,null,null,null,"(w dniach roboczych)"]
[null,null,"2022-08-30","wniosek"]
[null,null,"2022-09-19",null,14]
[null,null,"2022-10-24",null,null,25]
[null,null,"2022-11-08",null,10]
[null,null,"2022-12-16",null,null,27]
[null,null,"2023-01-02",null,10]
[null,null,"2023-01-24",null,null,15]
[null,null,"2023-02-06",null,9]
[null,null,"2023-02-20",null,null,10]
[null,null,"2023-03-03",null,9]
[null,null,"2023-04-03",null,null,21]
[null,null,"2023-04-17",null,9]
[null,null,"2023-04-27",null,null,8]
[null,null,"2023-05-12",null,9]
[null,null,"2023-05-30",null,null,12]
[null,null,"2023-06-12",null,8]
[null,null,"2023-06-20",null,null,6]
[null,null,"2023-07-03",null,9]
[null,null,"2023-07-10",null,null,5]
[null,null,"2023-07-17",null,5]
[null,null,"2023-07-19",null,null,2]
[null,null,"2023-07-27","decyzja",6]
[]
[]
[]
[null,null,"Razem",null,{"$f":"SUM(E8:E32)","v":98},{"$f":"SUM(F8:F32)","v":131}]
[]
[]
[]
["SUPLEMENTY",null,{"$f":"$C$2","v":"XPlus SA"}]
[null,"zakończone","Suplement nr 1"]
[]
[null,null,"Data",null,"Czynności po stronie urzędu","Czynności po stronie emitenta"]
[null,null,null,null,"(w dniach roboczych)"]
[null,null,"2023-08-21","wniosek"]
[null,null,"2023-08-28",null,5]
[null,null,"2023-09-01",null,null,4]
[null,null,"2023-09-06",null,3]
[null,null,"2023-09-08",null,null,2]
[null,null,"2023-09-14",null,4]
[]
[null,null,"Razem",null,{"$f":"SUM(E42:E48)","v":12},{"$f":"SUM(F42:F48)","v":6}]
[]
[null,null,{"$f":"$C$2","v":"XPlus SA"}]
[null,"zakończone","Suplement nr 2"]
[]
[null,null,"Data",null,"Czynności po stronie urzędu","Czynności po stronie emitenta"]
[null,null,null,null,"(w dniach roboczych)"]
[null,null,"2023-09-11","wniosek"]
[null,null,"2023-09-14","decyzja",3]
[]
[]
[]
[]
[]
[null,null,"Razem",null,{"$f":"SUM(E56:E62)","v":3},{"$f":"SUM(F56:F62)","v":0}]
[]
["SUPLEMENTY",null,{"$f":"$C$2","v":"XPlus SA"}]
[null,"zakończone","Suplement nr 3"]
[]
[null,null,"Data",null,"Czynności po stronie urzędu","Czynności po stronie emitenta"]
[null,null,null,null,"(w dniach roboczych)"]
[null,null,"2023-12-03","wniosek"]
[null,null,"2023-12-07",null,4]
[null,null,"2023-12-13",null,null,4]
[null,null,"2023-12-15","aktualizacja",null,2]
[null,null,"2023-12-18","decyzja",1]
[]
[null,null,"Razem",null,{"$f":"SUM(E71:E75)","v":5},{"$f":"SUM(F71:F75)","v":6}]

{"sheet":"Ronson Development oblig (2023)","index":28,"n_rows":57,"n_cols":6,"rows_kept":57,"cut":false,"hidden":false,"merged":[[51,2,52,2],[52,4,52,5],[5,2,6,2],[6,4,6,5],[27,2,28,2],[28,4,28,5],[40,2,41,2],[41,4,41,5]]}
["Spis treści"]
[null,null,"Ronson Development SE"]
["PROSPEKT","zakończone","Prospekt"]
[]
["410.14.2022"]
[null,null,"Data",null,"Czynności po stronie urzędu","Czynności po stronie emitenta"]
[null,null,null,null,"(w dniach roboczych)"]
[null,null,"2023-04-28","wniosek"]
[null,null,"2023-05-15",null,9]
[null,null,"2023-05-29",null,null,10]
[null,null,"2023-06-13",null,10]
[null,null,"2023-06-22",null,null,7]
[null,null,"2023-07-05",null,9]
[null,null,"2023-07-07",null,null,2]
[null,null,"2023-07-13",null,4]
[null,null,"2023-07-18",null,null,3]
[null,null,"2023-07-20","aktualizacja",null,2]
[null,null,"2023-07-24","aktualizacja",null,2]
[null,null,"2023-07-25","decyzja"]
[]
[null,null,"Razem",null,{"$f":"SUM(E8:E20)","v":32},{"$f":"SUM(F8:F20)","v":26}]
[]
[]
[]
["SUPLEMENTY",null,{"$f":"$C$2","v":"Ronson Development SE"}]
[null,"zakończone","Suplement nr 1"]
[]
[null,null,"Data",null,"Czynności po stronie urzędu","Czynności po stronie emitenta"]
[null,null,null,null,"(w dniach roboczych)"]
[null,null,"2023-08-10","wniosek"]
[null,null,"2023-08-16",null,3]
[null,null,"2023-08-17",null,null,1]
[null,null,"2023-08-18","aktualizacja",null,1]
[null,null,"2023-08-25","decyzja",5]
[]
[null,null,"Razem",null,{"$f":"SUM(E30:E35)","v":8},{"$f":"SUM(F30:F35)","v":2}]
[]
[null,null,{"$f":"$C$2","v":"Ronson Development SE"}]
[null,"zakończone","Suplement nr 2"]
["411.97.2023"]
[null,null,"Data",null,"Czynności po stronie urzędu","Czynności po stronie emitenta"]
[null,null,null,null,"(w dniach roboczych)"]
[null,null,"2023-11-10","wniosek"]
[null,null,"2023-11-17","decyzja",5]
[]
[null,null,"Razem",null,{"$f":"SUM(E43:E45)","v":5},{"$f":"SUM(F43:F45)","v":0}]
[]
[]
[null,null,{"$f":"$C$2","v":"Ronson Development SE"}]
[null,"zakończone","Suplement nr 3"]
["411.11.2024"]
[null,null,"Data",null,"Czynności po stronie urzędu","Czynności po stronie emitenta"]
[null,null,null,null,"(w dniach roboczych)"]
[null,null,"2024-03-14","wniosek"]
[null,null,"2024-03-19","decyzja",3]
[]
[null,null,"Razem",null,{"$f":"SUM(E54:E56)","v":3},{"$f":"SUM(F54:F56)","v":0}]

{"sheet":"PCC Exol S.A.(2023)","index":29,"n_rows":85,"n_cols":7,"rows_kept":85,"cut":false,"hidden":false,"merged":[[79,2,80,2],[80,4,80,5],[67,2,68,2],[68,4,68,5],[55,2,56,2],[56,4,56,5],[5,2,6,2],[6,4,6,5],[33,2,34,2],[34,4,34,5],[45,2,46,2],[46,4,46,5]]}
["Spis treści"]
[null,null,"PCC Exol S.A."]
["PROSPEKT","zakończone","Prospekt"]
[]
["410.21.2023"]
[null,null,"Data",null,"Czynności po stronie urzędu","Czynności po stronie emitenta"]
[null,null,null,null,"(w dniach roboczych)"]
[null,null,"2023-06-14","wniosek"]
[null,null,"2023-06-28",null,10]
[null,null,"2023-07-12",null,null,10]
[null,null,"2023-07-20","decyzja",6]
[]
[]
[]
[]
[]
[]
[]
[]
[]
[]
[]
[]
[]
[]
[]
[null,null,"Razem",null,{"$f":"SUM(E8:E26)","v":16},{"$f":"SUM(F8:F26)","v":10}]
[]
[]
[]
[null,null,{"$f":"$C$2","v":"PCC Exol S.A."}]
[null,"zakończone","Suplement nr 1"]
[]
[null,null,"Data",null,"Czynności po stronie urzędu","Czynności po stronie emitenta"]
[null,null,null,null,"(w dniach roboczych)"]
[null,null,"2023-07-31","wniosek"]
[null,null,"2023-08-01","decyzja",1]
[]
[null,null,"Razem",null,{"$f":"SUM(E36:E38)","v":1},{"$f":"SUM(F36:F38)","v":0}]
[]
[]
[]
[null,null,{"$f":"$C$2","v":"PCC Exol S.A."}]
[null,"zakończone","Suplement nr 2"]
[]
[null,null,"Data",null,"Czynności po stronie urzędu","Czynności po stronie emitenta"]
[null,null,null,null,"(w dniach roboczych)"]
[null,null,"2023-08-23","wniosek"]
[null,null,"2023-08-30","decyzja",5]
[]
[null,null,"Razem",null,{"$f":"SUM(E48:E50)","v":5},{"$f":"SUM(F48:F50)","v":0}]
[]
[null,null,{"$f":"$C$2","v":"PCC Exol S.A."}]
[null,"zakończone","Suplement nr 3"]
[]
[null,null,"Data",null,"Czynności po stronie urzędu","Czynności po stronie emitenta"]
[null,null,null,null,"(w dniach roboczych)"]
[null,null,"2023-09-20","wniosek"]
[null,null,"2023-09-22","decyzja",2]
[]
[null,null,"Razem",null,{"$f":"SUM(E58:E60)","v":2},{"$f":"SUM(F58:F60)","v":0}]
[]
[]
[]
[null,null,{"$f":"$C$2","v":"PCC Exol S.A."}]
[null,"zakończone","Suplement nr 4"]
[]
[null,null,"Data",null,"Czynności po stronie urzędu","Czynności po stronie emitenta"]
[null,null,null,null,"(w dniach roboczych)"]
[null,null,"2023-11-15","wniosek"]
[null,null,"2023-11-17","decyzja",2,null,1]
[]
[null,null,"Razem",null,{"$f":"SUM(E70:E72)","v":2},{"$f":"SUM(F70:F72)","v":0}]
[]
[]
[]
[null,null,{"$f":"$C$2","v":"PCC Exol S.A."}]
[null,"zakończone","Suplement nr 5"]
[]
[null,null,"Data",null,"Czynności po stronie urzędu","Czynności po stronie emitenta"]
[null,null,null,null,"(w dniach roboczych)"]
[null,null,"2024-03-21","wniosek"]
[null,null,"2024-03-22","decyzja",1]
[]
[null,null,"Razem",null,{"$f":"SUM(E82:E84)","v":1},{"$f":"SUM(F82:F84)","v":0}]

{"sheet":"PCC Rokita S.A. (2023)","index":30,"n_rows":74,"n_cols":6,"rows_kept":74,"cut":false,"hidden":false,"merged":[[68,2,69,2],[69,4,69,5],[55,2,56,2],[56,4,56,5],[5,2,6,2],[6,4,6,5],[33,2,34,2],[34,4,34,5],[43,2,44,2],[44,4,44,5]]}
["Spis treści"]
[null,null,"PCC Rokita S.A. (2023)"]
["PROSPEKT","zakończone","Prospekt"]
[]
["410.11.2023"]
[null,null,"Data",null,"Czynności po stronie urzędu","Czynności po stronie emitenta"]
[null,null,null,null,"(w dniach roboczych)"]
[null,null,"2023-04-26","wniosek"]
[null,null,"2023-05-10",null,8]
[null,null,"2023-05-30",null,null,14]
[null,null,"2023-06-13",null,9]
[null,null,"2023-06-22",null,null,7]
[null,null,"2023-06-28",null,4]
[null,null,"2023-07-11",null,null,9]
[null,null,"2023-07-20","decyzja",7]
[]
[]
[]
[]
[]
[]
[]
[]
[]
[]
[]
[null,null,"Razem",null,{"$f":"SUM(E8:E26)","v":28},{"$f":"SUM(F8:F26)","v":30}]
[]
[]
[]
[null,null,{"$f":"$C$2","v":"PCC Rokita S.A. (2023)"}]
[null,"zakończone","Suplement nr 1"]
[]
[null,null,"Data",null,"Czynności po stronie urzędu","Czynności po stronie emitenta"]
[null,null,null,null,"(w dniach roboczych)"]
[null,null,"2023-08-23","wniosek"]
[null,null,"2023-08-30","decyzja",5]
[]
[null,null,"Razem",null,{"$f":"SUM(E36:E38)","v":5},{"$f":"SUM(F36:F38)","v":0}]
[]
[null,null,{"$f":"$C$2","v":"PCC Rokita S.A. (2023)"}]
[null,"zakończone","Suplement nr 2"]
[]
[null,null,"Data",null,"Czynności po stronie urzędu","Czynności po stronie emitenta"]
[null,null,null,null,"(w dniach roboczych)"]
[null,null,"2023-09-20","wniosek"]
[null,null,"2023-09-22","decyzja",2]
[]
[null,null,"Razem",null,{"$f":"SUM(E46:E48)","v":2},{"$f":"SUM(F46:F48)","v":0}]
[]
[]
[]
[null,null,{"$f":"$C$2","v":"PCC Rokita S.A. (2023)"}]
[null,"zakończone","Suplement nr 3"]
[]
[null,null,"Data",null,"Czynności po stronie urzędu","Czynności po stronie emitenta"]
[null,null,null,null,"(w dniach roboczych)"]
[null,null,"2023-11-15","wniosek"]
[null,null,"2023-11-17","decyzja",2]
[]
[null,null,"Razem",null,{"$f":"SUM(E58:E60)","v":2},{"$f":"SUM(F58:F60)","v":0}]
[]
[]
[]
[]
[null,null,{"$f":"$C$2","v":"PCC Rokita S.A. (2023)"}]
[null,"zakończone","Suplement nr 4"]
[]
[null,null,"Data",null,"Czynności po stronie urzędu","Czynności po stronie emitenta"]
[null,null,null,null,"(w dniach roboczych)"]
[null,null,"2024-03-21","wniosek"]
[null,null,"2024-03-22","decyzja",1]
[]
[null,null,"Razem",null,{"$f":"SUM(E71:E73)","v":1},{"$f":"SUM(F71:F73)","v":0}]

{"sheet":"Kruk (2023)","index":31,"n_rows":145,"n_cols":7,"rows_kept":145,"cut":false,"hidden":false,"merged":[[49,2,50,2],[50,4,50,5],[5,2,6,2],[6,4,6,5],[21,2,22,2],[22,4,22,5],[35,2,36,2],[36,4,36,5],[92,2,93,2],[93,4,93,5],[77,2,78,2],[78,4,78,5],[63,2,64,2],[64,4,64,5],[137,2,138,2],[138,4,138,5],[122,2,123,2],[123,4,123,5],[107,2,108,2],[108,4,108,5]]}
["Spis treści"]
[null,null,"Kruk (2023)"]
["PROSPEKT","zakończone","Prospekt podstawowy obligacji"]
[]
["410.18.2023"]
[null,null,"Data",null,"Czynności po stronie urzędu","Czynności po stronie emitenta"]
[null,null,null,null,"(w dniach roboczych)"]
[null,null,"2023-05-23","wniosek"]
[null,null,"2023-06-06",null,10]
[null,null,"2023-06-19",null,null,8]
[null,null,"2023-06-22",null,3]
[null,null,"2023-06-27",null,null,3]
[null,null,"2023-07-11","decyzja",10]
[]
[]
[null,null,"Razem",null,{"$f":"SUM(E8:E15)","v":23},{"$f":"SUM(F8:F15)","v":11}]
[]
[]
[null,null,{"$f":"$C$2","v":"Kruk (2023)"}]
[null,"zakończone","Suplement nr 1"]
[]
[null,null,"Data",null,"Czynności po stronie urzędu","Czynności po stronie emitenta"]
[null,null,null,null,"(w dniach roboczych)"]
[null,null,"2023-08-11","wniosek"]
[null,null,"2023-08-14","decyzja",1]
[]
[]
[]
[null,null,"Razem",null,{"$f":"SUM(E24:E28)","v":1},{"$f":"SUM(F24:F28)","v":0}]
[]
[]
[]
[null,null,{"$f":"$C$2","v":"Kruk (2023)"}]
[null,"zakończone","Suplement nr 2"]
[]
[null,null,"Data",null,"Czynności po stronie urzędu","Czynności po stronie emitenta"]
[null,null,null,null,"(w dniach roboczych)"]
[null,null,"2023-09-07","wniosek"]
[null,null,"2023-09-14","decyzja",5]
[]
[]
[]
[null,null,"Razem",null,{"$f":"SUM(E38:E42)","v":5},{"$f":"SUM(F38:F42)","v":0}]
[]
[]
[]
[null,null,{"$f":"$C$2","v":"Kruk (2023)"}]
[null,"zakończone","Suplement nr 3"]
[]
[null,null,"Data",null,"Czynności po stronie urzędu","Czynności po stronie emitenta"]
[null,null,null,null,"(w dniach roboczych)"]
[null,null,"2023-10-18","wniosek"]
[null,null,"2023-10-20","decyzja",2]
[]
[]
[]
[null,null,"Razem",null,{"$f":"SUM(E52:E56)","v":2},{"$f":"SUM(F52:F56)","v":0}]
[]
[]
[]
[null,null,{"$f":"$C$2","v":"Kruk (2023)"}]
[null,"zakończone","Suplement nr 4"]
[]
[null,null,"Data",null,"Czynności po stronie urzędu","Czynności po stronie emitenta"]
[null,null,null,null,"(w dniach roboczych)"]
[null,null,"2023-11-09","wniosek"]
[null,null,"2023-11-13","decyzja",2]
[]
[]
[]
[null,null,"Razem",null,{"$f":"SUM(E66:E70)","v":2},{"$f":"SUM(F66:F70)","v":0}]
[]
[]
[]
[null,null,{"$f":"$C$2","v":"Kruk (2023)"}]
[null,"zakończone","Suplement nr 5"]
[]
[null,null,"Data",null,"Czynności po stronie urzędu","Czynności po stronie emitenta"]
[null,null,null,null,"(w dniach roboczych)"]
[null,null,"2023-12-20","wniosek"]
[null,null,"2023-12-22",null,2]
[null,null,"2023-12-27",null,null,1]
[null,null,"2024-01-03","decyzja",4,null,0]
[]
[]
[]
[null,null,"Razem",null,{"$f":"SUM(E80:E86)","v":6},{"$f":"SUM(F80:F86)","v":1}]
[]
[]
[null,null,{"$f":"$C$2","v":"Kruk (2023)"}]
[null,"zakończone","Suplement nr 6"]
[]
[null,null,"Data",null,"Czynności po stronie urzędu","Czynności po stronie emitenta"]
[null,null,null,null,"(w dniach roboczych)"]
[null,null,"2024-02-28","wniosek"]
[null,null,"2024-03-04","decyzja",3,null,1]
[]
[]
[]
[null,null,"Razem",null,{"$f":"SUM(E95:E99)","v":3},{"$f":"SUM(F95:F99)","v":0}]
[]
[]
[]
[]
[null,null,{"$f":"$C$2","v":"Kruk (2023)"}]
[null,"zakończone","Suplement nr 7"]
[]
[null,null,"Data",null,"Czynności po stronie urzędu","Czynności po stronie emitenta"]
[null,null,null,null,"(w dniach roboczych)"]
[null,null,"2024-03-28","wniosek"]
[null,null,"2024-04-02","decyzja",2]
[]
[]
[]
[null,null,"Razem",null,{"$f":"SUM(E110:E114)","v":2},{"$f":"SUM(F110:F114)","v":0}]
[]
[]
[]
[]
[null,null,{"$f":"$C$2","v":"Kruk (2023)"}]
[null,"zakończone","Suplement nr 8"]
[]
[null,null,"Data",null,"Czynności po stronie urzędu","Czynności po stronie emitenta"]
[null,null,null,null,"(w dniach roboczych)"]
[null,null,"2024-04-29","wniosek"]
[null,null,"2024-05-02","decyzja",2]
[]
[]
[]
[null,null,"Razem",null,{"$f":"SUM(E125:E129)","v":2},{"$f":"SUM(F125:F129)","v":0}]
[]
[]
[]
[]
[null,null,{"$f":"$C$2","v":"Kruk (2023)"}]
[null,"zakończone","Suplement nr 9"]
[]
[null,null,"Data",null,"Czynności po stronie urzędu","Czynności po stronie emitenta"]
[null,null,null,null,"(w dniach roboczych)"]
[null,null,"2024-05-09","wniosek"]
[null,null,"2024-05-14","decyzja",3]
[]
[]
[]
[null,null,"Razem",null,{"$f":"SUM(E140:E144)","v":3},{"$f":"SUM(F140:F144)","v":0}]

{"sheet":"Beta ETF WIG20lev Portf(2023)","index":32,"n_rows":14,"n_cols":6,"rows_kept":14,"cut":false,"hidden":false,"merged":[[5,2,6,2],[6,4,6,5]]}
["Spis treści"]
[null,null,"Beta ETF WIG20lev Portfelowy FIZ"]
["PROSPEKT","zakończone","Prospekt"]
[]
["410.17.2023"]
[null,null,"Data",null,"Czynności po stronie urzędu","Czynności po stronie emitenta"]
[null,null,null,null,"(w dniach roboczych)"]
[null,null,"2023-05-19","wniosek"]
[null,null,"2023-05-30",null,7]
[null,null,"2023-06-23",null,null,17]
[null,null,"2023-07-03",null,6]
[]
[]
[null,null,"Razem",null,{"$f":"SUM(E8:E13)","v":13},{"$f":"SUM(F8:F13)","v":17}]

{"sheet":"Beta ETF WIG20short Portf(2023)","index":33,"n_rows":14,"n_cols":6,"rows_kept":14,"cut":false,"hidden":false,"merged":[[5,2,6,2],[6,4,6,5]]}
["Spis treści"]
[null,null,"Beta ETF WIG20short Portfelowy FIZ"]
["PROSPEKT","zakończone","Prospekt"]
[]
["410.16.2023"]
[null,null,"Data",null,"Czynności po stronie urzędu","Czynności po stronie emitenta"]
[null,null,null,null,"(w dniach roboczych)"]
[null,null,"2023-05-19","wniosek"]
[null,null,"2023-05-30",null,7]
[null,null,"2023-06-23",null,null,17]
[null,null,"2023-07-03",null,6]
[]
[]
[null,null,"Razem",null,{"$f":"SUM(E8:E13)","v":13},{"$f":"SUM(F8:F13)","v":17}]

{"sheet":"Echo Investment SA (oblig(2023)","index":34,"n_rows":65,"n_cols":6,"rows_kept":65,"cut":false,"hidden":false,"merged":[[58,2,59,2],[59,4,59,5],[4,2,5,2],[5,4,5,5],[30,2,31,2],[31,4,31,5],[44,2,45,2],[45,4,45,5]]}
[null,null,"Echo Investment SA "]
["PROSPEKT","zakończone","Prospekt podstawowy"]
[]
["410.9.2023"]
[null,null,"Data",null,"Czynności po stronie urzędu","Czynności po stronie emitenta"]
[null,null,null,null,"(w dniach roboczych)"]
[null,null,"2023-04-14","wniosek"]
[null,null,"2023-04-28",null,10]
[null,null,"2023-05-05",null,null,3]
[null,null,"2023-05-15",null,6]
[null,null,"2023-05-17",null,null,2]
[null,null,"2023-05-19",null,2]
[null,null,"2023-05-22",null,null,1]
[null,null,"2023-05-24",null,2]
[null,null,"2023-05-24",null,null,0]
[null,null,"2023-06-02",null,null,7]
[null,null,"2023-06-09",null,4]
[null,null,"2023-06-14",null,null,3]
[null,null,"2023-06-19","decyzja",3]
[]
[]
[]
[null,null,"Razem",null,{"$f":"SUM(E7:E22)","v":27},{"$f":"SUM(F7:F22)","v":16}]
[]
[]
[]
[null,null,"Echo Investment SA"]
["Suplement nr 1","zakończone","Suplement nr 1"]
[]
[]
[null,null,"Data",null,"Czynności po stronie urzędu","Czynności po stronie emitenta"]
[null,null,null,null,"(w dniach roboczych)"]
[null,null,"2023-10-06","wniosek"]
[null,null,"2023-10-11",null,3]
[null,null,"2023-10-16",null,null,3]
[null,null,"2023-10-20","decyzja",4]
[]
[]
[null,null,"Razem",null,{"$f":"SUM(E33:E38)","v":7},{"$f":"SUM(F33:F38)","v":3}]
[]
[null,null,"Echo Investment SA"]
["Suplement nr 2","zakończone","Suplement nr 2"]
[]
[]
[null,null,"Data",null,"Czynności po stronie urzędu","Czynności po stronie emitenta"]
[null,null,null,null,"(w dniach roboczych)"]
[null,null,"2023-12-01","wniosek"]
[null,null,"2023-12-05",null,2]
[null,null,"2023-12-06",null,null,1]
[null,null,"2023-12-07","decyzja",1]
[]
[]
[null,null,"Razem",null,{"$f":"SUM(E47:E52)","v":3},{"$f":"SUM(F47:F52)","v":1}]
[]
[null,null,"Echo Investment SA"]
["Suplement nr 3","zakończone","Suplement nr 3"]
[]
[]
[null,null,"Data",null,"Czynności po stronie urzędu","Czynności po stronie emitenta"]
[null,null,null,null,"(w dniach roboczych)"]
[null,null,"2024-04-04","wniosek"]
[null,null,"2024-04-05","decyzja",1]
[]
[]
[null,null,"Razem",null,{"$f":"SUM(E61:E64)","v":1},{"$f":"SUM(F61:F64)","v":0}]

{"sheet":"FDK Rentier FIZ (2023)","index":35,"n_rows":192,"n_cols":6,"rows_kept":192,"cut":false,"hidden":false,"merged":[[5,2,6,2],[6,4,6,5],[34,2,35,2],[35,4,35,5],[79,2,80,2],[80,4,80,5],[52,2,53,2],[53,4,53,5],[65,2,66,2],[66,4,66,5],[185,2,186,2],[186,4,186,5],[173,2,174,2],[174,4,174,5],[93,2,94,2],[94,4,94,5],[135,2,136,2],[136,4,136,5],[121,2,122,2],[122,4,122,5],[148,2,149,2],[149,4,149,5],[161,2,162,2],[162,4,162,5],[107,2,108,2],[108,4,108,5]]}
["Spis treści"]
[null,null,"FDK Rentier FIZ"]
["PROSPEKT","zakończone","Prospekt"]
[]
["410.6.2023"]
[null,null,"Data",null,"Czynności po stronie urzędu","Czynności po stronie emitenta"]
[null,null,null,null,"(w dniach roboczych)"]
[null,null,"2023-03-02","wniosek"]
[null,null,"2023-03-13",null,7]
[null,null,"2023-06-06",null,null,58]
[null,null,"2023-06-14","aktualizacja",null,5]
[null,null,"2023-06-19","decyzja",3]
[]
[]
[]
[]
[]
[]
[]
[]
[]
[]
[]
[]
[]
[]
[null,null,"Razem",null,{"$f":"SUM(E8:E26)","v":10},{"$f":"SUM(F8:F26)","v":63}]
[]
[]
[]
[]
["SUPLEMENTY",null,{"$f":"$C$2","v":"FDK Rentier FIZ"}]
[null,"zakończone","Suplement nr 1"]
[]
[null,null,"Data",null,"Czynności po stronie urzędu","Czynności po stronie emitenta"]
[null,null,null,null,"(w dniach roboczych)"]
[null,null,null,"wniosek"]
[null,null,"2023-08-07"]
[null,null,"2023-08-08","decyzja",1]
[]
[null,null,"Razem",null,{"$f":"SUM(E37:E40)","v":1},{"$f":"SUM(F37:F40)","v":0}]
[]
[]
[]
[]
[]
[]
[]
[]
["SUPLEMENTY",null,{"$f":"$C$2","v":"FDK Rentier FIZ"}]
[null,"zakończone","Suplement nr 2"]
[]
[null,null,"Data",null,"Czynności po stronie urzędu","Czynności po stronie emitenta"]
[null,null,null,null,"(w dniach roboczych)"]
[null,null,"2023-08-30","wniosek"]
[null,null,"2023-09-01","decyzja",2]
[]
[null,null,"Razem",null,{"$f":"SUM(E55:E57)","v":2},{"$f":"SUM(F55:F57)","v":0}]
[]
[]
[]
[]
["SUPLEMENTY",null,{"$f":"$C$2","v":"FDK Rentier FIZ"}]
[null,"zakończone","Suplement nr 3"]
[]
[null,null,"Data",null,"Czynności po stronie urzędu","Czynności po stronie emitenta"]
[null,null,null,null,"(w dniach roboczych)"]
[null,null,"2023-09-19","wniosek"]
[null,null,"2023-09-21","decyzja",2]
[]
[]
[null,null,"Razem",null,{"$f":"SUM(E68:E71)","v":2},{"$f":"SUM(F68:F71)","v":0}]
[]
[]
[]
[]
["SUPLEMENTY",null,{"$f":"$C$2","v":"FDK Rentier FIZ"}]
[null,"zakończone","Suplement nr 4"]
[]
[null,null,"Data",null,"Czynności po stronie urzędu","Czynności po stronie emitenta"]
[null,null,null,null,"(w dniach roboczych)"]
[null,null,"2023-09-25","wniosek"]
[null,null,"2023-09-29","decyzja",4]
[]
[]
[null,null,"Razem",null,{"$f":"SUM(E82:E85)","v":4},{"$f":"SUM(F82:F85)","v":0}]
[]
[]
[]
[]
["SUPLEMENTY",null,{"$f":"$C$2","v":"FDK Rentier FIZ"}]
[null,"zakończone","Suplement nr 5"]
[]
[null,null,"Data",null,"Czynności po stronie urzędu","Czynności po stronie emitenta"]
[null,null,null,null,"(w dniach roboczych)"]
[null,null,"2023-09-29","wniosek"]
[null,null,"2023-10-04","decyzja",3]
[]
[]
[null,null,"Razem",null,{"$f":"SUM(E96:E99)","v":3},{"$f":"SUM(F96:F99)","v":0}]
[]
[]
[]
[]
["SUPLEMENTY",null,{"$f":"$C$2","v":"FDK Rentier FIZ"}]
[null,"zakończone","Suplement nr 6"]
[]
[null,null,"Data",null,"Czynności po stronie urzędu","Czynności po stronie emitenta"]
[null,null,null,null,"(w dniach roboczych)"]
[null,null,"2023-10-19","wniosek"]
[null,null,"2023-10-20","decyzja",1]
[]
[]
[null,null,"Razem",null,{"$f":"SUM(E110:E113)","v":1},{"$f":"SUM(F110:F113)","v":0}]
[]
[]
[]
[]
["SUPLEMENTY",null,{"$f":"$C$2","v":"FDK Rentier FIZ"}]
[null,"zakończone","Suplement nr 7"]
[]
[null,null,"Data",null,"Czynności po stronie urzędu","Czynności po stronie emitenta"]
[null,null,null,null,"(w dniach roboczych)"]
[null,null,"2023-10-25","wniosek"]
[null,null,"2023-10-27","decyzja",2]
[]
[]
[null,null,"Razem",null,{"$f":"SUM(E124:E127)","v":2},{"$f":"SUM(F124:F127)","v":0}]
[]
[]
[]
[]
["SUPLEMENTY",null,{"$f":"$C$2","v":"FDK Rentier FIZ"}]
[null,"zakończone","Suplement nr 8"]
[]
[null,null,"Data",null,"Czynności po stronie urzędu","Czynności po stronie emitenta"]
[null,null,null,null,"(w dniach roboczych)"]
[null,null,"2023-11-07","wniosek"]
[null,null,"2023-11-09","decyzja",2]
[]
[]
[null,null,"Razem",null,{"$f":"SUM(E138:E141)","v":2},{"$f":"SUM(F138:F141)","v":0}]
[]
[]
[]
["SUPLEMENTY",null,{"$f":"$C$2","v":"FDK Rentier FIZ"}]
[null,"zakończone","Suplement nr 9"]
[]
[null,null,"Data",null,"Czynności po stronie urzędu","Czynności po stronie emitenta"]
[null,null,null,null,"(w dniach roboczych)"]
[null,null,"2024-02-06","wniosek"]
[null,null,"2024-02-13","decyzja",5]
[]
[]
[null,null,"Razem",null,{"$f":"SUM(E151:E154)","v":5},{"$f":"SUM(F151:F154)","v":0}]
[]
[]
[]
["SUPLEMENTY",null,{"$f":"$C$2","v":"FDK Rentier FIZ"}]
[null,"zakończone","Suplement nr 10"]
[]
[null,null,"Data",null,"Czynności po stronie urzędu","Czynności po stronie emitenta"]
[null,null,null,null,"(w dniach roboczych)"]
[null,null,"2024-03-28","wniosek"]
[null,null,"2024-04-03","decyzja",3]
[]
[]
[null,null,"Razem",null,{"$f":"SUM(E164:E167)","v":3},{"$f":"SUM(F164:F167)","v":0}]
[]
[]
["SUPLEMENTY",null,{"$f":"$C$2","v":"FDK Rentier FIZ"}]
[null,"zakończone","Suplement nr 11"]
[]
[null,null,"Data",null,"Czynności po stronie urzędu","Czynności po stronie emitenta"]
[null,null,null,null,"(w dniach roboczych)"]
[null,null,"2024-04-24","wniosek"]
[null,null,"2024-04-25","decyzja",1]
[]
[]
[null,null,"Razem",null,{"$f":"SUM(E176:E179)","v":1},{"$f":"SUM(F176:F179)","v":0}]
[]
[]
["SUPLEMENTY",null,{"$f":"$C$2","v":"FDK Rentier FIZ"}]
[null,"zakończone","Suplement nr 12"]
[]
[null,null,"Data",null,"Czynności po stronie urzędu","Czynności po stronie emitenta"]
[null,null,null,null,"(w dniach roboczych)"]
[null,null,"2024-05-07","wniosek"]
[null,null,"2024-05-09","decyzja",2]
[]
[]
[null,null,"Razem",null,{"$f":"SUM(E188:E191)","v":2},{"$f":"SUM(F188:F191)","v":0}]

{"sheet":"Beta ETF mWIG40TR FIZ (2023)","index":36,"n_rows":27,"n_cols":6,"rows_kept":27,"cut":false,"hidden":false,"merged":[[5,2,6,2],[6,4,6,5]]}
["Spis treści"]
[null,null,"Beta ETF mWIG40TR FIZ"]
["PROSPEKT","zakończone","Prospekt"]
[]
["410.12.2023"]
[null,null,"Data",null,"Czynności po stronie urzędu","Czynności po stronie emitenta"]
[null,null,null,null,"(w dniach roboczych)"]
[null,null,"2023-05-08","wniosek"]
[null,null,"2023-05-16",null,6]
[null,null,"2023-06-13",null,null,19]
[null,null,"2023-06-16","decyzja",3]
[]
[]
[]
[]
[]
[]
[]
[]
[]
[]
[]
[]
[]
[]
[]
[null,null,"Razem",null,{"$f":"SUM(E8:E26)","v":9},{"$f":"SUM(F8:F26)","v":19}]

{"sheet":"Dekpol 2023","index":37,"n_rows":78,"n_cols":7,"rows_kept":78,"cut":false,"hidden":false,"merged":[[69,2,70,2],[70,4,70,5],[59,2,60,2],[60,4,60,5],[48,2,49,2],[49,4,49,5],[5,2,6,2],[6,4,6,5],[27,2,28,2],[28,4,28,5],[37,2,38,2],[38,4,38,5]]}
["Spis treści",null,null,null,null,null,"Statystyka wewnętrzna - Ten plik nie jest publikowany na stronie www.knf.gov.pl\n"]
[null,null,"Dekpol SA"]
["PROSPEKT","zakończone","Prospekt podstawowy"]
[]
["410.1.2023"]
[null,null,"Data",null,"Czynności po stronie urzędu","Czynności po stronie emitenta"]
[null,null,null,null,"(w dniach roboczych)"]
[null,null,"2023-01-24","wniosek"]
[null,null,"2023-02-06",null,9]
[null,null,"2023-02-20",null,null,10]
[null,null,"2023-03-03",null,9]
[null,null,"2023-03-14",null,null,7]
[null,null,"2023-03-27",null,9]
[null,null,"2023-03-31",null,null,4]
[null,null,"2023-04-12",null,7]
[null,null,"2023-04-18",null,null,4]
[null,null,"2023-04-20",null,2]
[null,null,"2023-04-21",null,null,1]
[null,null,"2023-04-24","decyzja",1]
[]
[]
[null,null,"Razem",null,{"$f":"SUM(E8:E21)","v":37},{"$f":"SUM(F8:F21)","v":26}]
[]
[]
[null,null,{"$f":"$C$2","v":"Dekpol SA"}]
[null,"zakończone","Suplement nr 1"]
[]
[null,null,"Data",null,"Czynności po stronie urzędu","Czynności po stronie emitenta"]
[null,null,null,null,"(w dniach roboczych)"]
[null,null,"2023-05-11","wniosek"]
[null,null,"2023-05-17","decyzja",4]
[]
[null,null,"Razem",null,{"$f":"SUM(E30:E32)","v":4},{"$f":"SUM(F30:F32)","v":0}]
[]
[null,null,{"$f":"$C$2","v":"Dekpol SA"}]
[null,"zakończone","Suplement nr 2"]
[]
[null,null,"Data",null,"Czynności po stronie urzędu","Czynności po stronie emitenta"]
[null,null,null,null,"(w dniach roboczych)"]
[null,null,"2023-05-29","wniosek"]
[null,null,"2023-06-05","decyzja",5]
[]
[null,null,"Razem",null,{"$f":"SUM(E40:E42)","v":5},{"$f":"SUM(F40:F42)","v":0}]
[]
[]
[null,null,{"$f":"$C$2","v":"Dekpol SA"}]
[null,"zakończone","Suplement nr 3"]
[]
[null,null,"Data",null,"Czynności po stronie urzędu","Czynności po stronie emitenta"]
[null,null,null,null,"(w dniach roboczych)"]
[null,null,"2023-09-25","wniosek"]
[null,null,"2023-09-29","decyzja",4]
[]
[null,null,"Razem",null,{"$f":"SUM(E51:E53)","v":4},{"$f":"SUM(F51:F53)","v":0}]
[]
[]
[null,null,{"$f":"$C$2","v":"Dekpol SA"}]
[null,"zakończone","Suplement nr 4"]
[]
[null,null,"Data",null,"Czynności po stronie urzędu","Czynności po stronie emitenta"]
[null,null,null,null,"(w dniach roboczych)"]
[null,null,"2023-11-27","wniosek"]
[null,null,"2023-11-29","decyzja",2]
[]
[null,null,"Razem",null,{"$f":"SUM(E62:E64)","v":2},{"$f":"SUM(F62:F64)","v":0}]
[]
[null,null,{"$f":"$C$2","v":"Dekpol SA"}]
[null,"zakończone","Suplement nr 5"]
[]
[null,null,"Data",null,"Czynności po stronie urzędu","Czynności po stronie emitenta"]
[null,null,null,null,"(w dniach roboczych)"]
[null,null,"2024-01-31","wniosek"]
[null,null,"2024-02-02",null,2]
[null,null,"2024-02-05",null,null,1]
[null,null,"2024-02-06",null,null,1]
[null,null,"2024-02-09","decyzja",3]
[]
[null,null,"Razem",null,{"$f":"SUM(E72:E77)","v":5},{"$f":"SUM(F72:F77)","v":2}]

{"sheet":"Drago Entertainment(2023)","index":38,"n_rows":47,"n_cols":6,"rows_kept":47,"cut":false,"hidden":false,"merged":[[5,2,6,2],[6,4,6,5],[27,2,28,2],[28,4,28,5],[40,2,41,2],[41,4,41,5]]}
["Spis treści"]
[null,null,"Drago Entertainment"]
["PROSPEKT","zakończone","Prospekt"]
[]
["410.3.2023"]
[null,null,"Data",null,"Czynności po stronie urzędu","Czynności po stronie emitenta"]
[null,null,null,null,"(w dniach roboczych)"]
[null,null,"2023-01-19","wniosek"]
[null,null,"2023-02-28",null,19]
[null,null,"2023-03-14",null,null,10]
[null,null,"2023-03-28",null,10]
[null,null,"2023-04-11",null,null,9]
[null,null,"2023-04-21",null,8]
[null,null,"2023-05-19",null,null,18]
[null,null,"2023-05-29",null,6]
[null,null,"2023-06-12",null,null,9]
[null,null,"2023-06-21","decyzja",7]
[]
[]
[]
[null,null,"Razem",null,{"$f":"SUM(E8:E20)","v":50},{"$f":"SUM(F8:F20)","v":46}]
[]
[]
[]
["SUPLEMENTY",null,{"$f":"$C$2","v":"Drago Entertainment"}]
[null,"zakończone","Suplement nr 1"]
["411.66.2023"]
[null,null,"Data",null,"Czynności po stronie urzędu","Czynności po stronie emitenta"]
[null,null,null,null,"(w dniach roboczych)"]
[null,null,"2023-08-14","wniosek"]
[null,null,"2023-08-21",null,4]
[null,null,"2023-08-22",null,null,1]
[null,null,"2023-08-28","decyzja",4]
[]
[]
[null,null,"Razem",null,{"$f":"SUM(E30:E35)","v":8},{"$f":"SUM(F30:F35)","v":1}]
[]
[null,null,{"$f":"$C$2","v":"Drago Entertainment"}]
[null,"zakończone","Suplement nr 2"]
["411.76.2023"]
[null,null,"Data",null,"Czynności po stronie urzędu","Czynności po stronie emitenta"]
[null,null,null,null,"(w dniach roboczych)"]
[null,null,"2023-09-14","wniosek"]
[null,null,"2023-09-19","decyzja",3]
[]
[]
[null,null,"Razem",null,{"$f":"SUM(E43:E46)","v":3},{"$f":"SUM(F43:F46)","v":0}]

{"sheet":"Cavatina Holding (2023-2)","index":39,"n_rows":69,"n_cols":7,"rows_kept":69,"cut":false,"hidden":false,"merged":[[62,2,63,2],[63,4,63,5],[5,2,6,2],[6,4,6,5],[34,2,35,2],[35,4,35,5],[48,2,49,2],[49,4,49,5]]}
["Spis treści",null,null,null,null,null,"Statystyka wewnętrzna - Ten plik nie jest publikowany na stronie www.knf.gov.pl\n"]
[null,null,"Cavatina Holding SA"]
["PROSPEKT","zakończone","Prospekt"]
[]
["410.5.2023"]
[null,null,"Data",null,"Czynności po stronie urzędu","Czynności po stronie emitenta"]
[null,null,null,null,"(w dniach roboczych)"]
[null,null,"2023-02-02","wniosek"]
[null,null,"2023-02-15",null,9]
[null,null,"2023-02-23",null,null,6]
[null,null,"2023-03-06",null,7]
[null,null,"2023-03-14",null,null,6]
[null,null,"2023-03-21",null,5]
[null,null,"2023-03-22",null,null,1]
[null,null,"2023-03-29","decyzja",5]
[]
[]
[]
[]
[]
[]
[]
[]
[]
[]
[]
[null,null,"Razem",null,{"$f":"SUM(E8:E26)","v":26},{"$f":"SUM(F8:F26)","v":13}]
[]
[]
[]
[]
["SUPLEMENTY",null,{"$f":"$C$2","v":"Cavatina Holding SA"}]
[null,"zakończone","Suplement nr 1"]
[]
[null,null,"Data",null,"Czynności po stronie urzędu","Czynności po stronie emitenta"]
[null,null,null,null,"(w dniach roboczych)"]
[null,null,"2023-04-28","wniosek"]
[null,null,"2023-05-09","decyzja",5]
[]
[]
[null,null,"Razem",null,{"$f":"SUM(E37:E40)","v":5},{"$f":"SUM(F37:F40)","v":0}]
[]
[]
[]
[]
["SUPLEMENTY",null,{"$f":"$C$2","v":"Cavatina Holding SA"}]
[null,"zakończone","Suplement nr 2"]
[]
[null,null,"Data",null,"Czynności po stronie urzędu","Czynności po stronie emitenta"]
[null,null,null,null,"(w dniach roboczych)"]
[null,null,"2023-05-18","wniosek"]
[null,null,"2023-05-19","decyzja",1]
[]
[]
[null,null,"Razem",null,{"$f":"SUM(E51:E54)","v":1},{"$f":"SUM(F51:F54)","v":0}]
[]
[]
[]
[]
["SUPLEMENTY",null,{"$f":"$C$2","v":"Cavatina Holding SA"}]
[null,"zakończone","Suplement nr 3"]
[]
[null,null,"Data",null,"Czynności po stronie urzędu","Czynności po stronie emitenta"]
[null,null,null,null,"(w dniach roboczych)"]
[null,null,"2023-05-31","wniosek"]
[null,null,"2023-06-05","decyzja",3]
[]
[]
[null,null,"Razem",null,{"$f":"SUM(E65:E68)","v":3},{"$f":"SUM(F65:F68)","v":0}]

{"sheet":"Urteste S.A.","index":40,"n_rows":58,"n_cols":9,"rows_kept":58,"cut":false,"hidden":false,"merged":[[5,2,6,2],[6,4,6,5],[33,2,34,2],[34,4,34,5],[46,2,47,2],[47,4,47,5]]}
["Spis treści"]
[null,null,"Urteste S.A."]
["PROSPEKT","zakończone","Prospekt"]
[]
["410.36.2022"]
[null,null,"Data",null,"Czynności po stronie urzędu","Czynności po stronie emitenta"]
[null,null,null,null,"(w dniach roboczych)"]
[null,null,"2022-08-03","wniosek"]
[null,null,"2022-09-01",null,20]
[null,null,"2022-09-15",null,null,11,null,null,0]
[null,null,"2022-09-29",null,10,null,null,6]
[null,null,"2022-10-17",null,null,12]
[null,null,"2022-10-28",null,9]
[null,null,"2022-11-09",null,null,7]
[null,null,"2022-11-17",null,5]
[null,null,"2022-12-06",null,null,13]
[null,null,"2022-12-19",null,9]
[null,null,"2023-02-07",null,null,34]
[null,null,"2023-02-21",null,10]
[null,null,"2023-02-28",null,null,5]
[null,null,"2023-03-10",null,8]
[null,null,"2023-03-13",null,null,1]
[null,null,"2023-03-16","decyzja",3]
[]
[]
[]
[null,null,"Razem",null,{"$f":"SUM(E8:E26)","v":74},{"$f":"SUM(F8:F26)","v":83}]
[]
[]
[]
[null,null,{"$f":"$C$2","v":"Urteste S.A."}]
[null,"zakończone","Suplement nr 1"]
[]
[null,null,"Data",null,"Czynności po stronie urzędu","Czynności po stronie emitenta"]
[null,null,null,null,"(w dniach roboczych)"]
[null,null,"2023-03-02","wniosek"]
[null,null,"2023-03-03","decyzja"]
[]
[null,null,"Razem",null,{"$f":"SUM(E36:E38)","v":0},{"$f":"SUM(F36:F38)","v":0}]
[]
[]
[]
[]
[null,null,{"$f":"$C$2","v":"Urteste S.A."}]
[null,"zakończone","Suplement nr 2"]
[]
[null,null,"Data",null,"Czynności po stronie urzędu","Czynności po stronie emitenta"]
[null,null,null,null,"(w dniach roboczych)"]
[null,null,"2023-04-18","wniosek"]
[null,null,"2023-04-20",null,2]
[null,null,"2023-04-24",null,null,2]
[null,null,"2023-04-24",null,0]
[null,null,"2023-04-25",null,null,1]
[null,null,"2023-04-26",null,1]
[null,null,"2023-04-26",null,null,0]
[null,null,"2023-04-28","decyzja",2]
[]
[null,null,"Razem",null,{"$f":"SUM(E49:E57)","v":5},{"$f":"SUM(F49:F57)","v":3}]

{"sheet":"Columbus Energy SA 2022","index":41,"n_rows":38,"n_cols":6,"rows_kept":38,"cut":false,"hidden":false,"merged":[[5,2,6,2],[6,4,6,5],[32,2,33,2],[33,4,33,5]]}
["Spis treści"]
[null,null,"Columbus Energy SA"]
["PROSPEKT","zakończone","Prospekt"]
[]
["410.39.2022"]
[null,null,"Data",null,"Czynności po stronie urzędu","Czynności po stronie emitenta"]
[null,null,null,null,"(w dniach roboczych)"]
[null,null,"2022-08-23","wniosek"]
[null,null,"2022-09-20",null,20]
[null,null,"2022-10-11",null,null,15]
[null,null,"2022-10-25",null,10]
[null,null,"2022-11-16",null,null,14]
[null,null,"2022-11-30",null,10]
[null,null,"2022-12-14",null,null,10]
[null,null,"2022-12-29",null,10]
[null,null,"2023-01-26",null,null,19]
[null,null,"2023-02-09",null,10]
[null,null,"2023-02-16",null,null,5]
[null,null,"2023-02-28",null,8]
[null,null,"2023-03-02",null,null,2]
[null,null,"2023-03-07",null,3]
[null,null,"2023-03-08",null,null,1]
[null,null,"2023-03-10",null,2]
[null,null,"2023-03-13",null,null,1]
[null,null,"2023-03-14","decyzja",1]
[null,null,"Razem",null,{"$f":"SUM(E8:E22)","v":71},{"$f":"SUM(F8:F22)","v":66}]
[]
[]
[null,null,null,null,{"$f":"E26/(E26+F26)","v":0.51824817518248179},{"$f":"F26/(E26+F26)","v":0.48175182481751827}]
[null,null,{"$f":"$C$2","v":"Columbus Energy SA"}]
[null,"zakończone","Suplement nr 1"]
[]
[null,null,"Data",null,"Czynności po stronie urzędu","Czynności po stronie emitenta"]
[null,null,null,null,"(w dniach roboczych)"]
[null,null,"2023-03-28","wniosek"]
[null,null,"2023-03-31",null,3]
[null,null,"2023-04-03",null,null,1]
[null,null,"2023-04-05","decyzja",2]

{"sheet":"Beta ETF WIGtech (2023)","index":42,"n_rows":34,"n_cols":6,"rows_kept":34,"cut":false,"hidden":false,"merged":[[5,2,6,2],[6,4,6,5],[27,2,28,2],[28,4,28,5]]}
["Spis treści"]
[null,null,"Beta ETF WIGtech FIZ"]
["PROSPEKT","zakończone","Prospekt"]
[]
["410.4.2023"]
[null,null,"Data",null,"Czynności po stronie urzędu","Czynności po stronie emitenta"]
[null,null,null,null,"(w dniach roboczych)"]
[null,null,"2023-02-10","wniosek"]
[null,null,"2023-02-15",null,3]
[null,null,"2023-02-23",null,null,6]
[null,null,"2023-02-28",null,3]
[null,null,"2023-03-03",null,null,3]
[null,null,"2023-03-08",null,3]
[]
[]
[]
[]
[]
[]
[]
[null,null,"Razem",null,{"$f":"SUM(E8:E20)","v":9},{"$f":"SUM(F8:F20)","v":9}]
[]
[]
[]
["SUPLEMENTY",null,{"$f":"$C$2","v":"Beta ETF WIGtech FIZ"}]
[null,"      ","Suplement nr 1"]
[]
[null,null,"Data",null,"Czynności po stronie urzędu","Czynności po stronie emitenta"]
[null,null,null,null,"(w dniach roboczych)"]
[null,null,null,"wniosek"]
[]
[]
[]
[null,null,"Razem",null,{"$f":"SUM(E30:E33)","v":0},{"$f":"SUM(F30:F33)","v":0}]

{"sheet":"Kredyt Inkaso SA 2022","index":43,"n_rows":87,"n_cols":7,"rows_kept":87,"cut":false,"hidden":false,"merged":[[77,2,78,2],[78,4,78,5],[62,2,63,2],[63,4,63,5],[5,2,6,2],[6,4,6,5],[33,2,34,2],[34,4,34,5],[48,2,49,2],[49,4,49,5]]}
["Spis treści",null,null,null,null,null,"Statystyka wewnętrzna - Ten plik nie jest publikowany na stronie www.knf.gov.pl\n"]
[null,null,"Kredyt Inkaso SA "]
["PROSPEKT","zakończone","Prospekt"]
[]
["410.47.2022"]
[null,null,"Data",null,"Czynności po stronie urzędu","Czynności po stronie emitenta"]
[null,null,null,null,"(w dniach roboczych)"]
[null,null,"2022-09-23","wniosek"]
[null,null,"2022-10-06",null,9]
[null,null,"2022-10-19",null,null,9]
[null,null,"2022-11-03",null,10]
[null,null,"2022-11-15",null,null,7]
[null,null,"2022-11-28",null,9]
[null,null,"2022-12-05",null,null,5]
[null,null,"2022-12-19",null,10]
[null,null,"2023-01-12",null,null,16]
[null,null,"2023-01-26",null,10]
[null,null,"2023-01-31",null,null,3]
[null,null,"2023-02-10",null,8]
[null,null,"2023-02-13",null,null,1]
[null,null,"2023-02-15",null,2]
[null,null,"2023-02-15",null,null,0]
[null,null,"2023-02-16","decyzja",1]
[]
[]
[]
[null,null,"Razem",null,{"$f":"SUM(E8:E26)","v":59},{"$f":"SUM(F8:F26)","v":41}]
[]
[]
[]
[null,null,{"$f":"$C$2","v":"Kredyt Inkaso SA "}]
[null,"zakończone","Suplement nr 1"]
[]
[null,null,"Data",null,"Czynności po stronie urzędu","Czynności po stronie emitenta"]
[null,null,null,null,"(w dniach roboczych)"]
[null,null,"2023-03-03","wniosek"]
[null,null,"2023-03-08",null,3]
[null,null,"2023-03-09",null,null,1]
[null,null,"2023-03-15","decyzja",4]
[]
[]
[]
[null,null,"Razem",null,{"$f":"SUM(E36:E42)","v":7},{"$f":"SUM(F36:F42)","v":1}]
[]
[]
[null,null,{"$f":"$C$2","v":"Kredyt Inkaso SA "}]
[null,"zakończone","Suplement nr 2"]
[]
[null,null,"Data",null,"Czynności po stronie urzędu","Czynności po stronie emitenta"]
[null,null,null,null,"(w dniach roboczych)"]
[null,null,"2023-07-19","wniosek"]
[null,null,"2023-07-21",null,2]
[null,null,"2023-07-24",null,null,1]
[null,null,"2023-07-26","decyzja",2]
[]
[]
[]
[null,null,"Razem",null,{"$f":"SUM(E51:E57)","v":4},{"$f":"SUM(F51:F57)","v":1}]
[]
[null,null,{"$f":"$C$2","v":"Kredyt Inkaso SA "}]
[null,"zakończone","Suplement nr 3"]
[]
[null,null,"Data",null,"Czynności po stronie urzędu","Czynności po stronie emitenta"]
[null,null,null,null,"(w dniach roboczych)"]
[null,null,"2023-08-31","wniosek"]
[null,null,"2023-09-05","decyzja",3]
[]
[]
[]
[]
[]
[null,null,"Razem",null,{"$f":"SUM(E65:E71)","v":3},{"$f":"SUM(F65:F71)","v":0}]
[]
[]
[null,null,{"$f":"$C$2","v":"Kredyt Inkaso SA "}]
[null,"zakończone","Suplement nr 4"]
[]
[null,null,"Data",null,"Czynności po stronie urzędu","Czynności po stronie emitenta"]
[null,null,null,null,"(w dniach roboczych)"]
[null,null,"2023-12-22","wniosek"]
[null,null,"2023-12-28",null,2]
[null,null,"2023-12-28",null,null,0]
[null,null,"2023-12-29",null,1]
[null,null,"2024-01-03",null,null,2]
[null,null,"2024-01-04","decyzja",1]
[]
[null,null,"Razem",null,{"$f":"SUM(E80:E86)","v":4},{"$f":"SUM(F80:F86)","v":2}]

{"sheet":"LESS S.A.","index":44,"n_rows":59,"n_cols":6,"rows_kept":59,"cut":false,"hidden":false,"merged":[[53,2,54,2],[54,4,54,5],[5,2,6,2],[6,4,6,5],[29,2,30,2],[30,4,30,5],[41,2,42,2],[42,4,42,5]]}
["Spis treści"]
[null,null,"LESS S.A."]
["PROSPEKT","zakończone","Prospekt"]
[]
["410.44.2022"]
[null,null,"Data",null,"Czynności po stronie urzędu","Czynności po stronie emitenta"]
[null,null,null,null,"(w dniach roboczych)"]
[null,null,"2022-09-13","wniosek"]
[null,null,"2022-09-27",null,10]
[null,null,"2022-10-11",null,null,10]
[null,null,"2022-10-25",null,10]
[null,null,"2022-11-16",null,null,14]
[null,null,"2022-11-30",null,10]
[null,null,"2022-12-09",null,null,7]
[null,null,"2022-12-21",null,8]
[null,null,"2022-12-28",null,null,4]
[null,null,"2023-01-11",null,9]
[null,null,"2023-01-13",null,null,2]
[null,null,"2023-01-18",null,3]
[null,null,"2023-01-19",null,null,1]
[null,null,"2023-01-25",null,4]
[]
[null,null,"Razem",null,{"$f":"SUM(E8:E22)","v":54},{"$f":"SUM(F8:F22)","v":38}]
[]
[]
[]
["SUPLEMENTY",null,{"$f":"$C$2","v":"LESS S.A."}]
[null,"zakończone","Suplement nr 1"]
[]
[null,null,"Data",null,"Czynności po stronie urzędu","Czynności po stronie emitenta"]
[null,null,null,null,"(w dniach roboczych)"]
[null,null,"2023-04-21","wniosek"]
[null,null,"2023-04-26",null,3]
[null,null,"2023-04-27",null,null,1]
[null,null,"2023-05-05","decyzja",4]
[]
[null,null,"Razem",null,{"$f":"SUM(E32:E36)","v":7},{"$f":"SUM(F32:F36)","v":1}]
[]
[null,null,{"$f":"$C$2","v":"LESS S.A."}]
[null,"zakończone","Suplement nr 2"]
[]
[null,null,"Data",null,"Czynności po stronie urzędu","Czynności po stronie emitenta"]
[null,null,null,null,"(w dniach roboczych)"]
[null,null,"2023-05-04","wniosek"]
[null,null,"2023-05-11",null,5]
[null,null,"2023-05-11",null,null,0]
[null,null,"2023-05-16","decyzja",2]
[]
[null,null,"Razem",null,{"$f":"SUM(E44:E48)","v":7},{"$f":"SUM(F44:F48)","v":0}]
[]
[null,null,{"$f":"$C$2","v":"LESS S.A."}]
[null,"zakończone","Suplement nr 3"]
[]
[null,null,"Data",null,"Czynności po stronie urzędu","Czynności po stronie emitenta"]
[null,null,null,null,"(w dniach roboczych)"]
[null,null,"2023-05-30","wniosek"]
[null,null,"2023-06-05","decyzja",4]
[]
[null,null,"Razem",null,{"$f":"SUM(E56:E58)","v":4},{"$f":"SUM(F56:F58)","v":0}]

{"sheet":"PASSUS","index":45,"n_rows":24,"n_cols":6,"rows_kept":24,"cut":false,"hidden":false,"merged":[[5,2,6,2],[6,4,6,5]]}
["Spis treści"]
[null,null,"PASSUS SA"]
["PROSPEKT","zakończone","Prospekt"]
[]
["410.29.2022"]
[null,null,"Data",null,"Czynności po stronie urzędu","Czynności po stronie emitenta"]
[null,null,null,null,"(w dniach roboczych)"]
[null,null,"2022-06-28","wniosek"]
[null,null,"2022-07-25",null,19]
[null,null,"2022-10-10",null,null,54]
[null,null,"2022-10-24",null,10]
[null,null,"2022-11-04",null,null,8]
[null,null,"2022-11-18",null,9]
[null,null,"2022-11-29",null,null,7]
[null,null,"2022-12-09",null,8]
[null,null,"2022-12-16",null,null,5]
[null,null,"2022-12-16",null,0]
[null,null,"2022-12-19",null,null,1]
[null,null,"2022-12-20","aktualizacja",null,1]
[null,null,"2022-12-22","aktualizacja",null,2]
[null,null,"2022-12-23","decyzja",1]
[]
[]
[null,null,"Razem",null,{"$f":"SUM(E8:E23)","v":47},{"$f":"SUM(F8:F23)","v":78}]

{"sheet":"Ryvu Therapeutics","index":46,"n_rows":22,"n_cols":7,"rows_kept":22,"cut":false,"hidden":false,"merged":[[5,2,6,2],[6,4,6,5]]}
["Spis treści",null,null,null,null,null,"Statystyka wewnętrzna - Ten plik nie jest publikowany na stronie www.knf.gov.pl\n"]
[null,null,"Ryvu Therapeutics"]
["PROSPEKT","zakończone","Prospekt"]
[]
["410.49.2022"]
[null,null,"Data",null,"Czynności po stronie urzędu","Czynności po stronie emitenta"]
[null,null,null,null,"(w dniach roboczych)"]
[null,null,"2022-10-11","wniosek"]
[null,null,"2022-10-20",null,7]
[null,null,"2022-11-01",null,null,7]
[null,null,"2022-11-10",null,7]
[null,null,"2022-11-18",null,null,5]
[null,null,"2022-11-28",null,6]
[null,null,"2022-11-30",null,null,2]
[null,null,"2022-12-02",null,2]
[null,null,"2022-12-05",null,null,1]
[null,null,"2022-12-06",null,null,1]
[null,null,"2022-12-07"]
[]
[]
[]
[null,null,"Razem",null,{"$f":"SUM(E8:E21)","v":22},{"$f":"SUM(F8:F21)","v":16}]

{"sheet":"EQUES Akumulacji Majątku FIZ","index":47,"n_rows":52,"n_cols":7,"rows_kept":52,"cut":false,"hidden":false,"merged":[[5,2,6,2],[6,4,6,5],[29,2,30,2],[30,4,30,5],[46,2,47,2],[47,4,47,5]]}
["Spis treści",null,null,null,null,null,"Statystyka wewnętrzna - Ten plik nie jest publikowany na stronie www.knf.gov.pl\n"]
[null,null,"EQUES Akumulacji Majątku FIZ"]
["PROSPEKT","zakończone","Prospekt"]
[]
["410.45.2022"]
[null,null,"Data",null,"Czynności po stronie urzędu","Czynności po stronie emitenta"]
[null,null,null,null,"(w dniach roboczych)"]
[null,null,"2022-09-15","wniosek"]
[null,null,"2022-09-29",null,10]
[null,null,"2022-10-13",null,null,10]
[null,null,"2022-10-26",null,9]
[null,null,"2022-10-27",null,null,1]
[null,null,"2022-11-08",null,7]
[null,null,"2022-11-17",null,null,6]
[null,null,"2022-11-28","aktualizacja",null,7]
[null,null,"2022-12-01",null,3]
[null,null,"2022-12-02",null,null,1]
[null,null,"2022-12-06","decyzja",2]
[]
[]
[]
[]
[null,null,"Razem",null,{"$f":"SUM(E8:E22)","v":31},{"$f":"SUM(F8:F22)","v":25}]
[]
[]
[]
["SUPLEMENTY",null,{"$f":"$C$2","v":"EQUES Akumulacji Majątku FIZ"}]
[null,"zakończone","Suplement nr 1"]
[]
[null,null,"Data",null,"Czynności po stronie urzędu","Czynności po stronie emitenta"]
[null,null,null,null,"(w dniach roboczych)"]
[null,null,"2023-04-18","wniosek"]
[null,null,"2023-04-25",null,5]
[null,null,"2023-04-28",null,null,3]
[null,null,"2023-05-08",null,4]
[null,null,"2023-05-12",null,null,4]
[null,null,"2023-05-16"]
[null,null,"2023-05-17",null,null,1]
[null,null,"2023-05-19",null,2]
[]
[null,null,"Razem",null,{"$f":"SUM(E32:E40)","v":11},{"$f":"SUM(F32:F40)","v":8}]
[]
[]
[null,null,{"$f":"$C$2","v":"EQUES Akumulacji Majątku FIZ"}]
[null,"zakończone","Suplement nr 2"]
[]
[null,null,"Data",null,"Czynności po stronie urzędu","Czynności po stronie emitenta"]
[null,null,null,null,"(w dniach roboczych)"]
[null,null,"2023-06-29","wniosek"]
[null,null,"2023-07-05",null,4]
[]
[null,null,"Razem",null,{"$f":"SUM(E49:E51)","v":4},{"$f":"SUM(F49:F51)","v":0}]

{"sheet":"Cloud Technologies SA","index":48,"n_rows":34,"n_cols":7,"rows_kept":34,"cut":false,"hidden":false,"merged":[[5,2,6,2],[6,4,6,5],[26,2,27,2],[27,4,27,5]]}
["Spis treści",null,null,null,null,null,"Statystyka wewnętrzna - Ten plik nie jest publikowany na stronie www.knf.gov.pl\n"]
[null,null,"Cloud Technologies SA"]
["PROSPEKT","zakończone","Prospekt"]
[]
["410.37.2022"]
[null,null,"Data",null,"Czynności po stronie urzędu","Czynności po stronie emitenta"]
[null,null,null,null,"(w dniach roboczych)"]
[null,null,"2022-08-05","wniosek"]
[null,null,"2022-09-02",null,19]
[null,null,"2022-09-16",null,null,10]
[null,null,"2022-09-29",null,9]
[null,null,"2022-10-10",null,null,7]
[null,null,"2022-10-20",null,8]
[null,null,"2022-10-27",null,null,5]
[null,null,"2022-11-07",null,6]
[null,null,"2022-11-08",null,null,1]
[null,null,"2022-11-09",null,null,1]
[null,null,"2022-11-09",null,null,0]
[null,null,"2022-11-10","decyzja",1]
[]
[null,null,"Razem",null,{"$f":"SUM(E8:E20)","v":43},{"$f":"SUM(F8:F20)","v":24}]
[]
[]
[null,null,{"$f":"$C$2","v":"Cloud Technologies SA"}]
[null,"zakończone","Suplement nr 1"]
[]
[null,null,"Data",null,"Czynności po stronie urzędu","Czynności po stronie emitenta"]
[null,null,null,null,"(w dniach roboczych)"]
[null,null,"2022-11-21","wniosek"]
[null,null,"2022-11-23",null,2]
[null,null,"2022-11-25",null,null,2]
[null,null,"2022-11-30","decyzja",3]
[]
[null,null,"Razem",null,{"$f":"SUM(E29:E33)","v":5},{"$f":"SUM(F29:F33)","v":2}]

{"sheet":"Beta ETF S&P 500 PLN-Hedg (2)","index":49,"n_rows":27,"n_cols":6,"rows_kept":27,"cut":false,"hidden":false,"merged":[[5,2,6,2],[6,4,6,5]]}
["Spis treści"]
[null,null,"Beta ETF S&P 500 PLN-Hedged PFIZ"]
["PROSPEKT","zakończone","Prospekt"]
[]
["410.51.2022"]
[null,null,"Data",null,"Czynności po stronie urzędu","Czynności po stronie emitenta"]
[null,null,null,null,"(w dniach roboczych)"]
[null,null,"2022-10-12","wniosek"]
[null,null,"2022-10-26",null,10]
[null,null,"2022-11-03",null,null,5]
[null,null,"2022-11-07",null,2]
[null,null,"2022-11-08",null,null,1]
[null,null,"2022-11-10","decyzja",2]
[]
[]
[]
[]
[]
[]
[]
[]
[]
[]
[]
[]
[]
[null,null,"Razem",null,{"$f":"SUM(E8:E26)","v":14},{"$f":"SUM(F8:F26)","v":6}]

{"sheet":"Beta ETF Nasdaq-100 PLN-H (2)","index":50,"n_rows":27,"n_cols":6,"rows_kept":27,"cut":false,"hidden":false,"merged":[[5,2,6,2],[6,4,6,5]]}
["Spis treści"]
[null,null,"Beta ETF Nasdaq-100 PLN-Hedged Portfelowy FIZ"]
["PROSPEKT","zakończone","Prospekt"]
[]
["410.50.2022"]
[null,null,"Data",null,"Czynności po stronie urzędu","Czynności po stronie emitenta"]
[null,null,null,null,"(w dniach roboczych)"]
[null,null,"2022-10-12","wniosek"]
[null,null,"2022-10-26",null,10]
[null,null,"2022-11-03",null,null,5]
[null,null,"2022-11-07",null,2]
[null,null,"2022-11-08",null,null,1]
[null,null,"2022-11-10","decyzja",2]
[]
[]
[]
[]
[]
[]
[]
[]
[]
[]
[]
[]
[]
[null,null,"Razem",null,{"$f":"SUM(E8:E26)","v":14},{"$f":"SUM(F8:F26)","v":6}]

{"sheet":"BEST SA (2)","index":51,"n_rows":52,"n_cols":6,"rows_kept":52,"cut":false,"hidden":false,"merged":[[5,2,6,2],[6,4,6,5],[31,2,32,2],[32,4,32,5],[45,2,46,2],[46,4,46,5]]}
["Spis treści"]
[null,null,"BEST SA"]
["PROSPEKT","zakończone","Prospekt"]
[]
["410.28.2022"]
[null,null,"Data",null,"Czynności po stronie urzędu","Czynności po stronie emitenta"]
[null,null,null,null,"(w dniach roboczych)"]
[null,null,"2022-06-14","wniosek"]
[null,null,"2022-06-29",null,10]
[null,null,"2022-07-07",null,null,6]
[null,null,"2022-07-20",null,9]
[null,null,"2022-08-04",null,null,11]
[null,null,"2022-08-18",null,9]
[null,null,"2022-08-26",null,null,6]
[null,null,"2022-09-05",null,6]
[null,null,"2022-09-19",null,null,10]
[null,null,"2022-10-03",null,10]
[null,null,"2022-10-10",null,null,5]
[null,null,"2022-10-18",null,6]
[null,null,"2022-10-19",null,null,1]
[null,null,"2022-10-24",null,3]
[null,null,"2022-10-26",null,null,2]
[null,null,"2022-11-04","decyzja",6]
[null,null,"Razem",null,{"$f":"SUM(E8:E23)","v":59},{"$f":"SUM(F8:F23)","v":41}]
[]
[]
[]
[]
["SUPLEMENTY",null,{"$f":"$C$2","v":"BEST SA"}]
[null,"zakończone","Suplement nr 1"]
[]
[null,null,"Data",null,"Czynności po stronie urzędu","Czynności po stronie emitenta"]
[null,null,null,null,"(w dniach roboczych)"]
[null,null,"2023-04-14","wniosek"]
[null,null,"2023-04-20",null,4]
[]
[]
[null,null,"Razem",null,{"$f":"SUM(E34:E37)","v":4},{"$f":"SUM(F34:F37)","v":0}]
[]
[]
[]
[]
["SUPLEMENTY",null,{"$f":"$C$2","v":"BEST SA"}]
[null,"zakończone","Suplement nr 2"]
[]
[null,null,"Data",null,"Czynności po stronie urzędu","Czynności po stronie emitenta"]
[null,null,null,null,"(w dniach roboczych)"]
[null,null,"2023-09-14","wniosek"]
[null,null,"2023-09-19",null,3]
[]
[]
[null,null,"Razem",null,{"$f":"SUM(E48:E51)","v":3},{"$f":"SUM(F48:F51)","v":0}]

{"sheet":"DEVELIA SA","index":52,"n_rows":93,"n_cols":7,"rows_kept":93,"cut":false,"hidden":false,"merged":[[85,2,86,2],[86,4,86,5],[70,2,71,2],[71,4,71,5],[54,2,55,2],[55,4,55,5],[5,2,6,2],[6,4,6,5],[28,2,29,2],[29,4,29,5],[42,2,43,2],[43,4,43,5]]}
["Spis treści",null,null,null,null,null,"Statystyka wewnętrzna - Ten plik nie jest publikowany na stronie www.knf.gov.pl\n"]
[null,null,"DEVELIA SA"]
["PROSPEKT","zakończone","Prospekt podstawowy obligacji"]
[]
["410.34.2022"]
[null,null,"Data",null,"Czynności po stronie urzędu","Czynności po stronie emitenta"]
[null,null,null,null,"(w dniach roboczych)"]
[null,null,"2022-07-15","wniosek"]
[null,null,"2022-07-28",null,9]
[null,null,"2022-08-10",null,null,9]
[null,null,"2022-08-24",null,9]
[null,null,"2022-09-07",null,null,10]
[null,null,"2022-09-21",null,10]
[null,null,"2022-09-23",null,null,2]
[null,null,"2022-10-05",null,8]
[null,null,"2022-10-10",null,null,3]
[null,null,"2022-10-18",null,6]
[null,null,"2022-10-19",null,null,1]
[null,null,"2022-10-21",null,2]
[null,null,"2022-10-24",null,null,1]
[null,null,"2022-10-26","decyzja",2]
[]
[null,null,"Razem",null,{"$f":"SUM(E8:E22)","v":46},{"$f":"SUM(F8:F22)","v":26}]
[]
[]
[null,null,{"$f":"$C$2","v":"DEVELIA SA"}]
[null,"zakończone","Suplement nr 1"]
[]
[null,null,"Data",null,"Czynności po stronie urzędu","Czynności po stronie emitenta"]
[null,null,null,null,"(w dniach roboczych)"]
[null,null,"2022-11-15","wniosek"]
[null,null,"2022-11-17","decyzja",2]
[]
[null,null,"Razem",null,{"$f":"SUM(E31:E33)","v":2},{"$f":"SUM(F31:F33)","v":0}]
[]
[]
[]
[]
[]
[null,null,{"$f":"$C$2","v":"DEVELIA SA"}]
[null,"zakończone","Suplement nr 2"]
[]
[null,null,"Data",null,"Czynności po stronie urzędu","Czynności po stronie emitenta"]
[null,null,null,null,"(w dniach roboczych)"]
[null,null,"2023-01-27","wniosek"]
[null,null,"2023-02-01","decyzja",4]
[]
[null,null,"Razem",null,{"$f":"SUM(E45:E47)","v":4},{"$f":"SUM(F45:F47)","v":0}]
[]
[]
[]
[null,null,{"$f":"$C$2","v":"DEVELIA SA"}]
[null,"zakończone","Suplement nr 3"]
[]
[null,null,"Data",null,"Czynności po stronie urzędu","Czynności po stronie emitenta"]
[null,null,null,null,"(w dniach roboczych)"]
[null,null,"2023-03-31","wniosek"]
[null,null,"2023-04-04",null,2]
[null,null,"2023-04-07",null,null,3]
[null,null,"2023-04-12","decyzja",2]
[]
[null,null,"Razem",null,{"$f":"SUM(E57:E61)","v":4},{"$f":"SUM(F57:F61)","v":3}]
[]
[]
[]
[]
[]
[null,null,{"$f":"$C$2","v":"DEVELIA SA"}]
[null,"zakończone","Suplement nr 4"]
[]
[null,null,"Data",null,"Czynności po stronie urzędu","Czynności po stronie emitenta"]
[null,null,null,null,"(w dniach roboczych)"]
[null,null,"2023-05-18","wniosek"]
[null,null,"2023-05-23",null,3]
[null,null,"2023-05-31",null,null,6]
[null,null,"2023-06-05","decyzja",3]
[]
[null,null,"Razem",null,{"$f":"SUM(E73:E77)","v":6},{"$f":"SUM(F73:F77)","v":6}]
[]
[]
[]
[]
[null,null,{"$f":"$C$2","v":"DEVELIA SA"}]
[null,"zakończone","Suplement nr 5"]
[]
[null,null,"Data",null,"Czynności po stronie urzędu","Czynności po stronie emitenta"]
[null,null,null,null,"(w dniach roboczych)"]
[null,null,"2023-06-02","wniosek"]
[null,null,"2023-06-06",null,2]
[null,null,"2023-06-14",null,null,6]
[null,null,"2023-06-21","decyzja",5]
[]
[null,null,"Razem",null,{"$f":"SUM(E88:E92)","v":7},{"$f":"SUM(F88:F92)","v":6}]

{"sheet":"Rafako SA","index":53,"n_rows":36,"n_cols":6,"rows_kept":36,"cut":false,"hidden":false,"merged":[[5,2,6,2],[6,4,6,5],[28,2,29,2],[29,4,29,5]]}
["Spis treści"]
[null,null,"Rafako SA"]
["PROSPEKT","zakończone","Prospekt"]
[]
["410.32.2022"]
[null,null,"Data",null,"Czynności po stronie urzędu","Czynności po stronie emitenta"]
[null,null,null,null,"(w dniach roboczych)"]
[null,null,"2022-07-01","wniosek"]
[null,null,"2022-07-11",null,6]
[null,null,"2022-07-25",null,null,10]
[null,null,"2022-08-03",null,7]
[null,null,"2022-08-16",null,null,8]
[null,null,"2022-08-25",null,7]
[null,null,"2022-09-08",null,null,10]
[null,null,"2022-09-19",null,7]
[null,null,"2022-10-11",null,null,16]
[null,null,"2022-10-14",null,3]
[null,null,"2022-10-18",null,null,2]
[null,null,"2022-10-26","decyzja",6]
[]
[null,null,"Razem",null,{"$f":"SUM(E8:E20)","v":36},{"$f":"SUM(F8:F20)","v":46}]
[]
[]
[]
[]
["SUPLEMENTY",null,{"$f":"$C$2","v":"Rafako SA"}]
[null,"zakończone","Suplement nr 1"]
[]
[null,null,"Data",null,"Czynności po stronie urzędu","Czynności po stronie emitenta"]
[null,null,null,null,"(w dniach roboczych)"]
[null,null,"2022-11-03","wniosek"]
[null,null,"2022-11-04",null,1]
[null,null,"2022-11-08",null,null,2]
[null,null,"2022-11-09","decyzja",1]
[]
[null,null,"Razem",null,{"$f":"SUM(E31:E35)","v":2},{"$f":"SUM(F31:F35)","v":2}]

{"sheet":"Tenderhut S.A.","index":54,"n_rows":23,"n_cols":9,"rows_kept":23,"cut":false,"hidden":false,"merged":[[5,2,6,2],[6,4,6,5]]}
["Spis treści"]
[null,null,"Tenderhut S.A."]
["PROSPEKT","zakończone","Prospekt"]
[]
["410.17.2022"]
[null,null,"Data",null,"Czynności po stronie urzędu","Czynności po stronie emitenta"]
[null,null,null,null,"(w dniach roboczych)"]
[null,null,null,"wniosek"]
[null,null,"2022-04-29"]
[null,null,"2022-05-30",null,20]
[null,null,"2022-06-24",null,null,18]
[null,null,"2022-07-06",null,8]
[null,null,"2022-07-20",null,null,11]
[null,null,"2022-08-01",null,8]
[null,null,"2022-08-11",null,null,8]
[null,null,"2022-08-24",null,8]
[null,null,"2022-09-07",null,null,10]
[null,null,"2022-09-15",null,6]
[null,null,"2022-09-26",null,null,7,null,null,0]
[null,null,"2022-10-07",null,9]
[null,null,"2022-10-12",null,null,3]
[null,null,"2022-10-21","decyzja",7]
[null,null,"Razem",null,{"$f":"SUM(E8:E22)","v":66},{"$f":"SUM(F8:F22)","v":57}]

{"sheet":"Beta ETF WIG20TR","index":55,"n_rows":21,"n_cols":6,"rows_kept":21,"cut":false,"hidden":false,"merged":[[5,2,6,2],[6,4,6,5]]}
["Spis treści"]
[null,null,"Beta ETF WIG20TR"]
["PROSPEKT","zakończone","Prospekt"]
[]
["410.40.2022"]
[null,null,"Data",null,"Czynności po stronie urzędu","Czynności po stronie emitenta"]
[null,null,null,null,"(w dniach roboczych)"]
[null,null,"2022-08-23","wniosek"]
[null,null,"2022-09-02",null,8]
[null,null,"2022-09-15",null,null,9]
[null,null,"2022-09-28",null,9]
[null,null,"2022-10-02",null,null,2]
[null,null,"2022-10-07",null,5]
[null,null,"2022-10-11",null,null,3]
[null,null,"2022-10-12","decyzja",1]
[]
[]
[]
[]
[]
[null,null,"Razem",null,{"$f":"SUM(E8:E20)","v":23},{"$f":"SUM(F8:F20)","v":14}]

{"sheet":"Beta ETF TBSP PFIZ","index":56,"n_rows":18,"n_cols":6,"rows_kept":18,"cut":false,"hidden":false,"merged":[[5,2,6,2],[6,4,6,5]]}
["Spis treści"]
[null,null,"Beta ETF TBSP PFIZ"]
["PROSPEKT","zakończone","Prospekt"]
[]
["410.42.2022"]
[null,null,"Data",null,"Czynności po stronie urzędu","Czynności po stronie emitenta"]
[null,null,null,null,"(w dniach roboczych)"]
[null,null,"2022-08-17","wniosek"]
[null,null,"2022-08-31",null,10]
[null,null,"2022-09-15",null,null,11]
[null,null,"2022-09-29",null,10]
[null,null,"2022-10-02",null,null,1]
[null,null,"2022-10-07",null,5]
[null,null,"2022-10-07",null,null,0]
[null,null,"10.10.202","decyzja",1]
[]
[]
[null,null,"Razem",null,{"$f":"SUM(E8:E17)","v":26},{"$f":"SUM(F8:F17)","v":12}]

{"sheet":"Beta ETF uWIG80TR","index":57,"n_rows":21,"n_cols":6,"rows_kept":21,"cut":false,"hidden":false,"merged":[[5,2,6,2],[6,4,6,5]]}
["Spis treści"]
[null,null,"Beta ETF uWIG80TR"]
["PROSPEKT","zakończone","Prospekt"]
[]
["410.41.2022"]
[null,null,"Data",null,"Czynności po stronie urzędu","Czynności po stronie emitenta"]
[null,null,null,null,"(w dniach roboczych)"]
[null,null,"2022-08-17","wniosek"]
[null,null,"2022-08-31",null,10]
[null,null,"2022-09-15",null,null,11]
[null,null,"2022-09-29",null,10]
[null,null,"2022-10-02",null,null,1]
[null,null,"2022-10-06",null,4]
[null,null,"2022-10-07",null,null,1]
[null,null,"2022-10-10","decyzja",1]
[]
[]
[]
[]
[]
[null,null,"Razem",null,{"$f":"SUM(E8:E20)","v":25},{"$f":"SUM(F8:F20)","v":13}]

{"sheet":"GI Group Poland S.A.","index":58,"n_rows":64,"n_cols":6,"rows_kept":64,"cut":false,"hidden":false,"merged":[[5,2,6,2],[6,4,6,5],[39,2,40,2],[40,4,40,5],[57,2,58,2],[58,4,58,5]]}
["Spis treści"]
[null,null,"GI GROUP POLAND S.A."]
["PROSPEKT","zakończone","Prospekt"]
[]
["410.35.2022"]
[null,null,"Data",null,"Czynności po stronie urzędu","Czynności po stronie emitenta"]
[null,null,null,null,"(w dniach roboczych)"]
[null,null,"2022-07-25","wniosek"]
[null,null,"2022-08-08",null,10]
[null,null,"2022-08-22",null,null,10]
[null,null,"2022-09-05",null,10]
[null,null,"2022-09-19",null,null,10]
[null,null,"2022-10-03",null,10]
[null,null,"2022-10-17",null,null,10]
[null,null,"2022-10-31",null,10]
[null,null,"2022-11-14",null,null,8]
[null,null,"2022-11-28",null,10]
[null,null,"2022-12-09",null,null,9]
[null,null,"2022-12-23",null,10]
[null,null,"2023-01-20",null,null,18]
[null,null,"2023-02-01",null,8]
[null,null,"2023-02-10",null,null,7]
[null,null,"2023-02-23",null,9]
[null,null,"2023-03-09",null,null,10]
[null,null,"2023-03-17",null,6]
[null,null,"2023-03-24",null,null,5]
[null,null,"2023-03-31",null,5]
[null,null,"2023-04-07",null,null,5]
[null,null,"2023-04-17","decyzja",5]
[]
[]
[null,null,"Razem",null,{"$f":"SUM(E8:E31)","v":93},{"$f":"SUM(F8:F31)","v":92}]
[]
[]
[]
[null,null,"GI GROUP POLAND S.A."]
["Suplement nr 1","zakończone","Suplement nr 1"]
[]
[]
[null,null,"Data",null,"Czynności po stronie urzędu","Czynności po stronie emitenta"]
[null,null,null,null,"(w dniach roboczych)"]
[null,null,"2023-05-12","wniosek"]
[null,null,"2023-05-17",null,3]
[null,null,"2023-05-24",null,null,5]
[null,null,"2023-05-26",null,2]
[null,null,"2023-05-29",null,null,1]
[null,null,"2023-05-30","decyzja",1]
[]
[]
[null,null,"Razem",null,{"$f":"SUM(E42:E49)","v":6},{"$f":"SUM(F42:F49)","v":6}]
[]
[]
[]
[null,null,"GI GROUP POLAND S.A."]
["Suplement nr 2","zakończone","Suplement nr 2"]
[]
[]
[null,null,"Data",null,"Czynności po stronie urzędu","Czynności po stronie emitenta"]
[null,null,null,null,"(w dniach roboczych)"]
[null,null,"2023-06-01","wniosek"]
[null,null,"2023-06-05","decyzja",2]
[]
[]
[null,null,"Razem",null,{"$f":"SUM(E60:E63)","v":2},{"$f":"SUM(F60:F63)","v":0}]

{"sheet":"Alior Bank S.A. obligacje (2022","index":59,"n_rows":55,"n_cols":7,"rows_kept":55,"cut":false,"hidden":false,"merged":[[49,2,50,2],[50,4,50,5],[5,2,6,2],[6,4,6,5],[26,2,27,2],[27,4,27,5],[36,2,37,2],[37,4,37,5]]}
["Spis treści"]
[null,null,"Alior Bank S.A."]
["PROSPEKT","zakończone","Prospekt podstawowy obligacji"]
[]
["410.33.2022"]
[null,null,"Data",null,"Czynności po stronie urzędu","Czynności po stronie emitenta"]
[null,null,null,null,"(w dniach roboczych)"]
[null,null,"2022-07-04","wniosek"]
[null,null,"2022-07-18",null,10]
[null,null,"2022-07-27",null,null,7]
[null,null,"2022-08-04",null,6]
[null,null,"2022-08-11",null,null,6]
[null,null,"2022-08-16",null,2]
[null,null,"2022-08-17",null,null,1]
[null,null,"2022-08-24","decyzja",5]
[]
[]
[]
[]
[]
[null,null,"Razem",null,{"$f":"SUM(E8:E20)","v":23},{"$f":"SUM(F8:F20)","v":14}]
[]
[]
["SUPLEMENTY",null,{"$f":"$C$2","v":"Alior Bank S.A."}]
[null,"zakończone","Suplement nr 1"]
[]
[null,null,"Data",null,"Czynności po stronie urzędu","Czynności po stronie emitenta"]
[null,null,null,null,"(w dniach roboczych)"]
[null,null,"2023-02-08","wniosek"]
[null,null,"2023-02-14","decyzja",3,null,2]
[]
[null,null,"Razem",null,{"$f":"SUM(E29:E31)","v":3},{"$f":"SUM(F29:F31)","v":0}]
[]
[null,null,{"$f":"$C$2","v":"Alior Bank S.A."}]
[null,"zakończone","Suplement nr 2"]
[]
[null,null,"Data",null,"Czynności po stronie urzędu","Czynności po stronie emitenta"]
[null,null,null,null,"(w dniach roboczych)"]
[null,null,"2023-03-09","wniosek"]
[null,null,"2023-03-13",null,2]
[null,null,"2023-03-16",null,null,3]
[null,null,"2023-03-17","decyzja",1]
[]
[null,null,"Razem",null,{"$f":"SUM(E39:E43)","v":3},{"$f":"SUM(F39:F43)","v":3}]
[]
[]
[null,null,{"$f":"$C$2","v":"Alior Bank S.A."}]
[null,"zakończone","Suplement nr 3"]
[]
[null,null,"Data",null,"Czynności po stronie urzędu","Czynności po stronie emitenta"]
[null,null,null,null,"(w dniach roboczych)"]
[null,null,"2023-06-28","wniosek"]
[null,null,"2023-07-04","decyzja",4]
[]
[null,null,"Razem",null,{"$f":"SUM(E52:E54)","v":4},{"$f":"SUM(F52:F54)","v":0}]

{"sheet":"Marvipol Development","index":60,"n_rows":66,"n_cols":7,"rows_kept":66,"cut":false,"hidden":false,"merged":[[60,2,61,2],[61,4,61,5],[49,2,50,2],[50,4,50,5],[5,2,6,2],[6,4,6,5],[24,2,25,2],[25,4,25,5],[37,2,38,2],[38,4,38,5]]}
["Spis treści",null,null,null,null,null,"\n"]
[null,null,"Marvipol Development SA"]
["PROSPEKT","zakończone","Prospekt podstawowy"]
[]
["410.27.2022"]
[null,null,"Data",null,"Czynności po stronie urzędu","Czynności po stronie emitenta"]
[null,null,null,null,"(w dniach roboczych)"]
[null,null,"2022-06-10","wniosek"]
[null,null,"2022-06-23",null,null,8]
[null,null,"2022-07-05",null,8]
[null,null,"2022-07-22",null,null,13]
[null,null,"2022-08-03",null,8]
[null,null,"2022-08-12",null,null,7]
[null,null,"2022-08-18",null,3]
[null,null,"2022-08-22",null,null,2]
[null,null,"2022-08-24","decyzja",2]
[]
[null,null,"Razem",null,{"$f":"SUM(E8:E17)","v":21},{"$f":"SUM(F8:F17)","v":30}]
[]
[]
[]
["SUPLEMENTY",null,{"$f":"$C$2","v":"Marvipol Development SA"}]
[null,"zakończone","Suplement nr 1"]
[]
[null,null,"Data",null,"Czynności po stronie urzędu","Czynności po stronie emitenta"]
[null,null,null,null,"(w dniach roboczych)"]
[null,null,"2022-08-30","wniosek"]
[null,null,"2022-09-02",null,3]
[null,null,"2022-09-07",null,null,3]
[null,null,"2022-09-09",null,null,2]
[null,null,"2022-09-13","decyzja",2]
[]
[null,null,"Razem",null,{"$f":"SUM(E27:E32)","v":5},{"$f":"SUM(F27:F32)","v":5}]
[]
["SUPLEMENTY",null,{"$f":"$C$2","v":"Marvipol Development SA"}]
[null,"zakończone","Suplement nr 2"]
[]
[null,null,"Data",null,"Czynności po stronie urzędu","Czynności po stronie emitenta"]
[null,null,null,null,"(w dniach roboczych)"]
[null,null,"2022-11-30","wniosek"]
[null,null,"2022-12-01",null,1]
[null,null,"2022-12-08",null,null,5]
[null,null,"2022-12-13","decyzja",3]
[]
[null,null,"Razem",null,{"$f":"SUM(E40:E44)","v":4},{"$f":"SUM(F40:F44)","v":5}]
[]
[null,null,{"$f":"$C$2","v":"Marvipol Development SA"}]
[null,"zakończone","Suplement nr 3"]
[]
[null,null,"Data",null,"Czynności po stronie urzędu","Czynności po stronie emitenta"]
[null,null,null,null,"(w dniach roboczych)"]
[null,null,"2023-03-24","wniosek"]
[null,null,"2023-03-29",null,null,3]
[null,null,"2023-03-31","decyzja",2]
[]
[null,null,"Razem",null,{"$f":"SUM(E52:E55)","v":2},{"$f":"SUM(F52:F55)","v":3}]
[]
[null,null,{"$f":"$C$2","v":"Marvipol Development SA"}]
[null,"zakończone","Suplement nr 4"]
[]
[null,null,"Data",null,"Czynności po stronie urzędu","Czynności po stronie emitenta"]
[null,null,null,null,"(w dniach roboczych)"]
[null,null,"2023-06-01","wniosek"]
[null,null,"2023-06-06","decyzja",3]
[]
[null,null,"Razem",null,{"$f":"SUM(E63:E65)","v":3},{"$f":"SUM(F63:F65)","v":0}]

{"sheet":"Kruk S.A.","index":61,"n_rows":135,"n_cols":6,"rows_kept":135,"cut":false,"hidden":false,"merged":[[127,2,128,2],[128,4,128,5],[113,2,114,2],[114,4,114,5],[99,2,100,2],[100,4,100,5],[5,2,6,2],[6,4,6,5],[27,2,28,2],[28,4,28,5],[42,2,43,2],[43,4,43,5],[84,2,85,2],[85,4,85,5],[70,2,71,2],[71,4,71,5],[56,2,57,2],[57,4,57,5]]}
["Spis treści"]
[null,null,"Kruk S.A."]
["PROSPEKT","zakończone","Prospekt podstawowy obligacji"]
[]
["410.21.2022"]
[null,null,"Data",null,"Czynności po stronie urzędu","Czynności po stronie emitenta"]
[null,null,null,null,"(w dniach roboczych)"]
[null,null,"2022-05-18","wniosek"]
[null,null,"2022-05-31",null,9]
[null,null,"2022-06-15",null,null,11]
[null,null,"2022-06-30",null,10]
[null,null,"2022-07-13",null,null,9]
[null,null,"2022-07-22",null,7]
[null,null,"2022-07-27",null,null,3]
[null,null,"2022-08-02",null,7]
[null,null,"2022-08-10",null,null,6]
[null,null,"2022-08-11",null,1]
[null,null,"2022-08-17",null,null,3]
[null,null,"2022-08-23",null,4]
[]
[null,null,"Razem",null,{"$f":"SUM(E8:E20)","v":38},{"$f":"SUM(F8:F20)","v":32}]
[]
[]
[]
["SUPLEMENTY",null,{"$f":"$C$2","v":"Kruk S.A."}]
[null,"zakończone","Suplement nr 1"]
[]
[null,null,"Data",null,"Czynności po stronie urzędu","Czynności po stronie emitenta"]
[null,null,null,null,"(w dniach roboczych)"]
[null,null,"2022-09-08","wniosek"]
[null,null,"2022-09-14",null,null,4]
[null,null,"2022-09-15","decyzja",1]
[]
[]
[]
[null,null,"Razem",null,{"$f":"SUM(E30:E35)","v":1},{"$f":"SUM(F30:F35)","v":4}]
[]
[]
[]
[null,null,{"$f":"$C$2","v":"Kruk S.A."}]
[null,"zakończone","Suplement nr 2"]
[]
[null,null,"Data",null,"Czynności po stronie urzędu","Czynności po stronie emitenta"]
[null,null,null,null,"(w dniach roboczych)"]
[null,null,"2022-11-09","wniosek"]
[null,null,"2022-11-16","decyzja",4]
[]
[]
[]
[null,null,"Razem",null,{"$f":"SUM(E45:E49)","v":4},{"$f":"SUM(F45:F49)","v":0}]
[]
[]
[]
[null,null,{"$f":"$C$2","v":"Kruk S.A."}]
[null,"zakończone","Suplement nr 3"]
[]
[null,null,"Data",null,"Czynności po stronie urzędu","Czynności po stronie emitenta"]
[null,null,null,null,"(w dniach roboczych)"]
[null,null,"2023-03-10","wniosek"]
[null,null,"2023-03-15","decyzja",3]
[]
[]
[]
[null,null,"Razem",null,{"$f":"SUM(E59:E63)","v":3},{"$f":"SUM(F59:F63)","v":0}]
[]
[]
[]
[null,null,{"$f":"$C$2","v":"Kruk S.A."}]
[null,"zakończone","Suplement nr 4"]
[]
[null,null,"Data",null,"Czynności po stronie urzędu","Czynności po stronie emitenta"]
[null,null,null,null,"(w dniach roboczych)"]
[null,null,"2023-03-14","wniosek"]
[null,null,"2023-03-16","decyzja",2]
[]
[]
[]
[null,null,"Razem",null,{"$f":"SUM(E73:E77)","v":2},{"$f":"SUM(F73:F77)","v":0}]
[]
[]
[]
[null,null,{"$f":"$C$2","v":"Kruk S.A."}]
[null,"zakończone","Suplement nr 5"]
[]
[null,null,"Data",null,"Czynności po stronie urzędu","Czynności po stronie emitenta"]
[null,null,null,null,"(w dniach roboczych)"]
[null,null,"2023-04-18","wniosek"]
[null,null,"2023-04-20","decyzja",2]
[]
[]
[]
[null,null,"Razem",null,{"$f":"SUM(E87:E91)","v":2},{"$f":"SUM(F87:F91)","v":0}]
[]
[]
[]
[]
[null,null,{"$f":"$C$2","v":"Kruk S.A."}]
[null,"zakończone","Suplement nr 6"]
[]
[null,null,"Data",null,"Czynności po stronie urzędu","Czynności po stronie emitenta"]
[null,null,null,null,"(w dniach roboczych)"]
[null,null,"2023-04-27","wniosek"]
[null,null,"2023-05-02","decyzja",2]
[]
[]
[]
[null,null,"Razem",null,{"$f":"SUM(E102:E106)","v":2},{"$f":"SUM(F102:F106)","v":0}]
[]
[]
[]
[null,null,{"$f":"$C$2","v":"Kruk S.A."}]
[null,"zakończone","Suplement nr 7"]
[]
[null,null,"Data",null,"Czynności po stronie urzędu","Czynności po stronie emitenta"]
[null,null,null,null,"(w dniach roboczych)"]
[null,null,"2023-05-17","wniosek"]
[null,null,"2023-05-23","decyzja",4]
[]
[]
[]
[null,null,"Razem",null,{"$f":"SUM(E116:E120)","v":4},{"$f":"SUM(F116:F120)","v":0}]
[]
[]
[]
[null,null,{"$f":"$C$2","v":"Kruk S.A."}]
[null,"zakończone","Suplement nr 8"]
[]
[null,null,"Data",null,"Czynności po stronie urzędu","Czynności po stronie emitenta"]
[null,null,null,null,"(w dniach roboczych)"]
[null,null,"2023-08-11","wniosek"]
[null,null,"2023-08-14","decyzja",1]
[]
[]
[]
[null,null,"Razem",null,{"$f":"SUM(E130:E134)","v":1},{"$f":"SUM(F130:F134)","v":0}]

{"sheet":"EQUES Aktywnego Inwestowa","index":62,"n_rows":75,"n_cols":6,"rows_kept":75,"cut":false,"hidden":false,"merged":[[69,2,70,2],[70,4,70,5],[5,2,6,2],[6,4,6,5],[34,2,35,2],[35,4,35,5],[53,2,54,2],[54,4,54,5]]}
["Spis treści"]
[null,null,"EQUES Aktywnego Inwestowania FIZ"]
["PROSPEKT","zakończone","Prospekt"]
[]
["410.15.2022"]
[null,null,"Data",null,"Czynności po stronie urzędu","Czynności po stronie emitenta"]
[null,null,null,null,"(w dniach roboczych)"]
[null,null,"2022-04-27","wniosek"]
[null,null,"2022-05-11",null,9]
[null,null,"2022-06-01",null,null,15]
[null,null,"2022-06-03",null,2]
[null,null,"2022-06-07",null,null,2]
[null,null,"2022-06-22",null,10]
[null,null,"2022-06-23",null,null,1]
[null,null,"2022-07-06",null,9]
[null,null,"2022-07-19",null,null,9]
[null,null,"2022-07-26",null,5]
[null,null,"2022-07-29",null,null,3]
[null,null,"2022-08-05",null,5]
[null,null,"2022-08-12",null,null,5]
[null,null,"2022-08-16",null,1]
[null,null,"2022-08-16",null,null,0]
[null,null,"2022-08-22","aktualizacja",null,4]
[null,null,"2022-08-24","decyzja",2]
[]
[]
[null,null,"Razem",null,{"$f":"SUM(E8:E26)","v":43},{"$f":"SUM(F8:F26)","v":39}]
[]
[]
[]
[]
["SUPLEMENTY",null,{"$f":"$C$2","v":"EQUES Aktywnego Inwestowania FIZ"}]
[null,"zakończone","Suplement nr 1"]
[]
[null,null,"Data",null,"Czynności po stronie urzędu","Czynności po stronie emitenta"]
[null,null,null,null,"(w dniach roboczych)"]
[null,null,"2022-10-12","wniosek"]
[null,null,"2022-10-17",null,3]
[null,null,"2022-10-19",null,null,2]
[null,null,"2022-10-24",null,3]
[null,null,"2022-10-24",null,null,0]
[null,null,"2022-10-26",null,2]
[null,null,"2022-10-26",null,null,0]
[null,null,"2022-10-31","decyzja",3]
[]
[null,null,"Razem",null,{"$f":"SUM(E37:E45)","v":11},{"$f":"SUM(F37:F45)","v":2}]
[]
[]
[]
[]
["SUPLEMENTY",null,{"$f":"$C$2","v":"EQUES Aktywnego Inwestowania FIZ"}]
[null,"zakończone","Suplement nr 2"]
[]
[null,null,"Data",null,"Czynności po stronie urzędu","Czynności po stronie emitenta"]
[null,null,null,null,"(w dniach roboczych)"]
[null,null,"2023-04-18","wniosek"]
[null,null,"2023-04-25",null,5]
[null,null,"2023-04-28",null,null,3]
[null,null,"2023-05-08",null,4]
[null,null,"2023-05-12",null,null,4]
[null,null,"2023-05-16",null,2]
[null,null,"2023-05-16",null,null,0]
[null,null,"2023-05-19","decyzja",3]
[]
[null,null,"Razem",null,{"$f":"SUM(E56:E64)","v":14},{"$f":"SUM(F56:F64)","v":7}]
[]
[null,null,{"$f":"$C$2","v":"EQUES Aktywnego Inwestowania FIZ"}]
[null,"zakończone","Suplement nr 3"]
[]
[null,null,"Data",null,"Czynności po stronie urzędu","Czynności po stronie emitenta"]
[null,null,null,null,"(w dniach roboczych)"]
[null,null,"2023-06-29","wniosek"]
[null,null,"2023-07-05","decyzja",4]
[]
[null,null,"Razem",null,{"$f":"SUM(E72:E74)","v":4},{"$f":"SUM(F72:F74)","v":0}]

{"sheet":"EQUES Akcji Sektora Prywa","index":63,"n_rows":78,"n_cols":6,"rows_kept":78,"cut":false,"hidden":false,"merged":[[72,2,73,2],[73,4,73,5],[55,2,56,2],[56,4,56,5],[5,2,6,2],[6,4,6,5],[27,2,28,2],[28,4,28,5],[42,2,43,2],[43,4,43,5]]}
["Spis treści"]
[null,null,"EQUES Akcji Sektora Prywatnego FIZ"]
["PROSPEKT","zakończone","Prospekt"]
[]
["410.24.2022"]
[null,null,"Data",null,"Czynności po stronie urzędu","Czynności po stronie emitenta"]
[null,null,null,null,"(w dniach roboczych)"]
[null,null,"2022-06-01","wniosek"]
[null,null,"2022-06-15",null,10]
[null,null,"2022-06-22",null,null,4]
[null,null,"2022-07-06",null,10]
[null,null,"2022-07-20",null,null,10]
[null,null,"2022-07-27","aktualizacja",null,5]
[null,null,"2022-08-02",null,4]
[null,null,"2022-08-10",null,null,6]
[null,null,"2022-08-16",null,3]
[null,null,"2022-08-16",null,null,0]
[null,null,"2022-08-17","aktualizacja",null,1]
[null,null,"2022-08-19","decyzja",2]
[]
[null,null,"Razem",null,{"$f":"SUM(E8:E20)","v":29},{"$f":"SUM(F8:F20)","v":26}]
[]
[]
[]
["SUPLEMENTY",null,{"$f":"$C$2","v":"EQUES Akcji Sektora Prywatnego FIZ"}]
[null,"zakończone","Suplement nr 1"]
[]
[null,null,"Data",null,"Czynności po stronie urzędu","Czynności po stronie emitenta"]
[null,null,null,null,"(w dniach roboczych)"]
[null,null,"2022-10-12","wniosek"]
[null,null,"2022-10-17",null,3]
[null,null,"2022-10-18",null,null,1]
[null,null,"2022-10-24",null,4]
[null,null,"2022-10-24",null,null,0]
[null,null,"2022-10-26","decyzja",2]
[]
[null,null,"Razem",null,{"$f":"SUM(E30:E36)","v":9},{"$f":"SUM(F30:F36)","v":1}]
[]
[]
[null,null,{"$f":"$C$2","v":"EQUES Akcji Sektora Prywatnego FIZ"}]
[null,"zakończone","Suplement nr 2"]
[]
[null,null,"Data",null,"Czynności po stronie urzędu","Czynności po stronie emitenta"]
[null,null,null,null,"(w dniach roboczych)"]
[null,null,"2023-01-31","wniosek"]
[null,null,"2023-02-02",null,2]
[null,null,"2023-02-08",null,null,4]
[null,null,"2023-02-10","decyzja",2]
[]
[null,null,"Razem",null,{"$f":"SUM(E45:E49)","v":4},{"$f":"SUM(F45:F49)","v":4}]
[]
[]
[null,null,{"$f":"$C$2","v":"EQUES Akcji Sektora Prywatnego FIZ"}]
[null,"zakończone","Suplement nr 3"]
[]
[null,null,"Data",null,"Czynności po stronie urzędu","Czynności po stronie emitenta"]
[null,null,null,null,"(w dniach roboczych)"]
[null,null,"2023-04-18","wniosek"]
[null,null,"2023-04-25",null,5]
[null,null,"2023-04-28",null,null,3]
[null,null,"2023-05-08",null,4]
[null,null,"2023-05-12",null,null,4]
[null,null,"2023-05-16",null,2]
[null,null,"2023-05-19","decyzja",null,3]
[]
[]
[null,null,"Razem",null,{"$f":"SUM(E58:E66)","v":11},{"$f":"SUM(F58:F66)","v":10}]
[]
[]
[null,null,{"$f":"$C$2","v":"EQUES Akcji Sektora Prywatnego FIZ"}]
[null,"zakończone","Suplement nr 4"]
[]
[null,null,"Data",null,"Czynności po stronie urzędu","Czynności po stronie emitenta"]
[null,null,null,null,"(w dniach roboczych)"]
[null,null,"2023-06-29","wniosek"]
[null,null,"2023-07-05","decyzja",4]
[]
[null,null,"Razem",null,{"$f":"SUM(E75:E77)","v":4},{"$f":"SUM(F75:F77)","v":0}]

{"sheet":"Caspar Asset Management S.A.","index":64,"n_rows":21,"n_cols":6,"rows_kept":21,"cut":false,"hidden":false,"merged":[[5,2,6,2],[6,4,6,5]]}
["Spis treści"]
[null,null,"Caspar Asset Management S.A."]
["PROSPEKT","zakończone","Prospekt"]
[]
["410.14.2022"]
[null,null,"Data",null,"Czynności po stronie urzędu","Czynności po stronie emitenta"]
[null,null,null,null,"(w dniach roboczych)"]
[null,null,"2022-04-05","wniosek"]
[null,null,"2022-05-05",null,20]
[null,null,"2022-05-19",null,null,10]
[null,null,"2022-06-02",null,10]
[null,null,"2022-06-15",null,null,9]
[null,null,"2022-06-28","aktualizacja",null,8]
[null,null,"2022-07-05",null,5]
[null,null,"2022-07-15",null,null,8]
[null,null,"2022-07-21","decyzja",4]
[]
[]
[]
[]
[null,null,"Razem",null,{"$f":"SUM(E8:E20)","v":39},{"$f":"SUM(F8:F20)","v":35}]

{"sheet":"Beta ETF WIG20short","index":65,"n_rows":21,"n_cols":6,"rows_kept":21,"cut":false,"hidden":false,"merged":[[5,2,6,2],[6,4,6,5]]}
["Spis treści"]
[null,null,"Beta ETF WIG20short Portfelowy FIZ"]
["PROSPEKT","zakończone","Prospekt"]
[]
["410.25.2022"]
[null,null,"Data",null,"Czynności po stronie urzędu","Czynności po stronie emitenta"]
[null,null,null,null,"(w dniach roboczych)"]
[null,null,"2022-05-27","wniosek"]
[null,null,"2022-06-09",null,9]
[null,null,"2022-06-15",null,null,4]
[null,null,"2022-06-21",null,3]
[null,null,"2022-06-29",null,null,6]
[null,null,"2022-06-30",null,1]
[null,null,"2022-07-01",null,null,1]
[null,null,"2022-07-04",null,1]
[null,null,"2022-07-04",null,null,0]
[null,null,"2022-07-05","decyzja",1]
[]
[]
[]
[null,null,"Razem",null,{"$f":"SUM(E8:E20)","v":15},{"$f":"SUM(F8:F20)","v":11}]

{"sheet":"Beta ETF WIG20lev","index":66,"n_rows":21,"n_cols":6,"rows_kept":21,"cut":false,"hidden":false,"merged":[[5,2,6,2],[6,4,6,5]]}
["Spis treści"]
[null,null,"Beta ETF WIG20lev"]
["PROSPEKT","zakończone","Prospekt"]
[]
["410.23.2022"]
[null,null,"Data",null,"Czynności po stronie urzędu","Czynności po stronie emitenta"]
[null,null,null,null,"(w dniach roboczych)"]
[null,null,"2022-05-31","wniosek"]
[null,null,"2022-06-09",null,7]
[null,null,"2022-06-15",null,null,4]
[null,null,"2022-06-21",null,3]
[null,null,"2022-06-29",null,null,6]
[null,null,"2022-06-30",null,1]
[null,null,"2022-07-01",null,null,1]
[null,null,"2022-07-04",null,1]
[null,null,"2022-07-04",null,null,0]
[null,null,"2022-07-05","decyzja",1]
[]
[]
[]
[null,null,"Razem",null,{"$f":"SUM(E8:E20)","v":13},{"$f":"SUM(F8:F20)","v":11}]

{"sheet":"Beta ETF mWIG40TR (2022)","index":67,"n_rows":21,"n_cols":6,"rows_kept":21,"cut":false,"hidden":false,"merged":[[5,2,6,2],[6,4,6,5]]}
["Spis treści"," "]
[null,null,"Beta ETF mWIG40TR Portfelowy FIZ (2022)"]
["PROSPEKT","zakończone","Prospekt"]
[]
["410.18.2022"]
[null,null,"Data",null,"Czynności po stronie urzędu","Czynności po stronie emitenta"]
[null,null,null,null,"(w dniach roboczych)"]
[null,null,"2022-05-11","wniosek"]
[null,null,"2022-05-24",null,9]
[null,null,"2022-06-06",null,null,9]
[null,null,"2022-06-10",null,4]
[null,null,"2022-06-14",null,null,2]
[null,null,"2022-06-17","aktualizacja",null,2]
[null,null,"2022-06-20","decyzja",1]
[]
[]
[]
[]
[]
[]
[null,null,"Razem",null,{"$f":"SUM(E8:E20)","v":14},{"$f":"SUM(F8:F20)","v":13}]

{"sheet":"Movie Games","index":68,"n_rows":47,"n_cols":6,"rows_kept":47,"cut":false,"hidden":false,"merged":[[5,2,6,2],[6,4,6,5],[36,2,37,2],[37,4,37,5]]}
["Spis treści"]
[null,null,"Movie Games"]
["PROSPEKT","zakończone","Prospekt"]
[]
["410.19.2022"]
[null,null,"Data",null,"Czynności po stronie urzędu","Czynności po stronie emitenta"]
[null,null,null,null,"(w dniach roboczych)"]
[null,null,"2022-05-10","wniosek"]
[null,null,"2022-06-07",null,20]
[null,null,"2022-06-21",null,null,9]
[null,null,"2022-07-05",null,10]
[null,null,"2022-07-18",null,null,9]
[null,null,"2022-07-29",null,9]
[null,null,"2022-08-12",null,null,10]
[null,null,"2022-08-26",null,9]
[null,null,"2022-09-25",null,null,20]
[null,null,"2022-10-07",null,10]
[null,null,"2022-10-12",null,null,3]
[null,null,"2022-10-25",null,9]
[null,null,"2022-10-26",null,null,1]
[null,null,"2022-11-02",null,4]
[null,null,"2022-11-03",null,null,1]
[null,null,"2022-11-10",null,5]
[null,null,"2022-11-24",null,null,9]
[null,null,"2022-12-07",null,9]
[null,null,"2022-12-13",null,null,4]
[null,null,"2022-12-16","decyzja",3]
[]
[]
[null,null,"Razem",null,{"$f":"SUM(E8:E29)","v":88},{"$f":"SUM(F8:F29)","v":66}]
[]
[]
[null,null,"Movie Games"]
["Suplement nr 1","zakończone","Suplement"]
[]
[]
[null,null,"Data",null,"Czynności po stronie urzędu","Czynności po stronie emitenta"]
[null,null,null,null,"(w dniach roboczych)"]
[null,null,"2022-12-23","wniosek"]
[null,null,"2022-12-27",null,1]
[null,null,"2022-12-28",null,null,1]
[null,null,"2022-12-29","aktualizacja",null,1]
[null,null,"2022-12-30","decyzja",1]
[]
[]
[]
[null,null,"Razem",null,{"$f":"SUM(E39:E46)","v":2},{"$f":"SUM(F39:F46)","v":2}]

{"sheet":"Alior Bank S.A. (BPW)","index":69,"n_rows":59,"n_cols":6,"rows_kept":59,"cut":false,"hidden":false,"merged":[[54,2,55,2],[55,4,55,5],[5,2,6,2],[6,4,6,5],[30,2,31,2],[31,4,31,5],[42,2,43,2],[43,4,43,5]]}
["Spis treści"]
[null,null,"Alior Bank S.A."]
["PROSPEKT","zakończone","Prospekt podstawowy bankowych papierów wartościowych"]
[]
["410.8.2022"]
[null,null,"Data",null,"Czynności po stronie urzędu","Czynności po stronie emitenta"]
[null,null,null,null,"(w dniach roboczych)"]
[null,null,"2022-03-29","wniosek"]
[null,null,"2022-04-12",null,10]
[null,null,"2022-04-26",null,null,9]
[null,null,"2022-05-11",null,10]
[null,null,"2022-05-25",null,null,10]
[null,null,"2022-06-08",null,10]
[null,null,"2022-06-21",null,null,9]
[null,null,"2022-07-01",null,8]
[null,null,"2022-07-08",null,null,5]
[null,null,"2022-07-12",null,2]
[null,null,"2022-07-20",null,null,6]
[null,null,"2022-07-21",null,1]
[null,null,"2022-07-28",null,null,5]
[null,null,"2022-08-11",null,10]
[null,null,"2022-08-11",null,null,0]
[null,null,"2022-08-24","decyzja",8]
[null,null,"Razem",null,{"$f":"SUM(E8:E21)","v":51},{"$f":"SUM(F8:F21)","v":44}]
[]
[]
[]
["SUPLEMENTY",null,{"$f":"$C$2","v":"Alior Bank S.A."}]
[null,"zakończone","Suplement nr 1"]
[]
[null,null,"Data",null,"Czynności po stronie urzędu","Czynności po stronie emitenta"]
[null,null,null,null,"(w dniach roboczych)"]
[null,null,"2023-02-08","wniosek"]
[null,null,"2023-02-14",null,4]
[null,null,"2023-02-15",null,null,1]
[null,null,"2023-02-16","decyzja",1]
[null,null,"Razem",null,{"$f":"SUM(E33:E36)","v":5},{"$f":"SUM(F33:F36)","v":1}]
[]
[]
["SUPLEMENTY",null,{"$f":"$C$2","v":"Alior Bank S.A."}]
[null,"zakończone","Suplement nr 2"]
[]
[null,null,"Data",null,"Czynności po stronie urzędu","Czynności po stronie emitenta"]
[null,null,null,null,"(w dniach roboczych)"]
[null,null,"2023-03-09","wniosek"]
[null,null,"2023-03-13",null,2]
[null,null,"2023-03-16",null,null,3]
[null,null,"2023-03-17","decyzja",1]
[null,null,"Razem",null,{"$f":"SUM(E45:E48)","v":3},{"$f":"SUM(F45:F48)","v":3}]
[]
[]
["SUPLEMENTY",null,{"$f":"$C$2","v":"Alior Bank S.A."}]
[null,"zakończone","Suplement nr 3"]
[]
[null,null,"Data",null,"Czynności po stronie urzędu","Czynności po stronie emitenta"]
[null,null,null,null,"(w dniach roboczych)"]
[null,null,"2023-06-28","wniosek"]
[null,null,"2023-07-04","decyzja",4]
[null,null,"Razem",null,{"$f":"SUM(E57:E58)","v":4},{"$f":"SUM(F57:F58)","v":0}]

{"sheet":"PCC Exol S.A.","index":70,"n_rows":74,"n_cols":6,"rows_kept":74,"cut":false,"hidden":false,"merged":[[67,2,68,2],[68,4,68,5],[54,2,55,2],[55,4,55,5],[5,2,6,2],[6,4,6,5],[27,2,28,2],[28,4,28,5],[39,2,40,2],[40,4,40,5]]}
["Spis treści"]
[null,null,"PCC Exol S.A."]
["PROSPEKT","zakończone","Prospekt podstawowy obligacji"]
[]
["410.11.2022"]
[null,null,"Data",null,"Czynności po stronie urzędu","Czynności po stronie emitenta"]
[null,null,null,null,"(w dniach roboczych)"]
[null,null,"2022-03-25","wniosek"]
[null,null,"2022-04-08",null,10]
[null,null,"2022-04-14",null,null,4]
[null,null,"2022-04-27",null,9]
[null,null,"2022-04-29",null,null,2]
[null,null,"2022-05-09",null,5]
[null,null,"2022-05-23",null,null,10]
[null,null,"2022-05-30",null,5]
[null,null,"2022-06-13",null,null,10]
[null,null,"2022-06-24","decyzja",8]
[]
[]
[]
[null,null,"Razem",null,{"$f":"SUM(E8:E20)","v":37},{"$f":"SUM(F8:F20)","v":26}]
[]
[]
[]
["SUPLEMENTY",null,{"$f":"$C$2","v":"PCC Exol S.A."}]
[null,"zakończone","Suplement nr 1"]
[]
[null,null,"Data",null,"Czynności po stronie urzędu","Czynności po stronie emitenta"]
[null,null,null,null,"(w dniach roboczych)"]
[null,null,"2022-08-24","wniosek"]
[null,null,"2022-08-26",null,2]
[]
[]
[null,null,"Razem",null,{"$f":"SUM(E30:E33)","v":2},{"$f":"SUM(F30:F33)","v":0}]
[]
[]
[null,null,{"$f":"$C$2","v":"PCC Exol S.A."}]
[null,"zakończone","Suplement nr 2"]
[]
[null,null,"Data",null,"Czynności po stronie urzędu","Czynności po stronie emitenta"]
[null,null,null,null,"(w dniach roboczych)"]
[null,null,"2022-11-14","wniosek"]
[null,null,"2022-11-16",null,2]
[]
[]
[null,null,"Razem",null,{"$f":"SUM(E42:E45)","v":2},{"$f":"SUM(F42:F45)","v":0}]
[]
[]
[]
[]
[]
[null,null,{"$f":"$C$2","v":"PCC Exol S.A."}]
[null,"zakończone","Suplement nr 3"]
[]
[null,null,"Data",null,"Czynności po stronie urzędu","Czynności po stronie emitenta"]
[null,null,null,null,"(w dniach roboczych)"]
[null,null,"2023-03-21","wniosek"]
[null,null,"2023-03-23",null,2]
[]
[]
[null,null,"Razem",null,{"$f":"SUM(E57:E60)","v":2},{"$f":"SUM(F57:F60)","v":0}]
[]
[]
[]
[null,null,{"$f":"$C$2","v":"PCC Exol S.A."}]
[null,"zakończone","Suplement nr 4"]
[]
[null,null,"Data",null,"Czynności po stronie urzędu","Czynności po stronie emitenta"]
[null,null,null,null,"(w dniach roboczych)"]
[null,null,"2023-05-17","wniosek"]
[null,null,"2023-05-23",null,4]
[]
[]
[null,null,"Razem",null,{"$f":"SUM(E70:E73)","v":4},{"$f":"SUM(F70:F73)","v":0}]

{"sheet":"Komex SA","index":71,"n_rows":34,"n_cols":6,"rows_kept":34,"cut":false,"hidden":false,"merged":[[5,2,6,2],[6,4,6,5],[27,2,28,2],[28,4,28,5]]}
["Spis treści"]
[null,null,"Komex SA"]
["PROSPEKT","umorzone","Prospekt"]
[]
["410.13.2022"]
[null,null,"Data",null,"Czynności po stronie urzędu","Czynności po stronie emitenta"]
[null,null,null,null,"(w dniach roboczych)"]
[null,null,"2022-03-31","wniosek"]
[null,null,"2022-04-29",null,20]
[null,null,"2022-05-20",null,null,14]
[null,null,"2022-06-03",null,10]
[null,null,"2022-06-28",null,null,16]
[null,null,"2022-07-07",null,7]
[null,null,"2023-09-26","decyzja o umorzeniu"]
[]
[]
[]
[]
[]
[]
[null,null,"Razem",null,{"$f":"SUM(E8:E20)","v":37},{"$f":"SUM(F8:F20)","v":30}]
[]
[]
[]
["SUPLEMENTY",null,{"$f":"$C$2","v":"Komex SA"}]
[null,"      ","Suplement nr 1"]
[]
[null,null,"Data",null,"Czynności po stronie urzędu","Czynności po stronie emitenta"]
[null,null,null,null,"(w dniach roboczych)"]
[null,null,null,"wniosek"]
[]
[]
[]
[null,null,"Razem",null,{"$f":"SUM(E30:E33)","v":0},{"$f":"SUM(F30:F33)","v":0}]

{"sheet":"Dr Irena Eris S.A.","index":72,"n_rows":36,"n_cols":6,"rows_kept":36,"cut":false,"hidden":false,"merged":[[5,2,6,2],[6,4,6,5],[29,2,30,2],[30,4,30,5]]}
["Spis treści"]
[null,null,"Dr Irena Eris S.A."]
["PROSPEKT","zakończone","Prospekt"]
[]
["410.12.2022"]
[null,null,"Data",null,"Czynności po stronie urzędu","Czynności po stronie emitenta"]
[null,null,null,null,"(w dniach roboczych)"]
[null,null,"2022-03-29","wniosek"]
[null,null,"2022-04-27",null,20]
[null,null,"2022-05-10",null,null,8]
[null,null,"2022-05-23",null,9]
[null,null,"2022-05-30",null,null,5]
[null,null,"2022-06-13",null,10]
[null,null,"2023-04-26",null,null,220]
[null,null,"2023-05-11",null,9]
[null,null,"2023-05-19",null,null,6]
[null,null,"2023-06-01",null,9]
[null,null,"2023-06-16",null,null,10]
[null,null,"2023-06-19","decyzja",1]
[]
[]
[]
[null,null,"Razem",null,{"$f":"SUM(E8:E22)","v":58},{"$f":"SUM(F8:F22)","v":249}]
[]
[]
[]
["SUPLEMENTY",null,{"$f":"$C$2","v":"Dr Irena Eris S.A."}]
[null,"      ","Suplement nr 1"]
[]
[null,null,"Data",null,"Czynności po stronie urzędu","Czynności po stronie emitenta"]
[null,null,null,null,"(w dniach roboczych)"]
[null,null,null,"wniosek"]
[]
[]
[]
[null,null,"Razem",null,{"$f":"SUM(E32:E35)","v":0},{"$f":"SUM(F32:F35)","v":0}]

{"sheet":"Bioceltix","index":73,"n_rows":33,"n_cols":6,"rows_kept":33,"cut":false,"hidden":false,"merged":[[5,2,6,2],[6,4,6,5],[26,2,27,2],[27,4,27,5]]}
["Spis treści"]
[null,null,"Bioceltix"]
["PROSPEKT","zakończone","Prospekt"]
[]
["410.10.2022"]
[null,null,"Data",null,"Czynności po stronie urzędu","Czynności po stronie emitenta"]
[null,null,null,null,"(w dniach roboczych)"]
[null,null,null,"wniosek"]
[null,null,"2022-03-25"]
[null,null,"2022-04-25",null,20]
[null,null,"2022-05-06",null,null,8]
[null,null,"2022-05-20",null,10]
[null,null,"2022-06-03",null,null,10]
[null,null,"2022-06-20",null,10]
[null,null,"2022-06-28",null,null,6]
[null,null,"2022-07-11",null,9]
[null,null,"2022-07-18",null,null,5]
[null,null,"2022-07-28","decyzja",8]
[]
[null,null,"Razem",null,{"$f":"SUM(E8:E19)","v":57},{"$f":"SUM(F8:F19)","v":29}]
[]
[]
[]
["SUPLEMENTY",null,{"$f":"$C$2","v":"Bioceltix"}]
[null,"      ","Suplement nr 1"]
[]
[null,null,"Data",null,"Czynności po stronie urzędu","Czynności po stronie emitenta"]
[null,null,null,null,"(w dniach roboczych)"]
[null,null,null,"wniosek"]
[]
[]
[]
[null,null,"Razem",null,{"$f":"SUM(E29:E32)","v":0},{"$f":"SUM(F29:F32)","v":0}]

{"sheet":"DB Energy S.A.","index":74,"n_rows":63,"n_cols":8,"rows_kept":63,"cut":false,"hidden":false,"merged":[[5,2,6,2],[6,4,6,5],[42,2,43,2],[43,4,43,5],[57,2,58,2],[58,4,58,5]]}
["Spis treści"]
[null,null,"DB Energy S.A."]
["PROSPEKT","zakończone","Prospekt"]
[]
["410.9.2022"]
[null,null,"Data",null,"Czynności po stronie urzędu","Czynności po stronie emitenta"]
[null,null,null,null,"(w dniach roboczych)"]
[null,null,"2022-03-21","wniosek"]
[null,null,"2022-04-19",null,20]
[null,null,"2022-06-03",null,null,32]
[null,null,"2022-06-20",null,10]
[null,null,"2022-07-04",null,null,10]
[null,null,"2022-07-18",null,10]
[null,null,"2022-08-10",null,null,17]
[null,null,"2022-08-24",null,9]
[null,null,"2022-09-26",null,null,23]
[null,null,"2022-10-10",null,10]
[null,null,"2022-10-18",null,null,6]
[null,null,"2022-11-02",null,10]
[null,null,"2022-11-07",null,2]
[null,null,"2022-11-09",null,null,3]
[null,null,"2022-11-24",null,10]
[null,null,"2022-12-02",null,null,6]
[null,null,"2022-12-15",null,9]
[null,null,"2023-01-03",null,null,12]
[null,null,"2023-01-18",null,10]
[null,null,"2023-01-20",null,null,2]
[null,null,"2023-01-31",null,7]
[null,null,"2023-02-03",null,null,3]
[null,null,"2023-02-09",null,4]
[null,null,"2023-02-16",null,null,5]
[null,null,"2023-02-21","aktualizacja",null,3]
[null,null,"2023-02-27","decyzja",4]
[]
[]
[null,null,"Razem",null,{"$f":"SUM(E8:E35)","v":115},{"$f":"SUM(F8:F35)","v":122}]
[]
[]
[]
["SUPLEMENTY",null,{"$f":"$C$2","v":"DB Energy S.A."}]
[null,"zakończone","Suplement nr 1"]
[]
[null,null,"Data",null,"Czynności po stronie urzędu","Czynności po stronie emitenta"]
[null,null,null,null,"(w dniach roboczych)"]
[null,null,"2023-03-02","wniosek"]
[null,null,"2023-03-06","aktualizacja"]
[null,null,"2023-03-07","aktualizacja"]
[null,null,"2023-03-09",null,2]
[null,null,"2023-03-09",null,null,0,null,0]
[null,null,"2023-03-13","decyzja",2]
[]
[null,null,"Razem",null,{"$f":"SUM(E45:E51)","v":4},{"$f":"SUM(F45:F51)","v":0}]
[]
[]
[null,null,{"$f":"$C$2","v":"DB Energy S.A."}]
[null,"zakończone","Suplement nr 2"]
[]
[null,null,"Data",null,"Czynności po stronie urzędu","Czynności po stronie emitenta"]
[null,null,null,null,"(w dniach roboczych)"]
[null,null,"2023-03-15","wniosek"]
[null,null,"2023-03-16","decyzja",1]
[]
[null,null,"Razem",null,{"$f":"SUM(E60:E62)","v":1},{"$f":"SUM(F60:F62)","v":0}]

{"sheet":"Ipopema Benefit 3 FIZ","index":75,"n_rows":87,"n_cols":6,"rows_kept":87,"cut":false,"hidden":false,"merged":[[82,2,83,2],[83,4,83,5],[69,2,70,2],[70,4,70,5],[54,2,55,2],[55,4,55,5],[5,2,6,2],[6,4,6,5],[27,2,28,2],[28,4,28,5],[39,2,40,2],[40,4,40,5]]}
["Spis treści"]
[null,null,"Ipopema Benefit 3 FIZ"]
["PROSPEKT","zakończone","Prospekt certyfikatów inwestycyjnych"]
[]
["410.7.2022"]
[".",null,"Data",null,"Czynności po stronie urzędu","Czynności po stronie emitenta"]
[null,null,null,null,"(w dniach roboczych)"]
[null,null,"2022-03-03","wniosek"]
[null,null,"2022-03-17",null,10]
[null,null,"2022-04-05",null,null,13]
[null,null,"2022-04-20",null,10]
[null,null,"2022-05-12",null,null,16]
[null,null,"2022-05-26",null,10]
[null,null,"2022-06-13",null,null,14]
[null,null,"2022-07-06",null,null,16]
[null,null,"2022-07-15","decyzja",7]
[]
[]
[]
[]
[null,null,"Razem",null,{"$f":"SUM(E8:E20)","v":37},{"$f":"SUM(F8:F20)","v":59}]
[]
[]
[]
["SUPLEMENTY",null,{"$f":"$C$2","v":"Ipopema Benefit 3 FIZ"}]
[null,"zakończone","Suplement nr 1"]
[]
[null,null,"Data",null,"Czynności po stronie urzędu","Czynności po stronie emitenta"]
[null,null,null,null,"(w dniach roboczych)"]
[null,null,"2022-08-10","wniosek"]
[null,null,"2022-08-12","decyzja",2]
[]
[]
[null,null,"Razem",null,{"$f":"SUM(E30:E33)","v":2},{"$f":"SUM(F30:F33)","v":0}]
[]
[]
[null,null,{"$f":"$C$2","v":"Ipopema Benefit 3 FIZ"}]
[null,"zakończone","Suplement nr 2"]
[]
[null,null,"Data",null,"Czynności po stronie urzędu","Czynności po stronie emitenta"]
[null,null,null,null,"(w dniach roboczych)"]
[null,null,"2022-10-27","wniosek"]
[null,null,"2022-11-03","decyzja",4]
[]
[]
[null,null,"Razem",null,{"$f":"SUM(E42:E45)","v":4},{"$f":"SUM(F42:F45)","v":0}]
[]
[]
[]
[]
[]
[null,null,{"$f":"$C$2","v":"Ipopema Benefit 3 FIZ"}]
[null,"zakończone","Suplement nr 3"]
[]
[null,null,"Data",null,"Czynności po stronie urzędu","Czynności po stronie emitenta"]
[null,null,null,null,"(w dniach roboczych)"]
[null,null,"2023-01-27","wniosek"]
[null,null,"2023-01-30",null,1]
[null,null,"2023-02-02",null,null,3]
[null,null,"2023-02-03","decyzja",1]
[null,null,"Razem",null,{"$f":"SUM(E57:E60)","v":2},{"$f":"SUM(F57:F60)","v":3}]
[]
[]
[]
[]
[]
[null,null,{"$f":"$C$2","v":"Ipopema Benefit 3 FIZ"}]
[null,"zakończone","Suplement nr 4"]
[]
[null,null,"Data",null,"Czynności po stronie urzędu","Czynności po stronie emitenta"]
[null,null,null,null,"(w dniach roboczych)"]
[null,null,"2023-04-07","wniosek"]
[null,null,"2023-04-13","decyzja",3]
[null,null,"Razem",null,{"$f":"SUM(E72:E73)","v":3},{"$f":"SUM(F72:F73)","v":0}]
[]
[]
[]
[]
[]
[null,null,{"$f":"$C$2","v":"Ipopema Benefit 3 FIZ"}]
[null,"zakończone","Suplement nr 5"]
[]
[null,null,"Data",null,"Czynności po stronie urzędu","Czynności po stronie emitenta"]
[null,null,null,null,"(w dniach roboczych)"]
[null,null,"2023-04-27","wniosek"]
[null,null,"2023-05-05","decyzja",4]
[null,null,"Razem",null,{"$f":"SUM(E85:E86)","v":4},{"$f":"SUM(F85:F86)","v":0}]

{"sheet":"PragmaGO 2022 PONZ","index":76,"n_rows":21,"n_cols":6,"rows_kept":21,"cut":false,"hidden":false,"merged":[[5,2,6,2],[6,4,6,5]]}
["Spis treści"]
[null,null,"PragmaGO SA - prospekt obligacji niezabezpieczonych"]
["PROSPEKT","zakończone","Prospekt podstawowy"]
[]
["410.30.2022"]
[null,null,"Data",null,"Czynności po stronie urzędu","Czynności po stronie emitenta"]
[null,null,null,null,"(w dniach roboczych)"]
[null,null,"2022-06-21","wniosek"]
[null,null,"2022-07-05",null,10]
[null,null,"2022-07-06",null,null,1]
[null,null,"2022-07-13",null,null,5]
[null,null,"2022-07-14",null,null,1]
[null,null,"2022-07-15","decyzja",1]
[]
[]
[]
[]
[]
[]
[]
[null,null,"Razem",null,{"$f":"SUM(E8:E20)","v":11},{"$f":"SUM(F8:F20)","v":7}]

{"sheet":"PragmaGO obligacje 2022 POZ","index":77,"n_rows":76,"n_cols":6,"rows_kept":76,"cut":false,"hidden":false,"merged":[[5,2,6,2],[6,4,6,5],[47,2,48,2],[48,4,48,5],[69,2,70,2],[70,4,70,5],[58,2,59,2],[59,4,59,5],[33,2,34,2],[34,4,34,5]]}
["Spis treści"]
[null,null,"PragmaGO SA -  prospekt obligacji zabezpieczonych"]
["PROSPEKT","zakończone","Prospekt podstawowy"]
[]
["410.4.2022-2"]
[null,null,"Data",null,"Czynności po stronie urzędu","Czynności po stronie emitenta"]
[null,null,null,null,"(w dniach roboczych)"]
[null,null,"2022-02-18","wniosek"]
[null,null,"2022-02-24",null,null,4]
[null,null,"2022-03-10",null,10]
[null,null,"2022-03-24",null,null,10]
[null,null,"2022-04-06",null,9]
[null,null,"2022-04-21",null,null,10]
[null,null,"2022-05-06",null,10]
[null,null,"2022-05-23",null,null,11]
[null,null,"2022-06-06",null,10]
[null,null,"2022-06-15",null,null,7]
[null,null,"2022-06-30",null,10]
[null,null,"2022-07-08",null,null,6]
[null,null,"2022-07-12",null,2]
[null,null,"2022-07-13",null,null,1]
[null,null,"2022-07-14",null,null,1]
[null,null,"2022-07-15","decyzja",1]
[]
[null,null,"Razem",null,{"$f":"SUM(E8:E24)","v":52},{"$f":"SUM(F8:F24)","v":50}]
[]
[]
["SUPLEMENTY"]
[]
[]
[null,null,{"$f":"$C$2","v":"PragmaGO SA -  prospekt obligacji zabezpieczonych"}]
[null,"zakończone","Suplement nr 1 do prospektu obligacji zabezpieczonych"]
[]
[null,null,"Data",null,"Czynności po stronie urzędu","Czynności po stronie emitenta"]
[null,null,null,null,"(w dniach roboczych)"]
[null,null,"2022-09-23","wniosek"]
[null,null,"2022-09-28","decyzja",3]
[]
[]
[null,null,"Razem",null,{"$f":"SUM(E36:E39)","v":3},{"$f":"SUM(F36:F39)","v":0}]
[]
[]
[]
[]
["SUPLEMENTY",null,{"$f":"$C$2","v":"PragmaGO SA -  prospekt obligacji zabezpieczonych"}]
[null,"zakończone","Suplement nr 2 do prospektu obligacji zabezpieczonych"]
[]
[null,null,"Data",null,"Czynności po stronie urzędu","Czynności po stronie emitenta"]
[null,null,null,null,"(w dniach roboczych)"]
[null,null,"2022-10-03","wniosek"]
[null,null,"2022-10-07","decyzja",4]
[]
[]
[null,null,"Razem",null,{"$f":"SUM(E50:E53)","v":4},{"$f":"SUM(F50:F53)","v":0}]
[]
[null,null,{"$f":"$C$2","v":"PragmaGO SA -  prospekt obligacji zabezpieczonych"}]
[null,"zakończone","Suplement nr 3 do prospektu obligacji zabezpieczonych"]
[]
[null,null,"Data",null,"Czynności po stronie urzędu","Czynności po stronie emitenta"]
[null,null,null,null,"(w dniach roboczych)"]
[null,null,"2022-12-20","wniosek"]
[null,null,"2022-12-23","decyzja",3]
[]
[]
[null,null,"Razem",null,{"$f":"SUM(E61:E64)","v":3},{"$f":"SUM(F61:F64)","v":0}]
[]
[null,null,{"$f":"$C$2","v":"PragmaGO SA -  prospekt obligacji zabezpieczonych"}]
[null,"zakończone","Suplement nr 4 do prospektu obligacji zabezpieczonych"]
[]
[null,null,"Data",null,"Czynności po stronie urzędu","Czynności po stronie emitenta"]
[null,null,null,null,"(w dniach roboczych)"]
[null,null,"2023-02-24","wniosek"]
[null,null,"2023-03-01","decyzja",3]
[]
[]
[null,null,"Razem",null,{"$f":"SUM(E72:E75)","v":3},{"$f":"SUM(F72:F75)","v":0}]

{"sheet":"Beta ETF WIGtech (2022)","index":78,"n_rows":34,"n_cols":6,"rows_kept":34,"cut":false,"hidden":false,"merged":[[5,2,6,2],[6,4,6,5],[27,2,28,2],[28,4,28,5]]}
["Spis treści"]
[null,null,"Beta ETF WIGtech Portfelowy FIZ"]
["PROSPEKT","zakończone","Prospekt"]
[]
["410.6.2022"]
[null,null,"Data",null,"Czynności po stronie urzędu","Czynności po stronie emitenta"]
[null,null,null,null,"(w dniach roboczych)"]
[null,null,"2022-02-16","wniosek"]
[null,null,"2022-03-01",null,9]
[null,null,"2022-03-08",null,null,5]
[null,null,"2022-03-10","decyzja",2]
[]
[]
[]
[]
[]
[]
[]
[]
[]
[null,null,"Razem",null,{"$f":"SUM(E8:E20)","v":11},{"$f":"SUM(F8:F20)","v":5}]
[]
[]
[]
["SUPLEMENTY",null,{"$f":"$C$2","v":"Beta ETF WIGtech Portfelowy FIZ"}]
[null,"      ","Suplement nr 1"]
[]
[null,null,"Data",null,"Czynności po stronie urzędu","Czynności po stronie emitenta"]
[null,null,null,null,"(w dniach roboczych)"]
[null,null,null,"wniosek"]
[]
[]
[]
[null,null,"Razem",null,{"$f":"SUM(E30:E33)","v":0},{"$f":"SUM(F30:F33)","v":0}]

{"sheet":"ExpertSender SA","index":79,"n_rows":34,"n_cols":6,"rows_kept":34,"cut":false,"hidden":false,"merged":[[5,2,6,2],[6,4,6,5],[27,2,28,2],[28,4,28,5]]}
["Spis treści"]
[null,null,"ExpertSender SA"]
["PROSPEKT","zawieszone","Prospekt"]
[]
["410.5.2022"]
[null,null,"Data",null,"Czynności po stronie urzędu","Czynności po stronie emitenta"]
[null,null,null,null,"(w dniach roboczych)"]
[null,null,"2022-02-08","wniosek"]
[null,null,"2022-03-08",null,20]
[null,null,"2022-03-22",null,null,10]
[null,null,"2022-04-05",null,10]
[null,null,"2022-04-25",null,null,13]
[null,null,"2022-05-09",null,9]
[null,null,"2022-05-26",null,null,13]
[null,null,"2022-06-07",null,8]
[]
[]
[]
[]
[]
[null,null,"Razem",null,{"$f":"SUM(E8:E20)","v":47},{"$f":"SUM(F8:F20)","v":36}]
[]
[]
[]
["SUPLEMENTY",null,{"$f":"$C$2","v":"ExpertSender SA"}]
[null,"      ","Suplement nr 1"]
[]
[null,null,"Data",null,"Czynności po stronie urzędu","Czynności po stronie emitenta"]
[null,null,null,null,"(w dniach roboczych)"]
[null,null,null,"wniosek"]
[]
[]
[]
[null,null,"Razem",null,{"$f":"SUM(E30:E33)","v":0},{"$f":"SUM(F30:F33)","v":0}]

{"sheet":"FDK Rentier FIZ","index":80,"n_rows":190,"n_cols":6,"rows_kept":190,"cut":false,"hidden":false,"merged":[[183,2,184,2],[184,4,184,5],[68,2,69,2],[69,4,69,5],[82,2,83,2],[83,4,83,5],[139,2,140,2],[140,4,140,5],[124,2,125,2],[125,4,125,5],[169,2,170,2],[170,4,170,5],[156,2,157,2],[157,4,157,5],[5,2,6,2],[6,4,6,5],[27,2,28,2],[28,4,28,5],[40,2,41,2],[41,4,41,5],[54,2,55,2],[55,4,55,5],[110,2,111,2],[111,4,111,5],[96,2,97,2],[97,4,97,5]]}
["Spis treści"]
[null,null,"Fundusz Długu Korporacyjnego Rentier FIZ"]
["PROSPEKT","zakończone","Prospekt"]
[]
["410.2.2022"]
[null,null,"Data",null,"Czynności po stronie urzędu","Czynności po stronie emitenta"]
[null,null,null,null,"(w dniach roboczych)"]
[null,null,"2022-02-02","wniosek"]
[null,null,"2022-02-16",null,10]
[null,null,"2022-03-02",null,null,10]
[null,null,"2022-03-10",null,6]
[null,null,"2022-03-24",null,null,10]
[null,null,"2022-03-28",null,2]
[null,null,"2022-04-07",null,null,8]
[null,null,"2022-04-21",null,9]
[null,null,"2022-04-29",null,null,6]
[null,null,"2022-05-10",null,6]
[null,null,"2022-06-01",null,null,16]
[null,null,"2022-06-10","decyzja",7]
[]
[null,null,"Razem",null,{"$f":"SUM(E8:E20)","v":40},{"$f":"SUM(F8:F20)","v":50}]
[]
[]
[]
["SUPLEMENTY",null,{"$f":"$C$2","v":"Fundusz Długu Korporacyjnego Rentier FIZ"}]
[null,"zakończone","Suplement nr 1"]
[]
[null,null,"Data",null,"Czynności po stronie urzędu","Czynności po stronie emitenta"]
[null,null,null,null,"(w dniach roboczych)"]
[null,null,"2022-08-05","wniosek"]
[null,null,"2022-08-10","decyzja",3]
[]
[]
[null,null,"Razem",null,{"$f":"SUM(E30:E33)","v":3},{"$f":"SUM(F30:F33)","v":0}]
[]
[]
[]
[null,null,{"$f":"$C$2","v":"Fundusz Długu Korporacyjnego Rentier FIZ"}]
[null,"zakończone","Suplement nr 2"]
[]
[null,null,"Data",null,"Czynności po stronie urzędu","Czynności po stronie emitenta"]
[null,null,null,null,"(w dniach roboczych)"]
[null,null,"2022-08-29","wniosek"]
[null,null,"2022-09-01","decyzja",3]
[]
[]
[null,null,"Razem",null,{"$f":"SUM(E43:E46)","v":3},{"$f":"SUM(F43:F46)","v":0}]
[]
[]
[]
[]
["SUPLEMENTY",null,{"$f":"$C$2","v":"Fundusz Długu Korporacyjnego Rentier FIZ"}]
[null,"zakończone","Suplement nr 3"]
[]
[null,null,"Data",null,"Czynności po stronie urzędu","Czynności po stronie emitenta"]
[null,null,null,null,"(w dniach roboczych)"]
[null,null,"2022-10-03","wniosek"]
[null,null,"2022-10-10","decyzja",5]
[]
[]
[null,null,"Razem",null,{"$f":"SUM(E57:E60)","v":5},{"$f":"SUM(F57:F60)","v":0}]
[]
[]
[]
[]
["SUPLEMENTY",null,{"$f":"$C$2","v":"Fundusz Długu Korporacyjnego Rentier FIZ"}]
[null,"zakończone","Suplement nr 4"]
[]
[null,null,"Data",null,"Czynności po stronie urzędu","Czynności po stronie emitenta"]
[null,null,null,null,"(w dniach roboczych)"]
[null,null,"2022-10-06","wniosek"]
[null,null,"2022-10-12","aktualizacja"]
[null,null,"2022-10-13","decyzja",1]
[]
[null,null,"Razem",null,{"$f":"SUM(E71:E74)","v":1},{"$f":"SUM(F71:F74)","v":0}]
[]
[]
[]
[]
["SUPLEMENTY",null,{"$f":"$C$2","v":"Fundusz Długu Korporacyjnego Rentier FIZ"}]
[null,"zakończone","Suplement nr 5"]
[]
[null,null,"Data",null,"Czynności po stronie urzędu","Czynności po stronie emitenta"]
[null,null,null,null,"(w dniach roboczych)"]
[null,null,"2022-10-24","wniosek"]
[null,null,"2022-10-26","decyzja",2]
[]
[]
[null,null,"Razem",null,{"$f":"SUM(E85:E88)","v":2},{"$f":"SUM(F85:F88)","v":0}]
[]
[]
[]
[]
["SUPLEMENTY",null,{"$f":"$C$2","v":"Fundusz Długu Korporacyjnego Rentier FIZ"}]
[null,"zakończone","Suplement nr 6"]
[]
[null,null,"Data",null,"Czynności po stronie urzędu","Czynności po stronie emitenta"]
[null,null,null,null,"(w dniach roboczych)"]
[null,null,"2022-11-07","wniosek"]
[null,null,"2022-11-10","decyzja",3]
[]
[]
[null,null,"Razem",null,{"$f":"SUM(E99:E102)","v":3},{"$f":"SUM(F99:F102)","v":0}]
[]
[]
[]
[]
["SUPLEMENTY",null,{"$f":"$C$2","v":"Fundusz Długu Korporacyjnego Rentier FIZ"}]
[null,"zakończone","Suplement nr 7"]
[]
[null,null,"Data",null,"Czynności po stronie urzędu","Czynności po stronie emitenta"]
[null,null,null,null,"(w dniach roboczych)"]
[null,null,"2022-11-16","wniosek"]
[null,null,"2022-11-17","decyzja",1]
[]
[]
[null,null,"Razem",null,{"$f":"SUM(E113:E116)","v":1},{"$f":"SUM(F113:F116)","v":0}]
[]
[]
[]
[]
["SUPLEMENTY",null,{"$f":"$C$2","v":"Fundusz Długu Korporacyjnego Rentier FIZ"}]
[null,"zakończone","Suplement nr 8"]
[]
[null,null,"Data",null,"Czynności po stronie urzędu","Czynności po stronie emitenta"]
[null,null,null,null,"(w dniach roboczych)"]
[null,null,"2022-11-24","wniosek"]
[null,null,"2022-11-25",null,1]
[null,null,"2022-11-29",null,null,2]
[null,null,"2022-12-01","decyzja",2]
[]
[null,null,"Razem",null,{"$f":"SUM(E127:E131)","v":3},{"$f":"SUM(F127:F131)","v":2}]
[]
[]
[]
[]
["SUPLEMENTY",null,{"$f":"$C$2","v":"Fundusz Długu Korporacyjnego Rentier FIZ"}]
[null,"zakończone","Suplement nr 9"]
[]
[null,null,"Data",null,"Czynności po stronie urzędu","Czynności po stronie emitenta"]
[null,null,null,null,"(w dniach roboczych)"]
[null,null,"2022-12-15","wniosek"]
[null,null,"2022-12-22",null,5]
[null,null,"2022-12-28",null,null,3]
[null,null,"2023-01-02",null,3]
[null,null,"2023-01-04",null,null,2]
[null,null,"2023-01-05",null,1]
[]
[null,null,"Razem",null,{"$f":"SUM(E142:E148)","v":9},{"$f":"SUM(F142:F148)","v":5}]
[]
[]
[]
[]
["SUPLEMENTY",null,{"$f":"$C$2","v":"Fundusz Długu Korporacyjnego Rentier FIZ"}]
[null,"zakończone","Suplement nr 10"]
[]
[null,null,"Data",null,"Czynności po stronie urzędu","Czynności po stronie emitenta"]
[null,null,null,null,"(w dniach roboczych)"]
[null,null,"2023-02-09","wniosek"]
[null,null,"2023-02-13","decyzja",2]
[]
[null,null,"Razem",null,{"$f":"SUM(E159:E161)","v":2},{"$f":"SUM(F159:F161)","v":0}]
[]
[]
[]
[]
["SUPLEMENTY",null,{"$f":"$C$2","v":"Fundusz Długu Korporacyjnego Rentier FIZ"}]
[null,"zakończone","Suplement nr 11"]
[]
[null,null,"Data",null,"Czynności po stronie urzędu","Czynności po stronie emitenta"]
[null,null,null,null,"(w dniach roboczych)"]
[null,null,"2023-04-13","wniosek"]
[null,null,"2023-04-17","decyzja",2]
[]
[]
[null,null,"Razem",null,{"$f":"SUM(E172:E175)","v":2},{"$f":"SUM(F172:F175)","v":0}]
[]
[]
[]
[]
["SUPLEMENTY",null,{"$f":"$C$2","v":"Fundusz Długu Korporacyjnego Rentier FIZ"}]
[null,"zakończone","Suplement nr 12"]
[]
[null,null,"Data",null,"Czynności po stronie urzędu","Czynności po stronie emitenta"]
[null,null,null,null,"(w dniach roboczych)"]
[null,null,"2023-05-05","wniosek"]
[null,null,"2023-05-09",null,2]
[]
[]
[null,null,"Razem",null,{"$f":"SUM(E186:E189)","v":2},{"$f":"SUM(F186:F189)","v":0}]

{"sheet":"T-Bull SA","index":81,"n_rows":46,"n_cols":6,"rows_kept":46,"cut":false,"hidden":false,"merged":[[5,2,6,2],[6,4,6,5],[40,2,41,2],[41,4,41,5]]}
["Spis treści"]
[null,null,"T-Bull SA"]
["PROSPEKT","zakończone","Prospekt UE na rzecz odbudowy"]
[]
["410.1.2022"]
[null,null,"Data",null,"Czynności po stronie urzędu","Czynności po stronie emitenta"]
[null,null,null,null,"(w dniach roboczych)"]
[null,null,"2022-01-20","wniosek"]
[null,null,"2022-01-28",null,{"$f":"PracaKNF(C8,C9)","v":6}]
[null,null,"2022-03-07",null,null,{"$f":"PracaKNF(C9,C10)","v":26}]
[null,null,"2022-03-16",null,7]
[null,null,"2022-04-04",null,null,13]
[null,null,"2022-04-13",null,7]
[null,null,"2022-04-28",null,null,10]
[null,null,"2022-05-09",null,6]
[null,null,"2022-05-25",null,null,13]
[null,null,"2022-06-03",null,7]
[null,null,"2022-06-20",null,null,10]
[null,null,"2022-06-24",null,4]
[null,null,"2022-08-19",null,null,39]
[null,null,"2022-08-30",null,7]
[null,null,"2022-09-14",null,null,11]
[null,null,"2022-09-16",null,null,2]
[null,null,"2022-09-23",null,5]
[null,null,"2022-10-11",null,null,12]
[null,null,"2022-10-19",null,6]
[null,null,"2022-10-28",null,null,7]
[null,null,"2022-11-08",null,6]
[null,null,"2022-11-24",null,null,11]
[null,null,"2022-12-01",null,5]
[null,null,"2022-12-13",null,null,8]
[null,null,"2022-12-16","decyzja",3]
[null,null,null,null,0]
[null,null,"Razem",null,{"$f":"SUM(E8:E33)","v":69},{"$f":"SUM(F8:F33)","v":162}]
[]
[]
[]
["SUPLEMENTY",null,{"$f":"$C$2","v":"T-Bull SA"}]
[null,"zakończone","Suplement nr 1 do prospektu"]
[]
[null,null,"Data",null,"Czynności po stronie urzędu","Czynności po stronie emitenta"]
[null,null,null,null,"(w dniach roboczych)"]
[null,null,"2023-09-04","wniosek"]
[null,null,"2023-09-08","decyzja",4]
[]
[null,null,"Razem",null,{"$f":"SUM(E43:E45)","v":4},{"$f":"SUM(F43:F45)","v":0}]

{"sheet":"Event Horizon SA","index":82,"n_rows":25,"n_cols":6,"rows_kept":25,"cut":false,"hidden":false,"merged":[[5,2,6,2],[6,4,6,5]]}
["Spis treści"]
[null,null,"Event Horizon SA"]
["PROSPEKT","zawieszone","Prospekt"]
[]
["410.53.2021"]
[null,null,"Data",null,"Czynności po stronie urzędu","Czynności po stronie emitenta"]
[null,null,null,null,"(w dniach roboczych)"]
[null,null,"2021-12-23","wniosek"]
[null,null,"2022-01-21",null,{"$f":"PracaKNF(C8,C9)","v":20}]
[null,null,"2022-02-03",null,null,{"$f":"PracaKNF(C9,C10)","v":9}]
[null,null,"2022-02-17",null,10]
[null,null,"2022-03-02",null,null,10]
[null,null,"2022-03-16",null,10]
[null,null,"2022-03-29",null,null,9]
[null,null,"2022-04-12",null,10]
[null,null,"2022-04-15",null,null,3]
[null,null,"2022-04-29",null,9]
[null,null,"2022-05-04",null,null,2]
[null,null,"2022-05-16",null,8]
[null,null,"2022-05-30",null,null,10]
[null,null,"2022-06-09",null,8]
[]
[]
[]
[null,null,"Razem",null,{"$f":"SUM(E8:E24)","v":75},{"$f":"SUM(F8:F24)","v":43}]

{"sheet":"Hub.Tech SA","index":83,"n_rows":50,"n_cols":6,"rows_kept":50,"cut":false,"hidden":false,"merged":[[5,2,6,2],[6,4,6,5],[43,2,44,2],[44,4,44,5]]}
["Spis treści"]
[null,null,"Hub.Tech SA"]
["PROSPEKT","zakończone","Prospekt"]
[]
["410.56.2021"]
[null,null,"Data",null,"Czynności po stronie urzędu","Czynności po stronie emitenta"]
[null,null,null,null,"(w dniach roboczych)"]
[null,null,"2021-12-29","wniosek"]
[null,null,"2022-01-27",null,{"$f":"PracaKNF(C8,C9)","v":20}]
[null,null,"2022-02-17",null,null,{"$f":"PracaKNF(C9,C10)","v":15}]
[null,null,"2022-03-03",null,10]
[null,null,"2022-04-01",null,null,21]
[null,null,"2022-04-04",null,null,1]
[null,null,"2022-04-15",null,9]
[null,null,"2022-04-29",null,null,9]
[null,null,"2022-05-16",null,10]
[null,null,"2022-05-30",null,null,10]
[null,null,"2022-06-13",null,10]
[null,null,"2022-06-24",null,null,8]
[null,null,"2022-07-08",null,10]
[null,null,"2022-07-15",null,null,5]
[null,null,"2022-07-28",null,9]
[null,null,"2022-08-26",null,null,20]
[null,null,"2022-09-09",null,10]
[null,null,"2022-09-15",null,null,4]
[null,null,"2022-09-29",null,10]
[null,null,"2022-10-13",null,null,10]
[null,null,"2022-10-27",null,10]
[null,null,"2022-11-10",null,null,9]
[null,null,"2022-11-25",null,10]
[null,null,"2022-12-09",null,null,10]
[null,null,"2022-12-23",null,10]
[null,null,"2023-03-22","decyzja o umorzeniu"]
[]
[]
[]
[null,null,"Razem",null,{"$f":"SUM(E8:E36)","v":128},{"$f":"SUM(F8:F36)","v":122}]
[]
[]
[]
["SUPLEMENTY",null,{"$f":"$C$2","v":"Hub.Tech SA"}]
[null,"      ","Suplement nr 1"]
[]
[null,null,"Data",null,"Czynności po stronie urzędu","Czynności po stronie emitenta"]
[null,null,null,null,"(w dniach roboczych)"]
[null,null,null,"wniosek"]
[]
[]
[]
[null,null,"Razem",null,{"$f":"SUM(E46:E49)","v":0},{"$f":"SUM(F46:F49)","v":0}]

{"sheet":"Creotech Instruments S.A.","index":84,"n_rows":73,"n_cols":6,"rows_kept":73,"cut":false,"hidden":false,"merged":[[68,2,69,2],[69,4,69,5],[54,2,55,2],[55,4,55,5],[5,2,6,2],[6,4,6,5],[29,2,30,2],[30,4,30,5],[42,2,43,2],[43,4,43,5]]}
["Spis treści"]
[null,null,"Creotech Instruments S.A."]
["PROSPEKT","zakończone","Prospekt akcji"]
[]
["410.55.2021"]
[null,null,"Data",null,"Czynności po stronie urzędu","Czynności po stronie emitenta"]
[null,null,null,null,"(w dniach roboczych)"]
[null,null,"2021-12-27","wniosek"]
[null,null,"2022-01-24",null,19]
[null,null,"2022-02-10",null,null,13]
[null,null,"2022-02-23",null,9]
[null,null,"2022-03-09",null,null,10]
[null,null,"2022-03-22",null,9]
[null,null,"2022-03-28",null,null,4]
[null,null,"2022-04-06",null,7]
[null,null,"2022-04-12",null,null,4]
[null,null,"2022-04-15",null,3]
[null,null,"2022-04-19",null,null,1]
[null,null,"2022-04-21",null,2]
[null,null,"2022-04-22",null,null,1]
[null,null,"2022-04-25","decyzja",1]
[]
[null,null,"Razem",null,{"$f":"SUM(E8:E22)","v":50},{"$f":"SUM(F8:F22)","v":33}]
[]
[]
[]
["SUPLEMENTY",null,{"$f":"$C$2","v":"Creotech Instruments S.A."}]
[null,"zakończone","Suplement nr 1"]
[]
[null,null,"Data",null,"Czynności po stronie urzędu","Czynności po stronie emitenta"]
[null,null,null,null,"(w dniach roboczych)"]
[null,null,"2022-04-28","wniosek"]
[null,null,"2022-05-02",null,2]
[null,null,"2022-05-05",null,null,2]
[null,null,"2022-05-10","decyzja",3]
[null,null,"Razem",null,{"$f":"SUM(E32:E35)","v":5},{"$f":"SUM(F32:F35)","v":2}]
[]
[]
[]
[null,null,{"$f":"$C$2","v":"Creotech Instruments S.A."}]
[null,"zakończone","Suplement nr 2"]
[]
[null,null,"Data",null,"Czynności po stronie urzędu","Czynności po stronie emitenta"]
[null,null,null,null,"(w dniach roboczych)"]
[null,null,"2022-05-18","wniosek"]
[null,null,"2022-05-23","decyzja",3]
[null,null,"Razem",null,{"$f":"SUM(E45:E46)","v":3},{"$f":"SUM(F45:F46)","v":0}]
[]
[]
[]
[]
[null,null,{"$f":"$C$2","v":"Creotech Instruments S.A."}]
[null,"zakończone","Suplement nr 3"]
[]
[null,null,"Data",null,"Czynności po stronie urzędu","Czynności po stronie emitenta"]
[null,null,null,null,"(w dniach roboczych)"]
[null,null,"2022-06-02","wniosek"]
[null,null,"2022-06-03","decyzja",1]
[null,null,"Razem",null,{"$f":"SUM(E57:E58)","v":1},{"$f":"SUM(F57:F58)","v":0}]
[]
[]
[]
[]
[]
[]
[null,null,{"$f":"$C$2","v":"Creotech Instruments S.A."}]
[null,"zakończone","Suplement nr 4"]
[]
[null,null,"Data",null,"Czynności po stronie urzędu","Czynności po stronie emitenta"]
[null,null,null,null,"(w dniach roboczych)"]
[null,null,"2022-06-08","wniosek"]
[null,null,"2022-06-10","decyzja",2]
[null,null,"Razem",null,{"$f":"SUM(E71:E72)","v":2},{"$f":"SUM(F71:F72)","v":0}]

{"sheet":"SimFabric S.A. ","index":85,"n_rows":40,"n_cols":6,"rows_kept":40,"cut":false,"hidden":false,"merged":[[5,2,6,2],[6,4,6,5],[33,2,34,2],[34,4,34,5]]}
["Spis treści"]
[null,null,"SimFabric S.A. "]
["PROSPEKT","zakończone","Prospekt"]
[]
["410.54.2021"]
[null,null,"Data",null,"Czynności po stronie urzędu","Czynności po stronie emitenta"]
[null,null,null,null,"(w dniach roboczych)"]
[null,null,"2021-12-16","wniosek"]
[null,null,"2022-01-12",null,{"$f":"PracaKNF(C8,C9)","v":18}]
[null,null,"2022-01-28",null,null,{"$f":"PracaKNF(C9,C10)","v":12}]
[null,null,"2022-02-10",null,9]
[null,null,"2022-02-28",null,null,12]
[null,null,"2022-03-14",null,10]
[null,null,"2022-04-01",null,null,14]
[null,null,"2022-04-15",null,10]
[null,null,"2022-04-29",null,null,9]
[null,null,"2022-05-13",null,9]
[null,null,"2022-06-08",null,null,18]
[null,null,"2022-06-23",null,10]
[null,null,"2022-07-01",null,null,6]
[null,null,"2022-07-12",null,7]
[null,null,"2022-07-19",null,null,5]
[null,null,"2022-07-27",null,6]
[null,null,"2022-07-28",null,null,1]
[null,null,"2022-07-29","decyzja"]
[]
[null,null,"Razem",null,{"$f":"SUM(E8:E26)","v":79},{"$f":"SUM(F8:F26)","v":77}]
[]
[]
[]
["SUPLEMENTY",null,{"$f":"$C$2","v":"SimFabric S.A. "}]
[null,"      ","Suplement nr 1"]
[]
[null,null,"Data",null,"Czynności po stronie urzędu","Czynności po stronie emitenta"]
[null,null,null,null,"(w dniach roboczych)"]
[null,null,null,"wniosek"]
[]
[]
[]
[null,null,"Razem",null,{"$f":"SUM(E36:E39)","v":0},{"$f":"SUM(F36:F39)","v":0}]

{"sheet":"Millennium Bank Hipoteczny","index":86,"n_rows":34,"n_cols":6,"rows_kept":34,"cut":false,"hidden":false,"merged":[[5,2,6,2],[6,4,6,5],[27,2,28,2],[28,4,28,5]]}
["Spis treści"]
[null,null,"Millennium Bank Hipoteczny S.A."]
["PROSPEKT","zakończone","Prospekt podstawowy listów zastawnych"]
[]
["410.49.2021"]
[null,null,"Data",null,"Czynności po stronie urzędu","Czynności po stronie emitenta"]
[null,null,null,null,"(w dniach roboczych)"]
[null,null,"2021-11-25","wniosek"]
[null,null,"2021-12-22",null,19]
[null,null,"2021-01-05",null,null,10]
[null,null,"2022-01-20",null,10]
[null,null,"2022-02-03",null,null,11]
[null,null,"2022-02-16",null,9]
[null,null,"2022-03-02",null,null,10]
[null,null,"2022-03-16",null,10]
[null,null,"2022-03-30",null,null,10]
[null,null,"2022-04-08",null,7]
[null,null,"2022-04-13",null,null,3]
[null,null,"2022-04-21",null,null,6]
[null,null,"2022-04-29","decyzja",6]
[null,null,"Razem",null,{"$f":"SUM(E8:E20)","v":61},{"$f":"SUM(F8:F20)","v":50}]
[]
[]
[]
["SUPLEMENTY",null,{"$f":"$C$2","v":"Millennium Bank Hipoteczny S.A."}]
[null,"zakończone","Suplement nr 1"]
[]
[null,null,"Data",null,"Czynności po stronie urzędu","Czynności po stronie emitenta"]
[null,null,null,null,"(w dniach roboczych)"]
[null,null,"2022-08-02","wniosek"]
[null,null,"2022-08-05",null,3]
[]
[]
[null,null,"Razem",null,{"$f":"SUM(E30:E33)","v":3},{"$f":"SUM(F30:F33)","v":0}]

{"sheet":"3LP","index":87,"n_rows":52,"n_cols":6,"rows_kept":52,"cut":false,"hidden":false,"merged":[[5,2,6,2],[6,4,6,5],[30,2,31,2],[31,4,31,5],[44,2,45,2],[45,4,45,5]]}
["Spis treści"]
[null,null,"3LP"]
["PROSPEKT","zakończone","Prospekt"]
[]
["410.47.2021"]
[null,null,"Data",null,"Czynności po stronie urzędu","Czynności po stronie emitenta"]
[null,null,null,null,"(w dniach roboczych)"]
[null,null,"2021-11-05","wniosek"]
[null,null,"2021-12-03",null,19]
[null,null,"2021-12-17",null,null,10]
[null,null,"2021-12-29",null,8]
[null,null,"2022-01-11",null,null,8]
[null,null,"2022-01-24",null,9]
[null,null,"2022-02-04",null,null,9]
[null,null,"2022-02-18",null,10]
[null,null,"2022-03-23",null,null,23]
[null,null,"2022-04-04",null,8]
[null,null,"2022-04-14",null,null,8]
[null,null,"2022-04-20",null,3]
[null,null,"2022-04-21",null,null,1]
[null,null,"2022-04-22",null,null,1]
[null,null,"2022-04-25","decyzja",1]
[]
[null,null,"Razem",null,{"$f":"SUM(E8:E23)","v":58},{"$f":"SUM(F8:F23)","v":60}]
[]
[]
[]
["SUPLEMENTY",null,{"$f":"$C$2","v":"3LP"}]
[null,"zakończone","Suplement nr 1"]
[]
[null,null,"Data",null,"Czynności po stronie urzędu","Czynności po stronie emitenta"]
[null,null,null,null,"(w dniach roboczych)"]
[null,null,"2022-04-27","wniosek"]
[null,null,"2022-04-28",null,1]
[null,null,"2022-04-28",null,null,0]
[null,null,"2022-04-29","decyzja",1]
[]
[null,null,"Razem",null,{"$f":"SUM(E33:E37)","v":2},{"$f":"SUM(F33:F37)","v":0}]
[]
[]
[]
[null,null,{"$f":"$C$2","v":"3LP"}]
[null,"zakończone","Suplement nr 2"]
[]
[null,null,"Data",null,"Czynności po stronie urzędu","Czynności po stronie emitenta"]
[null,null,null,null,"(w dniach roboczych)"]
[null,null,"2022-05-17","wniosek"]
[null,null,"2022-05-20",null,3]
[null,null,"2022-05-23",null,null,1]
[null,null,"2022-05-24","decyzja",1]
[]
[null,null,"Razem",null,{"$f":"SUM(E47:E51)","v":4},{"$f":"SUM(F47:F51)","v":1}]

{"sheet":"Scope Fluidics SA","index":88,"n_rows":45,"n_cols":6,"rows_kept":45,"cut":false,"hidden":false,"merged":[[5,2,6,2],[6,4,6,5],[38,2,39,2],[39,4,39,5]]}
["Spis treści"]
[null,null,"Scope Fluidics SA"]
["PROSPEKT","zakończone","Prospekt"]
[]
["410.51.2021"]
[null,null,"Data",null,"Czynności po stronie urzędu","Czynności po stronie emitenta"]
[null,null,null,null,"(w dniach roboczych)"]
[null,null,"2021-11-16","wniosek"]
[null,null,"2021-12-14",null,20]
[null,null,"2021-12-28",null,null,12]
[null,null,"2022-01-12",null,10]
[null,null,"2022-01-26",null,null,10]
[null,null,"2022-02-08",null,9]
[null,null,"2022-03-08",null,null,20]
[null,null,"2022-03-22",null,10]
[null,null,"2022-04-05",null,null,10]
[null,null,"2022-04-19",null,9]
[null,null,"2022-10-13",null,null,124]
[null,null,"2022-10-27",null,10]
[null,null,"2022-11-10",null,null,9]
[null,null,"2022-11-25",null,10]
[null,null,"2022-12-01",null,null,4]
[null,null,"2022-12-02",null,null,1]
[null,null,"2022-12-08",null,4]
[null,null,"2022-12-09",null,null,1]
[null,null,"2022-12-12",null,null,1]
[null,null,"2022-12-20",null,6]
[null,null,"2022-12-30",null,7]
[null,null,"2023-01-03",null,null,2]
[null,null,"2023-01-12","decyzja",6]
[]
[null,null,"Razem",null,{"$f":"SUM(E8:E31)","v":101},{"$f":"SUM(F8:F31)","v":194}]
[]
[]
[]
["SUPLEMENTY",null,{"$f":"$C$2","v":"Scope Fluidics SA"}]
[null,"      ","Suplement nr 1"]
[]
[null,null,"Data",null,"Czynności po stronie urzędu","Czynności po stronie emitenta"]
[null,null,null,null,"(w dniach roboczych)"]
[null,null,null,"wniosek"]
[]
[]
[]
[null,null,"Razem",null,{"$f":"SUM(E41:E44)","v":0},{"$f":"SUM(F41:F44)","v":0}]

{"sheet":"Genomtec SA","index":89,"n_rows":54,"n_cols":6,"rows_kept":54,"cut":false,"hidden":false,"merged":[[5,2,6,2],[6,4,6,5],[47,2,48,2],[48,4,48,5]]}
["Spis treści"]
[null,null,"Genomtec SA"]
["PROSPEKT","zakończone","Prospekt"]
[]
["410.48.2021"]
[null,null,"Data",null,"Czynności po stronie urzędu","Czynności po stronie emitenta"]
[null,null,null,null,"(w dniach roboczych)"]
[null,null,"2021-11-12","wniosek"]
[null,null,"2021-12-10",null,20]
[null,null,"2022-01-05",null,null,18]
[null,null,"2022-01-20",null,10]
[null,null,"2022-02-11",null,null,16]
[null,null,"2022-02-24",null,9]
[null,null,"2022-04-29",null,null,45]
[null,null,"2022-05-16",null,10]
[null,null,"2022-06-08",null,null,17]
[null,null,"2022-06-22",null,9]
[null,null,"2022-07-11",null,null,13]
[null,null,"2022-07-25",null,10]
[null,null,"2022-08-24",null,null,21]
[null,null,"2022-09-07",null,10]
[null,null,"2022-09-23",null,null,12]
[null,null,"2022-10-07",null,10]
[null,null,"2022-10-13",null,null,4]
[null,null,"2022-10-25",null,8]
[null,null,"2022-11-03",null,null,6]
[null,null,"2022-11-09",null,4]
[null,null,"2022-11-15",null,null,3]
[null,null,"2022-11-18",null,{"$f":"C29-C28","v":3}]
[null,null,"2022-11-30",null,null,8]
[null,null,"2022-12-06",null,4]
[null,null,"2022-12-14",null,null,6]
[null,null,"2022-12-21",null,5]
[null,null,"2023-01-05",null,null,10]
[null,null,"2023-01-11",null,4]
[null,null,"2023-01-18",null,null,5]
[null,null,"2023-01-25","decyzja",5]
[]
[]
[]
[null,null,"Razem",null,{"$f":"SUM(E8:E40)","v":121},{"$f":"SUM(F8:F40)","v":184}]
[]
[]
[]
["SUPLEMENTY",null,{"$f":"$C$2","v":"Genomtec SA"}]
[null,"      ","Suplement nr 1"]
[]
[null,null,"Data",null,"Czynności po stronie urzędu","Czynności po stronie emitenta"]
[null,null,null,null,"(w dniach roboczych)"]
[null,null,null,"wniosek"]
[]
[]
[]
[null,null,"Razem",null,{"$f":"SUM(E50:E53)","v":0},{"$f":"SUM(F50:F53)","v":0}]

{"sheet":"EXCELLENCE","index":90,"n_rows":34,"n_cols":6,"rows_kept":34,"cut":false,"hidden":false,"merged":[[5,2,6,2],[6,4,6,5],[27,2,28,2],[28,4,28,5]]}
["Spis treści"]
[null,null,"EXCELLENCE SA"]
["PROSPEKT","zawieszone","Prospekt"]
[]
["410.50.2021"]
[null,null,"Data",null,"Czynności po stronie urzędu","Czynności po stronie emitenta"]
[null,null,null,null,"(w dniach roboczych)"]
[null,null,"2021-11-22","wniosek"]
[null,null,"2021-12-20",null,20]
[null,null,"2022-01-21",null,null,23]
[null,null,"2022-02-04",null,10]
[null,null,"2022-02-23",null,null,13]
[null,null,"2022-03-09",null,10]
[]
[]
[]
[]
[]
[]
[]
[null,null,"Razem",null,{"$f":"SUM(E8:E20)","v":40},{"$f":"SUM(F8:F20)","v":36}]
[]
[]
[]
["SUPLEMENTY",null,{"$f":"$C$2","v":"EXCELLENCE SA"}]
[null,"      ","Suplement nr 1"]
[]
[null,null,"Data",null,"Czynności po stronie urzędu","Czynności po stronie emitenta"]
[null,null,null,null,"(w dniach roboczych)"]
[null,null,null,"wniosek"]
[]
[]
[]
[null,null,"Razem",null,{"$f":"SUM(E30:E33)","v":0},{"$f":"SUM(F30:F33)","v":0}]

{"sheet":"PGF Polska Grupa Fotowolt","index":91,"n_rows":34,"n_cols":6,"rows_kept":34,"cut":false,"hidden":false,"merged":[[5,2,6,2],[6,4,6,5],[27,2,28,2],[28,4,28,5]]}
["Spis treści"]
[null,null,"PGF Polska Grupa Fotowoltaiczna"]
["PROSPEKT","zawieszone","Prospekt"]
[]
["410.49.2021"]
[null,null,"Data",null,"Czynności po stronie urzędu","Czynności po stronie emitenta"]
[null,null,null,null,"(w dniach roboczych)"]
[null,null,"2021-11-03","wniosek"]
[null,null,"2021-11-18",null,10]
[]
[]
[]
[]
[]
[]
[]
[]
[]
[]
[]
[null,null,"Razem",null,{"$f":"SUM(E8:E20)","v":10},{"$f":"SUM(F8:F20)","v":0}]
[]
[]
[]
["SUPLEMENTY",null,{"$f":"$C$2","v":"PGF Polska Grupa Fotowoltaiczna"}]
[null,"      ","Suplement nr 1"]
[]
[null,null,"Data",null,"Czynności po stronie urzędu","Czynności po stronie emitenta"]
[null,null,null,null,"(w dniach roboczych)"]
[null,null,null,"wniosek"]
[]
[]
[]
[null,null,"Razem",null,{"$f":"SUM(E30:E33)","v":0},{"$f":"SUM(F30:F33)","v":0}]

{"sheet":"Novavis Group","index":92,"n_rows":50,"n_cols":6,"rows_kept":50,"cut":false,"hidden":false,"merged":[[5,2,6,2],[6,4,6,5],[43,2,44,2],[44,4,44,5]]}
["Spis treści"]
[null,null,"Novavis Group"]
["PROSPEKT","zakończone","Prospekt"]
[]
["410.45.2021"]
[null,null,"Data",null,"Czynności po stronie urzędu","Czynności po stronie emitenta"]
[null,null,null,null,"(w dniach roboczych)"]
[null,null,"2021-11-03","wniosek"]
[null,null,"2021-11-18",null,10]
[null,null,"2021-11-26",null,null,6]
[null,null,"2021-12-10",null,10]
[null,null,"2021-12-23",null,null,9]
[null,null,"2022-01-03",null,7]
[null,null,"2022-01-05",null,null,2]
[null,null,"2022-01-19",null,9]
[null,null,"2022-02-09",null,null,15]
[null,null,"2022-02-23",null,10]
[null,null,"2022-03-09",null,null,10]
[null,null,"2022-03-22",null,9]
[null,null,"2022-03-30",null,null,6]
[null,null,"2022-04-08",null,7]
[null,null,"2022-04-11",null,null,1]
[null,null,"2022-04-21",null,7]
[null,null,"2022-04-22",null,null,1]
[null,null,"2022-04-28",null,4]
[null,null,"2022-05-05",null,null,5]
[null,null,"2022-05-17",null,8]
[null,null,"2022-05-18",null,null,1]
[null,null,"2022-05-31",null,9]
[null,null,"2022-06-29",null,null,20]
[null,null,"2022-07-12",null,9]
[null,null,"2022-07-15",null,null,3]
[null,null,"2022-07-28",null,9]
[null,null,"2022-07-28",null,null,0]
[null,null,"2022-08-05","decyzja",6]
[]
[null,null,"Razem",null,{"$f":"SUM(E8:E36)","v":114},{"$f":"SUM(F8:F36)","v":79}]
[]
[]
[]
["SUPLEMENTY",null,{"$f":"$C$2","v":"Novavis Group"}]
[null,"      ","Suplement nr 1"]
[]
[null,null,"Data",null,"Czynności po stronie urzędu","Czynności po stronie emitenta"]
[null,null,null,null,"(w dniach roboczych)"]
[null,null,null,"wniosek"]
[]
[]
[]
[null,null,"Razem",null,{"$f":"SUM(E46:E49)","v":0},{"$f":"SUM(F46:F49)","v":0}]

{"sheet":"Pointpack SA","index":93,"n_rows":72,"n_cols":6,"rows_kept":72,"cut":false,"hidden":false,"merged":[[66,2,67,2],[67,4,67,5],[5,2,6,2],[6,4,6,5],[41,2,42,2],[42,4,42,5],[54,2,55,2],[55,4,55,5]]}
["Spis treści"]
[null,null,"Pointpack SA"]
["PROSPEKT","zakończone","Prospekt"]
[]
["410.46.2021"]
[null,null,"Data",null,"Czynności po stronie urzędu","Czynności po stronie emitenta"]
[null,null,null,null,"(w dniach roboczych)"]
[null,null,"2021-10-29","wniosek"]
[null,null,"2021-11-29",null,19]
[null,null,"2021-12-23",null,null,18]
[null,null,"2022-01-05",null,9]
[null,null,"2022-04-06",null,null,64]
[null,null,"2022-04-21",null,10]
[null,null,"2022-05-19",null,null,19]
[null,null,"2022-06-02",null,10]
[null,null,"2022-06-20",null,null,11]
[null,null,"2022-07-01",null,9]
[null,null,"2022-07-12",null,null,7]
[null,null,"2022-07-26",null,10]
[null,null,"2022-08-02",null,null,5]
[null,null,"2022-08-17",null,10]
[null,null,"2022-09-14",null,null,20]
[null,null,"2022-09-27",null,9]
[null,null,"2022-10-24",null,null,19]
[null,null,"2022-11-04",null,8]
[null,null,"2022-11-18",null,null,9]
[null,null,"2022-12-01",null,9]
[null,null,"2022-12-12",null,null,7]
[null,null,"2022-12-16",null,4]
[null,null,"2022-12-21",null,null,3]
[null,null,"2023-01-03",null,8]
[null,null,"2023-01-16",null,null,8]
[null,null,"2023-01-27","decyzja",9]
[]
[null,null,"Razem",null,{"$f":"SUM(E8:E34)","v":124},{"$f":"SUM(F8:F34)","v":190}]
[]
[]
[]
["SUPLEMENTY",null,{"$f":"$C$2","v":"Pointpack SA"}]
[null,"zakończone","Suplement nr 1"]
[]
[null,null,"Data",null,"Czynności po stronie urzędu","Czynności po stronie emitenta"]
[null,null,null,null,"(w dniach roboczych)"]
[null,null,"2023-03-27","wniosek"]
[null,null,"2023-03-29",null,2]
[null,null,"2023-04-04",null,null,4]
[null,null,"2023-04-05",null,null,1]
[null,null,"2023-04-12","decyzja",4]
[]
[null,null,"Razem",null,{"$f":"SUM(E44:E49)","v":6},{"$f":"SUM(F44:F49)","v":5}]
[]
[null,null,{"$f":"$C$2","v":"Pointpack SA"}]
[null,"zakończone","Suplement nr 2"]
[]
[null,null,"Data",null,"Czynności po stronie urzędu","Czynności po stronie emitenta"]
[null,null,null,null,"(w dniach roboczych)"]
[null,null,"2023-05-18","wniosek"]
[null,null,"2023-05-22",null,2]
[null,null,"2023-06-01",null,null,8]
[null,null,"2023-06-05","decyzja",2]
[]
[null,null,"Razem",null,{"$f":"SUM(E57:E61)","v":4},{"$f":"SUM(F57:F61)","v":8}]
[]
[null,null,{"$f":"$C$2","v":"Pointpack SA"}]
[null,"zakończone","Suplement nr 3"]
[]
[null,null,"Data",null,"Czynności po stronie urzędu","Czynności po stronie emitenta"]
[null,null,null,null,"(w dniach roboczych)"]
[null,null,"2023-09-05","wniosek"]
[null,null,"2023-09-08","decyzja",3]
[]
[null,null,"Razem",null,{"$f":"SUM(E69:E71)","v":3},{"$f":"SUM(F69:F71)","v":0}]

{"sheet":"Skotan","index":94,"n_rows":61,"n_cols":6,"rows_kept":61,"cut":false,"hidden":false,"merged":[[54,2,55,2],[55,4,55,5],[5,2,6,2],[6,4,6,5],[30,2,31,2],[31,4,31,5],[42,2,43,2],[43,4,43,5]]}
["Spis treści"]
[null,null,"Skotan SA"]
["PROSPEKT","zakończone","Prospekt"]
[]
["410.37.2021"]
[null,null,"Data",null,"Czynności po stronie urzędu","Czynności po stronie emitenta"]
[null,null,null,null,"(w dniach roboczych)"]
[null,null,"2021-10-20","wniosek"]
[null,null,"2021-10-29",null,7]
[null,null,"2021-11-30",null,null,20]
[null,null,"2021-12-09",null,7]
[null,null,"2021-12-23",null,null,10]
[null,null,"2022-01-03",null,7]
[null,null,"2022-01-17",null,null,9]
[null,null,"2022-01-26",null,7]
[null,null,"2022-02-04",null,null,7]
[null,null,"2022-02-15",null,7]
[null,null,"2022-03-01",null,null,10]
[null,null,"2022-03-10",null,7]
[null,null,"2022-03-24",null,null,10]
[null,null,"2022-03-31","aktualizacja",null,5]
[null,null,"2022-04-04","decyzja",2]
[]
[null,null,"Razem",null,{"$f":"SUM(E8:E23)","v":44},{"$f":"SUM(F8:F23)","v":71}]
[]
[]
[]
["SUPLEMENTY",null,{"$f":"$C$2","v":"Skotan SA"}]
[null,"zakończone","Suplement nr 1"]
[]
[null,null,"Data",null,"Czynności po stronie urzędu","Czynności po stronie emitenta"]
[null,null,null,null,"(w dniach roboczych)"]
[null,null,"2022-04-13","wniosek"]
[null,null,"2022-04-21","decyzja",5]
[]
[]
[null,null,"Razem",null,{"$f":"SUM(E33:E36)","v":5},{"$f":"SUM(F33:F36)","v":0}]
[]
[]
["SUPLEMENTY",null,{"$f":"$C$2","v":"Skotan SA"}]
[null,"zakończone","Suplement nr 2"]
[]
[null,null,"Data",null,"Czynności po stronie urzędu","Czynności po stronie emitenta"]
[null,null,null,null,"(w dniach roboczych)"]
[null,null,"2022-04-29","wniosek"]
[null,null,"2022-05-04","decyzja",2]
[]
[]
[null,null,"Razem",null,{"$f":"SUM(E45:E48)","v":2},{"$f":"SUM(F45:F48)","v":0}]
[]
[]
["SUPLEMENTY",null,{"$f":"$C$2","v":"Skotan SA"}]
[null,"zakończone","Suplement nr 3"]
[]
[null,null,"Data",null,"Czynności po stronie urzędu","Czynności po stronie emitenta"]
[null,null,null,null,"(w dniach roboczych)"]
[null,null,"2022-05-27","wniosek"]
[null,null,"2022-06-03",null,5]
[]
[]
[null,null,"Razem",null,{"$f":"SUM(E57:E60)","v":5},{"$f":"SUM(F57:F60)","v":0}]

{"sheet":"BETA ETF S&P 500 PLN-Hedg","index":95,"n_rows":34,"n_cols":6,"rows_kept":34,"cut":false,"hidden":false,"merged":[[5,2,6,2],[6,4,6,5],[27,2,28,2],[28,4,28,5]]}
["Spis treści"]
[null,null,"BETA ETF S&P 500 PLN-Hedged Portfelowy FIZ (2021)"]
["PROSPEKT","zakończone","Prospekt"]
[]
["410.43.2021"]
[null,null,"Data",null,"Czynności po stronie urzędu","Czynności po stronie emitenta"]
[null,null,null,null,"(w dniach roboczych)"]
[null,null,"2021-10-04","wniosek"]
[null,null,"2021-10-18",null,10]
[null,null,"2021-11-02",null,null,10]
[null,null,"2021-11-05",null,3]
[null,null,"2021-11-05",null,null,0]
[null,null,"2021-11-08",null,1]
[null,null,"2021-11-08",null,null,0]
[null,null,"2021-11-10","aktualizacja",null,2]
[null,null,"2021-11-15","decyzja",2]
[]
[]
[]
[]
[null,null,"Razem",null,{"$f":"SUM(E8:E20)","v":16},{"$f":"SUM(F8:F20)","v":12}]
[]
[]
[]
["SUPLEMENTY",null,{"$f":"$C$2","v":"BETA ETF S&P 500 PLN-Hedged Portfelowy FIZ (2021)"}]
[null,"      ","Suplement nr 1"]
[]
[null,null,"Data",null,"Czynności po stronie urzędu","Czynności po stronie emitenta"]
[null,null,null,null,"(w dniach roboczych)"]
[null,null,null,"wniosek"]
[]
[]
[]
[null,null,"Razem",null,{"$f":"SUM(E30:E33)","v":0},{"$f":"SUM(F30:F33)","v":0}]

{"sheet":"Beta ETF Nasdaq-100 PLN-H","index":96,"n_rows":34,"n_cols":6,"rows_kept":34,"cut":false,"hidden":false,"merged":[[5,2,6,2],[6,4,6,5],[27,2,28,2],[28,4,28,5]]}
["Spis treści"]
[null,null,"Beta ETF Nasdaq-100 PLN-Hedged Portfelowy FIZ (2021)"]
["PROSPEKT","zakończone","Prospekt"]
[]
["410.42.2021"]
[null,null,"Data",null,"Czynności po stronie urzędu","Czynności po stronie emitenta"]
[null,null,null,null,"(w dniach roboczych)"]
[null,null,"2021-10-04","wniosek"]
[null,null,"2021-10-15",null,9]
[null,null,"2021-10-29",null,null,10]
[null,null,"2021-11-04",null,3]
[null,null,"2021-11-05",null,null,1]
[null,null,"2021-11-08",null,1]
[null,null,"2021-11-08",null,null,0]
[null,null,"2021-11-10","aktualizacja",null,2]
[null,null,"2021-11-15","decyzja",2]
[]
[]
[]
[]
[null,null,"Razem",null,{"$f":"SUM(E8:E20)","v":15},{"$f":"SUM(F8:F20)","v":13}]
[]
[]
[]
["SUPLEMENTY",null,{"$f":"$C$2","v":"Beta ETF Nasdaq-100 PLN-Hedged Portfelowy FIZ (2021)"}]
[null,"      ","Suplement nr 1"]
[]
[null,null,"Data",null,"Czynności po stronie urzędu","Czynności po stronie emitenta"]
[null,null,null,null,"(w dniach roboczych)"]
[null,null,null,"wniosek"]
[]
[]
[]
[null,null,"Razem",null,{"$f":"SUM(E30:E33)","v":0},{"$f":"SUM(F30:F33)","v":0}]

{"sheet":"Polenergia SA","index":97,"n_rows":47,"n_cols":6,"rows_kept":47,"cut":false,"hidden":false,"merged":[[5,2,6,2],[6,4,6,5],[29,2,30,2],[30,4,30,5],[40,2,41,2],[41,4,41,5]]}
["Spis treści"]
[null,null,"Polenergia SA"]
["PROSPEKT","zakończone","Prospekt"]
[]
["410.24.2021"]
[null,null,"Data",null,"Czynności po stronie urzędu","Czynności po stronie emitenta"]
[null,null,null,null,"(w dniach roboczych)"]
[null,null,"2021-10-01","wniosek"]
[null,null,"2021-10-14",null,9]
[null,null,"2021-10-28",null,null,10]
[null,null,"2021-11-15",null,10]
[null,null,"2021-11-29",null,null,10]
[null,null,"2021-12-13",null,10]
[null,null,"2021-12-20",null,null,5]
[null,null,"2022-01-03",null,10]
[null,null,"2022-01-05",null,null,2]
[null,null,"2022-01-14",null,6]
[null,null,"2022-01-25",null,null,7]
[null,null,"2022-01-26",null,1]
[null,null,"2022-01-27",null,null,1]
[null,null,"2022-01-27","decyzja",0]
[]
[null,null,"Razem",null,{"$f":"SUM(E8:E22)","v":46},{"$f":"SUM(F8:F22)","v":35}]
[]
[]
[]
["SUPLEMENTY",null,{"$f":"$C$2","v":"Polenergia SA"}]
[null,"zakończone","Suplement nr 1"]
[]
[null,null,"Data",null,"Czynności po stronie urzędu","Czynności po stronie emitenta"]
[null,null,null,null,"(w dniach roboczych)"]
[null,null,"2022-04-07","wniosek"]
[null,null,"2022-04-07","decyzja",0]
[]
[]
[null,null,"Razem",null,{"$f":"SUM(E32:E35)","v":0},{"$f":"SUM(F32:F35)","v":0}]
[]
["SUPLEMENTY",null,{"$f":"$C$2","v":"Polenergia SA"}]
[null,"zakończone","Suplement nr 2"]
[]
[null,null,"Data",null,"Czynności po stronie urzędu","Czynności po stronie emitenta"]
[null,null,null,null,"(w dniach roboczych)"]
[null,null,"2022-04-07","wniosek"]
[null,null,"2022-04-08",null,1]
[]
[]
[null,null,"Razem",null,{"$f":"SUM(E43:E46)","v":1},{"$f":"SUM(F43:F46)","v":0}]

{"sheet":"Oferteo 2021","index":98,"n_rows":34,"n_cols":6,"rows_kept":34,"cut":false,"hidden":false,"merged":[[5,2,6,2],[6,4,6,5],[27,2,28,2],[28,4,28,5]]}
["Spis treści"]
[null,null,"Oferteo "]
["PROSPEKT","zawieszone","Prospekt"]
[]
["410.36.2021"]
[null,null,"Data",null,"Czynności po stronie urzędu","Czynności po stronie emitenta"]
[null,null,null,null,"(w dniach roboczych)"]
[null,null,"2021-09-24","wniosek"]
[null,null,"2021-10-22",null,20]
[null,null,null,null,null,{"$f":"PracaKNF(C9,C10)","v":0}]
[]
[]
[]
[]
[]
[]
[]
[]
[]
[]
[null,null,"Razem",null,{"$f":"SUM(E8:E20)","v":20},{"$f":"SUM(F8:F20)","v":0}]
[]
[]
[]
["SUPLEMENTY",null,{"$f":"$C$2","v":"Oferteo "}]
[null,"      ","Suplement nr 1"]
[]
[null,null,"Data",null,"Czynności po stronie urzędu","Czynności po stronie emitenta"]
[null,null,null,null,"(w dniach roboczych)"]
[null,null,null,"wniosek"]
[]
[]
[]
[null,null,"Razem",null,{"$f":"SUM(E30:E33)","v":0},{"$f":"SUM(F30:F33)","v":0}]

{"sheet":"Grupa Pracuj S.A.","index":99,"n_rows":34,"n_cols":7,"rows_kept":34,"cut":false,"hidden":false,"merged":[[5,2,6,2],[6,4,6,5],[27,2,28,2],[28,4,28,5]]}
["Spis treści"]
[null,null,"Grupa Pracuj S.A."]
["PROSPEKT","zakończone","Prospekt akcji"]
[]
["410.31.2021"]
[null,null,"Data",null,"Czynności po stronie urzędu","Czynności po stronie emitenta"]
[null,null,null,null,"(w dniach roboczych)"]
[null,null,"2021-09-06","wniosek"]
[null,null,"2021-09-24",null,14]
[null,null,"2021-10-01",null,null,5]
[null,null,"2021-10-14",null,9]
[null,null,"2021-10-22",null,null,6]
[null,null,"2021-11-08",null,10]
[null,null,"2021-11-10",null,null,2]
[null,null,"2021-11-15","decyzja",2,null,0]
[]
[]
[]
[]
[]
[null,null,"Razem",null,35,13]
[]
[]
[]
["SUPLEMENTY",null,{"$f":"$C$2","v":"Grupa Pracuj S.A."}]
[null,"      ","Suplement nr 1"]
[]
[null,null,"Data",null,"Czynności po stronie urzędu","Czynności po stronie emitenta"]
[null,null,null,null,"(w dniach roboczych)"]
[null,null,null,"wniosek"]
[]
[]
[]
[null,null,"Razem",null,{"$f":"SUM(E30:E33)","v":0},{"$f":"SUM(F30:F33)","v":0}]

{"sheet":"Cavatina Holding (obligacje)","index":100,"n_rows":49,"n_cols":6,"rows_kept":49,"cut":false,"hidden":false,"merged":[[5,2,6,2],[6,4,6,5],[27,2,28,2],[28,4,28,5],[42,2,43,2],[43,4,43,5]]}
["Spis treści"]
[null,null,"Cavatina Holding (obligacje)"]
["PROSPEKT","zakończone","Prospekt"]
[]
["410.38.2021"]
[null,null,"Data",null,"Czynności po stronie urzędu","Czynności po stronie emitenta"]
[null,null,null,null,"(w dniach roboczych)"]
[null,null,"2021-09-21","wniosek"]
[null,null,"2021-10-05",null,10]
[null,null,"2021-10-12",null,null,5]
[null,null,"2021-10-26",null,10]
[null,null,"2021-11-08",null,null,8]
[null,null,"2021-11-16","aktualizacja",null,5]
[null,null,"2021-11-22",null,4]
[null,null,"2021-11-30",null,null,6]
[null,null,"2021-12-14",null,10]
[null,null,"2021-12-22",null,null,6]
[null,null,"2022-01-03","aktualizacja",null,8]
[null,null,"2022-01-10","decyzja",4]
[]
[null,null,"Razem",null,{"$f":"SUM(E8:E20)","v":38},{"$f":"SUM(F8:F20)","v":38}]
[]
[]
[]
["SUPLEMENTY",null,{"$f":"$C$2","v":"Cavatina Holding (obligacje)"}]
[null,"zakończone","Suplement nr 1"]
[]
[null,null,"Data",null,"Czynności po stronie urzędu","Czynności po stronie emitenta"]
[null,null,null,null,"(w dniach roboczych)"]
[null,null,"2022-03-31","wniosek"]
[null,null,"2022-04-04",null,2]
[null,null,"2022-04-06",null,null,2]
[null,null,"2022-04-07",null,1]
[]
[null,null,"Razem",null,{"$f":"SUM(E30:E34)","v":3},{"$f":"SUM(F30:F34)","v":2}]
[]
[]
[]
[]
["SUPLEMENTY",null,{"$f":"$C$2","v":"Cavatina Holding (obligacje)"}]
[null,"zakończone","Suplement nr 2"]
[]
[null,null,"Data",null,"Czynności po stronie urzędu","Czynności po stronie emitenta"]
[null,null,null,null,"(w dniach roboczych)"]
[null,null,"2022-05-30","wniosek"]
[null,null,"2022-06-02",null,3]
[]
[]
[null,null,"Razem",null,{"$f":"SUM(E45:E48)","v":3},{"$f":"SUM(F45:F48)","v":0}]

{"sheet":"Beta ETF WIG20TR ","index":101,"n_rows":34,"n_cols":6,"rows_kept":34,"cut":false,"hidden":false,"merged":[[5,2,6,2],[6,4,6,5],[27,2,28,2],[28,4,28,5]]}
["Spis treści"]
[null,null,"Beta ETF WIG20TR Portfelowy FIZ"]
["PROSPEKT","zakończone","Prospekt"]
[]
["410.34.2021"]
[null,null,"Data",null,"Czynności po stronie urzędu","Czynności po stronie emitenta"]
[null,null,null,null,"(w dniach roboczych)"]
[null,null,"2021-09-07","wniosek"]
[null,null,"2021-09-21",null,10]
[null,null,"2021-10-05",null,null,10]
[null,null,"2021-10-08",null,3]
[null,null,"2021-10-11",null,null,1]
[null,null,"2021-10-15","decyzja",4]
[]
[]
[]
[]
[]
[]
[]
[null,null,"Razem",null,17,11]
[]
[]
[]
["SUPLEMENTY",null,{"$f":"$C$2","v":"Beta ETF WIG20TR Portfelowy FIZ"}]
[null,"      ","Suplement nr 1"]
[]
[null,null,"Data",null,"Czynności po stronie urzędu","Czynności po stronie emitenta"]
[null,null,null,null,"(w dniach roboczych)"]
[null,null,null,"wniosek"]
[]
[]
[]
[null,null,"Razem",null,{"$f":"SUM(E30:E33)","v":0},{"$f":"SUM(F30:F33)","v":0}]

{"sheet":"STS Holding S.A.","index":102,"n_rows":35,"n_cols":6,"rows_kept":35,"cut":false,"hidden":false,"merged":[[5,2,6,2],[6,4,6,5],[27,2,28,2],[28,4,28,5]]}
["Spis treści"]
[null,null,"STS Holding S.A."]
["PROSPEKT","zakończone","Prospekt"]
[]
["410.35.2021"]
[null,null,"Data",null,"Czynności po stronie urzędu","Czynności po stronie emitenta"]
[null,null,null,null,"(w dniach roboczych)"]
[null,null,"2021-09-06","wniosek"]
[null,null,"2021-10-01",null,19]
[null,null,"2021-10-10",null,null,5]
[null,null,"2021-10-21",null,9]
[null,null,"2021-11-01",null,null,6]
[null,null,"2021-11-10",null,7]
[null,null,"2021-11-17",null,null,4]
[null,null,"2021-11-18",null,1]
[null,null,"2021-11-19",null,null,1]
[null,null,"2021-11-23","decyzja",2]
[]
[]
[]
[null,null,"Razem",null,38,16]
[]
[]
[]
["SUPLEMENTY",null,{"$f":"$C$2","v":"STS Holding S.A."}]
[null,"zakończone","Suplement nr 1"]
[]
[null,null,"Data",null,"Czynności po stronie urzędu","Czynności po stronie emitenta"]
[null,null,null,null,"(w dniach roboczych)"]
[null,null,"2021-11-26","wniosek"]
[null,null,"2021-11-29",null,1]
[null,null,"2021-11-29",null,null,0]
[null,null,"2021-11-30","decyzja",1]
[]
[null,null,"Razem",null,{"$f":"SUM(E30:E34)","v":2},{"$f":"SUM(F30:F34)","v":0}]

{"sheet":"Echo Investment S.A. ( ob","index":103,"n_rows":73,"n_cols":6,"rows_kept":73,"cut":false,"hidden":false,"merged":[[66,2,67,2],[67,4,67,5],[1,2,1,3],[5,2,6,2],[6,4,6,5],[53,2,54,2],[54,4,54,5],[41,2,42,2],[42,4,42,5],[29,2,30,2],[30,4,30,5]]}
["Spis treści"]
[null,null,"Echo Investment S.A. "]
["PROSPEKT","zakończone","Prospekt podstawowy"]
[]
[]
[null,null,"Data",null,"Czynności po stronie urzędu","Czynności po stronie emitenta"]
[null,null,null,null,"(w dniach roboczych)"]
[null,null,"2021-09-01","wniosek"]
[null,null,"2021-09-14",null,9]
[null,null,"2021-10-05",null,null,15]
[null,null,"2021-10-19",null,10]
[null,null,"2021-11-03",null,null,10]
[null,null,"2021-11-17",null,9]
[null,null,"2021-11-18",null,null,1]
[null,null,"2021-11-23",null,3]
[null,null,"2021-11-24",null,null,1]
[null,null,"2021-11-24",null,0]
[null,null,"2021-11-26","decyzja",null,2]
[]
[]
[null,null,"Razem",null,31,29]
[]
[]
[]
[]
[]
["SUPLEMENTY",null,{"$f":"$C$3","v":"Prospekt podstawowy"}]
[null,"zakończone","Suplement nr 1"]
[]
[null,null,"Data",null,"Czynności po stronie urzędu","Czynności po stronie emitenta"]
[null,null,null,null,"(w dniach roboczych)"]
[null,null,"2021-12-03","wniosek"]
[null,null,"2021-12-07",null,null,2]
[null,null,"2021-12-08","decyzja",1]
[]
[null,null,"Razem",null,{"$f":"SUM(E32:E35)","v":1},{"$f":"SUM(F32:F35)","v":2}]
[]
[]
[null,null,{"$f":"$C$3","v":"Prospekt podstawowy"}]
[null,"zakończone","Suplement nr 2"]
[]
[null,null,"Data",null,"Czynności po stronie urzędu","Czynności po stronie emitenta"]
[null,null,null,null,"(w dniach roboczych)"]
[null,null,"2022-04-14","wniosek"]
[null,null,"2022-04-21",null,4]
[null,null,"2022-04-21",null,null,0]
[null,null,"2022-04-25","decyzja",2]
[]
[null,null,"Razem",null,{"$f":"SUM(E44:E48)","v":6},{"$f":"SUM(F44:F48)","v":0}]
[]
[null,null,{"$f":"$C$3","v":"Prospekt podstawowy"}]
[null,"zakończone","Suplement nr 3"]
[]
[null,null,"Data",null,"Czynności po stronie urzędu","Czynności po stronie emitenta"]
[null,null,null,null,"(w dniach roboczych)"]
[null,null,"2022-06-07","wniosek"]
[null,null,"2022-06-08","decyzja",1]
[]
[null,null,"Razem",null,{"$f":"SUM(E56:E58)","v":1},{"$f":"SUM(F56:F58)","v":0}]
[]
[]
[]
[]
["SUPLEMENTY",null,{"$f":"$C$2","v":"Echo Investment S.A. "}]
[null,"zakończone","Suplement nr 4"]
[]
[null,null,"Data",null,"Czynności po stronie urzędu","Czynności po stronie emitenta"]
[null,null,null,null,"(w dniach roboczych)"]
[null,null,"2022-10-07","wniosek"]
[null,null,"2022-10-10","decyzja",1]
[]
[]
[null,null,"Razem",null,{"$f":"SUM(E69:E72)","v":1},{"$f":"SUM(F69:F72)","v":0}]

{"sheet":"BioMaxima S.A.","index":104,"n_rows":51,"n_cols":6,"rows_kept":51,"cut":false,"hidden":false,"merged":[[5,2,6,2],[6,4,6,5],[28,2,29,2],[29,4,29,5],[42,2,43,2],[43,4,43,5]]}
["Spis treści"]
[null,null,"BioMaxima S.A."]
["PROSPEKT","zakończone","Prospekt"]
[]
["410.32.2021"]
[null,null,"Data",null,"Czynności po stronie urzędu","Czynności po stronie emitenta"]
[null,null,null,null,"(w dniach roboczych)"]
[null,null,"2021-09-01","wniosek"]
[null,null,"2021-09-29",null,20]
[null,null,"2021-10-20",null,null,15]
[null,null,"2021-11-04",null,10]
[null,null,"2021-11-22",null,null,11]
[null,null,"2021-12-06",null,10]
[null,null,"2021-12-10",null,null,4]
[null,null,"2021-12-14",null,null,2]
[null,null,"2021-12-23",null,7]
[null,null,"2021-12-28",null,null,3]
[null,null,"2021-12-29",null,null,1]
[null,null,"2021-12-30",null,null,1]
[null,null,"2021-12-31","decyzja",1]
[]
[null,null,"Razem",null,{"$f":"SUM(E8:E21)","v":48},{"$f":"SUM(F8:F21)","v":37}]
[]
[]
[]
["SUPLEMENTY",null,{"$f":"$C$2","v":"BioMaxima S.A."}]
[null,"zakończone","Suplement nr 1"]
[]
[null,null,"Data",null,"Czynności po stronie urzędu","Czynności po stronie emitenta"]
[null,null,null,null,"(w dniach roboczych)"]
[null,null,"2022-01-12","wniosek"]
[null,null,"2022-01-13",null,null,1]
[null,null,"2022-01-14",null,1]
[null,null,"2022-01-17",null,null,1]
[null,null,"2022-01-21",null,null,4]
[null,null,"2022-01-21","decyzja",0]
[]
[null,null,"Razem",null,{"$f":"SUM(E31:E37)","v":1},{"$f":"SUM(F31:F37)","v":6}]
[]
[null,null,{"$f":"$C$2","v":"BioMaxima S.A."}]
[null,"zakończone","Suplement nr 2"]
[]
[null,null,"Data",null,"Czynności po stronie urzędu","Czynności po stronie emitenta"]
[null,null,null,null,"(w dniach roboczych)"]
[null,null,"2022-01-13","wniosek"]
[null,null,"2022-01-14",null,null,1]
[null,null,"2022-01-21","decyzja",5]
[]
[]
[]
[null,null,"Razem",null,{"$f":"SUM(E45:E50)","v":5},{"$f":"SUM(F45:F50)","v":1}]

{"sheet":"Transition Technologies MS SA","index":105,"n_rows":40,"n_cols":6,"rows_kept":40,"cut":false,"hidden":false,"merged":[[5,2,6,2],[6,4,6,5],[33,2,34,2],[34,4,34,5]]}
["Spis treści"]
[null,null,"Transition Technologies MS SA"]
["PROSPEKT","zawieszone","Prospekt"]
[]
["410.28.2021"]
[null,null,"Data",null,"Czynności po stronie urzędu","Czynności po stronie emitenta"]
[null,null,null,null,"(w dniach roboczych)"]
[null,null,"2021-08-12","wniosek"]
[null,null,"2021-09-10",null,20]
[null,null,"2021-09-24",null,null,10]
[null,null,"2021-10-08",null,10]
[null,null,"2021-10-22",null,null,10]
[null,null,"2021-11-08",null,10]
[null,null,"2021-11-20",null,null,10]
[null,null,"2021-12-03",null,10]
[null,null,"2021-12-18",null,null,10]
[null,null,"2021-12-29",null,8]
[null,null,"2022-01-12",null,null,9]
[null,null,"2022-01-22",null,7]
[null,null,"2022-01-27",null,null,4]
[null,null,"2022-01-31",null,2]
[null,null,"2022-02-08",null,null,6]
[null,null,"2022-02-21",null,9]
[]
[]
[]
[null,null,"Razem",null,{"$f":"SUM(E8:E26)","v":76},{"$f":"SUM(F8:F26)","v":59}]
[]
[]
[]
["SUPLEMENTY",null,{"$f":"$C$2","v":"Transition Technologies MS SA"}]
[null,"      ","Suplement nr 1"]
[]
[null,null,"Data",null,"Czynności po stronie urzędu","Czynności po stronie emitenta"]
[null,null,null,null,"(w dniach roboczych)"]
[null,null,null,"wniosek"]
[]
[]
[]
[null,null,"Razem",null,{"$f":"SUM(E36:E39)","v":0},{"$f":"SUM(F36:F39)","v":0}]

{"sheet":"Bio Planet SA","index":106,"n_rows":34,"n_cols":6,"rows_kept":34,"cut":false,"hidden":false,"merged":[[5,2,6,2],[6,4,6,5],[27,2,28,2],[28,4,28,5]]}
["Spis treści"]
[null,null,"Bio Planet SA"]
["PROSPEKT","zakończone","Prospekt"]
[]
["410.20.2021"]
[null,null,"Data",null,"Czynności po stronie urzędu","Czynności po stronie emitenta"]
[null,null,null,null,"(w dniach roboczych)"]
[null,null,"2021-07-23","wniosek"]
[null,null,"2021-08-20",null,20]
[null,null,"2021-09-01",null,null,8]
[null,null,"2021-09-15",null,10]
[null,null,"2021-09-24",null,null,7]
[null,null,"2021-10-07",null,9]
[null,null,"2021-10-14",null,null,5]
[null,null,"2021-10-28","decyzja",10]
[]
[]
[]
[]
[]
[null,null,"Razem",null,49,20]
[]
[]
[]
["SUPLEMENTY",null,{"$f":"$C$2","v":"Bio Planet SA"}]
[null,"zakończone","Suplement nr 1"]
[]
[null,null,"Data",null,"Czynności po stronie urzędu","Czynności po stronie emitenta"]
[null,null,null,null,"(w dniach roboczych)"]
[null,null,"2021-11-16","wniosek"]
[null,null,"2021-11-17","decyzja",1]
[null,null,null,null,null,0]
[]
[null,null,"Razem",null,1,0]

{"sheet":"DESA S.A.","index":107,"n_rows":46,"n_cols":6,"rows_kept":46,"cut":false,"hidden":false,"merged":[[5,2,6,2],[6,4,6,5],[39,2,40,2],[40,4,40,5]]}
["Spis treści"]
[null,null,"DESA S.A."]
["PROSPEKT","zawieszone","Prospekt"]
[]
["410.29.2021"]
[null,null,"Data",null,"Czynności po stronie urzędu","Czynności po stronie emitenta"]
[null,null,null,null,"(w dniach roboczych)"]
[null,null,"2021-08-17","wniosek"]
[null,null,"2021-09-14",null,20]
[null,null,"2021-10-01",null,null,13]
[null,null,"2021-10-15",null,10]
[null,null,"2021-10-26",null,null,7]
[null,null,"2021-11-09",null,9]
[null,null,"2021-11-16",null,null,4]
[null,null,"2021-11-19",null,3]
[null,null,"2021-11-29",null,null,6]
[null,null,"2021-12-02",null,null,3]
[null,null,"2021-12-10",null,6]
[null,null,"2022-02-01",null,null,35]
[null,null,"2022-02-15",null,10]
[null,null,"2022-02-18",null,null,3]
[null,null,"2022-03-01",null,7]
[null,null,"2022-03-15",null,null,10]
[null,null,"2022-03-25",null,8]
[null,null,"2022-05-06",null,null,28]
[null,null,"2022-05-20",null,10]
[null,null,"2022-06-02",null,null,9]
[null,null,"2022-06-15",null,9]
[null,null,"2022-06-27",null,null,7]
[null,null,"2022-07-04",null,5]
[]
[]
[null,null,"Razem",null,{"$f":"SUM(E8:E32)","v":97},{"$f":"SUM(F8:F32)","v":125}]
[]
[]
[]
["SUPLEMENTY",null,{"$f":"$C$2","v":"DESA S.A."}]
[null,"      ","Suplement nr 1"]
[]
[null,null,"Data",null,"Czynności po stronie urzędu","Czynności po stronie emitenta"]
[null,null,null,null,"(w dniach roboczych)"]
[null,null,null,"wniosek"]
[]
[]
[]
[null,null,"Razem",null,{"$f":"SUM(E42:E45)","v":0},{"$f":"SUM(F42:F45)","v":0}]

{"sheet":"Vortex Energy S.A.","index":108,"n_rows":71,"n_cols":6,"rows_kept":71,"cut":false,"hidden":false,"merged":[[64,2,65,2],[65,4,65,5],[5,2,6,2],[6,4,6,5],[36,2,37,2],[37,4,37,5],[48,2,49,2],[49,4,49,5]]}
["Spis treści"]
[null,null,"Vortex Energy S.A."]
["PROSPEKT","zakończone","Prospekt"]
[]
["410.22.2021"]
[null,null,"Data",null,"Czynności po stronie urzędu","Czynności po stronie emitenta"]
[null,null,null,null,"(w dniach roboczych)"]
[null,null,"2021-08-12","wniosek"]
[null,null,"2021-09-09",null,20]
[null,null,"2021-09-27",null,null,12]
[null,null,"2021-10-11",null,10]
[null,null,"2021-10-18",null,null,5]
[null,null,"2021-11-02",null,10]
[null,null,"2021-11-08",null,null,4]
[null,null,"2021-11-23",null,10]
[null,null,"2021-11-29",null,null,4]
[null,null,"2021-12-13",null,10]
[null,null,"2021-12-23",null,null,8]
[null,null,"2022-01-03",null,7]
[null,null,"2022-01-11",null,null,5]
[null,null,"2022-01-21",null,8]
[null,null,"2022-01-26",null,null,3]
[null,null,"2022-02-03",null,6]
[null,null,"2022-02-04",null,null,1]
[null,null,"2022-02-09",null,3]
[null,null,"2022-02-11",null,null,2]
[null,null,"2022-02-15",null,null,2]
[null,null,"2022-02-17","decyzja",2]
[]
[null,null,"Razem",null,{"$f":"SUM(E8:E29)","v":86},{"$f":"SUM(F8:F29)","v":46}]
[]
[]
[]
["SUPLEMENTY",null,{"$f":"$C$2","v":"Vortex Energy S.A."}]
[null,"zakończone","Suplement nr 1"]
[]
[null,null,"Data",null,"Czynności po stronie urzędu","Czynności po stronie emitenta"]
[null,null,null,null,"(w dniach roboczych)"]
[null,null,"2022-03-02","wniosek"]
[null,null,"2022-03-03","decyzja",1]
[]
[]
[null,null,"Razem",null,{"$f":"SUM(E39:E42)","v":1},{"$f":"SUM(F39:F42)","v":0}]
[]
[]
[null,null,{"$f":"$C$2","v":"Vortex Energy S.A."}]
[null,"zakończone","Suplement nr 2"]
[]
[null,null,"Data",null,"Czynności po stronie urzędu","Czynności po stronie emitenta"]
[null,null,null,null,"(w dniach roboczych)"]
[null,null,"2022-04-27","wniosek"]
[null,null,"2022-04-28",null,1]
[null,null,"2022-05-04",null,null,3]
[null,null,"2022-05-05",null,null,1]
[null,null,"2022-05-06",null,null,1]
[null,null,"2022-05-10",null,2]
[null,null,"2022-05-11",null,null,1]
[null,null,"2022-05-11","decyzja",0]
[]
[null,null,"Razem",null,{"$f":"SUM(E51:E59)","v":3},{"$f":"SUM(F51:F59)","v":6}]
[]
[null,null,{"$f":"$C$2","v":"Vortex Energy S.A."}]
[null,"zakończone","Suplement nr 3"]
[]
[null,null,"Data",null,"Czynności po stronie urzędu","Czynności po stronie emitenta"]
[null,null,null,null,"(w dniach roboczych)"]
[null,null,"2022-06-02","wniosek"]
[null,null,"2022-06-07","decyzja",3]
[]
[]
[null,null,"Razem",null,{"$f":"SUM(E67:E70)","v":3},{"$f":"SUM(F67:F70)","v":0}]

{"sheet":"3R Games SA","index":109,"n_rows":37,"n_cols":6,"rows_kept":37,"cut":false,"hidden":false,"merged":[[5,2,6,2],[6,4,6,5],[30,2,31,2],[31,4,31,5]]}
["Spis treści"]
[null,null,"3R Games SA"]
["PROSPEKT","zakończone","Prospekt"]
[]
["410.26.2021"]
[null,null,"Data",null,"Czynności po stronie urzędu","Czynności po stronie emitenta"]
[null,null,null,null,"(w dniach roboczych)"]
[null,null,"2021-08-11","wniosek"]
[null,null,"2021-08-25",null,10]
[null,null,"2021-09-08",null,null,10]
[null,null,"2021-09-22",null,10]
[null,null,"2021-10-06",null,null,10]
[null,null,"2021-10-19",null,9]
[null,null,"2021-10-22",null,null,3]
[null,null,"2021-11-03",null,7]
[null,null,"2021-11-04",null,null,1]
[null,null,"2021-11-18",null,9]
[null,null,"2021-12-01",null,null,9]
[null,null,"2021-12-15",null,10]
[]
[]
[]
[]
[null,null,"Razem",null,{"$f":"SUM(E8:E23)","v":55},{"$f":"SUM(F8:F23)","v":33}]
[]
[]
[]
["SUPLEMENTY",null,{"$f":"$C$2","v":"3R Games SA"}]
[null,"      ","Suplement nr 1"]
[]
[null,null,"Data",null,"Czynności po stronie urzędu","Czynności po stronie emitenta"]
[null,null,null,null,"(w dniach roboczych)"]
[null,null,null,"wniosek"]
[]
[]
[]
[null,null,"Razem",null,{"$f":"SUM(E33:E36)","v":0},{"$f":"SUM(F33:F36)","v":0}]

{"sheet":"Murapol S.A.","index":110,"n_rows":34,"n_cols":6,"rows_kept":34,"cut":false,"hidden":false,"merged":[[5,2,6,2],[6,4,6,5],[27,2,28,2],[28,4,28,5]]}
["Spis treści"]
[null,null,"Murapol S.A."]
["PROSPEKT","zakończone","Prospekt akcji"]
[]
["410.23.2021"]
[null,null,"Data",null,"Czynności po stronie urzędu","Czynności po stronie emitenta"]
[null,null,null,null,"(w dniach roboczych)"]
[null,null,"2021-07-30","wniosek"]
[null,null,"2021-08-13",null,10]
[null,null,"2021-08-28",null,null,10]
[null,null,"2021-09-10",null,10]
[null,null,"2021-09-23",null,null,9]
[null,null,"2021-10-06",null,9]
[null,null,"2021-10-19",null,null,9]
[null,null,"2021-11-02",null,9]
[null,null,"2021-11-12",null,null,7]
[null,null,"2021-11-19","decyzja",5]
[]
[]
[]
[null,null,"Razem",null,43,35]
[]
[]
[]
["SUPLEMENTY",null,{"$f":"$C$2","v":"Murapol S.A."}]
[null,"      ","Suplement nr 1"]
[]
[null,null,"Data",null,"Czynności po stronie urzędu","Czynności po stronie emitenta"]
[null,null,null,null,"(w dniach roboczych)"]
[null,null,null,"wniosek"]
[]
[]
[]
[null,null,"Razem",null,{"$f":"SUM(E30:E33)","v":0},{"$f":"SUM(F30:F33)","v":0}]

{"sheet":"SpyroSoft S.A.","index":111,"n_rows":38,"n_cols":6,"rows_kept":38,"cut":false,"hidden":false,"merged":[[5,2,6,2],[6,4,6,5],[30,2,31,2],[31,4,31,5]]}
["Spis treści"]
[null,null,"SpyroSoft S.A."]
["PROSPEKT","zakończone","Prospekt"]
[]
["410.18.2021"]
[null,null,"Data",null,"Czynności po stronie urzędu","Czynności po stronie emitenta"]
[null,null,null,null,"(w dniach roboczych)"]
[null,null,"2021-07-28","wniosek"]
[null,null,"2021-08-24",null,19]
[null,null,"2021-09-07",null,null,10]
[null,null,"2021-09-21",null,10]
[null,null,"2021-10-06",null,null,11]
[null,null,"2021-10-20",null,10]
[null,null,"2021-10-26",null,null,4]
[null,null,"2021-11-05",null,7]
[null,null,"2021-11-17",null,null,7]
[null,null,"2021-11-30",null,9]
[null,null,"2021-12-10",null,null,8]
[null,null,"2021-12-16",null,null,4]
[null,null,"2021-12-21",null,3]
[null,null,"2021-12-23",null,null,2]
[null,null,"2021-12-31","decyzja",6]
[]
[null,null,"Razem",null,{"$f":"SUM(E8:E23)","v":64},{"$f":"SUM(F8:F23)","v":46}]
[]
[]
[]
["SUPLEMENTY",null,{"$f":"$C$2","v":"SpyroSoft S.A."}]
[null,"zakończone","Suplement nr 1"]
[]
[null,null,"Data",null,"Czynności po stronie urzędu","Czynności po stronie emitenta"]
[null,null,null,null,"(w dniach roboczych)"]
[null,null,"2022-02-22","wniosek"]
[null,null,"2022-02-24",null,2]
[null,null,"2022-02-24",null,null,0]
[null,null,"2022-02-28",null,2]
[]
[null,null,"Razem",null,{"$f":"SUM(E33:E37)","v":4},{"$f":"SUM(F33:F37)","v":0}]

{"sheet":"ALL IN! GAMES SA","index":112,"n_rows":57,"n_cols":6,"rows_kept":57,"cut":false,"hidden":false,"merged":[[5,2,6,2],[6,4,6,5],[50,2,51,2],[51,4,51,5]]}
["Spis treści"]
[null,null,"ALL IN! GAMES SA"]
["PROSPEKT","w toku","Prospekt"]
[]
["410.21.2021"]
[null,null,"Data",null,"Czynności po stronie urzędu","Czynności po stronie emitenta"]
[null,null,null,null,"(w dniach roboczych)"]
[null,null,"2021-07-26","wniosek"]
[null,null,"2021-08-09",null,10]
[null,null,"2021-08-23",null,null,10]
[null,null,"2021-09-03",null,9]
[null,null,"2021-09-17",null,null,10]
[null,null,"2021-10-01",null,10]
[null,null,"2021-10-15",null,null,10]
[null,null,"2021-10-27",null,8]
[null,null,"2021-11-17",null,null,13]
[null,null,"2021-11-30",null,9]
[null,null,"2021-12-15",null,null,11]
[null,null,"2021-12-28",null,9]
[null,null,"2022-08-03",null,null,152]
[null,null,"2022-08-18",null,10]
[null,null,"2022-08-29",null,null,7]
[null,null,"2022-09-08",null,8]
[null,null,"2022-09-19",null,null,8]
[null,null,"2022-09-30",null,9]
[null,null,"2022-10-11",null,null,8]
[null,null,"2022-10-21",null,8]
[null,null,"2022-11-07",null,null,10]
[null,null,"2022-11-16",null,6]
[null,null,"2022-12-05",null,null,13]
[null,null,"2022-12-08",null,3]
[null,null,"2022-12-09",null,null,1]
[null,null,"2022-12-15",null,4]
[null,null,"2022-12-29",null,null,9]
[null,null,"2023-01-05",null,5]
[null,null,"2023-02-03",null,null,20]
[null,null,"2023-02-15",null,8]
[null,null,"2023-02-17",null,null,2]
[null,null,"2023-02-28",null,7]
[]
[]
[]
[]
[null,null,"Razem",null,{"$f":"SUM(E8:E43)","v":123},{"$f":"SUM(F8:F43)","v":284}]
[]
[]
[]
["SUPLEMENTY",null,{"$f":"$C$2","v":"ALL IN! GAMES SA"}]
[null,"      ","Suplement nr 1"]
[]
[null,null,"Data",null,"Czynności po stronie urzędu","Czynności po stronie emitenta"]
[null,null,null,null,"(w dniach roboczych)"]
[null,null,null,"wniosek"]
[]
[]
[]
[null,null,"Razem",null,{"$f":"SUM(E53:E56)","v":0},{"$f":"SUM(F53:F56)","v":0}]

{"sheet":"Metalkas S.A.","index":113,"n_rows":34,"n_cols":6,"rows_kept":34,"cut":false,"hidden":false,"merged":[[5,2,6,2],[6,4,6,5],[27,2,28,2],[28,4,28,5]]}
["Spis treści"]
[null,null,"Metalkas S.A."]
["PROSPEKT","zawieszone","Prospekt"]
[]
["410.19.2021"]
[null,null,"Data",null,"Czynności po stronie urzędu","Czynności po stronie emitenta"]
[null,null,null,null,"(w dniach roboczych)"]
[null,null,"2021-07-21","wniosek"]
[null,null,"2021-08-18",null,20]
[null,null,"2021-10-07",null,null,36]
[null,null,"2021-10-21",null,10]
[null,null,"2021-11-11",null,null,13]
[null,null,"2021-11-25",null,10]
[null,null,"2021-12-14",null,null,13]
[null,null,"2021-12-28",null,10]
[null,null,"2022-01-12",null,null,10]
[null,null,"2022-01-25",null,9]
[]
[]
[]
[null,null,"Razem",null,{"$f":"SUM(E8:E20)","v":59},{"$f":"SUM(F8:F20)","v":72}]
[]
[]
[]
["SUPLEMENTY",null,{"$f":"$C$2","v":"Metalkas S.A."}]
[null,"      ","Suplement nr 1"]
[]
[null,null,"Data",null,"Czynności po stronie urzędu","Czynności po stronie emitenta"]
[null,null,null,null,"(w dniach roboczych)"]
[null,null,null,"wniosek"]
[]
[]
[]
[null,null,"Razem",null,{"$f":"SUM(E30:E33)","v":0},{"$f":"SUM(F30:F33)","v":0}]

{"sheet":"Poltreg S.A.","index":114,"n_rows":71,"n_cols":6,"rows_kept":71,"cut":false,"hidden":false,"merged":[[52,2,53,2],[53,4,53,5],[64,2,65,2],[65,4,65,5],[5,2,6,2],[6,4,6,5],[27,2,28,2],[28,4,28,5],[39,2,40,2],[40,4,40,5]]}
["Spis treści"]
[null,null,"Poltreg S.A."]
["PROSPEKT","zakończone","Prospekt"]
[]
["410.17.2021"]
[null,null,"Data",null,"Czynności po stronie urzędu","Czynności po stronie emitenta"]
[null,null,null,null,"(w dniach roboczych)"]
[null,null,"2021-07-05","wniosek"]
[null,null,"2021-07-30",null,19]
[null,null,"2021-08-13",null,null,10]
[null,null,"2021-08-26",null,9]
[null,null,"2021-09-09",null,null,10]
[null,null,"2021-09-22",null,9]
[null,null,"2021-09-29",null,null,5]
[null,null,"2021-10-07",null,6]
[null,null,"2021-10-12",null,null,3]
[null,null,"2021-10-13","decyzja",1]
[]
[]
[]
[null,null,"Razem",null,44,28]
[]
[]
[]
["SUPLEMENTY",null,{"$f":"$C$2","v":"Poltreg S.A."}]
[null,"zakończone","Suplement nr 1"]
[]
[null,null,"Data",null,"Czynności po stronie urzędu","Czynności po stronie emitenta"]
[null,null,null,null,"(w dniach roboczych)"]
[null,null,"2021-10-17","wniosek"]
[null,null,"2021-10-18","decyzja",1]
[null,null,null,null,null,0]
[]
[null,null,"Razem",null,{"$f":"SUM(E30:E33)","v":1},{"$f":"SUM(F30:F33)","v":0}]
[]
[]
[null,null,{"$f":"$C$2","v":"Poltreg S.A."}]
[null,"zakończone","Suplement nr 2"]
[]
[null,null,"Data",null,"Czynności po stronie urzędu","Czynności po stronie emitenta"]
[null,null,null,null,"(w dniach roboczych)"]
[null,null,"2021-10-19","wniosek"]
[null,null,"2021-10-20",null,1]
[null,null,"2021-10-22",null,null,3]
[null,null,"2021-10-26",null,2]
[]
[null,null,"Razem",null,{"$f":"SUM(E42:E46)","v":3},{"$f":"SUM(F42:F46)","v":3}]
[]
[]
[null,null,{"$f":"$C$2","v":"Poltreg S.A."}]
[null,"zakończone","Suplement nr 3"]
[]
[null,null,"Data",null,"Czynności po stronie urzędu","Czynności po stronie emitenta"]
[null,null,null,null,"(w dniach roboczych)"]
[null,null,"2021-10-27","wniosek"]
[null,null,"2021-10-28","decyzja",1]
[null,null,null,null,null,0]
[]
[null,null,"Razem",null,{"$f":"SUM(E55:E58)","v":1},{"$f":"SUM(F55:F58)","v":0}]
[]
[]
[null,null,{"$f":"$C$2","v":"Poltreg S.A."}]
[null,"zakończone","Suplement nr 4"]
[]
[null,null,"Data",null,"Czynności po stronie urzędu","Czynności po stronie emitenta"]
[null,null,null,null,"(w dniach roboczych)"]
[null,null,"2021-11-16","wniosek"]
[null,null,"2021-11-19","decyzja",3]
[null,null,null,null,null,0]
[]
[null,null,"Razem",null,{"$f":"SUM(E67:E70)","v":3},{"$f":"SUM(F67:F70)","v":0}]

{"sheet":"Marvipol Development SA O","index":115,"n_rows":38,"n_cols":6,"rows_kept":38,"cut":false,"hidden":false,"merged":[[5,2,6,2],[6,4,6,5],[30,2,31,2],[31,4,31,5]]}
["Spis treści"]
[null,null,"Marvipol Development SA"]
["PROSPEKT","zakończone","Prospekt podstawowy"]
[]
["410.16.2021"]
[null,null,"Data",null,"Czynności po stronie urzędu","Czynności po stronie emitenta"]
[null,null,null,null,"(w dniach roboczych)"]
[null,null,"2021-06-30","wniosek"]
[null,null,"2021-07-14",null,10]
[null,null,"2021-07-27",null,null,9]
[null,null,"2021-08-10",null,10]
[null,null,"2021-08-25",null,null,11]
[null,null,"2021-08-31",null,null,4]
[null,null,"2021-09-10",null,8]
[null,null,"2021-09-24",null,null,10]
[null,null,"2021-10-08",null,10]
[null,null,"2021-10-20",null,null,8]
[null,null,"2021-10-22",null,2]
[null,null,"2021-11-05",null,null,9]
[null,null,"2021-11-19",null,null,9]
[null,null,"2021-11-23","decyzja",2]
[]
[]
[null,null,"Razem",null,42,60]
[]
[]
[]
["SUPLEMENTY",null,{"$f":"$C$2","v":"Marvipol Development SA"}]
[null,"zakończone","Suplement nr 1"]
[]
[null,null,"Data",null,"Czynności po stronie urzędu","Czynności po stronie emitenta"]
[null,null,null,null,"(w dniach roboczych)"]
[null,null,"2021-12-01","wniosek"]
[null,null,"2021-12-03",null,2]
[null,null,"2021-12-06",null,null,1]
[null,null,"2021-12-08","decyzja",2]
[]
[null,null,"Razem",null,{"$f":"SUM(E33:E37)","v":4},{"$f":"SUM(F33:F37)","v":1}]

{"sheet":"KG Efekt SA (2021)","index":116,"n_rows":71,"n_cols":6,"rows_kept":71,"cut":false,"hidden":false,"merged":[[5,2,6,2],[6,4,6,5],[64,2,65,2],[65,4,65,5]]}
["Spis treści"]
[null,null,"KG Efekt SA (2021)"]
["PROSPEKT","umorzone","Prospekt"]
[]
["410.15.2021"]
[null,null,"Data",null,"Czynności po stronie urzędu","Czynności po stronie emitenta"]
[null,null,null,null,"(w dniach roboczych)"]
[null,null,"2021-06-21","wniosek"]
[null,null,"2021-06-30",null,7]
[null,null,"2021-07-16",null,null,12]
[null,null,"2021-07-27",null,7]
[null,null,"2021-08-12",null,null,12]
[null,null,"2021-08-23",null,7]
[null,null,"2021-09-08",null,null,12]
[null,null,"2021-09-17",null,7]
[null,null,"2021-10-07",null,null,14]
[null,null,"2021-10-18",null,7]
[null,null,"2021-11-10",null,null,16]
[null,null,"2021-11-22",null,7]
[null,null,"2021-12-04",null,null,9]
[null,null,"2021-12-13",null,6]
[null,null,"2021-12-28",null,null,11]
[null,null,"2022-01-05",null,6]
[null,null,"2022-02-16",null,null,29]
[null,null,"2022-02-25",null,7]
[null,null,"2022-03-14",null,null,11]
[null,null,"2022-03-22",null,6]
[null,null,"2022-04-15",null,null,18]
[null,null,"2022-04-27",null,7]
[null,null,"2022-05-11",null,null,9]
[null,null,"2022-05-20",null,7]
[null,null,"2022-06-06",null,null,11]
[null,null,"2022-06-15",null,7]
[null,null,"2022-07-01",null,null,11]
[null,null,"2022-07-12",null,7]
[null,null,"2022-07-27",null,null,11]
[null,null,"2022-08-05",null,7]
[null,null,"2022-08-22",null,null,10]
[null,null,"2022-08-29",null,5]
[null,null,"2022-09-02",null,null,4]
[null,null,"2022-09-12",null,6]
[null,null,"2022-09-19",null,null,5]
[null,null,"2022-09-28",null,7]
[null,null,"2022-10-17",null,null,13]
[null,null,"2022-10-26",null,7]
[null,null,"2022-10-31",null,null,3]
[null,null,"2022-11-10",null,7]
[null,null,"2022-11-18",null,null,5]
[null,null,"2022-11-25",null,5]
[null,null,"2022-11-30",null,null,3]
[null,null,"2022-12-08",null,6]
[null,null,"2022-12-15",null,null,5]
[null,null,"2022-12-27",null,7]
[null,null,"2022-12-28",null,null,1]
[null,null,"2023-01-11","decyzja o umorzeniu"]
[]
[]
[null,null,"Razem",null,{"$f":"SUM(E8:E57)","v":152},{"$f":"SUM(F8:F57)","v":235}]
[]
[]
[]
["SUPLEMENTY",null,{"$f":"$C$2","v":"KG Efekt SA (2021)"}]
[null,"      ","Suplement nr 1"]
[]
[null,null,"Data",null,"Czynności po stronie urzędu","Czynności po stronie emitenta"]
[null,null,null,null,"(w dniach roboczych)"]
[null,null,null,"wniosek"]
[]
[]
[]
[null,null,"Razem",null,{"$f":"SUM(E67:E70)","v":0},{"$f":"SUM(F67:F70)","v":0}]

{"sheet":"Santander Bank Polska S.A.","index":117,"n_rows":35,"n_cols":6,"rows_kept":35,"cut":false,"hidden":false,"merged":[[5,2,6,2],[6,4,6,5],[28,2,29,2],[29,4,29,5]]}
["Spis treści"]
[null,null,"Santander Bank Polska S.A."]
["PROSPEKT","zawieszone","Prospekt podstawowy"]
[]
["410.14.2021"]
[null,null,"Data",null,"Czynności po stronie urzędu","Czynności po stronie emitenta"]
[null,null,null,null,"(w dniach roboczych)"]
[null,null,"2021-05-13","wniosek"]
[null,null,"2021-05-27",null,10]
[null,null,"2021-07-02",null,null,25]
[null,null,"2021-07-16",null,10]
[null,null,"2021-08-18",null,null,33]
[null,null,"2021-09-01",null,10]
[null,null,"2021-09-24",null,null,23]
[null,null,"2021-10-07",null,9]
[null,null,"2021-10-22",null,null,15]
[null,null,"2021-11-05",null,9]
[null,null,"2021-11-22",null,null,11]
[null,null,"2021-12-06",null,10]
[]
[]
[null,null,"Razem",null,{"$f":"SUM(E8:E21)","v":58},{"$f":"SUM(F8:F21)","v":107}]
[]
[]
[]
["SUPLEMENTY",null,{"$f":"$C$2","v":"Santander Bank Polska S.A."}]
[null,"      ","Suplement nr 1"]
[]
[null,null,"Data",null,"Czynności po stronie urzędu","Czynności po stronie emitenta"]
[null,null,null,null,"(w dniach roboczych)"]
[null,null,null,"wniosek"]
[]
[]
[]
[null,null,"Razem",null,{"$f":"SUM(E31:E34)","v":0},{"$f":"SUM(F31:F34)","v":0}]

{"sheet":"Beta ETF WIG20lev (2021)","index":118,"n_rows":34,"n_cols":6,"rows_kept":34,"cut":false,"hidden":false,"merged":[[5,2,6,2],[6,4,6,5],[27,2,28,2],[28,4,28,5]]}
["Spis treści"]
[null,null,"Beta ETF WIG20lev Portfelowy FIZ"]
["PROSPEKT","zakończone","Prospekt"]
[]
["410.12.2021"]
[null,null,"Data",null,"Czynności po stronie urzędu","Czynności po stronie emitenta"]
[null,null,null,null,"(w dniach roboczych)"]
[null,null,"2021-05-11","wniosek"]
[null,null,"2021-05-20",null,7]
[null,null,"2021-06-01",null,null,8]
[null,null,"2021-06-09",null,5]
[null,null,"2021-06-24",null,null,11]
[null,null,"2021-06-25",null,1]
[null,null,"2021-07-05",null,null,6]
[null,null,"2021-07-07",null,2]
[]
[]
[]
[]
[]
[null,null,"Razem",null,15,25]
[]
[]
[]
["SUPLEMENTY",null,{"$f":"$C$2","v":"Beta ETF WIG20lev Portfelowy FIZ"}]
[null,"      ","Suplement nr 1"]
[]
[null,null,"Data",null,"Czynności po stronie urzędu","Czynności po stronie emitenta"]
[null,null,null,null,"(w dniach roboczych)"]
[null,null,null,"wniosek"]
[]
[]
[]
[null,null,"Razem",null,{"$f":"SUM(E30:E33)","v":0},{"$f":"SUM(F30:F33)","v":0}]

{"sheet":"Beta ETF WIG20short (2021)","index":119,"n_rows":34,"n_cols":6,"rows_kept":34,"cut":false,"hidden":false,"merged":[[5,2,6,2],[6,4,6,5],[27,2,28,2],[28,4,28,5]]}
["Spis treści"]
[null,null,"Beta ETF WIG20short Portfelowy FIZ"]
["PROSPEKT","zakończone","Prospekt"]
[]
["410.13.2021"]
[null,null,"Data",null,"Czynności po stronie urzędu","Czynności po stronie emitenta"]
[null,null,null,null,"(w dniach roboczych)"]
[null,null,"2021-05-11","wniosek"]
[null,null,"2021-05-20",null,7]
[null,null,"2021-06-01",null,null,8]
[null,null,"2021-06-09",null,5]
[null,null,"2021-06-24",null,null,11]
[null,null,"2021-06-25",null,1]
[null,null,"2021-07-05",null,null,6]
[null,null,"2021-07-07",null,2]
[]
[]
[]
[]
[]
[null,null,"Razem",null,15,25]
[]
[]
[]
["SUPLEMENTY",null,{"$f":"$C$2","v":"Beta ETF WIG20short Portfelowy FIZ"}]
[null,"      ","Suplement nr 1"]
[]
[null,null,"Data",null,"Czynności po stronie urzędu","Czynności po stronie emitenta"]
[null,null,null,null,"(w dniach roboczych)"]
[null,null,null,"wniosek"]
[]
[]
[]
[null,null,"Razem",null,{"$f":"SUM(E30:E33)","v":0},{"$f":"SUM(F30:F33)","v":0}]

{"sheet":"Kruk S.A. (obligacje 2021)","index":120,"n_rows":71,"n_cols":6,"rows_kept":71,"cut":false,"hidden":false,"merged":[[66,2,67,2],[67,4,67,5],[52,2,53,2],[53,4,53,5],[5,2,6,2],[6,4,6,5],[27,2,28,2],[28,4,28,5],[40,2,41,2],[41,4,41,5]]}
["Spis treści"]
[null,null,"Kruk S.A. (prospekt podstawowy obligacji)"]
["PROSPEKT","zakończone","Prospekt"]
[]
["410.11.2021"]
[null,null,"Data",null,"Czynności po stronie urzędu","Czynności po stronie emitenta"]
[null,null,null,null,"(w dniach roboczych)"]
[null,null,"2021-05-07","wniosek"]
[null,null,"2021-05-21",null,10]
[null,null,"2021-06-04",null,null,9]
[null,null,"2021-06-16",null,8]
[null,null,"2021-06-30",null,null,10]
[null,null,"2021-07-13",null,9]
[null,null,"2021-07-28",null,null,11]
[null,null,"2021-08-06",null,7]
[null,null,"2021-08-25",null,null,13]
[null,null,"2021-09-03","decyzja",7]
[]
[]
[]
[null,null,"Razem",null,41,43]
[]
[]
[]
["SUPLEMENTY",null,{"$f":"$C$2","v":"Kruk S.A. (prospekt podstawowy obligacji)"}]
[null,"zakończone","Suplement nr 1"]
[]
[null,null,"Data",null,"Czynności po stronie urzędu","Czynności po stronie emitenta"]
[null,null,null,null,"(w dniach roboczych)"]
[null,null,"2021-09-09","wniosek"]
[null,null,"2021-09-14",null,3]
[null,null,"2021-09-15",null,null,1]
[null,null,"2021-09-21","decyzja",4]
[]
[null,null,"Razem",null,7,1]
[]
[]
[null,null,{"$f":"$C$2","v":"Kruk S.A. (prospekt podstawowy obligacji)"}]
[null,"zakończone","Suplement nr 2"]
[]
[null,null,"Data",null,"Czynności po stronie urzędu","Czynności po stronie emitenta"]
[null,null,null,null,"(w dniach roboczych)"]
[null,null,"2021-11-04","wniosek"]
[null,null,"2021-11-08","decyzja",2]
[]
[]
[null,null,"Razem",null,2,0]
[]
[]
[null,null,{"$f":"$C$2","v":"Kruk S.A. (prospekt podstawowy obligacji)"}]
[null,"zakończone","Suplement nr 3"]
[]
[null,null,"Data",null,"Czynności po stronie urzędu","Czynności po stronie emitenta"]
[null,null,null,null,"(w dniach roboczych)"]
[null,null,"2022-03-16","wniosek"]
[null,null,"2022-03-22",null,5]
[null,null,"2022-03-25",null,null,3]
[null,null,"2022-03-28","decyzja",1]
[null,null,"Razem",null,6,3]
[]
[]
[]
[]
[null,null,{"$f":"$C$2","v":"Kruk S.A. (prospekt podstawowy obligacji)"}]
[null,"zakończone","Suplement nr 4"]
[]
[null,null,"Data",null,"Czynności po stronie urzędu","Czynności po stronie emitenta"]
[null,null,null,null,"(w dniach roboczych)"]
[null,null,"2022-04-29","wniosek"]
[null,null,"2022-05-09","decyzja",5]
[null,null,"Razem",null,5,0]

{"sheet":"Beta ETF mWIG40TR Portfel","index":121,"n_rows":30,"n_cols":6,"rows_kept":30,"cut":false,"hidden":false,"merged":[[5,2,6,2],[6,4,6,5],[23,2,24,2],[24,4,24,5]]}
["Spis treści"]
[null,null,"Beta ETF mWIG40TR Portfelowy FIZ"]
["PROSPEKT","zakończone","Prospekt"]
[]
["410.10.2021"]
[null,null,"Data",null,"Czynności po stronie urzędu","Czynności po stronie emitenta"]
[null,null,null,null,"(w dniach roboczych)"]
[null,null,"2021-04-28","wniosek"]
[null,null,"2021-05-12",null,9]
[null,null,"2021-05-26",null,null,10]
[null,null,"2021-06-02",null,5]
[null,null,"2021-06-16",null,null,9]
[null,null,"2021-06-21",null,3]
[null,null,"2021-06-21",null,null,0]
[null,null,"2021-06-23","decyzja",2]
[]
[null,null,"Razem",null,19,19]
[]
[]
[]
["SUPLEMENTY",null,{"$f":"$C$2","v":"Beta ETF mWIG40TR Portfelowy FIZ"}]
[null,"      ","Suplement nr 1"]
[]
[null,null,"Data",null,"Czynności po stronie urzędu","Czynności po stronie emitenta"]
[null,null,null,null,"(w dniach roboczych)"]
[null,null,null,"wniosek"]
[]
[]
[]
[null,null,"Razem",null,{"$f":"SUM(E26:E29)","v":0},{"$f":"SUM(F26:F29)","v":0}]

{"sheet":"ONDE SA 2021","index":122,"n_rows":48,"n_cols":6,"rows_kept":48,"cut":false,"hidden":false,"merged":[[5,2,6,2],[6,4,6,5],[27,2,28,2],[28,4,28,5],[40,2,41,2],[41,4,41,5]]}
["Spis treści"]
[null,null,"ONDE SA"]
["PROSPEKT","zakończone","Prospekt"]
[]
["410.8.2021"]
[null,null,"Data",null,"Czynności po stronie urzędu","Czynności po stronie emitenta"]
[null,null,null,null,"(w dniach roboczych)"]
[null,null,"2021-04-16","wniosek"]
[null,null,"2021-05-05",null,12]
[null,null,"2021-05-07",null,null,2]
[null,null,"2021-05-20",null,9]
[null,null,"2021-05-28",null,null,6]
[null,null,"2021-06-11",null,9]
[null,null,"2021-06-17",null,null,4]
[null,null,"2021-06-21",null,2]
[null,null,"2021-06-23","decyzja",null,2]
[]
[]
[]
[]
[null,null,"Razem",null,32,14]
[]
[]
[]
["SUPLEMENTY",null,{"$f":"$C$2","v":"ONDE SA"}]
[null,"zakończone","Suplement nr 1"]
[]
[null,null,"Data",null,"Czynności po stronie urzędu","Czynności po stronie emitenta"]
[null,null,null,null,"(w dniach roboczych)"]
[null,null,"2021-06-25","wniosek"]
[null,null,"2021-06-28",null,1]
[null,null,"2021-06-29",null,null,1]
[null,null,"2021-06-29","decyzja",0]
[]
[null,null,"Razem",null,1,1]
[]
[]
[null,null,{"$f":"$C$2","v":"ONDE SA"}]
[null,"zakończone","Suplement nr 2"]
[]
[null,null,"Data",null,"Czynności po stronie urzędu","Czynności po stronie emitenta"]
[null,null,null,null,"(w dniach roboczych)"]
[null,null,"2021-07-12","wniosek"]
[null,null,"2021-07-13",null,1]
[null,null,"2021-07-13",null,null,0]
[null,null,"2021-07-14","decyzja",1]
[]
[null,null,"Razem",null,2,0]

{"sheet":"Ipopema Medycyny i Innowa","index":123,"n_rows":88,"n_cols":6,"rows_kept":88,"cut":false,"hidden":false,"merged":[[83,2,84,2],[5,2,6,2],[6,4,6,5],[36,2,37,2],[54,2,55,2],[70,2,71,2]]}
["Spis treści"]
[null,null,"Ipopema Medycyny i Innowacji FIZ"]
["PROSPEKT","zakończone","Prospekt"]
[]
["410.9.2021"]
[null,null,"Data",null,"Czynności po stronie urzędu","Czynności po stronie emitenta"]
[null,null,null,null,"(w dniach roboczych)"]
[null,null,"2021-04-14","wniosek"]
[null,null,"2021-04-28",null,10]
[null,null,"2021-06-21",null,null,36]
[null,null,"2021-07-02",null,9]
[null,null,"2021-07-23",null,null,15]
[null,null,"2021-08-05",null,9]
[null,null,"2021-08-31",null,null,18]
[null,null,"2021-09-14",null,10]
[null,null,"2021-10-22",null,null,28]
[null,null,"2021-11-05",null,9]
[null,null,"2021-11-19",null,null,10]
[null,null,"2021-12-03",null,9]
[null,null,"2021-12-30",null,null,19]
[null,null,"2022-01-12",null,8]
[null,null,"2022-03-03",null,null,36]
[null,null,"2022-03-17",null,10]
[null,null,"2022-04-05",null,null,13]
[null,null,"2022-04-14","aktualizacja",null,7]
[null,null,"2022-04-29","decyzja",10]
[]
[]
[null,null,null,null,{"$f":"SUM(E8:E28)","v":84},{"$f":"SUM(F8:F28)","v":182}]
[null,null,"Razem"]
[]
[]
["SUPLEMENTY"]
[null,"zakończone",{"$f":"$C$2","v":"Ipopema Medycyny i Innowacji FIZ"}]
[null,null,"Suplement nr 1"]
[]
[null,null,"Data",null,"Czynności po stronie urzędu","Czynności po stronie emitenta"]
[null,null,null,null,"(w dniach roboczych)"]
[null,null,"2022-05-09","wniosek"]
[null,null,"2022-05-12",null,3]
[null,null,"2022-05-18",null,null,4]
[null,null,"2022-05-23",null,3]
[null,null,"2022-05-24",null,null,1]
[null,null,"2022-05-25","aktualizacja",null,1]
[null,null,"2022-05-26","decyzja",1]
[]
[null,null,"Razem",null,{"$f":"SUM(E39:E46)","v":7},{"$f":"SUM(F39:F46)","v":6}]
[]
[]
[]
["SUPLEMENTY"]
[null,"zakończone",{"$f":"$C$2","v":"Ipopema Medycyny i Innowacji FIZ"}]
[null,null,"Suplement nr 2"]
[]
[null,null,"Data",null,"Czynności po stronie urzędu","Czynności po stronie emitenta"]
[null,null,null,null,"(w dniach roboczych)"]
[null,null,"2022-06-03","wniosek"]
[null,null,"2022-06-07",null,2]
[null,null,"2022-06-08",null,null,1]
[null,null,"2022-06-09","decyzja",1]
[]
[null,null,"Razem",null,{"$f":"SUM(E57:E61)","v":3},{"$f":"SUM(F57:F61)","v":1}]
[]
[]
[]
[]
["SUPLEMENTY"]
[null,"zakończone",{"$f":"$C$2","v":"Ipopema Medycyny i Innowacji FIZ"}]
[null,null,"Suplement nr 3"]
[]
[null,null,"Data",null,"Czynności po stronie urzędu","Czynności po stronie emitenta"]
[null,null,null,null,"(w dniach roboczych)"]
[null,null,"2022-07-13","wniosek"]
[null,null,"2022-07-19","decyzja",4]
[null,null,"Razem",null,{"$f":"SUM(E73:E74)","v":4},{"$f":"SUM(F73:F74)","v":0}]
[]
[]
[]
[]
["SUPLEMENTY"]
[null,"w toku",{"$f":"$C$2","v":"Ipopema Medycyny i Innowacji FIZ"}]
[null,null,"Suplement nr 4"]
[]
[null,null,"Data",null,"Czynności po stronie urzędu","Czynności po stronie emitenta"]
[null,null,null,null,"(w dniach roboczych)"]
[null,null,"2023-04-07","wniosek"]
[null,null,"2023-04-17",null,5]
[null,null,"Razem",null,{"$f":"SUM(E86:E87)","v":5},{"$f":"SUM(F86:F87)","v":0}]

{"sheet":"Cavatina Holding SA","index":124,"n_rows":34,"n_cols":6,"rows_kept":34,"cut":false,"hidden":false,"merged":[[5,2,6,2],[6,4,6,5],[27,2,28,2],[28,4,28,5]]}
["Spis treści"]
[null,null,"Cavatina Holding SA"]
["PROSPEKT","zakończone","Prospekt"]
[]
["410.7.2021"]
[null,null,"Data",null,"Czynności po stronie urzędu","Czynności po stronie emitenta"]
[null,null,null,null,"(w dniach roboczych)"]
[null,null,"2021-03-22","wniosek"]
[null,null,"2021-04-16",null,18]
[null,null,"2021-04-23",null,null,5]
[null,null,"2021-05-07",null,9]
[null,null,"2021-05-17",null,null,6]
[null,null,"2021-05-31",null,10]
[null,null,"2021-06-02",null,null,2]
[null,null,"2021-06-17",null,10]
[null,null,"2021-06-18",null,null,1]
[null,null,"2021-06-24","aktualizacja",null,4]
[null,null,"2021-06-30","decyzja",4]
[]
[]
[null,null,"Razem",null,51,18]
[]
[]
[]
["SUPLEMENTY",null,{"$f":"$C$2","v":"Cavatina Holding SA"}]
[null,"zakończone","Suplement nr 1"]
[]
[null,null,"Data",null,"Czynności po stronie urzędu","Czynności po stronie emitenta"]
[null,null,null,null,"(w dniach roboczych)"]
[null,null,"2021-07-01","wniosek"]
[null,null,"2021-07-01","decyzja",1]
[null,null,null,null,null,0]
[]
[null,null,"Razem",null,1,0]

{"sheet":"Canal+ Polska SA 2021","index":125,"n_rows":34,"n_cols":6,"rows_kept":34,"cut":false,"hidden":false,"merged":[[5,2,6,2],[6,4,6,5],[27,2,28,2],[28,4,28,5]]}
["Spis treści"]
[null,null,"Canal+ Polska SA"]
["PROSPEKT","umorzone","Prospekt"]
[]
["410.6.2021"]
[null,null,"Data",null,"Czynności po stronie urzędu","Czynności po stronie emitenta"]
[null,null,null,null,"(w dniach roboczych)"]
[null,null,"2021-03-17","wniosek"]
[null,null,"2021-03-30",null,9]
[null,null,"2021-04-06",null,null,4]
[null,null,"2021-04-12",null,4]
[null,null,"2021-04-15",null,null,3]
[null,null,"2021-04-21",null,4]
[null,null,"2022-04-04","wniosek",null,243]
[null,null,"2022-04-27","decyzja o umorzeniu",16]
[]
[]
[]
[]
[]
[null,null,"Razem",null,{"$f":"SUM(E8:E20)","v":33},{"$f":"SUM(F8:F20)","v":250}]
[]
[]
[]
["SUPLEMENTY",null,{"$f":"$C$2","v":"Canal+ Polska SA"}]
[null,"      ","Suplement nr 1"]
[]
[null,null,"Data",null,"Czynności po stronie urzędu","Czynności po stronie emitenta"]
[null,null,null,null,"(w dniach roboczych)"]
[null,null,null,"wniosek"]
[]
[]
[]
[null,null,"Razem",null,{"$f":"SUM(E30:E33)","v":0},{"$f":"SUM(F30:F33)","v":0}]

{"sheet":"Shoper S.A.","index":126,"n_rows":34,"n_cols":6,"rows_kept":34,"cut":false,"hidden":false,"merged":[[5,2,6,2],[6,4,6,5],[27,2,28,2],[28,4,28,5]]}
["Spis treści"]
[null,null,"Shoper S.A."]
["PROSPEKT","zakończone","Prospekt"]
[]
["410.4.2021"]
[null,null,"Data",null,"Czynności po stronie urzędu","Czynności po stronie emitenta"]
[null,null,null,null,"(w dniach roboczych)"]
[null,null,"2021-03-11","wniosek"]
[null,null,"2021-04-08",null,19]
[null,null,"2021-04-15",null,null,5]
[null,null,"2021-04-28",null,9]
[null,null,"2021-05-07",null,null,6]
[null,null,"2021-05-20",null,9]
[null,null,"2021-05-26",null,null,4]
[null,null,"2021-06-02",null,5]
[null,null,"2021-06-10",null,null,5]
[null,null,"2021-06-15",null,3]
[null,null,"2021-06-17",null,null,2]
[null,null,"2021-06-18","decyzja",1]
[]
[null,null,"Razem",null,46,22]
[]
[]
[]
["SUPLEMENTY",null,{"$f":"$C$2","v":"Shoper S.A."}]
[null,"      ","Suplement nr 1"]
[]
[null,null,"Data",null,"Czynności po stronie urzędu","Czynności po stronie emitenta"]
[null,null,null,null,"(w dniach roboczych)"]
[null,null,null,"wniosek"]
[]
[]
[]
[null,null,"Razem",null,{"$f":"SUM(E30:E33)","v":0},{"$f":"SUM(F30:F33)","v":0}]

{"sheet":"Big Cheese Studio S.A. ","index":127,"n_rows":54,"n_cols":6,"rows_kept":54,"cut":false,"hidden":false,"merged":[[5,2,6,2],[6,4,6,5],[30,2,31,2],[31,4,31,5],[44,2,45,2],[45,4,45,5]]}
["Spis treści"]
[null,null,"Big Cheese Studio S.A. "]
["PROSPEKT","zakończone","Prospekt"]
[]
["410.3.2021"]
[null,null,"Data",null,"Czynności po stronie urzędu","Czynności po stronie emitenta"]
[null,null,null,null,"(w dniach roboczych)"]
[null,null,"2021-03-08","wniosek"]
[null,"uwagi nr 1","2021-03-26",null,14]
[null,null,"2021-04-27",null,null,21]
[null,"uwagi nr 2","2021-05-12",null,10]
[null,null,"2021-06-05",null,null,16]
[null,"uwagi nr 3","2021-06-17",null,9]
[null,null,"2021-07-22",null,null,25]
[null,"uwagi nr 4","2021-08-04",null,9]
[null,null,"2021-09-09",null,null,26]
[null,null,"2021-09-21",null,8]
[null,null,"2021-09-24",null,null,3]
[null,null,"2021-09-30",null,4]
[null,null,"2021-10-04",null,null,2]
[null,null,"2021-10-07",null,3]
[null,null,"2021-10-08",null,null,1]
[null,null,"2021-10-12","decyzja",6]
[null,null,"Razem",null,54,93]
[]
[]
[]
["SUPLEMENTY",null,{"$f":"$C$2","v":"Big Cheese Studio S.A. "}]
[null,"zakończone","Suplement nr 1"]
[]
[null,null,"Data",null,"Czynności po stronie urzędu","Czynności po stronie emitenta"]
[null,null,null,null,"(w dniach roboczych)"]
[null,null,"2021-10-27","wniosek"]
[null,null,"2021-10-27","decyzja",0]
[null,null,null,null,null,0]
[]
[null,null,"Razem",null,0,0]
[]
[]
[]
[]
["SUPLEMENTY",null,{"$f":"$C$2","v":"Big Cheese Studio S.A. "}]
[null,"w toku","Suplement nr 2"]
[]
[null,null,"Data",null,"Czynności po stronie urzędu","Czynności po stronie emitenta"]
[null,null,null,null,"(w dniach roboczych)"]
[null,null,"2021-12-09","wniosek"]
[null,null,"2021-12-14",null,3]
[null,null,"2021-12-17",null,null,3]
[null,null,"2021-12-21",null,2]
[null,null,"2021-12-28",null,null,5]
[]
[]
[null,null,"Razem",null,0,0]

{"sheet":"Celon Pharma S.A.","index":128,"n_rows":38,"n_cols":6,"rows_kept":38,"cut":false,"hidden":false,"merged":[[5,2,6,2],[6,4,6,5],[31,2,32,2],[32,4,32,5]]}
["Spis treści"]
[null,null,"Celon Pharma S.A."]
["PROSPEKT","zakończone","Prospekt"]
[]
["410.5.2021"]
[null,null,"Data",null,"Czynności po stronie urzędu","Czynności po stronie emitenta"]
[null,null,null,null,"(w dniach roboczych)"]
[null,null,"2021-03-05","wniosek"]
[null,null,"2021-03-19",null,10]
[null,null,"2021-04-07",null,null,12]
[null,null,"2021-04-21",null,10]
[null,null,"2021-04-29",null,null,6]
[null,null,"2021-05-14",null,10]
[null,null,"2021-05-22",null,null,5]
[null,null,"2021-06-02",null,8]
[null,null,"2021-06-15",null,null,8]
[null,null,"2021-06-22",null,5]
[null,null,"2021-06-25",null,null,3]
[null,null,"2021-06-29",null,2]
[null,null,"2021-06-30",null,null,1]
[null,null,"2021-07-01",null,null,1]
[null,null,"2021-07-01","decyzja",0]
[]
[]
[null,null,"Razem",null,{"$f":"SUM(E8:E24)","v":45},{"$f":"SUM(F8:F24)","v":36}]
[]
[]
[]
["SUPLEMENTY",null,{"$f":"$C$2","v":"Celon Pharma S.A."}]
[null,"      ","Suplement nr 1"]
[]
[null,null,"Data",null,"Czynności po stronie urzędu","Czynności po stronie emitenta"]
[null,null,null,null,"(w dniach roboczych)"]
[null,null,null,"wniosek"]
[]
[]
[]
[null,null,"Razem",null,{"$f":"SUM(E34:E37)","v":0},{"$f":"SUM(F34:F37)","v":0}]

{"sheet":"Emitel S.A.","index":129,"n_rows":37,"n_cols":6,"rows_kept":37,"cut":false,"hidden":false,"merged":[[5,2,6,2],[6,4,6,5],[30,2,31,2],[31,4,31,5]]}
["Spis treści"]
[null,null,"Emitel S.A."]
["PROSPEKT","zawieszone","Prospekt"]
[]
["410.2.2021"]
[null,null,"Data",null,"Czynności po stronie urzędu","Czynności po stronie emitenta"]
[null,null,null,null,"(w dniach roboczych)"]
[null,null,"2021-01-29","wniosek"]
[null,null,"2021-02-25",null,19]
[null,null,"2021-03-12",null,null,11]
[null,null,"2021-03-26",null,10]
[null,null,"2021-04-02",null,null,5]
[null,null,"2021-04-15",null,8]
[null,null,"2021-04-30",null,null,11]
[null,null,"2021-05-14",null,9]
[null,null,"2021-06-02",null,null,13]
[null,null,"2021-06-17",null,10]
[null,null,"2021-07-16",null,null,21]
[null,null,"2021-07-29",null,9]
[]
[]
[]
[]
[null,null,"Razem",null,{"$f":"SUM(E8:E23)","v":65},{"$f":"SUM(F8:F23)","v":61}]
[]
[]
[]
["SUPLEMENTY",null,{"$f":"$C$2","v":"Emitel S.A."}]
[null,"      ","Suplement nr 1"]
[]
[null,null,"Data",null,"Czynności po stronie urzędu","Czynności po stronie emitenta"]
[null,null,null,null,"(w dniach roboczych)"]
[null,null,null,"wniosek"]
[]
[]
[]
[null,null,"Razem",null,{"$f":"SUM(E33:E36)","v":0},{"$f":"SUM(F33:F36)","v":0}]

{"sheet":"BEST SA","index":130,"n_rows":64,"n_cols":6,"rows_kept":64,"cut":false,"hidden":false,"merged":[[57,2,58,2],[58,4,58,5],[5,2,6,2],[6,4,6,5],[30,2,31,2],[31,4,31,5],[42,2,43,2],[43,4,43,5]]}
["Spis treści"]
[null,null,"BEST SA"]
["PROSPEKT","zakończone","Prospekt"]
[]
["410.1.2021"]
[null,null,"Data",null,"Czynności po stronie urzędu","Czynności po stronie emitenta"]
[null,null,null,null,"(w dniach roboczych)"]
[null,null,"2021-01-14","wniosek"]
[null,null,"2021-01-28",null,10]
[null,null,"2021-02-11",null,null,10]
[null,null,"2021-02-17","aktualizacja",null,4]
[null,null,"2021-02-24",null,5]
[null,null,"2021-03-12",null,null,12]
[null,null,"2021-03-26",null,10]
[null,null,"2021-04-16",null,null,14]
[null,null,"2021-04-30",null,10]
[null,null,"2021-05-13",null,null,8]
[null,null,"2021-05-18","aktualizacja",null,3]
[null,null,"2021-05-31","aktualizacja",null,9]
[null,null,"2021-06-11",null,8]
[null,null,"2021-06-14",null,null,1]
[null,null,"2021-06-17","decyzja",3]
[]
[null,null,"Razem",null,46,61]
[]
[]
[]
["SUPLEMENTY",null,{"$f":"$C$2","v":"BEST SA"}]
[null,"zakończone","Suplement nr 1"]
[]
[null,null,"Data",null,"Czynności po stronie urzędu","Czynności po stronie emitenta"]
[null,null,null,null,"(w dniach roboczych)"]
[null,null,"2021-09-07","wniosek"]
[null,null,"2021-09-13","decyzja",4]
[null,null,null,null,null,0]
[]
[null,null,"Razem",null,{"$f":"SUM(E33:E36)","v":4},{"$f":"SUM(F33:F36)","v":0}]
[]
[]
["SUPLEMENTY",null,{"$f":"$C$2","v":"BEST SA"}]
[null,"zakończone","Suplement nr 2"]
[]
[null,null,"Data",null,"Czynności po stronie urzędu","Czynności po stronie emitenta"]
[null,null,null,null,"(w dniach roboczych)"]
[null,null,"2022-03-31","wniosek"]
[null,null,"2022-04-05",null,3]
[null,null,"2022-04-14",null,null,7]
[null,null,"2022-04-22","decyzja",5]
[]
[null,null,"Razem",null,{"$f":"SUM(E45:E49)","v":8},{"$f":"SUM(F45:F49)","v":7}]
[]
[]
[]
[]
["SUPLEMENTY",null,{"$f":"$C$2","v":"BEST SA"}]
[null,"      ","Suplement nr ……"]
[]
[null,null,"Data",null,"Czynności po stronie urzędu","Czynności po stronie emitenta"]
[null,null,null,null,"(w dniach roboczych)"]
[null,null,"2022-10-05","wniosek"]
[null,null,"2022-10-07",null,2]
[]
[]
[null,null,"Razem",null,{"$f":"SUM(E60:E63)","v":2},{"$f":"SUM(F60:F63)","v":0}]

{"sheet":"KREDYT INKASO SA (obligac","index":131,"n_rows":129,"n_cols":6,"rows_kept":129,"cut":false,"hidden":false,"merged":[[118,2,119,2],[119,4,119,5],[5,2,6,2],[6,4,6,5],[37,2,38,2],[38,4,38,5],[53,2,54,2],[54,4,54,5],[102,2,103,2],[103,4,103,5],[86,2,87,2],[87,4,87,5],[69,2,70,2],[70,4,70,5]]}
[]
[null,null,"KREDYT INKASO S.A."]
["PROSPEKT","zakończone","Prospekt podstawowy"]
[]
[]
["Pismo przychodzące","Pismo wychodzące lub zdarzenie przerywające termin","Data",null,"Czynności po stronie urzędu","Czynności po stronie emitenta"]
[null,null,null,null,"(w dniach roboczych)"]
["wniosek ",null,"2020-12-23","wniosek"]
[null,"uwagi nr 1","2021-01-08",null,9]
[null,null,"2021-01-27",null,null,13]
[null,"uwagi nr 2","2021-02-10",null,10]
[null,null,"2021-03-03",null,null,15]
[null,"uwagi nr 3","2021-03-17",null,10]
[null,null,"2021-04-12",null,null,17]
[null,"uwagi nr 4","2021-04-26",null,10]
[null,null,"2021-05-11",null,null,10]
[null,"uwagi nr 5","2021-05-24",null,9]
[null,null,"2021-06-14",null,null,14]
[null,"uwagi nr 6","2021-06-28",null,10]
[null,null,"2021-07-14",null,null,12]
[null,"Uwagi nr  7","2021-07-22",null,6]
[null,null,"2021-07-30",null,null,6]
[null,"uwagi nr 8","2021-08-02",null,1]
[null,null,"2021-08-19",null,null,13]
[null,"uwagi nr 9","2021-08-20",null,1]
[null,null,"2021-08-23",null,null,1]
[null,null,"2021-08-24",null,1]
[null,null,"2021-08-24",null,null,0]
[null,null,"2021-08-26","decyzja"]
[]
[null,null,"Razem",null,67,101]
[]
[]
[]
["SUPLEMENTY",null,{"$f":"$C$2","v":"KREDYT INKASO S.A."}]
[null,"zakończone","Suplement nr 1"]
[]
[null,null,"Data",null,"Czynności po stronie urzędu","Czynności po stronie emitenta"]
[null,null,null,null,"(w dniach roboczych)"]
[null,null,"2021-09-01","wniosek"]
[null,"uwai nr 1","2021-09-03",null,2]
[null,null,"2021-09-16",null,null,9]
[null,"uwagi nr 2","2021-09-21",null,3]
[null,null,"2021-10-01",null,null,8]
[null,null,"2021-10-04","aktualizacja",null,1]
[null,null,"2021-10-05","decyzja",1]
[]
[null,null,"Razem",null,6,18]
[]
[]
["SUPLEMENTY",null,{"$f":"$C$2","v":"KREDYT INKASO S.A."}]
[null,"zakończone","Suplement nr 2"]
[]
[null,null,"Data",null,"Czynności po stronie urzędu","Czynności po stronie emitenta"]
[null,null,null,null,"(w dniach roboczych)"]
[null,null,"2021-11-29","wniosek"]
[null,"uwagi nr 1","2021-12-03",null,4]
[null,null,"2021-12-10",null,null,5]
[null,null,"2021-12-15",null,3]
[]
[]
[]
[]
[null,null,"Razem",null,7,5]
[]
[]
[null,null,{"$f":"$C$2","v":"KREDYT INKASO S.A."}]
[null,"zakończone","Suplement nr 3"]
[]
[null,null,"Data",null,"Czynności po stronie urzędu","Czynności po stronie emitenta"]
[null,null,null,null,"(w dniach roboczych)"]
[null,null,"2022-02-24","wniosek"]
[null,null,"2022-03-02",null,4]
[null,null,"2022-03-06",null,null,2]
[null,null,"2022-03-09","aktualizacja",null,3]
[null,null,"2022-03-10",null,1]
[null,null,"2022-03-13",null,null,1]
[null,null,"2022-03-15","decyzja",2]
[]
[null,null,"Razem",null,7,6]
[]
[]
[]
[null,null,{"$f":"$C$2","v":"KREDYT INKASO S.A."}]
[null,"zakończone","Suplement nr 4"]
[]
[null,null,"Data",null,"Czynności po stronie urzędu","Czynności po stronie emitenta"]
[null,null,null,null,"(w dniach roboczych)"]
[null,null,"2022-03-13","wniosek"]
[null,null,"2022-03-15","aktualizacja",null,2]
[null,null,"2022-03-17","decyzja",2]
[]
[]
[]
[]
[]
[null,null,"Razem",null,2,2]
[]
[]
[null,null,{"$f":"$C$2","v":"KREDYT INKASO S.A."}]
[null,"zakończone","Suplement nr 5"]
[]
[null,null,"Data",null,"Czynności po stronie urzędu","Czynności po stronie emitenta"]
[null,null,null,null,"(w dniach roboczych)"]
[null,null,"2022-03-30","wniosek"]
[null,null,"2022-04-01","decyzja",2]
[]
[]
[]
[]
[]
[]
[null,null,"Razem",null,2,0]
[]
[]
[null,null,{"$f":"$C$2","v":"KREDYT INKASO S.A."}]
[null,"zakończone","Suplement nr 6"]
[]
[null,null,"Data",null,"Czynności po stronie urzędu","Czynności po stronie emitenta"]
[null,null,null,null,"(w dniach roboczych)"]
[null,null,"2022-07-05","wniosek"]
[null,null,"2022-07-08",null,3]
[null,null,"2022-07-12",null,null,2]
[null,null,"2022-07-14","decyzja",2]
[]
[]
[]
[]
[null,null,"Razem",null,{"$f":"SUM(E122:E128)","v":5},{"$f":"SUM(F122:F127)","v":2}]

{"sheet":"Vercom S.A.","index":132,"n_rows":34,"n_cols":6,"rows_kept":34,"cut":false,"hidden":false,"merged":[[5,2,6,2],[6,4,6,5],[27,2,28,2],[28,4,28,5]]}
[]
[null,null,"Vercom S.A."]
["PROSPEKT","zakończone","Prospekt akcji"]
[]
[]
["Pismo przychodzące","Pismo wychodzące lub zdarzenie przerywające termin","Data",null,"Czynności po stronie urzędu","Czynności po stronie emitenta"]
[null,null,null,null,"(w dniach roboczych)"]
["wniosek ",null,"2020-12-17","wniosek"]
[null,"uwagi nr 1","2021-01-19",null,20]
[null,null,"2021-02-22",null,null,24]
[null,null,"2021-03-05",null,9]
[null,null,"2021-03-10",null,null,3]
[null,null,"2021-03-23",null,9]
[null,null,"2021-03-27",null,null,3]
[null,null,"2021-04-02",null,5]
[null,null,"2021-04-06",null,null,1]
[null,null,"2021-04-07",null,1]
[null,null,"2021-04-09",null,null,2]
[null,null,"2021-04-12",null,1]
[]
[null,null,"Razem",null,45,33]
[]
[]
[]
["SUPLEMENTY",null,{"$f":"$C$2","v":"Vercom S.A."}]
[null,"      ","Suplement nr 1"]
[]
[null,null,"Data",null,"Czynności po stronie urzędu","Czynności po stronie emitenta"]
[null,null,null,null,"(w dniach roboczych)"]
[null,null,null,"wniosek"]
[]
[]
[]
[null,null,"Razem",null,{"$f":"SUM(E30:E33)","v":0},{"$f":"SUM(F30:F33)","v":0}]

{"sheet":"Dekpol SA obligacje 2020","index":133,"n_rows":82,"n_cols":6,"rows_kept":82,"cut":false,"hidden":false,"merged":[[5,2,6,2],[6,4,6,5],[27,2,28,2],[28,4,28,5],[39,2,40,2],[40,4,40,5],[76,2,77,2],[77,4,77,5],[51,2,52,2],[52,4,52,5],[63,2,64,2],[64,4,64,5]]}
[]
["PROSPEKT",null,"Dekpol S.A."]
[null,"zakończone","Prospekt podstawowy"]
[]
[]
["Pismo przychodzące","Pismo wychodzące lub zdarzenie przerywające termin","Data",null,"Czynności po stronie urzędu","Czynności po stronie emitenta"]
[null,null,null,null,"(w dniach roboczych)"]
["wniosek ",null,"2020-12-16","wniosek"]
[null,"uwagi nr 1","2020-12-31",null,10]
[null,null,"2021-01-25",null,null,15]
[null,"uwagi nr 2","2021-02-08",null,10]
[null,null,"2021-03-08",null,null,20]
[null,null,"2021-03-18",null,8]
[null,null,"2021-04-01",null,null,10]
[null,null,"2021-04-08",null,4]
[null,null,"2021-04-15",null,null,5]
[null,null,"2021-04-21","decyzja",4]
[]
[]
[]
[null,null,"Razem",null,36,50]
[]
[]
[]
["SUPLEMENTY",null,{"$f":"$C$2","v":"Dekpol S.A."}]
[null,"zakończone","Suplement nr 1"]
[]
[null,null,"Data",null,"Czynności po stronie urzędu","Czynności po stronie emitenta"]
[null,null,null,null,"(w dniach roboczych)"]
[null,null,"2021-05-15","wniosek"]
[null,null,"2021-05-19","decyzja",3]
[null,null,null,null,null,0]
[null,null,"Razem",null,3,0]
[]
[]
[]
[null,null,{"$f":"$C$2","v":"Dekpol S.A."}]
[null,"zakończone","Suplement nr 2"]
[]
[null,null,"Data",null,"Czynności po stronie urzędu","Czynności po stronie emitenta"]
[null,null,null,null,"(w dniach roboczych)"]
[null,null,"2021-06-08","wniosek"]
[null,null,"2021-06-14","decyzja",4]
[null,null,null,null,null,0]
[null,null,"Razem",null,4,0]
[]
[]
[]
[null,null,{"$f":"$C$2","v":"Dekpol S.A."}]
[null,"zakończone","Suplement nr 3"]
[]
[null,null,"Data",null,"Czynności po stronie urzędu","Czynności po stronie emitenta"]
[null,null,null,null,"(w dniach roboczych)"]
[null,null,"2021-09-28","wniosek"]
[null,null,"2021-10-01",null,3]
[null,null,null,null,null,0]
[null,null,"Razem",null,3,0]
[]
[]
[]
[null,null,{"$f":"$C$2","v":"Dekpol S.A."}]
[null,"zakończone","Suplement nr 4"]
[]
[null,null,"Data",null,"Czynności po stronie urzędu","Czynności po stronie emitenta"]
[null,null,null,null,"(w dniach roboczych)"]
[null,null,"2021-11-26","wniosek"]
[null,null,"2021-12-02",null,4]
[null,null,"2021-12-03",null,null,1]
[null,null,"2021-12-08","decyzja",3]
[null,null,"Razem",null,{"$f":"SUM(E66:E69)","v":7},{"$f":"SUM(F66:F69)","v":1}]
[]
[]
[]
[null,null,{"$f":"$C$2","v":"Dekpol S.A."}]
[null,"zakończone","Suplement nr 5"]
[]
[null,null,"Data",null,"Czynności po stronie urzędu","Czynności po stronie emitenta"]
[null,null,null,null,"(w dniach roboczych)"]
[null,null,"2022-03-16","wniosek"]
[null,null,"2022-03-17",null,null,1]
[null,null,"2022-03-18",null,1]
[null,null,"Razem",null,{"$f":"SUM(E79:E81)","v":1},{"$f":"SUM(F79:F81)","v":1}]

{"sheet":"Pekao Bank Hipoteczny S.A.","index":134,"n_rows":119,"n_cols":6,"rows_kept":119,"cut":false,"hidden":false,"merged":[[78,2,79,2],[79,4,79,5],[52,2,53,2],[53,4,53,5],[64,2,65,2],[65,4,65,5],[5,2,6,2],[6,4,6,5],[27,2,28,2],[28,4,28,5],[39,2,40,2],[40,4,40,5],[114,2,115,2],[115,4,115,5],[102,2,103,2],[103,4,103,5],[90,2,91,2],[91,4,91,5]]}
[]
["PROSPEKT",null,"Pekao Bank Hipoteczny S.A."]
[null,"zakończone","Prospekt podstawowy publicznych i hipotecznych listów zastawnych "]
[]
[]
["Pismo przychodzące","Pismo wychodzące lub zdarzenie przerywające termin","Data",null,"Czynności po stronie urzędu","Czynności po stronie emitenta"]
[null,null,null,null,"(w dniach roboczych)"]
["wniosek ",null,"2020-11-13","wniosek"]
[null,"uwagi nr 1","2020-11-27",null,10]
[null,null,"2020-12-12",null,null,10]
[null,null,"2020-12-22",null,7]
[null,null,"2021-01-05",null,null,8]
[null,null,"2021-01-19",null,9]
[null,null,"2021-01-22",null,null,3]
[null,null,"2021-01-26",null,2]
[null,null,"2021-01-26",null,null,0]
[null,null,"2021-02-04",null,7]
[null,null,"2021-02-11",null,null,5]
[null,null,"2021-02-12","decyzja",1]
[]
[null,null,"Razem",null,36,26]
[]
[]
[]
["SUPLEMENTY",null,{"$f":"$C$2","v":"Pekao Bank Hipoteczny S.A."}]
[null,"zakończone","Suplement nr 1"]
[]
[null,null,"Data",null,"Czynności po stronie urzędu","Czynności po stronie emitenta"]
[null,null,null,null,"(w dniach roboczych)"]
[null,null,"2021-02-17","wniosek"]
[null,null,"2021-02-22",null,3]
[null,null,null,null,null,0]
[null,null,"Razem",null,3,0]
[]
[]
[]
[null,null,{"$f":"$C$2","v":"Pekao Bank Hipoteczny S.A."}]
[null,"zakończone","Suplement nr 2"]
[]
[null,null,"Data",null,"Czynności po stronie urzędu","Czynności po stronie emitenta"]
[null,null,null,null,"(w dniach roboczych)"]
[null,null,"2021-02-25","wniosek"]
[null,null,"2021-03-04",null,5]
[null,null,"2021-03-05",null,null,1]
[null,null,"2021-03-09",null,2]
[null,null,"Razem",null,7,1]
[]
[]
[]
[null,null,{"$f":"$C$2","v":"Pekao Bank Hipoteczny S.A."}]
[null,"zakończone","Suplement nr 3"]
[]
[null,null,"Data",null,"Czynności po stronie urzędu","Czynności po stronie emitenta"]
[null,null,null,null,"(w dniach roboczych)"]
[null,null,"2021-07-30","wniosek"]
[null,null,"2021-08-03",null,2]
[null,null,"2021-08-04",null,null,1]
[null,null,"2021-08-06",null,2]
[null,null,"Razem",null,4,1]
[]
[]
[null,null,{"$f":"$C$2","v":"Pekao Bank Hipoteczny S.A."}]
[null,"zakończone","Suplement nr 4"]
[]
[null,null,"Data",null,"Czynności po stronie urzędu","Czynności po stronie emitenta"]
[null,null,null,null,"(w dniach roboczych)"]
[null,null,"2021-09-27","wniosek"]
[null,null,"2021-10-01",null,4]
[null,null,"2021-10-04",null,null,1]
[null,null,"2021-10-05",null,1]
[null,null,"Razem",null,5,1]
[]
[]
[]
[]
[null,null,{"$f":"$C$2","v":"Pekao Bank Hipoteczny S.A."}]
[null,"zakończone","Suplement nr 5"]
[]
[null,null,"Data",null,"Czynności po stronie urzędu","Czynności po stronie emitenta"]
[null,null,null,null,"(w dniach roboczych)"]
[null,null,"2021-11-04","wniosek"]
[null,null,"2021-11-08",null,2]
[null,null,"Razem",null,2,0]
[]
[]
[]
[]
[null,null,{"$f":"$C$2","v":"Pekao Bank Hipoteczny S.A."}]
[null,"zakończone","Suplement nr 6"]
[]
[null,null,"Data",null,"Czynności po stronie urzędu","Czynności po stronie emitenta"]
[null,null,null,null,"(w dniach roboczych)"]
[null,null,"2021-11-15","wniosek"]
[null,null,"2021-11-17",null,2]
[null,null,"Razem",null,2,0]
[]
[]
[]
[]
[null,null,{"$f":"$C$2","v":"Pekao Bank Hipoteczny S.A."}]
[null,"zakończone","Suplement nr 7"]
[]
[null,null,"Data",null,"Czynności po stronie urzędu","Czynności po stronie emitenta"]
[null,null,null,null,"(w dniach roboczych)"]
[null,null,"2021-11-26","wniosek"]
[null,null,"2021-11-29",null,1]
[null,null,"Razem",null,1,0]
[]
[]
[]
[]
[null,null,{"$f":"$C$2","v":"Pekao Bank Hipoteczny S.A."}]
[null,"zakończone","Suplement nr 8"]
[]
[null,null,"Data",null,"Czynności po stronie urzędu","Czynności po stronie emitenta"]
[null,null,null,null,"(w dniach roboczych)"]
[null,null,"2022-01-31","wniosek"]
[null,null,"2022-02-02",null,2]
[null,null,"Razem",null,2,0]

{"sheet":"MCI Capital Alternatywna ","index":135,"n_rows":73,"n_cols":6,"rows_kept":73,"cut":false,"hidden":false,"merged":[[55,2,56,2],[56,4,56,5],[67,2,68,2],[68,4,68,5],[5,2,6,2],[6,4,6,5],[29,2,30,2],[30,4,30,5],[42,2,43,2],[43,4,43,5]]}
[]
["PROSPEKT",null,"MCI Capital Alternatywna Spółka Inwestycyjna S.A."]
[null,"zakończone","Prospekt podstawowy"]
["poz. 194"]
[]
["Pismo przychodzące","Pismo wychodzące lub zdarzenie przerywające termin","Data",null,"Czynności po stronie urzędu","Czynności po stronie emitenta"]
[null,null,null,null,"(w dniach roboczych)"]
["wniosek ",null,"2020-10-09","wniosek"]
[null,"uwagi nr 1","2020-10-23",null,10]
[null,null,"2020-11-06",null,null,10]
[null,null,"2020-11-23",null,10]
[null,null,"2020-12-07",null,null,10]
[null,null,"2020-12-18",null,9]
[null,null,"2020-12-31",null,null,8]
[null,null,"2021-01-12",null,6]
[null,null,"2021-01-26",null,null,10]
[null,null,"2021-02-08",null,9]
[null,null,"2021-02-11",null,null,3]
[null,null,"2021-02-15",null,2]
[null,null,"2021-03-02",null,null,11]
[null,null,"2021-03-11","decyzja",7]
[]
[null,null,"Razem",null,53,52]
[]
[]
[]
["SUPLEMENTY",null,{"$f":"$C$2","v":"MCI Capital Alternatywna Spółka Inwestycyjna S.A."}]
[null,"zakończone","Suplement nr 1"]
[]
[null,null,"Data",null,"Czynności po stronie urzędu","Czynności po stronie emitenta"]
[null,null,null,null,"(w dniach roboczych)"]
[null,null,"2021-06-30","wniosek"]
[null,null,"2021-07-05",null,3]
[null,null,"2021-07-09",null,null,4]
[null,null,"2021-07-15","decyzja",4]
[null,null,"Razem",null,7,4]
[]
[]
[]
[null,null,{"$f":"$C$2","v":"MCI Capital Alternatywna Spółka Inwestycyjna S.A."}]
[null,"zakończone","Suplement nr 2"]
[]
[null,null,"Data",null,"Czynności po stronie urzędu","Czynności po stronie emitenta"]
[null,null,null,null,"(w dniach roboczych)"]
[null,null,"2021-09-23","wniosek"]
[null,null,"2021-09-28",null,3]
[null,null,"2021-10-01",null,null,3]
[null,null,"2021-10-01",null,0]
[null,null,"Razem",null,3,3]
[]
[]
[]
[null,null,{"$f":"$C$2","v":"MCI Capital Alternatywna Spółka Inwestycyjna S.A."}]
[null,"      ","Suplement nr 3"]
[]
[null,null,"Data",null,"Czynności po stronie urzędu","Czynności po stronie emitenta"]
[null,null,null,null,"(w dniach roboczych)"]
[null,null,null,"wniosek"]
[]
[]
[null,null,"Razem",null,{"$f":"SUM(E58:E60)","v":0},{"$f":"SUM(F58:F60)","v":0}]
[]
[]
[]
[null,null,{"$f":"$C$2","v":"MCI Capital Alternatywna Spółka Inwestycyjna S.A."}]
[null,"      ","Suplement nr 4"]
[]
[null,null,"Data",null,"Czynności po stronie urzędu","Czynności po stronie emitenta"]
[null,null,null,null,"(w dniach roboczych)"]
[null,null,null,"wniosek"]
[]
[]
[null,null,"Razem",null,{"$f":"SUM(E70:E72)","v":0},{"$f":"SUM(F70:F72)","v":0}]

{"sheet":"PragmaGO (obligacje) 2020","index":136,"n_rows":138,"n_cols":6,"rows_kept":138,"cut":false,"hidden":false,"merged":[[90,2,91,2],[91,4,91,5],[76,2,77,2],[77,4,77,5],[131,2,132,2],[132,4,132,5],[51,2,52,2],[52,4,52,5],[5,2,6,2],[6,4,6,5],[27,2,28,2],[28,4,28,5],[39,2,40,2],[40,4,40,5],[63,2,64,2],[64,4,64,5],[117,2,118,2],[118,4,118,5],[103,2,104,2],[104,4,104,5]]}
[]
["PROSPEKT",null,"PragmaGO SA"]
[null,"zakończone","Prospekt podstawowy"]
[]
[]
["Pismo przychodzące","Pismo wychodzące lub zdarzenie przerywające termin","Data",null,"Czynności po stronie urzędu","Czynności po stronie emitenta"]
[null,null,null,null,"(w dniach roboczych)"]
["wniosek ",null,"2020-09-21","wniosek"]
[null,"uwagi nr 1","2020-10-05",null,10]
[null,null,"2020-10-16",null,null,9]
[null,null,"2020-10-29",null,9]
[null,null,"2020-11-10",null,null,8]
[null,null,"2020-11-24",null,9]
[null,null,"2020-12-08",null,null,10]
[null,null,"2020-12-18",null,8]
[null,null,"2020-12-30",null,null,7]
[null,null,"2021-01-15","decyzja",10]
[]
[]
[]
[null,null,"Razem",null,46,34]
[]
[]
[]
["SUPLEMENTY",null,{"$f":"$C$2","v":"PragmaGO SA"}]
[null,"zakończone","Suplement nr 1"]
[]
[null,null,"Data",null,"Czynności po stronie urzędu","Czynności po stronie emitenta"]
[null,null,null,null,"(w dniach roboczych)"]
[null,null,"2021-02-09","wniosek"]
[null,null,"2021-02-12","decyzja",3]
[null,null,null,null,null,0]
[null,null,"Razem",null,3,0]
[]
[]
[]
[null,null,{"$f":"$C$2","v":"PragmaGO SA"}]
[null,"zakończone","Suplement nr 2"]
[]
[null,null,"Data",null,"Czynności po stronie urzędu","Czynności po stronie emitenta"]
[null,null,null,null,"(w dniach roboczych)"]
[null,null,"2021-04-12","wniosek"]
[null,null,"2021-04-14","decyzja",2]
[null,null,null,null,null,0]
[null,null,"Razem",null,2,0]
[]
[]
[]
[null,null,{"$f":"$C$2","v":"PragmaGO SA"}]
[null,"zakończone","Suplement nr 3"]
[]
[null,null,"Data",null,"Czynności po stronie urzędu","Czynności po stronie emitenta"]
[null,null,null,null,"(w dniach roboczych)"]
[null,null,"2021-04-21","wniosek"]
[null,null,"2021-04-23","decyzja",2]
[null,null,null,null,null,0]
[null,null,"Razem",null,2,0]
[]
[]
[]
[null,null,{"$f":"$C$2","v":"PragmaGO SA"}]
[null,"zakończone","Suplement nr 4"]
[]
[null,null,"Data",null,"Czynności po stronie urzędu","Czynności po stronie emitenta"]
[null,null,null,null,"(w dniach roboczych)"]
[null,null,"2021-04-21","wniosek"]
[null,null,"2021-04-23",null,2]
[null,null,"2021-04-23",null,null,0]
[null,null,"2021-04-26","decyzja",1]
[null,null,"Razem",null,3,0]
[]
[]
[]
[null,null,{"$f":"$C$2","v":"PragmaGO SA"}]
[null,"zakończone","Suplement nr 5"]
[]
[null,null,"Data",null,"Czynności po stronie urzędu","Czynności po stronie emitenta"]
[null,null,null,null,"(w dniach roboczych)"]
[null,null,"2021-05-26","wniosek"]
[null,null,"2021-05-31","decyzja",3]
[]
[]
[null,null,"Razem",null,3,0]
[]
[]
[]
[]
[null,null,{"$f":"$C$2","v":"PragmaGO SA"}]
[null,"zakończone","Suplement nr 6"]
[]
[null,null,"Data",null,"Czynności po stronie urzędu","Czynności po stronie emitenta"]
[null,null,null,null,"(w dniach roboczych)"]
[null,null,"2021-08-25","wniosek"]
[null,null,"2021-08-31","decyzja",4]
[]
[]
[null,null,"Razem",null,4,0]
[]
[]
[]
[null,null,{"$f":"$C$2","v":"PragmaGO SA"}]
[null,"zakończone","Suplement nr 7"]
[]
[null,null,"Data",null,"Czynności po stronie urzędu","Czynności po stronie emitenta"]
[null,null,null,null,"(w dniach roboczych)"]
[null,null,"2021-09-09","wniosek"]
[null,null,"2021-09-13","decyzja",2]
[]
[]
[null,null,"Razem",null,2,0]
[]
[]
[]
[]
[null,null,{"$f":"$C$2","v":"PragmaGO SA"}]
[null,"zakończone","Suplement nr 8"]
[]
[null,null,"Data",null,"Czynności po stronie urzędu","Czynności po stronie emitenta"]
[null,null,null,null,"(w dniach roboczych)"]
[null,null,"2021-09-16","wniosek"]
[null,null,"2021-09-21",null,3]
[null,null,"2021-09-22",null,null,0]
[null,null,"2021-09-23","decyzja",1]
[null,null,"Razem",null,4,0]
[]
[]
[]
[]
[null,null,{"$f":"$C$2","v":"PragmaGO SA"}]
[null,"zakończone","Suplement nr 9"]
[]
[null,null,"Data",null,"Czynności po stronie urzędu","Czynności po stronie emitenta"]
[null,null,null,null,"(w dniach roboczych)"]
[null,null,"2021-11-26","wniosek"]
[null,null,"2021-11-30","decyzja",2]
[]
[]
[null,null,"Razem",null,4,0]

{"sheet":"Captor Therapeutics SA","index":137,"n_rows":73,"n_cols":6,"rows_kept":73,"cut":false,"hidden":false,"merged":[[54,2,55,2],[55,4,55,5],[66,2,67,2],[67,4,67,5],[5,2,6,2],[6,4,6,5],[29,2,30,2],[30,4,30,5],[42,2,43,2],[43,4,43,5]]}
[]
[null,null,"Captor Therapeutics SA"]
["PROSPEKT","zakończone","Prospekt"]
[]
[]
["Pismo przychodzące","Pismo wychodzące lub zdarzenie przerywające termin","Data",null,"Czynności po stronie urzędu","Czynności po stronie emitenta"]
[null,null,null,null,"(w dniach roboczych)"]
["wniosek ",null,"2020-09-17","wniosek"]
[null,"uwagi nr 1","2020-10-15",null,20]
[null,null,"2020-10-29",null,null,10]
[null,"uwagi nr 2","2020-11-13",null,10]
[null,null,"2020-12-12",null,null,20]
[null,"uwagi nr 3","2020-12-23",null,8]
[null,null,"2021-01-15",null,null,14]
[null,"uwagi nr 4","2021-01-29",null,10]
[null,null,"2021-02-12",null,null,10]
[null,"uwagi nr 5","2021-02-23",null,7]
[null,null,"2021-03-09",null,null,10]
[null,null,"2021-03-16",null,5]
[null,null,"2021-03-19",null,null,3]
[null,null,"2021-03-22","decyzja",1]
[]
[null,null,"Razem",null,{"$f":"SUM(E8:E22)","v":61},{"$f":"SUM(F8:F22)","v":67}]
[]
[]
[]
["SUPLEMENTY",null,{"$f":"$C$2","v":"Captor Therapeutics SA"}]
[null,"zakończone","Suplement nr 1"]
[]
[null,null,"Data",null,"Czynności po stronie urzędu","Czynności po stronie emitenta"]
[null,null,null,null,"(w dniach roboczych)"]
[null,null,"2021-05-04","wniosek"]
[null,null,"2021-05-07",null,3]
[null,null,"2021-05-10",null,null,1]
[null,null,"2021-05-11","decyzja",1]
[]
[null,null,"Razem",null,{"$f":"SUM(E32:E36)","v":4},{"$f":"SUM(F32:F36)","v":1}]
[]
[]
[null,null,{"$f":"$C$2","v":"Captor Therapeutics SA"}]
[null,"zakończone","Suplement nr 2"]
[]
[null,null,"Data",null,"Czynności po stronie urzędu","Czynności po stronie emitenta"]
[null,null,null,null,"(w dniach roboczych)"]
[null,null,"2021-06-07","wniosek"]
[null,null,"2021-06-08","decyzja",1]
[null,null,null,null,null,0]
[]
[null,null,"Razem",null,{"$f":"SUM(E45:E48)","v":1},{"$f":"SUM(F45:F48)","v":0}]
[]
[]
[null,null,{"$f":"$C$2","v":"Captor Therapeutics SA"}]
[null,"      ","Suplement nr 3"]
[]
[null,null,"Data",null,"Czynności po stronie urzędu","Czynności po stronie emitenta"]
[null,null,null,null,"(w dniach roboczych)"]
[null,null,null,"wniosek"]
[]
[]
[]
[null,null,"Razem",null,{"$f":"SUM(E57:E60)","v":0},{"$f":"SUM(F57:F60)","v":0}]
[]
[]
[null,null,{"$f":"$C$2","v":"Captor Therapeutics SA"}]
[null,"      ","Suplement nr 4"]
[]
[null,null,"Data",null,"Czynności po stronie urzędu","Czynności po stronie emitenta"]
[null,null,null,null,"(w dniach roboczych)"]
[null,null,null,"wniosek"]
[]
[]
[]
[null,null,"Razem",null,{"$f":"SUM(E69:E72)","v":0},{"$f":"SUM(F69:F72)","v":0}]

{"sheet":"Answear.com","index":138,"n_rows":34,"n_cols":6,"rows_kept":34,"cut":false,"hidden":false,"merged":[[5,2,6,2],[6,4,6,5],[27,2,28,2],[28,4,28,5]]}
[]
["PROSPEKT",null,"Answear.com SA (d.Wearco SA)"]
[null,"zakończone","Prospekt"]
[]
[]
["Pismo przychodzące","Pismo wychodzące lub zdarzenie przerywające termin","Data",null,"Czynności po stronie urzędu","Czynności po stronie emitenta"]
[null,null,null,null,"(w dniach roboczych)"]
["wniosek ",null,"2020-09-17","wniosek"]
[null,"est","2020-10-15",null,20]
[null,null,"2020-10-29",null,null,10]
[null,null,"2020-11-13",null,10]
[null,null,"2020-11-18",null,null,3]
[null,null,"2020-11-30",null,8]
[null,null,"2020-12-03",null,null,3]
[null,null,"2020-12-07",null,2]
[null,null,"2020-12-08",null,null,1]
[null,null,"2020-12-08","decyzja"]
[]
[]
[]
[null,null,"Razem",null,{"$f":"SUM(E8:E20)","v":40},{"$f":"SUM(F8:F20)","v":17}]
[null,null,null,null,{"$f":"E21/(E21+F21)","v":0.70175438596491224},{"$f":"F21/(E21+F21)","v":0.2982456140350877}]
[]
[]
["SUPLEMENTY",null,{"$f":"$C$2","v":"Answear.com SA (d.Wearco SA)"}]
[null,"zakończone","Suplement nr 1"]
[]
[null,null,"Data",null,"Czynności po stronie urzędu","Czynności po stronie emitenta"]
[null,null,null,null,"(w dniach roboczych)"]
[null,null,"2021-01-13","wniosek"]
[null,null,"2021-01-20",null,5]
[null,null,"2021-01-25",null,null,3]
[null,null,"2021-01-28","decyzja",3]
[null,null,"Razem",null,{"$f":"SUM(E30:E33)","v":8},{"$f":"SUM(F30:F33)","v":3}]

{"sheet":"Dadelo S.A.","index":139,"n_rows":50,"n_cols":6,"rows_kept":50,"cut":false,"hidden":false,"merged":[[5,2,6,2],[6,4,6,5],[27,2,28,2],[28,4,28,5],[40,2,41,2],[41,4,41,5]]}
[]
["PROSPEKT",null,"Dadelo S.A."]
[null,"zakończone","Prospekt"]
[]
[]
["Pismo przychodzące","Pismo wychodzące lub zdarzenie przerywające termin","Data",null,"Czynności po stronie urzędu","Czynności po stronie emitenta"]
[null,null,null,null,"(w dniach roboczych)"]
["wniosek ",null,"2020-09-10","wniosek"]
[null,"uwagi nr 1","2020-10-08",null,20]
[null,null,"2020-10-22",null,null,10]
[null,"uwagi nr 2","2020-11-04",null,9]
[null,null,"2020-11-13",null,null,6]
[null,"uwagi nr 3","2020-11-26",null,9]
[null,null,"2020-11-30",null,null,2]
[null,"uwagi nr 4","2020-12-01",null,1]
[null,null,"2020-12-02",null,null,1]
[null,null,"2020-12-03","decyzja",1]
[]
[]
[]
[null,null,"Razem",null,{"$f":"SUM(E8:E20)","v":40},{"$f":"SUM(F8:F20)","v":19}]
[null,null,null,null,{"$f":"E21/(E21+F21)","v":0.67796610169491522},{"$f":"F21/(E21+F21)","v":0.32203389830508472}]
[]
[]
["SUPLEMENTY",null,{"$f":"$C$2","v":"Dadelo S.A."}]
[null,"zakończone","Suplement nr 1"]
[]
[null,null,"Data",null,"Czynności po stronie urzędu","Czynności po stronie emitenta"]
[null,null,null,null,"(w dniach roboczych)"]
[null,null,"2020-12-04","wniosek"]
[null,"uwagi 1","2020-12-08",null,2]
[null,null,"2020-12-09",null,null,1]
[null,null,"2020-12-09","decyzja",0]
[]
[null,null,"Razem",null,{"$f":"SUM(E31:E34)","v":2},{"$f":"SUM(F31:F34)","v":1}]
[]
[]
[null,null,{"$f":"$C$2","v":"Dadelo S.A."}]
[null,"zakończone","Suplement nr 2"]
[]
[null,null,"Data",null,"Czynności po stronie urzędu","Czynności po stronie emitenta"]
[null,null,null,null,"(w dniach roboczych)"]
[null,null,"2021-01-14","wniosek"]
[null,"uwagi 1","2021-01-19",null,3]
[null,null,"2021-01-20",null,null,1]
[null,"uwagi 1","2021-01-20",null,0]
[null,null,"2021-01-25",null,null,3]
[null,null,"2021-01-27","decyzja",2]
[]
[null,null,"Razem",null,{"$f":"SUM(E43:E49)","v":5},{"$f":"SUM(F43:F49)","v":4}]

{"sheet":"PCF Group SA","index":140,"n_rows":32,"n_cols":6,"rows_kept":32,"cut":false,"hidden":false,"merged":[[5,2,6,2],[6,4,6,5],[27,2,28,2],[28,4,28,5]]}
[]
["PROSPEKT",null,"PCF Group SA"]
[null,"zakończone","Prospekt"]
[]
[]
["Pismo przychodzące","Pismo wychodzące lub zdarzenie przerywające termin","Data",null,"Czynności po stronie urzędu","Czynności po stronie emitenta"]
[null,null,null,null,"(w dniach roboczych)"]
["wniosek ",null,"2020-09-04","wniosek"]
[null,"uwagi nr 1","2020-10-02",null,20]
[null,null,"2020-10-16",null,null,10]
[null,null,"2020-10-30",null,10]
[null,null,"2020-11-09",null,null,6]
[null,null,"2020-11-17",null,5]
[null,null,"2020-11-22",null,null,3]
[null,null,"2020-11-23",null,0]
[null,null,"2020-11-24",null,null,1]
[null,null,"2020-11-24",null,0]
[null,null,"2020-11-25",null,null,1]
[null,null,"2020-11-25","decyzja",0]
[]
[null,null,"Razem",null,{"$f":"SUM(E8:E20)","v":35},{"$f":"SUM(F8:F20)","v":21}]
[null,null,null,null,{"$f":"E21/(E21+F21)","v":0.625},{"$f":"F21/(E21+F21)","v":0.375}]
[]
[]
["SUPLEMENTY",null,{"$f":"$C$2","v":"PCF Group SA"}]
[null,"zakończone","Suplement nr 1"]
[]
[null,null,"Data",null,"Czynności po stronie urzędu","Czynności po stronie emitenta"]
[null,null,null,null,"(w dniach roboczych)"]
[null,null,"2021-01-06","wniosek"]
[null,null,"2021-01-11","decyzja",2]
[null,null,"Razem",null,{"$f":"SUM(E29:E31)","v":2},{"$f":"SUM(F29:F31)","v":0}]

{"sheet":"Huuuge, Inc.","index":141,"n_rows":36,"n_cols":6,"rows_kept":36,"cut":false,"hidden":false,"merged":[[5,2,6,2],[6,4,6,5],[28,2,29,2],[29,4,29,5]]}
[]
["PROSPEKT",null,"Huuuge, Inc."]
[null,"zakończone","Prospekt"]
["poz. 188"]
[]
["Pismo przychodzące","Pismo wychodzące lub zdarzenie przerywające termin","Data",null,"Czynności po stronie urzędu","Czynności po stronie emitenta"]
[null,null,null,null,"(w dniach roboczych)"]
["wniosek ",null,"2020-08-28","wniosek"]
[null,"uwagi nr 1","2020-09-24",null,19]
[null,null,"2020-10-08",null,null,10]
[null,null,"2020-10-22",null,10]
[null,null,"2020-11-05",null,null,10]
[null,null,"2020-11-20",null,10]
[null,null,"2020-12-09",null,null,13]
[null,null,"2020-12-18",null,7]
[null,null,"2021-01-04",null,null,9]
[null,null,"2021-01-11",null,4]
[null,null,"2021-01-21",null,null,8]
[null,null,"2021-01-25",null,2]
[null,null,"2021-01-26","decyzja",null,1]
[]
[null,null,"Razem",null,{"$f":"SUM(E8:E21)","v":52},{"$f":"SUM(F8:F21)","v":51}]
[null,null,null,null,{"$f":"E22/(E22+F22)","v":0.50485436893203883},{"$f":"F22/(E22+F22)","v":0.49514563106796117}]
[]
[]
["SUPLEMENTY",null,{"$f":"$C$2","v":"Huuuge, Inc."}]
[null,"zakończone","Suplement nr 1"]
[]
[null,null,"Data",null,"Czynności po stronie urzędu","Czynności po stronie emitenta"]
[null,null,null,null,"(w dniach roboczych)"]
[null,null,"2021-01-29","wniosek"]
[null,null,"2021-02-01",null,1]
[null,null,"2021-02-01",null,null,0]
[null,null,"2021-02-02","decyzja",1]
[]
[null,null,"Razem",null,{"$f":"SUM(E31:E35)","v":2},{"$f":"SUM(F31:F35)","v":0}]

{"sheet":"Mo-BRUK SA","index":142,"n_rows":24,"n_cols":6,"rows_kept":24,"cut":false,"hidden":false,"merged":[[5,2,6,2],[6,4,6,5]]}
[]
["PROSPEKT",null,"Mo-BRUK SA"]
[null,"zakończone","Prospekt"]
[]
[]
["Pismo przychodzące","Pismo wychodzące lub zdarzenie przerywające termin","Data",null,"Czynności po stronie urzędu","Czynności po stronie emitenta"]
[null,null,null,null,"(w dniach roboczych)"]
["wniosek ",null,"2020-08-17","wniosek"]
[null,"uwagi nr 1","2020-08-25",null,6]
[null,null,"2020-09-11",null,null,13]
[null,null,"2020-09-24",null,9]
[null,null,"2020-10-06",null,null,8]
[null,null,"2020-10-16",null,8]
[null,null,"2020-10-25",null,null,5]
[null,null,"2020-11-05",null,8]
[null,null,"2020-11-09",null,null,2]
[null,null,"2020-11-13",null,3]
[null,null,"2020-11-16",null,null,1]
[null,null,"2020-11-16",null,0]
[null,null,"2020-11-17",null,null,1]
[null,null,"2020-11-17","decyzja",0]
[]
[null,null,"Razem",null,{"$f":"SUM(E8:E22)","v":34},{"$f":"SUM(F8:F22)","v":30}]
[null,null,null,null,{"$f":"E23/(E23+F23)","v":0.53125},{"$f":"F23/(E23+F23)","v":0.46875}]

{"sheet":"PKO Leasing SA","index":143,"n_rows":23,"n_cols":6,"rows_kept":23,"cut":false,"hidden":false,"merged":[[5,2,6,2],[6,4,6,5]]}
[]
["PROSPEKT",null,"PKO Leasing SA"]
[null,"umorzone","Prospekt podstawowy obligacji"]
[]
[]
["Pismo przychodzące","Pismo wychodzące lub zdarzenie przerywające termin","Data",null,"Czynności po stronie urzędu","Czynności po stronie emitenta"]
[null,null,null,null,"(w dniach roboczych)"]
["wniosek ",null,"2019-08-12","wniosek"]
[null,"uwagi nr 1","2019-09-09",null,19]
[null,null,"2019-09-20",null,null,9]
[null,null,"2019-10-04",null,10]
[null,null,"2019-10-16",null,null,8]
[null,null,"2019-10-30",null,10]
[null,null,"2020-07-16",null,null,177]
[null,null,"2020-07-29",null,9]
[null,null,"2020-08-10",null,null,8]
[null,null,"2020-08-24",null,10]
[null,null,"2020-09-07",null,null,10]
[null,null,"2020-09-14",null,5]
[null,null,"2020-10-05","wniosek",null,15]
[null,null,"2020-10-21","decyzja o umorzeniu",12]
[]
[null,null,"Razem",null,75,227]

{"sheet":"PCC MCAA","index":144,"n_rows":21,"n_cols":6,"rows_kept":21,"cut":false,"hidden":false,"merged":[[5,2,6,2],[6,4,6,5]]}
[]
["PROSPEKT",null,"PCC MCAA sp. z o.o. "]
[null,"umorzone","Prospekt podstawowy obligacji"]
[]
[]
["Pismo przychodzące","Pismo wychodzące lub zdarzenie przerywające termin","Data",null,"Czynności po stronie urzędu","Czynności po stronie emitenta"]
[null,null,null,null,"(w dniach roboczych)"]
["wniosek ",null,"2020-08-11","wniosek"]
[null,"uwagi nr 1","2020-09-07",null,19]
[null,null,"2020-11-10","decyzja o umorzeniu",null,46]
[]
[]
[]
[]
[]
[]
[]
[]
[]
[]
[null,null,"Razem",null,19,46]

{"sheet":"Pure Biologics SA","index":145,"n_rows":34,"n_cols":6,"rows_kept":34,"cut":false,"hidden":false,"merged":[[5,2,6,2],[6,4,6,5],[27,2,28,2],[28,4,28,5]]}
[]
["PROSPEKT",null,"Pure Biologics SA"]
[null,"zakończone","Prospekt"]
[]
[]
["Pismo przychodzące","Pismo wychodzące lub zdarzenie przerywające termin","Data",null,"Czynności po stronie urzędu","Czynności po stronie emitenta"]
[null,null,null,null,"(w dniach roboczych)"]
["wniosek ",null,"2020-08-03","wniosek"]
[null,"uwagi nr 1","2020-08-28",null,19]
[null,null,"2020-09-07",null,null,6]
[null,null,"2020-09-18",null,9]
[null,null,"2020-09-27",null,null,5]
[null,null,"2020-10-09",null,10]
[null,null,"2020-10-15",null,null,4]
[null,null,"2020-10-23",null,6]
[null,null,"2020-10-28",null,null,3]
[null,null,"2020-11-06","decyzja",7]
[]
[]
[]
[null,null,"Razem",null,51,18]
[]
[]
[]
["SUPLEMENTY",null,{"$f":"$C$2","v":"Pure Biologics SA"}]
[null,"zakończone","Suplement nr 1"]
[]
[null,null,"Data",null,"Czynności po stronie urzędu","Czynności po stronie emitenta"]
[null,null,null,null,"(w dniach roboczych)"]
[null,null,"2020-11-19","wniosek"]
[null,null,"2020-11-20","decyzja",1]
[]
[]
[null,null,"Razem",null,1,0]

{"sheet":"Canal+ Polska S.A.","index":146,"n_rows":22,"n_cols":6,"rows_kept":22,"cut":false,"hidden":false,"merged":[[5,2,6,2],[6,4,6,5]]}
[]
["PROSPEKT",null,"Canal+ Polska S.A."]
[null,"zakończone","Prospekt"]
[]
[]
["Pismo przychodzące","Pismo wychodzące lub zdarzenie przerywające termin","Data",null,"Czynności po stronie urzędu","Czynności po stronie emitenta"]
[null,null,null,null,"(w dniach roboczych)"]
["wniosek ",null,"2020-05-15","wniosek"]
[null,"uwagi nr 1","2020-05-29",null,10]
[null,null,"2020-06-05",null,null,5]
[null,null,"2020-06-22",null,10]
[null,null,"2020-06-26",null,null,4]
[null,null,"2020-06-29",null,1]
[null,null,"2020-06-30",null,null,1]
[null,null,"2020-07-03",null,3]
[null,null,"2020-07-06",null,null,1]
[null,null,"2020-07-08",null,2]
[null,null,"2020-07-09",null,null,1]
[null,null,"2020-07-10",null,1]
[null,null,"2020-07-11",null,null,0]
[]
[null,null,"Razem",null,27,12]

{"sheet":"Victoria Dom SA","index":147,"n_rows":73,"n_cols":6,"rows_kept":73,"cut":false,"hidden":false,"merged":[[5,2,6,2],[6,4,6,5],[66,2,67,2],[67,4,67,5]]}
[]
["PROSPEKT",null,"Victoria Dom SA"]
[null,"zakończone","Prospekt podstawowy"]
["poz 185"]
[]
["Pismo przychodzące","Pismo wychodzące lub zdarzenie przerywające termin","Data",null,"Czynności po stronie urzędu","Czynności po stronie emitenta"]
[null,null,null,null,"(w dniach roboczych)"]
["wniosek ",null,"2020-07-30","wniosek"]
[null,"uwagi nr 1","2020-08-13",null,10]
[null,null,"2020-10-07",null,null,39]
[null,null,"2020-10-21",null,10]
[null,null,"2020-11-04",null,null,10]
[null,null,"2020-11-19",null,10]
[null,null,"2020-12-17",null,null,20]
[null,null,"2020-12-23",null,4]
[null,null,"2021-01-07",null,null,8]
[null,null,"2021-01-13",null,4]
[null,null,"2021-01-29",null,null,12]
[null,null,"2021-02-08",null,6]
[null,null,"2021-02-12",null,null,4]
[null,null,"2021-02-18",null,4]
[null,null,"2021-02-22",null,null,2]
[null,null,"2021-03-01",null,5]
[null,null,"2021-03-03",null,null,2]
[null,null,"2021-03-09",null,4]
[null,null,"2021-03-15",null,null,4]
[null,null,"2021-03-22",null,5]
[null,null,"2021-03-30",null,null,6]
[null,null,"2021-04-12",null,8]
[null,null,"2021-04-23",null,null,9]
[null,null,"2021-04-26",null,1]
[null,null,"2021-05-06",null,null,7]
[null,null,"2021-05-13",null,5]
[null,null,"2021-06-02",null,null,14]
[null,null,"2021-06-16",null,9]
[null,null,"2023-03-13",null,null,442]
[null,null,"2023-03-24",null,9]
[null,null,"2023-03-31",null,null,5]
[null,null,"2023-04-13",null,8]
[null,null,"2023-04-24",null,null,7]
[null,null,"2023-05-05",null,7]
[null,null,"2023-05-22",null,null,11]
[null,null,"2023-06-05",null,10]
[null,null,"2023-06-14",null,null,6]
[null,null,"2023-06-26",null,8]
[null,null,"2023-06-28",null,null,2]
[null,null,"2023-07-06",null,6]
[null,null,"2023-07-11",null,null,3]
[null,null,"2023-07-21",null,8]
[null,null,"2023-08-01",null,null,7]
[null,null,"2023-08-03",null,2]
[null,null,"2023-08-07",null,null,2]
[null,null,"2023-08-10",null,3]
[null,null,"2023-09-07",null,null,19]
[null,null,"2023-09-21",null,10]
[null,null,"2023-10-03",null,null,8]
[null,null,"2023-10-09",null,4]
[null,null,"2023-10-20",null,null,9]
[null,null,"2023-10-24","decyzja",2]
[null,null,"Razem",null,{"$f":"SUM(E8:E39)","v":102},{"$f":"SUM(F8:F40)","v":591}]
[]
[]
[]
["SUPLEMENTY",null,{"$f":"$C$2","v":"Victoria Dom SA"}]
[null,"zakończone","Suplement nr 1"]
[]
[null,null,"Data",null,"Czynności po stronie urzędu","Czynności po stronie emitenta"]
[null,null,null,null,"(w dniach roboczych)"]
[null,null,"2024-02-19","wniosek"]
[null,null,"2024-02-23",null,4]
[null,null,"2024-02-23",null,null,0]
[null,null,"2024-02-27",null,2]
[null,null,"Razem",null,{"$f":"SUM(E69:E72)","v":6},{"$f":"SUM(F69:F72)","v":0}]

{"sheet":"Creepy Jar S.A.","index":148,"n_rows":37,"n_cols":6,"rows_kept":37,"cut":false,"hidden":false,"merged":[[5,2,6,2],[6,4,6,5],[31,2,32,2],[32,4,32,5]]}
[]
["PROSPEKT",null,"Creepy Jar S.A."]
[null,"zakończone","Prospekt"]
[]
[]
["Pismo przychodzące","Pismo wychodzące lub zdarzenie przerywające termin","Data",null,"Czynności po stronie urzędu","Czynności po stronie emitenta"]
[null,null,null,null,"(w dniach roboczych)"]
["wniosek ",null,"2020-07-23","wniosek"]
[null,"uwagi nr 1","2020-08-07",null,11]
[null,null,"2020-08-12",null,null,3]
[null,null,"2020-08-25",null,9]
[null,null,"2020-11-30",null,null,68]
[null,null,"2020-12-01",null,1]
[null,null,"2020-12-02",null,null,1]
[null,null,"2020-12-16",null,10]
[null,null,"2021-01-08",null,null,14]
[null,null,"2021-01-21",null,9]
[null,null,"2021-01-27",null,null,4]
[null,null,"2021-02-09",null,9]
[null,null,"2021-02-19",null,null,8]
[null,null,"2021-03-04",null,9]
[null,null,"2021-03-11",null,null,5]
[null,null,"2021-03-17","decyzja",4]
[]
[null,null,"Razem",null,62,103]
[]
[]
[]
["SUPLEMENTY",null,{"$f":"$C$2","v":"Creepy Jar S.A."}]
[null,"      ","Suplement nr 1"]
[]
[null,null,"Data",null,"Czynności po stronie urzędu","Czynności po stronie emitenta"]
[null,null,null,null,"(w dniach roboczych)"]
[null,null,null,"wniosek"]
[]
[]
[null,null,"Razem",null,{"$f":"SUM(E34:E36)","v":0},{"$f":"SUM(F34:F36)","v":0}]

{"sheet":"MedApp SA","index":149,"n_rows":68,"n_cols":6,"rows_kept":68,"cut":false,"hidden":false,"merged":[[5,2,6,2],[6,4,6,5],[62,2,63,2],[63,4,63,5]]}
[null,null,{"$cut":{"chars":20774,"head":"                                                                                                                                                                                                                                                                                                                                                                                                                                                                                                                                                                                                                                                                                                                                                                                                                                                                                                                                                                                                                                                                                                                                                                                                                                                                                                                                                                                                                                                                                                                                                                                                                                                                                                                                                                                                                                                                                                                                                                                                                                                                                                                                                                                                                                                                                                                                                                                                                                                                                                                                                                                                                                                                                                                                                                                                                                                                                                                                                                                                                                                                                                                                                                                                                                                                                                                                                                                                                                                                                                                                                                                                                                                                                                                                                                                                                                                                                                                                                                                                                                                                                                                                                                                                                                                                "}},{"$cut":{"chars":20774,"head":"                                                                                                                                                                                                                                                                                                                                                                                                                                                                                                                                                                                                                                                                                                                                                                                                                                                                                                                                                                                                                                                                                                                                                                                                                                                                                                                                                                                                                                                                                                                                                                                                                                                                                                                                                                                                                                                                                                                                                                                                                                                                                                                                                                                                                                                                                                                                                                                                                                                                                                                                                                                                                                                                                                                                                                                                                                                                                                                                                                                                                                                                                                                                                                                                                                                                                                                                                                                                                                                                                                                                                                                                                                                                                                                                                                                                                                                                                                                                                                                                                                                                                                                                                                                                                                                                "}}]
["PROSPEKT",null,"MedApp SA"]
[null,"zawieszone","Prospekt"]
[]
[]
["Pismo przychodzące","Pismo wychodzące lub zdarzenie przerywające termin","Data",null,"Czynności po stronie urzędu","Czynności po stronie emitenta"]
[null,null,null,null,"(w dniach roboczych)"]
["wniosek ",null,"2020-07-22","wniosek"]
[null,"uwagi nr 1","2020-08-19",null,20]
[null,null,"2020-09-11",null,null,17]
[null,"uwagi nr 2","2020-09-24",null,9]
[null,null,"2020-10-11",null,null,11]
[null,"uwagi nr 3","2020-10-23",null,10]
[null,null,"2020-11-16",null,null,15]
[null,"uwagi nr 4","2020-11-27",null,9]
[null,null,"2020-12-14",null,null,11]
[null,"uwagi nr 5","2020-12-28",null,9]
[null,null,"2021-01-13",null,null,10]
[null,"uwagi nr 6","2021-01-26",null,9]
[null,null,"2021-02-12",null,null,13]
[null,"uwagi nr 7","2021-02-22",null,6]
[null,null,"2021-03-08",null,null,10]
[null,"uwagi nr 8","2021-03-19",null,9]
[null,null,"2021-04-26",null,null,25]
[null,"uwagi nr 9","2021-05-07",null,8]
[null,null,"2021-05-27",null,null,14]
[null,"uwagi nr 10","2021-06-07",null,6]
[null,null,"2021-06-15",null,null,6]
[null,"uwagi nr 11","2021-06-28",null,9]
[null,null,"2021-07-07",null,null,7]
[null,"uwagi nr 12","2021-07-19",null,8]
[null,null,"2021-07-30",null,null,9]
[null,"uwagi nr 13 ","2021-08-06",null,5]
[null,null,"2021-08-19",null,null,9]
[null,"uwagi nr 14","2021-09-01",null,9]
[null,null,"2021-09-10",null,null,7]
[null,"uwagi nr 15","2021-09-24",null,10]
[null,null,"2021-09-30",null,null,4]
[null,"uwagi nr 16","2021-10-14",null,10]
[null,null,"2021-10-22",null,null,6]
[null,null,"2021-11-08",null,10]
[null,null,"2021-11-17",null,null,6]
[null,null,"2021-12-01",null,10]
[null,null,"2021-12-07",null,null,4]
[null,null,"2021-12-21",null,10]
[null,null,"2021-12-24",null,null,3]
[null,null,"2022-01-10",null,10]
[null,null,"2022-01-20",null,null,8]
[null,null,"2022-02-03",null,10]
[null,null,"2022-02-18",null,null,11]
[null,null,"2022-03-04",null,10]
[]
[]
[]
[]
[null,null,"Razem",null,{"$f":"SUM(E8:E55)","v":206},{"$f":"SUM(F8:F55)","v":206}]
[]
[]
[]
["SUPLEMENTY",null,{"$f":"$C$2","v":"MedApp SA"}]
[null,"      ","Suplement nr 1"]
[]
[null,null,"Data",null,"Czynności po stronie urzędu","Czynności po stronie emitenta"]
[null,null,null,null,"(w dniach roboczych)"]
[null,null,null,"wniosek"]
[]
[]
[null,null,"Razem",null,{"$f":"SUM(E65:E67)","v":0},{"$f":"SUM(F65:F67)","v":0}]

{"sheet":"Medinice SA","index":150,"n_rows":33,"n_cols":6,"rows_kept":33,"cut":false,"hidden":false,"merged":[[5,2,6,2],[6,4,6,5],[27,2,28,2],[28,4,28,5]]}
[]
["PROSPEKT",null,"Medinice SA"]
[null,"zakończone","Prospekt"]
[]
[]
["Pismo przychodzące","Pismo wychodzące lub zdarzenie przerywające termin","Data",null,"Czynności po stronie urzędu","Czynności po stronie emitenta"]
[null,null,null,null,"(w dniach roboczych)"]
["wniosek ",null,"2020-07-22","wniosek"]
[null,"uwagi nr 1","2020-08-19",null,20]
[null,null,"2020-09-03",null,null,11]
[null,null,"2020-09-16",null,9]
[null,null,"2020-10-22",null,null,26]
[null,null,"2020-11-05",null,10]
[null,null,"2020-11-27",null,null,15]
[null,null,"2020-12-02",null,3]
[null,null,"2020-12-15",null,null,9]
[null,null,"2020-12-18","decyzja",3]
[]
[]
[]
[null,null,"Razem",null,45,61]
[]
[]
[]
["SUPLEMENTY",null,{"$f":"$C$2","v":"Medinice SA"}]
[null,"      ","Suplement nr 1"]
[]
[null,null,"Data",null,"Czynności po stronie urzędu","Czynności po stronie emitenta"]
[null,null,null,null,"(w dniach roboczych)"]
[null,null,null,"wniosek"]
[]
[]
[null,null,"Razem",null,{"$f":"SUM(E30:E32)","v":0},{"$f":"SUM(F30:F32)","v":0}]

{"sheet":"PKO Bank Hipoteczny SA","index":151,"n_rows":34,"n_cols":6,"rows_kept":34,"cut":false,"hidden":false,"merged":[[5,2,6,2],[6,4,6,5],[27,2,28,2],[28,4,28,5]]}
[]
["PROSPEKT",null,"PKO Bank Hipoteczny SA"]
[null,"zakończone","Prospekt"]
[]
[]
[null,null,"Data",null,"Czynności po stronie urzędu","Czynności po stronie emitenta"]
[null,null,null,null,"(w dniach roboczych)"]
[null,null,"2020-07-03","wniosek"]
[null,null,"2020-07-16",null,9]
[null,null,"2020-07-28",null,null,8]
[null,null,"2020-08-11",null,10]
[null,null,"2020-08-26",null,null,11]
[null,null,"2020-09-04",null,7]
[null,null,"2020-09-18",null,null,10]
[null,null,"2020-09-22",null,2]
[null,null,"2020-10-02",null,null,8]
[null,null,"2020-10-08","decyzja",4]
[]
[]
[]
[null,null,"Razem",null,32,37]
[]
[]
[]
["SUPLEMENTY",null,{"$f":"$C$2","v":"PKO Bank Hipoteczny SA"}]
[null,"zakończone","Suplement nr 1"]
[]
[null,null,"Data",null,"Czynności po stronie urzędu","Czynności po stronie emitenta"]
[null,null,null,null,"(w dniach roboczych)"]
[null,null,"2021-02-18","wniosek"]
[null,null,"2021-02-24",null,4]
[null,null,"2021-02-26",null,null,2]
[null,null,"2021-03-01","decyzja",1]
[null,null,"Razem",null,5,2]

{"sheet":"Polwax SA","index":152,"n_rows":30,"n_cols":6,"rows_kept":30,"cut":false,"hidden":false,"merged":[[5,2,6,2],[6,4,6,5]]}
[]
["PROSPEKT",null,"Polwax SA "]
[null,"zakończone","Prospekt"]
[]
[]
["Pismo przychodzące","Pismo wychodzące lub zdarzenie przerywające termin","Data",null,"Czynności po stronie urzędu","Czynności po stronie emitenta"]
[null,null,null,null,"(w dniach roboczych)"]
["wniosek ",null,"2019-05-20"]
[null,"uwagi nr 1","2019-05-30",null,8]
["odpowiedzi na uwagi 1",null,"2019-06-07",null,null,6]
[null,"uwagi nr 2","2019-06-19",null,8]
["odpowiedzi na uwagi 2",null,"2019-07-11",null,null,15]
[null,"uwagi nr 3","2019-07-15",null,2]
["odpowiedzi na uwagi 3",null,"2019-08-19",null,null,24]
[null,"uwagi nr 5","2019-09-02",null,10]
["odpowiedzi na uwagi 4",null,"2019-09-23",null,null,15]
[null,"uwagi nr 5","2019-10-07",null,10]
["odpowiedzi na uwagi 5",null,"2020-05-19",null,null,153]
[null,"uwagi nr 6","2020-06-02",null,10]
["odpowiedzi na uwagi 6",null,"2020-06-18",null,null,11]
[null,"uwagi nr 7","2020-06-30",null,8]
[null,null,"2020-07-16",null,null,12]
[null,null,"2020-07-27",null,7]
[null,null,"2020-08-07",null,null,9]
[null,null,"2020-08-13",null,4]
[null,null,"2020-08-17",null,null,2]
[null,null,"2020-08-25","decyzja",6]
[]
[]
[null,null,"Razem",null,73,247]

{"sheet":"Inventionmed ","index":153,"n_rows":22,"n_cols":6,"rows_kept":22,"cut":false,"hidden":false,"merged":[[5,2,6,2],[6,4,6,5]]}
[]
["PROSPEKT",null,"Inventionmed SA"]
[null,"umorzone","Prospekt"]
[]
[]
["Pismo przychodzące","Pismo wychodzące lub zdarzenie przerywające termin","Data",null,"Czynności po stronie urzędu","Czynności po stronie emitenta"]
[null,null,null,null,"(w dniach roboczych)"]
["wniosek ",null,"2019-05-16","Wniosek"]
[null,"uwagi nr 1","2019-06-10",null,17]
[null,null,"2019-09-09",null,null,63]
[null,null,"2019-09-25",null,12]
[null,null,"2019-10-14",null,null,13]
[null,null,"2019-10-28",null,10]
[null,null,"2019-12-02",null,null,23]
[null,null,"2019-12-16",null,10]
[null,null,"2020-01-22",null,null,23]
[null,null,"2020-02-05",null,10]
[null,null,"2020-03-04",null,null,20]
[null,null,"2020-03-13",null,7]
[null,null,"2020-07-08","wniosek",null,80]
[null,null,"2023-07-25","decyzja o umorzeniu"]
[null,null,"Razem",null,66,142]

{"sheet":"Polski Bank Komórek Macierzysty","index":154,"n_rows":21,"n_cols":6,"rows_kept":21,"cut":false,"hidden":false,"merged":[[5,2,6,2],[6,4,6,5]]}
[]
["PROSPEKT",null,"Polski Bank Komórek Macierzystych SA"]
[null,"zakończone","Prospekt"]
[]
[]
["Pismo przychodzące","Pismo wychodzące lub zdarzenie przerywające termin","Data",null,"Czynności po stronie urzędu","Czynności po stronie emitenta"]
[null,null,null,null,"(w dniach roboczych)"]
["wniosek ",null,"2020-04-30","wniosek"]
[null,"uwagi nr 1","2020-05-15",null,10]
[null,null,"2020-07-22",null,null,47]
[null,null,"2020-08-05",null,10]
[null,null,"2020-08-20",null,null,11]
[null,null,"2020-09-03",null,10]
[null,null,"2020-09-22",null,null,13]
[null,null,"2020-09-24",null,2]
[null,null,"2020-10-16",null,null,16]
[null,null,"2020-10-27","decyzja",7]
[]
[]
[]
[null,null,"Razem",null,39,87]

{"sheet":"Kruk S.A. (obligacje) 2020","index":155,"n_rows":69,"n_cols":6,"rows_kept":69,"cut":false,"hidden":false,"merged":[[51,2,52,2],[52,4,52,5],[63,2,64,2],[64,4,64,5],[5,2,6,2],[6,4,6,5],[27,2,28,2],[28,4,28,5],[39,2,40,2],[40,4,40,5]]}
[]
["PROSPEKT",null,"Kruk S.A."]
[null,"zakończone","Prospekt podstawowy obligacji"]
[]
[]
["Pismo przychodzące","Pismo wychodzące lub zdarzenie przerywające termin","Data",null,"Czynności po stronie urzędu","Czynności po stronie emitenta"]
[null,null,null,null,"(w dniach roboczych)"]
["wniosek ",null,"2020-04-24"," wniosek"]
[null,"uwagi nr 1","2020-05-11",null,10]
[null,null,"2020-05-25",null,null,10]
[null,null,"2020-06-05",null,9]
[null,null,"2020-06-18",null,null,8]
[null,null,"2020-07-01",null,9]
[null,null,"2020-07-09",null,null,6]
[null,null,"2020-07-21",null,8]
[null,null,"2020-07-28",null,null,5]
[null,null,"2020-08-07",null,8]
[null,null,"2020-08-12",null,null,3]
[null,null,"2020-08-24","decyzja",8]
[]
[null,null,"Razem",null,52,32]
[]
[]
[]
["SUPLEMENTY",null,{"$f":"$C$2","v":"Kruk S.A."}]
[null,"zakończone","Suplement nr 1 do prospektu podstawowego obligacji"]
[]
[null,null,"Data",null,"Czynności po stronie urzędu","Czynności po stronie emitenta"]
[null,null,null,null,"(w dniach roboczych)"]
[null,null,"2020-08-31","wniosek"]
[null,null,"2020-09-07","decyzja",5]
[]
[]
[null,null,"Razem",null,5,0]
[]
[]
[null,null,{"$f":"$C$2","v":"Kruk S.A."}]
[null,"zakończone","Suplement nr 2"]
[]
[null,null,"Data",null,"Czynności po stronie urzędu","Czynności po stronie emitenta"]
[null,null,null,null,"(w dniach roboczych)"]
[null,null,"2020-11-09","wniosek"]
[null,null,"2020-11-17","decyzja",5]
[]
[null,null,"Razem",null,{"$f":"SUM(E42:E44)","v":5},{"$f":"SUM(F42:F44)","v":0}]
[]
[]
[]
[null,null,{"$f":"$C$2","v":"Kruk S.A."}]
[null,"zakończone","Suplement nr 3"]
[]
[null,null,"Data",null,"Czynności po stronie urzędu","Czynności po stronie emitenta"]
[null,null,null,null,"(w dniach roboczych)"]
[null,null,"2021-03-29","wniosek"]
[null,null,"2021-04-01","decyzja",3]
[null,null,null,null,null,0]
[null,null,"Razem",null,{"$f":"SUM(E54:E56)","v":3},0]
[]
[]
[]
[null,null,{"$f":"$C$2","v":"Kruk S.A."}]
[null,"zakończone","Suplement nr 4"]
[]
[null,null,"Data",null,"Czynności po stronie urzędu","Czynności po stronie emitenta"]
[null,null,null,null,"(w dniach roboczych)"]
[null,null,"2021-05-24","wniosek"]
[null,null,"2021-05-28","decyzja",4]
[null,null,null,null,null,0]
[null,null,"Razem",null,4,0]

{"sheet":"Trakcja","index":156,"n_rows":29,"n_cols":6,"rows_kept":29,"cut":false,"hidden":false,"merged":[[5,2,6,2],[6,4,6,5]]}
[]
["PROSPEKT",null,"Trakcja S.A. (d. Trakcja PRKiI S.A.)"]
["poz 176","umorzone","Prospekt"]
[]
[]
["Pismo przychodzące","Pismo wychodzące lub zdarzenie przerywające termin","Data",null,"Czynności po stronie urzędu","Czynności po stronie emitenta"]
[null,null,null,null,"(w dniach roboczych)"]
["wniosek ",null,"2020-02-12","wniosek"]
[null,"uwagi nr 1 ","2020-02-26",null,10]
[null,null,"2020-03-11",null,null,10]
[null,null,"2020-03-25",null,10]
[null,null,"2020-04-30",null,null,25]
[null,null,"2020-05-15",null,10]
[null,null,"2020-05-28",null,null,9]
[null,null,"2020-06-10",null,9]
[null,null,"2020-06-24",null,null,9]
[null,null,"2020-07-07",null,9]
[null,null,"2020-07-21",null,null,10]
[null,null,"2020-08-03",null,9]
[null,null,"2020-08-17",null,null,10]
[null,null,"2020-08-31",null,10]
[null,null,"2020-10-09",null,null,29]
[null,null,"2020-10-23",null,10]
[null,null,"2020-11-06",null,null,10]
[null,null,"2020-11-20",null,9]
[null,null,"2020-12-18",null,null,20]
[null,null,"2020-12-21",null,1]
[null,null,"2024-01-04","decyzja o umorzeniu"]
[null,null,"Razem",null,{"$f":"SUM(E8:E28)","v":87},{"$f":"SUM(F10:F28)","v":132}]

{"sheet":"Gaming Factory","index":157,"n_rows":21,"n_cols":6,"rows_kept":21,"cut":false,"hidden":false,"merged":[[5,2,6,2],[6,4,6,5]]}
[]
["PROSPEKT",null,"Gaming Factory S.A."]
[null,"zakończone","Prospekt"]
[]
[]
["Pismo przychodzące","Pismo wychodzące lub zdarzenie przerywające termin","Data",null,"Czynności po stronie urzędu","Czynności po stronie emitenta"]
[null,null,null,null,"(w dniach roboczych)"]
["wniosek ",null,"2020-01-07","wniosek"]
[null,"uwagi nr 1","2020-01-27",null,14]
[null,null,"2020-03-09",null,null,30]
[null,null,"2020-03-23",null,10]
[null,null,"2020-04-09",null,null,13]
[null,null,"2020-04-23",null,9]
[null,null,"2020-05-04",null,null,6]
[null,null,"2020-05-18",null,10]
[null,null,"2020-06-10",null,null,17]
[null,null,"2020-06-19","decyzja",6]
[]
[]
[]
[null,null,"Razem",null,49,66]

{"sheet":"Elektrim SA","index":158,"n_rows":33,"n_cols":6,"rows_kept":33,"cut":false,"hidden":false,"merged":[[5,2,6,2],[6,4,6,5],[27,2,28,2],[28,4,28,5]]}
[]
["PROSPEKT",null,"Elektrim SA"]
[null,"umorzone","Prospekt"]
[]
[]
["Pismo przychodzące","Pismo wychodzące lub zdarzenie przerywające termin","Data",null,"Czynności po stronie urzędu","Czynności po stronie emitenta"]
[null,null,null,null,"(w dniach roboczych)"]
["wniosek ",null,"2019-12-19","wniosek"]
[null,"uwagi nr 1","2020-01-08",null,10]
[null,null,"2020-02-03",null,null,18]
[null,null,"2020-02-14",null,9]
[null,null,"2020-03-20",null,null,25]
[null,null,"2020-04-03",null,10]
[null,null,"2020-05-08",null,null,23]
[null,null,"2020-05-22",null,10]
[null,null,"2023-07-21","decyzja o umorzeniu"]
[]
[]
[]
[]
[null,null,"Razem",null,39,66]
[]
[]
[]
["SUPLEMENTY",null,{"$f":"$C$2","v":"Elektrim SA"}]
[null,"      ","Suplement nr 1"]
[]
[null,null,"Data",null,"Czynności po stronie urzędu","Czynności po stronie emitenta"]
[null,null,null,null,"(w dniach roboczych)"]
[null,null,null,"wniosek"]
[]
[]
[null,null,"Razem",null,{"$f":"SUM(E30:E32)","v":0},{"$f":"SUM(F30:F32)","v":0}]

{"sheet":"Alior Bank S.A. (BPW) 2020","index":159,"n_rows":102,"n_cols":6,"rows_kept":102,"cut":false,"hidden":false,"merged":[[67,2,68,2],[68,4,68,5],[81,2,82,2],[82,4,82,5],[5,2,6,2],[6,4,6,5],[41,2,42,2],[42,4,42,5],[54,2,55,2],[55,4,55,5]]}
[]
["PROSPEKT",null,"Alior Bank S.A."]
[null,"zakończone","Prospekt podstawowy bankowych papierów wartościowych"]
[]
[]
["Pismo przychodzące","Pismo wychodzące lub zdarzenie przerywające termin","Data",null,"Czynności po stronie urzędu","Czynności po stronie emitenta"]
[null,null,null,null,"(w dniach roboczych)"]
["wniosek ",null,"2019-12-05","wniosek"]
[null,"uwagi nr 1","2019-12-19",null,10]
[null,null,"2020-01-10",null,null,12]
[null,null,"2020-01-22",null,8]
[null,null,"2020-02-06",null,null,11]
[null,null,"2020-02-20",null,10]
[null,null,"2020-03-20",null,null,21]
[null,null,"2020-04-02",null,9]
[null,null,"2020-04-17",null,null,10]
[null,null,"2020-05-04",null,10]
[null,null,"2020-05-14",null,null,8]
[null,null,"2020-05-28",null,10]
[null,null,"2020-06-10",null,null,9]
[null,null,"2020-06-22",null,7]
[null,null,"2020-07-08",null,null,12]
[null,null,"2020-07-20",null,8]
[null,null,"2020-08-04",null,null,11]
[null,null,"2020-08-18",null,10]
[null,null,"2020-09-16",null,null,21]
[null,null,"2020-09-30",null,10]
[null,null,"2020-11-25",null,null,39]
[null,null,"2020-12-02",null,5]
[null,null,"2020-12-14",null,null,8]
[null,null,"2020-12-18",null,4]
[null,null,"2020-12-21",null,null,1]
[null,null,"2020-12-31","decyzja",7]
[]
[null,null,"Razem",null,108,163]
[]
[]
[]
["SUPLEMENTY",null,{"$f":"$C$2","v":"Alior Bank S.A."}]
[null,"zakończone","Suplement nr 1"]
[]
[null,null,"Data",null,"Czynności po stronie urzędu","Czynności po stronie emitenta"]
[null,null,null,null,"(w dniach roboczych)"]
[null,null,"2021-03-05","wniosek"]
[null,null,"2021-03-09",null,2]
[null,null,"2021-03-11",null,null,2]
[null,null,"2021-03-12","decyzja",1]
[null,null,"Razem",null,3,2]
[]
[]
[]
[null,null,{"$f":"$C$2","v":"Alior Bank S.A."}]
[null,"zakończone","Suplement nr 2"]
[]
[null,null,"Data",null,"Czynności po stronie urzędu","Czynności po stronie emitenta"]
[null,null,null,null,"(w dniach roboczych)"]
[null,null,"2021-04-12","wniosek"]
[null,null,"2021-04-14",null,2]
[null,null,"2021-04-16",null,null,2]
[null,null,"2021-04-19",null,1]
[null,null,"2021-04-21",null,null,2]
[null,null,"2021-04-23","decyzja",2]
[null,null,"Razem",null,5,4]
[]
[null,null,{"$f":"$C$2","v":"Alior Bank S.A."}]
[null,"zakończone","Suplement nr 3"]
[]
[null,null,"Data",null,"Czynności po stronie urzędu","Czynności po stronie emitenta"]
[null,null,null,null,"(w dniach roboczych)"]
[null,null,"2021-04-30","wniosek"]
[null,null,"2021-05-04",null,1]
[null,null,"2021-05-05",null,null,1]
[null,null,"2021-05-07","decyzja",2]
[null,null,"Razem",null,3,1]
[]
[]
[]
[]
[null,null,{"$f":"$C$2","v":"Alior Bank S.A."}]
[null,"zakończone","Suplement nr 4"]
[]
[null,null,"Data",null,"Czynności po stronie urzędu","Czynności po stronie emitenta"]
[null,null,null,null,"(w dniach roboczych)"]
[null,null,"2021-08-04","wniosek"]
[null,null,"2021-08-06","decyzja",2]
[null,null,"Razem",null,2,0]
[]
[]
[]
[null,null,{"$f":"$C$2","v":"Alior Bank S.A."}]
[null,"zakończone","Suplement nr 5"]
[]
[null,null,"Data",null,"Czynności po stronie urzędu","Czynności po stronie emitenta"]
[null,null,null,null,"(w dniach roboczych)"]
[null,null,"2021-10-28","wniosek"]
[null,null,"2021-10-29","decyzja",1]
[null,null,"Razem",null,1,0]
[]
[]
[]
[]
[null,null,"."]

{"sheet":"Ghelamco","index":160,"n_rows":43,"n_cols":6,"rows_kept":43,"cut":false,"hidden":false,"merged":[[5,2,6,2],[6,4,6,5],[27,2,28,2],[28,4,28,5]]}
[]
["PROSPEKT",null," Ghelamco Invest Sp. z o.o."]
[null,"zakończone","Prospekt podstawowy obligacji"]
[]
[]
["Pismo przychodzące","Pismo wychodzące lub zdarzenie przerywające termin","Data",null,"Czynności po stronie urzędu","Czynności po stronie emitenta"]
[null,null,null,null,"(w dniach roboczych)"]
["wniosek ",null,"2019-10-18","wniosek"]
[null,"uwagi nr 1 ","2019-11-04",null,10]
[null,null,"2019-11-12",null,null,5]
[null,null,"2019-11-26",null,10]
[null,null,"2019-12-03",null,null,5]
[null,null,"2019-12-17",null,10]
[null,null,"2020-01-29",null,null,27]
[null,null,"2020-02-12",null,10]
[null,null,"2020-02-21",null,null,7]
[null,null,"2020-02-27","decyzja",4]
[]
[]
[]
[null,null,"Razem",null,44,44]
[]
[]
[]
["SUPLEMENTY",null,{"$f":"C2","v":" Ghelamco Invest Sp. z o.o."}]
[null,"zakończone","Suplement nr 1"]
[]
[null,null,"Data",null,"Czynności po stronie urzędu","Czynności po stronie emitenta"]
[null,null,null,null,"(w dniach roboczych)"]
[null,null,"2020-04-10","wniosek"]
[null,null,"2020-04-20",null,5]
[null,null,"2020-04-21",null,null,1]
[null,null,"2020-04-22",null,1]
[null,null,"2020-04-22",null,null,0]
[null,null,"2020-04-27",null,3]
[null,null,"2020-05-07",null,null,7]
[null,null,"2020-05-11",null,2]
[null,null,"2020-05-11",null,null,0]
[null,null,"2020-05-12",null,1]
[null,null,"2020-05-13",null,null,1]
[null,null,"2020-05-20","decyzja",5]
[]
[null,null,"Razem",null,17,9]

{"sheet":"Alior Bank (obligacje) 2020","index":161,"n_rows":108,"n_cols":6,"rows_kept":108,"cut":false,"hidden":false,"merged":[[101,2,102,2],[102,4,102,5],[88,2,89,2],[89,4,89,5],[62,2,63,2],[63,4,63,5],[75,2,76,2],[76,4,76,5],[5,2,6,2],[6,4,6,5],[37,2,38,2],[38,4,38,5],[50,2,51,2],[51,4,51,5]]}
[]
["PROSPEKT",null,"Alior Bank S.A."]
[null,"zakończone","Prospekt podstawowy obligacji"]
[]
[]
["Pismo przychodzące","Pismo wychodzące lub zdarzenie przerywające termin","Data",null,"Czynności po stronie urzędu","Czynności po stronie emitenta"]
[null,null,null,null,"(w dniach roboczych)"]
["wniosek ",null,"2019-10-04","wniosek"]
[null,"uwagi nr 1","2019-10-18",null,10]
[null,null,"2019-10-31",null,null,9]
[null,null,"2019-11-18",null,10]
[null,null,"2019-12-02",null,null,10]
[null,null,"2019-12-16",null,10]
[null,null,"2019-12-20",null,null,4]
[null,null,"2020-01-09",null,10]
[null,null,"2020-01-15",null,null,4]
[null,null,"2020-01-29",null,10]
[null,null,"2020-02-05",null,null,5]
[null,null,"2020-02-13",null,6]
[null,null,"2020-02-18",null,null,3]
[null,null,"2020-02-21",null,3]
[null,null,"2020-02-25",null,null,2]
[null,null,"2020-03-03",null,5]
[null,null,"2020-03-18",null,null,11]
[null,null,"2020-04-01",null,10]
[null,null,"2020-04-09",null,null,6]
[null,null,"2020-04-17",null,5]
[null,null,"2020-04-23",null,null,4]
[null,null,"2020-05-04","decyzja",6]
[]
[null,null,"Razem",null,85,58]
[]
[]
[]
["SUPLEMENTY",null,{"$f":"$C$2","v":"Alior Bank S.A."}]
[null,"zakończone","Suplement nr 1 do prospektu podstawowego obligacji"]
[]
[null,null,"Data",null,"Czynności po stronie urzędu","Czynności po stronie emitenta"]
[null,null,null,null,"(w dniach roboczych)"]
[null,null,"2020-05-08","wniosek"]
[null,null,"2020-05-12",null,2]
[null,null,"2020-05-18",null,null,4]
[null,null,"2020-05-25","decyzja",5]
[]
[null,null,"Razem",null,7,4]
[]
[]
[null,null,{"$f":"$C$2","v":"Alior Bank S.A."}]
[null,"zakończone","Suplement nr 2 do prospektu podstawowego obligacji"]
[]
[null,null,"Data",null,"Czynności po stronie urzędu","Czynności po stronie emitenta"]
[null,null,null,null,"(w dniach roboczych)"]
[null,null,"2020-08-21","wniosek"]
[null,null,"2020-08-24",null,1]
[null,null,"2020-09-16",null,null,17]
[null,null,"2020-09-21","decyzja",3]
[null,null,"Razem",null,4,17]
[]
[]
[null,null,{"$f":"$C$2","v":"Alior Bank S.A."}]
[null,"zakończone","Suplement nr 3"]
[]
[null,null,"Data",null,"Czynności po stronie urzędu","Czynności po stronie emitenta"]
[null,null,null,null,"(w dniach roboczych)"]
[null,null,"2020-11-06","wniosek"]
[null,null,"2020-11-13",null,4]
[null,null,"2020-11-26",null,null,13]
[null,null,"2020-12-02","decyzja",4]
[null,null,"Razem",null,8,13]
[]
[]
[]
[null,null,{"$f":"$C$2","v":"Alior Bank S.A."}]
[null,"zakończone","Suplement nr 4"]
[]
[null,null,"Data",null,"Czynności po stronie urzędu","Czynności po stronie emitenta"]
[null,null,null,null,"(w dniach roboczych)"]
[null,null,"2020-12-23","wniosek"]
[null,null,"2020-12-30",null,4]
[null,null,"2021-01-08",null,null,5]
[null,null,"2021-01-12","decyzja",2]
[null,null,"Razem",null,6,5]
[]
[]
[]
[null,null,{"$f":"$C$2","v":"Alior Bank S.A."}]
[null,"zakończone","Suplement nr 5"]
[]
[null,null,"Data",null,"Czynności po stronie urzędu","Czynności po stronie emitenta"]
[null,null,null,null,"(w dniach roboczych)"]
[null,null,"2021-03-05","wniosek"]
[null,null,"2021-03-09",null,2]
[null,null,"2021-03-11",null,null,2]
[null,null,"2021-03-12","decyzja",1]
[null,null,"Razem",null,3,2]
[]
[]
[]
[null,null,{"$f":"$C$2","v":"Alior Bank S.A."}]
[null,"zakończone","Suplement nr 6"]
[]
[null,null,"Data",null,"Czynności po stronie urzędu","Czynności po stronie emitenta"]
[null,null,null,null,"(w dniach roboczych)"]
[null,null,"2021-04-12","wniosek"]
[null,null,"2021-04-14",null,2]
[null,null,"2021-04-16",null,null,2]
[null,null,"2021-04-21","decyzja",3]
[null,null,"Razem",null,5,2]

{"sheet":"Games Operators S.A.","index":162,"n_rows":27,"n_cols":6,"rows_kept":27,"cut":false,"hidden":false,"merged":[[5,2,6,2],[6,4,6,5]]}
[]
["PROSPEKT",null,"Games Operators S.A."]
[null,"zakończone","Prospekt akcji"]
[]
[]
["Pismo przychodzące","Pismo wychodzące lub zdarzenie przerywające termin","Data",null,"Czynności po stronie urzędu","Czynności po stronie emitenta"]
[null,null,null,null,"(w dniach roboczych)"]
["wniosek ",null,"2019-08-02","wniosek"]
[null,"uwagi nr 1","2019-09-02",null,20]
[null,null,"2019-09-17",null,null,11]
[null,null,"2019-10-01",null,10]
[null,null,"2019-10-15",null,null,10]
[null,null,"2019-10-29",null,10]
[null,null,"2019-11-22",null,null,16]
[null,null,"2019-12-06",null,10]
[null,null,"2019-12-19",null,null,9]
[null,null,"2020-01-08",null,10]
[null,null,"2020-01-21",null,null,9]
[null,null,"2020-02-04",null,10]
[null,null,"2020-02-11",null,null,5]
[null,null,"2020-02-14",null,3]
[null,null,"2020-02-18",null,null,2]
[null,null,"2020-02-20",null,2]
[null,null,"2020-02-26",null,null,4]
[null,null,"2020-02-28","decyzja",2]
[]
[null,null,"Razem",null,77,66]

{"sheet":"Ipopema Ekologii i Innowacji","index":163,"n_rows":63,"n_cols":6,"rows_kept":63,"cut":false,"hidden":false,"merged":[[54,2,55,2],[55,4,55,5],[5,2,6,2],[6,4,6,5],[28,2,29,2],[29,4,29,5],[42,2,43,2],[43,4,43,5]]}
["Spis treści"]
[null,null,"Ipopema Ekologii i Innowacji"]
["PROSPEKT","zakończone","Prospekt"]
[]
["410.26.2022"]
[null,null,"Data",null,"Czynności po stronie urzędu","Czynności po stronie emitenta"]
[null,null,null,null,"(w dniach roboczych)"]
[null,null,"2022-05-31","wniosek"]
[null,null,"2022-06-13",null,9]
[null,null,"2022-06-25",null,null,8]
[null,null,"2022-07-08",null,10]
[null,null,"2022-07-25",null,null,11]
[null,null,"2022-08-03",null,7]
[null,null,"2022-08-17",null,null,9]
[null,null,"2022-08-24","decyzja",5]
[]
[]
[]
[]
[]
[null,null,"Razem",null,{"$f":"SUM(E8:E20)","v":31},{"$f":"SUM(F8:F20)","v":28}]
[]
[]
[]
[]
["SUPLEMENTY",null,{"$f":"$C$2","v":"Ipopema Ekologii i Innowacji"}]
[null,"zakończone","Suplement nr 1"]
[]
[null,null,"Data",null,"Czynności po stronie urzędu","Czynności po stronie emitenta"]
[null,null,null,null,"(w dniach roboczych)"]
[null,null,"2022-10-05","wniosek"]
[null,null,"2022-10-11",null,4]
[null,null,"2022-10-13",null,null,2]
[null,null,"2022-10-17",null,2]
[]
[null,null,"Razem",null,{"$f":"SUM(E31:E35)","v":6},{"$f":"SUM(F31:F35)","v":2}]
[]
[]
[null,null,"Ipopema Ekologii i Innowacji FIZ"]
["Suplement nr 2","zakończone","Suplement nr 2"]
[]
[]
[null,null,"Data",null,"Czynności po stronie urzędu","Czynności po stronie emitenta"]
[null,null,null,null,"(w dniach roboczych)"]
[null,null,"2022-04-07","wniosek"]
[null,null,"2022-04-12","aktualizacja",null,2]
[null,null,"2023-04-17","decyzja",3]
[]
[null,null,"Razem",null,{"$f":"SUM(E45:E48)","v":3},{"$f":"SUM(F45:F48)","v":2}]
[]
[null,null,"Ipopema Ekologii i Innowacji FIZ"]
["Suplement nr 3","zakończone","Suplement"]
[]
[]
[null,null,"Data",null,"Czynności po stronie urzędu","Czynności po stronie emitenta"]
[null,null,null,null,"(w dniach roboczych)"]
[null,null,"2022-04-27","wniosek"]
[null,null,"2022-05-05",null,4]
[null,null,"2023-05-08",null,null,1]
[null,null,"2023-05-11",null,3]
[null,null,"2023-05-11",null,null,0]
[null,null,"2023-05-16",null,3]
[null,null,"Razem",null,{"$f":"SUM(E57:E62)","v":10},{"$f":"SUM(F57:F62)","v":1}]

{"sheet":"Brand 24 SA","index":164,"n_rows":57,"n_cols":6,"rows_kept":57,"cut":false,"hidden":false,"merged":[[5,2,6,2],[6,4,6,5],[47,2,48,2],[48,4,48,5]]}
[]
["PROSPEKT",null,"Brand 24 SA"]
[null,"zakończone","Prospekt"]
[]
[]
["Pismo przychodzące","Pismo wychodzące lub zdarzenie przerywające termin","Data",null,"Czynności po stronie urzędu","Czynności po stronie emitenta"]
[null,null,null,null,"(w dniach roboczych)"]
["wniosek ",null,"2019-04-11"]
[null,"uwagi nr 1","2019-05-10",null,18]
["odpowiedź na uwagi 1",null,"2019-06-12",null,null,23]
[null,"uwagi nr 2","2019-07-04",null,15]
["odpowiedź na uwagi 2",null,"2019-07-16",null,null,8]
[null,"uwagi nr 3","2019-07-31",null,11]
["odpowiedź na uwagi 3",null,"2019-08-14",null,null,10]
[null,"uwagi nr 4","2019-08-29",null,10]
["odpowiedź na uwagi 4",null,"2019-09-16",null,null,12]
[null,"uwagi nr 5","2019-09-30",null,10]
["odpowiedź na uwagi 5",null,"2019-11-04",null,null,24]
[null,"uwagi nr 6","2019-11-19",null,10]
["odpowiedź na uwagi 6",null,"2020-02-27",null,null,68]
[null,"uwagi nr 7","2020-03-12",null,10]
["odpowiedź na uwagi 7",null,"2020-10-09",null,null,148]
[null,"uwagi 8","2020-10-22",null,9]
["odpowiedź na uwagi 8",null,"2020-11-18",null,null,18]
[null,"uwagi nr 9","2020-12-01",null,9]
["odpowiedź na uwagi 9",null,"2020-12-14",null,null,9]
[null,"uwagi nr 10","2020-12-29",null,10]
["odpowiedź na uwagi 10",null,"2021-01-13",null,null,9]
[null,"uwagi nr 11","2021-01-25",null,8]
["odpowiedź na uwagi 11",null,"2021-01-31",null,null,4]
[null,"uwagi nr 12","2021-02-11",null,9]
["odpowiedzi na uwagi 12",null,"2021-02-19",null,null,6]
[null,"uwagi nr 13","2021-03-04",null,9]
["odpowiedzi na uwagi 13",null,"2021-03-05",null,null,1]
[null,"uwagi nr 14","2021-03-10",null,3]
["odpowiedzi na uwagi 14",null,"2021-03-10",null,null,0]
[null,null,"2021-03-17","decyzja",5]
[]
[]
[]
[null,null,"Razem",null,146,340]
[]
[]
[]
["SUPLEMENTY",null,{"$f":"$C$2","v":"Brand 24 SA"}]
[null,"w toku","Suplement nr 1"]
[]
[null,null,"Data",null,"Czynności po stronie urzędu","Czynności po stronie emitenta"]
[null,null,null,null,"(w dniach roboczych)"]
[null,null,"2021-03-29","wniosek"]
[null,"uwagi nr 1","2021-04-02",null,4]
[null,null,"2021-04-08",null,null,3]
[null,null,"2021-04-13",null,3]
[null,null,"2021-04-15",null,null,2]
[null,null,"2021-04-19",null,2]
[null,null,null,null,null,0]
[null,null,"Razem",null,9,5]

{"sheet":"WZÓR","index":165,"n_rows":34,"n_cols":6,"rows_kept":34,"cut":false,"hidden":false,"merged":[[5,2,6,2],[6,4,6,5],[27,2,28,2],[28,4,28,5]]}
["Spis treści"]
[null,null,"Nazwa SA"]
["PROSPEKT",null,"Prospekt"]
[]
[]
[null,null,"Data",null,"Czynności po stronie urzędu","Czynności po stronie emitenta"]
[null,null,null,null,"(w dniach roboczych)"]
[null,null,null,"wniosek"]
[]
[]
[]
[]
[]
[]
[]
[]
[]
[]
[]
[]
[null,null,"Razem",null,{"$f":"SUM(E8:E20)","v":0},{"$f":"SUM(F8:F20)","v":0}]
[]
[]
[]
["SUPLEMENTY",null,{"$f":"$C$2","v":"Nazwa SA"}]
[null,"zakończone","Suplement nr ……"]
[]
[null,null,"Data",null,"Czynności po stronie urzędu","Czynności po stronie emitenta"]
[null,null,null,null,"(w dniach roboczych)"]
[null,null,null,"wniosek"]
[]
[]
[]
[null,null,"Razem",null,{"$f":"SUM(E30:E33)","v":0},{"$f":"SUM(F30:F33)","v":0}]

{"sheet":"Wolne","index":166,"n_rows":78,"n_cols":3,"rows_kept":78,"cut":false,"hidden":true,"merged":[]}
["Nowy Rok","2018-01-01",{"$f":"B1","v":"2018-01-01"}]
["Święto Objawienia Pańskiego","2018-01-06","2018-01-06"]
["Poniedziałek Wielkanocny","2018-04-02","2018-04-02"]
["Święto Pracy na działce","2018-05-01","2018-05-01"]
["Święto Konstytucji 3 Maja","2018-05-03","2018-05-03"]
["Uroczystość Najświętszego Ciała i Krwi Chrystusa","2018-05-31","2018-05-31"]
["Święto Wojska Polskiego","2018-08-15","2018-08-15"]
["Uroczystość Wszystkich Świętych","2018-11-01","2018-11-01"]
["Święto Odzyskania Niepodległości","2018-11-11","2018-11-11"]
["Święto Odzyskania Niepodległości - dodatkowy","2018-11-12","2018-11-12"]
["Święto Bożego Narodzenia","2018-12-25","2018-12-25"]
["Święto Bożego Narodzenia","2018-12-26","2018-12-26"]
["Nowy Rok","2019-01-01","2019-01-01"]
["Święto Objawienia Pańskiego","2019-01-06","2019-01-06"]
["Poniedziałek Wielkanocny","2019-04-22",{"$f":"B15","v":"2019-04-22"}]
["Święto Pracy na działce","2019-05-01","2019-05-01"]
["Święto Konstytucji 3 Maja","2019-05-03","2019-05-03"]
["Uroczystość Najświętszego Ciała i Krwi Chrystusa","2019-06-20","2019-06-20"]
["Święto Wojska Polskiego","2019-08-15","2019-08-15"]
["Uroczystość Wszystkich Świętych","2019-11-01","2019-11-01"]
["Święto Odzyskania Niepodległości","2019-11-11","2019-11-11"]
["Święto Bożego Narodzenia","2019-12-25","2019-12-25"]
["Święto Bożego Narodzenia","2019-12-26","2019-12-26"]
["Nowy Rok","2020-01-01",{"$f":"B24","v":"2020-01-01"}]
["Święto Objawienia Pańskiego","2020-01-06","2020-01-06"]
["Poniedziałek Wielkanocny","2020-04-13","2020-04-13"]
["Święto Pracy na działce","2020-05-01","2020-05-01"]
["Święto Konstytucji 3 Maja","2020-05-03","2020-05-03"]
["Uroczystość Najświętszego Ciała i Krwi Chrystusa","2020-06-11","2020-06-11"]
["Święto Wojska Polskiego","2020-08-15","2020-08-15"]
["Uroczystość Wszystkich Świętych","2020-11-01","2020-11-01"]
["Święto Odzyskania Niepodległości","2020-11-11","2020-11-11"]
["Święto Bożego Narodzenia","2020-12-25","2020-12-25"]
["Święto Bożego Narodzenia","2020-12-26","2020-12-26"]
["Nowy Rok","2021-01-01","2021-01-01"]
["Święto Objawienia Pańskiego","2021-01-06","2021-01-06"]
["Poniedziałek Wielkanocny","2021-04-05","2021-04-05"]
["Święto Pracy na działce","2021-05-01","2021-05-01"]
["Święto Konstytucji 3 Maja","2021-05-03","2021-05-03"]
["Uroczystość Najświętszego Ciała i Krwi Chrystusa","2021-06-03","2021-06-03"]
["Święto Wojska Polskiego","2021-08-15","2021-08-15"]
["Uroczystość Wszystkich Świętych","2021-11-01","2021-11-01"]
["Święto Odzyskania Niepodległości","2021-11-11","2021-11-11"]
["Święto Bożego Narodzenia","2021-12-25","2021-12-25"]
["Święto Bożego Narodzenia","2021-12-26","2021-12-26"]
["Nowy Rok","2022-01-01",{"$f":"B46","v":"2022-01-01"}]
["Święto Objawienia Pańskiego","2022-01-06","2022-01-06"]
["Poniedziałek Wielkanocny","2022-04-18","2022-04-18"]
["Święto Pracy na działce","2022-05-01","2022-05-01"]
["Święto Konstytucji 3 Maja","2022-05-03","2022-05-03"]
["Uroczystość Najświętszego Ciała i Krwi Chrystusa","2022-06-16","2022-06-16"]
["Święto Wojska Polskiego","2022-08-15","2022-08-15"]
["Uroczystość Wszystkich Świętych","2022-11-01","2022-11-01"]
["Święto Odzyskania Niepodległości","2022-11-11","2022-11-11"]
["Święto Bożego Narodzenia","2022-12-25","2022-12-25"]
["Święto Bożego Narodzenia","2022-12-26","2022-12-26"]
["Nowy Rok","2023-01-01",{"$f":"B57","v":"2023-01-01"}]
["Święto Objawienia Pańskiego","2023-01-06","2023-01-06"]
["Poniedziałek Wielkanocny","2023-04-10","2023-04-10"]
["Święto Pracy na działce","2023-05-01","2023-05-01"]
["Święto Konstytucji 3 Maja","2023-05-03","2023-05-03"]
["Uroczystość Najświętszego Ciała i Krwi Chrystusa","2023-06-08","2023-06-08"]
["Święto Wojska Polskiego","2023-08-15","2023-08-15"]
["Uroczystość Wszystkich Świętych","2023-11-01","2023-11-01"]
["Święto Odzyskania Niepodległości","2023-11-11","2023-11-11"]
["Święto Bożego Narodzenia","2023-12-25","2023-12-25"]
["Święto Bożego Narodzenia","2023-12-26","2023-12-26"]
["Nowy Rok","2024-01-01",{"$f":"B68","v":"2024-01-01"}]
["Święto Objawienia Pańskiego","2024-01-06","2024-01-06"]
["Poniedziałek Wielkanocny","2024-04-01","2024-04-01"]
["Święto Pracy na działce","2024-05-01","2024-05-01"]
["Święto Konstytucji 3 Maja","2024-05-03","2024-05-03"]
["Uroczystość Najświętszego Ciała i Krwi Chrystusa","2024-05-30","2024-05-30"]
["Święto Wojska Polskiego","2024-08-15","2024-08-15"]
["Uroczystość Wszystkich Świętych","2024-11-01","2024-11-01"]
["Święto Odzyskania Niepodległości","2024-11-11","2024-11-11"]
["Święto Bożego Narodzenia","2024-12-25","2024-12-25"]
["Święto Bożego Narodzenia","2024-12-26","2024-12-26"]

{"sheet":"test","index":167,"n_rows":32,"n_cols":6,"rows_kept":32,"cut":false,"hidden":true,"merged":[[5,2,6,2],[6,4,6,5],[27,2,28,2],[28,4,28,5]]}
[]
["PROSPEKT",null,"Nazwa SA"]
[null,null,"Prospekt"]
[]
[]
["Pismo przychodzące","Pismo wychodzące lub zdarzenie przerywające termin","Data",null,"Czynności po stronie urzędu","Czynności po stronie emitenta"]
[null,null,null,null,"(w dniach roboczych)"]
["wniosek "]
[null,"uwagi nr 1"]
[]
[]
[]
[]
[]
[]
[]
[]
[]
[]
[]
[null,null,"Razem",null,{"$f":"SUM(E8:E20)","v":0},{"$f":"SUM(F8:F20)","v":0}]
[]
[]
[]
["SUPLEMENTY",null,{"$f":"$C$2","v":"Nazwa SA"}]
[null,null,"Suplement nr 1"]
[]
[null,null,"Data",null,"Czynności po stronie urzędu","Czynności po stronie emitenta"]
[null,null,null,null,"(w dniach roboczych)"]
[null,null,null,"wniosek"]
[]
[null,null,null,"decyzja"]

{"sheet":"Zdarzenia","index":168,"n_rows":213,"n_cols":6,"rows_kept":213,"cut":false,"hidden":true,"merged":[]}
["0"]
["wniosek"]
["decyzja"]
["decyzja o umorzeniu"]
["aktualizacja"]
[]
[]
[]
[]
[]
[]
["Stan"]
["      "]
["w toku"]
["zawieszone"]
["zakończone"]
["umorzone"]
[]
[]
["   "]
[]
[]
[]
[]
[]
[]
[]
[]
[]
[]
[]
[]
[]
[]
[]
[]
[]
[]
[]
[]
[]
[]
[]
[]
[]
[]
[]
[]
["Status","NrEZD","DniKNF","DniEmitent"]
["zakończone","410.1.2024",33,26,null,"Polskie Towarzystwo Wspierania Przedsiębiorczości SA"]
["zakończone","410.5.2023",23,9,null,"Cavatina Holding S.A."]
["zakończone","410.26.2023",52,123,null,"Pekao Bank Hipoteczny S.A."]
["zakończone","410.41.2023",30,56,null,"Millennium Bank Hipoteczny S.A."]
["zakończone","410.42.2023",48,25,null,"Marvipol Development SA"]
["zakończone",null,49,24,null,"WOODPECKER.CO SA "]
["zakończone","410.20.2022",193,254,null,"JR Holding ASI SA"]
["zakończone","410.35.2023",34,24,null,"Bloober Team"]
["zakończone","410.15.2023",57,91,null,"Neptis SA"]
["zakończone","410.22.2023",48,57,null,"Render Cube"]
["zakończone","410.32.2023",32,30,null,"Pure Biologics"]
["zakończone","410.33.2023",24,24,null,"Murapol S.A."]
["zakończone","410.36.2023",6,4,null,"Beta ETF Nasdaq-100 PLN-Hedged FIZ (2023)"]
["zakończone","410.37.2023",7,3,null,"Beta ETF S&P 500 PLN-Hedged"]
["zakończone","410.27.2023",25,25,null,"Eques Aktywnego Inwestowania FIZ 2023"]
["zakończone","410.28.2023",25,25,null,"Eques Akcji Sektora Prywatnego FIZ 2023"]
["zakończone","410.34.2023",13,15,null,"Eques Akumulacji Majątku FIZ 2023"]
["zakończone","410.30.2023",11,11,null,"Beta ETF WIG20TR"]
["zakończone","410.25.2023",20,13,null,"Ipopema Benefit 3 FIZ"]
["zakończone","410.31.2022",14,16,null,"Beta ETF TBSP PFIZ 2023"]
["zakończone","410.29.2023",9,11,null,"Beta ETF sWIG80TR"]
["zakończone","410.20.2023",33,37,null,"Ghelamco Invest sp. z o.o."]
["zakończone","410.24.2023",19,12,null,"PragmaGO - obligacje niezabezpieczone (2023)"]
["zakończone","410.8.2023",51,61,null,"PragmaGO SA - obligacje zabezpieczone (2023)"]
["zakończone","410.10.2023",72,26,null,"Starward Industries"]
["zakończone","410.13.2023",42,50,null,"Polenergia SA (2023)"]
["zakończone","410.38.2022",98,131,null,"XPlus SA"]
["zakończone","410.14.2022",32,26,null,"Ronson Development SE"]
["zakończone","410.21.2023",16,10,null,"PCC Exol S.A."]
["zakończone","410.11.2023",28,30,null,"PCC Rokita S.A. (2023)"]
["zakończone","410.18.2023",23,11,null,"Kruk (2023)"]
["zakończone","410.17.2023",13,17,null,"Beta ETF WIG20lev Portfelowy FIZ"]
["zakończone","410.16.2023",13,17,null,"Beta ETF WIG20short Portfelowy FIZ"]
[null,null,27,16,"PROSPEKT","Prospekt podstawowy"]
["zakończone","410.6.2023",10,63,null,"FDK Rentier FIZ"]
["zakończone","410.12.2023",9,19,null,"Beta ETF mWIG40TR FIZ"]
["zakończone","410.1.2023",37,26,null,"Dekpol SA"]
["zakończone","410.3.2023",50,46,null,"Drago Entertainment"]
["zakończone","410.5.2023",26,13,null,"Cavatina Holding SA"]
["zakończone","410.36.2022",74,83,null,"Urteste S.A."]
["zakończone","410.39.2022",71,66,null,"Columbus Energy SA"]
["zakończone","410.4.2023",9,9,null,"Beta ETF WIGtech FIZ"]
["zakończone","410.47.2022",59,41,null,"Kredyt Inkaso SA "]
["zakończone","410.44.2022",54,38,null,"LESS S.A."]
["zakończone","410.29.2022",47,78,null,"PASSUS SA"]
["zakończone","410.49.2022",22,16,null,"Ryvu Therapeutics"]
["zakończone","410.45.2022",31,25,null,"EQUES Akumulacji Majątku FIZ"]
["zakończone","410.37.2022",43,24,null,"Cloud Technologies SA"]
["zakończone","410.51.2022",14,6,null,"Beta ETF S&P 500 PLN-Hedged PFIZ"]
["zakończone","410.50.2022",14,6,null,"Beta ETF Nasdaq-100 PLN-Hedged Portfelowy FIZ"]
["zakończone","410.28.2022",59,41,null,"BEST SA"]
["zakończone","410.34.2022",46,26,null,"DEVELIA SA"]
["zakończone","410.32.2022",36,46,null,"Rafako SA"]
["zakończone","410.17.2022",66,57,null,"Tenderhut S.A."]
["zakończone","410.40.2022",23,14,null,"Beta ETF WIG20TR"]
["zakończone","410.42.2022",26,12,null,"Beta ETF TBSP PFIZ"]
["zakończone","410.41.2022",25,13,null,"Beta ETF uWIG80TR"]
["zakończone","410.35.2022",93,92,null,"GI GROUP POLAND S.A."]
["zakończone","410.33.2022",23,14,null,"Alior Bank S.A."]
["zakończone","410.27.2022",21,30,null,"Marvipol Development SA"]
["zakończone","410.21.2022",38,32,null,"Kruk S.A."]
["zakończone","410.15.2022",43,39,null,"EQUES Aktywnego Inwestowania FIZ"]
["zakończone","410.24.2022",29,26,null,"EQUES Akcji Sektora Prywatnego FIZ"]
["zakończone","410.14.2022",39,35,null,"Caspar Asset Management S.A."]
["zakończone","410.25.2022",15,11,null,"Beta ETF WIG20short Portfelowy FIZ"]
["zakończone","410.23.2022",13,11,null,"Beta ETF WIG20lev"]
["zakończone","410.18.2022",14,13,null,"Beta ETF mWIG40TR Portfelowy FIZ (2022)"]
["zakończone","410.19.2022",88,66,null,"Movie Games"]
["zakończone","410.8.2022",51,44,null,"Alior Bank S.A."]
["zakończone","410.11.2022",37,26,null,"PCC Exol S.A."]
["umorzone","410.13.2022",37,30,null,"Komex SA"]
["zakończone","410.12.2022",58,249,null,"Dr Irena Eris S.A."]
["zakończone","410.10.2022",57,29,null,"Bioceltix"]
["zakończone","410.9.2022",115,122,null,"DB Energy S.A."]
["zakończone","410.7.2022",37,59,null,"Ipopema Benefit 3 FIZ"]
["zakończone","410.30.2022",11,7,null,"PragmaGO SA - prospekt obligacji niezabezpieczonych"]
["zakończone","410.4.2022-2",52,50,null,"PragmaGO SA -  prospekt obligacji zabezpieczonych"]
["zakończone","410.6.2022",11,5,null,"Beta ETF WIGtech Portfelowy FIZ"]
["zawieszone","410.5.2022",47,36,null,"ExpertSender SA"]
["zakończone","410.2.2022",40,50,null,"Fundusz Długu Korporacyjnego Rentier FIZ"]
["zakończone","410.1.2022",69,162,null,"T-Bull SA"]
["zawieszone","410.53.2021",75,43,null,"Event Horizon SA"]
["zakończone","410.56.2021",128,122,null,"Hub.Tech SA"]
["zakończone","410.55.2021",50,33,null,"Creotech Instruments S.A."]
["zakończone","410.54.2021",79,77,null,"SimFabric S.A. "]
["zakończone","410.49.2021",61,50,null,"Millennium Bank Hipoteczny S.A."]
["zakończone","410.47.2021",58,60,null,"3LP"]
["zakończone","410.51.2021",101,194,null,"Scope Fluidics SA"]
["zakończone","410.48.2021",121,184,null,"Genomtec SA"]
["zawieszone","410.50.2021",40,36,null,"EXCELLENCE SA"]
["zawieszone","410.49.2021",10,0,null,"PGF Polska Grupa Fotowoltaiczna"]
["zakończone","410.45.2021",114,79,null,"Novavis Group"]
["zakończone","410.46.2021",124,190,null,"Pointpack SA"]
["zakończone","410.37.2021",44,71,null,"Skotan SA"]
["zakończone","410.43.2021",16,12,null,"BETA ETF S&P 500 PLN-Hedged Portfelowy FIZ (2021)"]
["zakończone","410.42.2021",15,13,null,"Beta ETF Nasdaq-100 PLN-Hedged Portfelowy FIZ (2021)"]
["zakończone","410.24.2021",46,35,null,"Polenergia SA"]
["zawieszone","410.36.2021",20,0,null,"Oferteo "]
["zakończone","410.31.2021",35,13,null,"Grupa Pracuj S.A."]
["zakończone","410.38.2021",38,38,null,"Cavatina Holding (obligacje)"]
["zakończone","410.34.2021",17,11,null,"Beta ETF WIG20TR Portfelowy FIZ"]
["zakończone","410.35.2021",38,16,null,"STS Holding S.A."]
["zakończone",null,31,29,null,"Echo Investment S.A. "]
["zakończone","410.32.2021",48,37,null,"BioMaxima S.A."]
["zawieszone","410.28.2021",76,59,null,"Transition Technologies MS SA"]
["zakończone","410.20.2021",49,20,null,"Bio Planet SA"]
["zawieszone","410.29.2021",97,125,null,"DESA S.A."]
["zakończone","410.22.2021",86,46,null,"Vortex Energy S.A."]
["zakończone","410.26.2021",55,33,null,"3R Games SA"]
["zakończone","410.23.2021",43,35,null,"Murapol S.A."]
["zakończone","410.18.2021",64,46,null,"SpyroSoft S.A."]
["w toku","410.21.2021",123,284,null,"ALL IN! GAMES SA"]
["zawieszone","410.19.2021",59,72,null,"Metalkas S.A."]
["zakończone","410.17.2021",44,28,null,"Poltreg S.A."]
["zakończone","410.16.2021",42,60,null,"Marvipol Development SA"]
["umorzone","410.15.2021",152,235,null,"KG Efekt SA (2021)"]
["zawieszone","410.14.2021",58,107,null,"Santander Bank Polska S.A."]
["zakończone","410.12.2021",15,25,null,"Beta ETF WIG20lev Portfelowy FIZ"]
["zakończone","410.13.2021",15,25,null,"Beta ETF WIG20short Portfelowy FIZ"]
["zakończone","410.11.2021",41,43,null,"Kruk S.A. (prospekt podstawowy obligacji)"]
["zakończone","410.10.2021",19,19,null,"Beta ETF mWIG40TR Portfelowy FIZ"]
["zakończone","410.8.2021",32,14,null,"ONDE SA"]
["zakończone","410.9.2021",0,0,null,"Ipopema Medycyny i Innowacji FIZ"]
["zakończone","410.7.2021",51,18,null,"Cavatina Holding SA"]
["umorzone","410.6.2021",33,250,null,"Canal+ Polska SA"]
["zakończone","410.4.2021",46,22,null,"Shoper S.A."]
["zakończone","410.3.2021",54,93,null,"Big Cheese Studio S.A. "]
["zakończone","410.5.2021",45,36,null,"Celon Pharma S.A."]
["zawieszone","410.2.2021",65,61,null,"Emitel S.A."]
["zakończone","410.1.2021",46,61,null,"BEST SA"]
["zakończone",null,67,101,null,"KREDYT INKASO S.A."]
["zakończone",null,45,33,null,"Vercom S.A."]
["zakończone",null,36,50,"PROSPEKT","Dekpol S.A."]
["zakończone",null,36,26,"PROSPEKT","Pekao Bank Hipoteczny S.A."]
["zakończone",null,53,52,"PROSPEKT","MCI Capital Alternatywna Spółka Inwestycyjna S.A."]
["zakończone",null,46,34,"PROSPEKT","PragmaGO SA"]
["zakończone",null,61,67,null,"Captor Therapeutics SA"]
["zakończone",null,40,17,"PROSPEKT","Answear.com SA (d.Wearco SA)"]
["zakończone",null,40,19,"PROSPEKT","Dadelo S.A."]
["zakończone",null,35,21,"PROSPEKT","PCF Group SA"]
["zakończone",null,52,51,"PROSPEKT","Huuuge, Inc."]
["zakończone",null,34,30,"PROSPEKT","Mo-BRUK SA"]
["umorzone",null,75,227,"PROSPEKT","PKO Leasing SA"]
["umorzone",null,19,46,"PROSPEKT","PCC MCAA sp. z o.o. "]
["zakończone",null,51,18,"PROSPEKT","Pure Biologics SA"]
["zakończone",null,27,12,"PROSPEKT","Canal+ Polska S.A."]
["zakończone",null,102,591,"PROSPEKT","Victoria Dom SA"]
["zakończone",null,62,103,"PROSPEKT","Creepy Jar S.A."]
["zawieszone",null,206,206,"PROSPEKT","MedApp SA"]
["zakończone",null,45,61,"PROSPEKT","Medinice SA"]
["zakończone",null,32,37,"PROSPEKT","PKO Bank Hipoteczny SA"]
["zakończone",null,73,247,"PROSPEKT","Polwax SA "]
["umorzone",null,66,142,"PROSPEKT","Inventionmed SA"]
["zakończone",null,39,87,"PROSPEKT","Polski Bank Komórek Macierzystych SA"]
["zakończone",null,52,32,"PROSPEKT","Kruk S.A."]
["umorzone",null,87,132,"PROSPEKT","Trakcja S.A. (d. Trakcja PRKiI S.A.)"]
["zakończone",null,49,66,"PROSPEKT","Gaming Factory S.A."]
["umorzone",null,39,66,"PROSPEKT","Elektrim SA"]
["zakończone",null,108,163,"PROSPEKT","Alior Bank S.A."]
["zakończone",null,44,44,"PROSPEKT"," Ghelamco Invest Sp. z o.o."]
["zakończone",null,85,58,"PROSPEKT","Alior Bank S.A."]
["zakończone",null,77,66,"PROSPEKT","Games Operators S.A."]
["zakończone","410.26.2022",31,28,null,"Ipopema Ekologii i Innowacji"]
["zakończone",null,146,340,"PROSPEKT","Brand 24 SA"]